Workbook

Sheet Cover
M2: Example and Worksheet Checklist
G3: Advanced Calibration: Performance Weighting SMEs
N6: Worksheet: Weighting SME Forecasts
F13: Hubbard Decision Research
F14: 2S410 Canterbury Ct
F15: Glen Ellyn, IL 60137
F16: www.hubbardresearch.com

Sheet Forecasts
A1: Forecasts Table
A2: Introduction: On this table, you will list all of the forecasts that your forecasters will be making. Note the type of forecast, whether it is trivia, and the expected date of the known outcome (not applicable for trivia questions). Once the outcome is known, fill out the outcome column and the date when the outcome was identified. For range type questions, the outcome should be a number. For binary type questions, the outcome will be a 1 or 0 (occured or did not occur).
A3: Forecast ID | B3: Statement/Question | C3: Type | D3: Trivia | E3: Expected Date of Known Outcome | F3: Outcome | G3: Actual Date of Known Outcome | H3: Max | I3: Min | J3: U | K3: L | L3: Aggregate SME forcast LB | M3: Aggregate SME UB forcast | N3: Aggregate SME Binary | O3: Outcome Quantile
A4: =10000+ROW(Forecasts[#This Row])-3 -> 10001 | B4: In 1938, a British steam locomotive set a new speed record by going how fast (in km/h)? | C4: Range | D4: Yes | F4: 203 | H4: =IF(Forecasts[[#This Row],[Type]]="Range", MAX(Forecasts[[#This Row],[Outcome]], _xlfn.MAXIFS(AssignmentTable[P95], AssignmentTable[Forecast ID], Forecasts[[#This Row],[Forecast ID]])), "") -> 2500 | I4: =IF(Forecasts[[#This Row],[Type]]="Range", MIN(Forecasts[[#This Row],[Outcome]], _xlfn.MINIFS(AssignmentTable[P5], AssignmentTable[Forecast ID], Forecasts[[#This Row],[Forecast ID]])), "") -> 0 | J4: =IF(Forecasts[[#This Row],[Type]]="Range", Forecasts[[#This Row],[Max]]+0.01*(Forecasts[[#This Row],[Max]]-Forecasts[[#This Row],[Min]]), "") -> 2525 | K4: =IF(Forecasts[[#This Row],[Type]]="Range", Forecasts[[#This Row],[Min]]-0.01*(Forecasts[[#This Row],[Max]]-Forecasts[[#This Row],[Min]]), "") -> -25 | L4: =IF(Forecasts[[#This Row],[Type]]="Range",SUMIF(AssignmentTable[Forecast ID],Forecasts[[#This Row],[Forecast ID]],AssignmentTable[P5 weighted]),"") -> 89.6132729 | M4: =IF(Forecasts[[#This Row],[Type]]="Range",SUMIF(AssignmentTable[Forecast ID],Forecasts[[#This Row],[Forecast ID]],AssignmentTable[P95 weighted]),"") -> 453.9806918 | N4: =IF(Forecasts[[#This Row],[Type]]="Binary",SUMIF(AssignmentTable[Forecast ID],Forecasts[[#This Row],[Forecast ID]],AssignmentTable[Probability of Occurance Weighted]),"") ->  | O4: =IF(ISBLANK(Forecasts[[#This Row],[Outcome]]), "", IF(Forecasts[[#This Row],[Outcome]]<Forecasts[[#This Row],[Aggregate SME forcast LB]], 1, IF(Forecasts[[#This Row],[Outcome]]<Forecasts[[#This Row],[Aggregate SME UB forcast]], 2,3))) -> 2
A5: =10000+ROW(Forecasts[#This Row])-3 -> 10002 | B5: In what year did Newton publish the universal laws of gravitation? | C5: Range | D5: Yes | F5: 1685 | H5: =IF(Forecasts[[#This Row],[Type]]="Range", MAX(Forecasts[[#This Row],[Outcome]], _xlfn.MAXIFS(AssignmentTable[P95], AssignmentTable[Forecast ID], Forecasts[[#This Row],[Forecast ID]])), "") -> 1950 | I5: =IF(Forecasts[[#This Row],[Type]]="Range", MIN(Forecasts[[#This Row],[Outcome]], _xlfn.MINIFS(AssignmentTable[P5], AssignmentTable[Forecast ID], Forecasts[[#This Row],[Forecast ID]])), "") -> 1400 | J5: =IF(Forecasts[[#This Row],[Type]]="Range", Forecasts[[#This Row],[Max]]+0.01*(Forecasts[[#This Row],[Max]]-Forecasts[[#This Row],[Min]]), "") -> 1955.5 | K5: =IF(Forecasts[[#This Row],[Type]]="Range", Forecasts[[#This Row],[Min]]-0.01*(Forecasts[[#This Row],[Max]]-Forecasts[[#This Row],[Min]]), "") -> 1394.5 | L5: =IF(Forecasts[[#This Row],[Type]]="Range",SUMIF(AssignmentTable[Forecast ID],Forecasts[[#This Row],[Forecast ID]],AssignmentTable[P5 weighted]),"") -> 1423.213203 | M5: =IF(Forecasts[[#This Row],[Type]]="Range",SUMIF(AssignmentTable[Forecast ID],Forecasts[[#This Row],[Forecast ID]],AssignmentTable[P95 weighted]),"") -> 1800.096223 | N5: =IF(Forecasts[[#This Row],[Type]]="Binary",SUMIF(AssignmentTable[Forecast ID],Forecasts[[#This Row],[Forecast ID]],AssignmentTable[Probability of Occurance Weighted]),"") ->  | O5: =IF(ISBLANK(Forecasts[[#This Row],[Outcome]]), "", IF(Forecasts[[#This Row],[Outcome]]<Forecasts[[#This Row],[Aggregate SME forcast LB]], 1, IF(Forecasts[[#This Row],[Outcome]]<Forecasts[[#This Row],[Aggregate SME UB forcast]], 2,3))) -> 2
A6: =10000+ROW(Forecasts[#This Row])-3 -> 10003 | B6: How many centimeters long is a typical business card? | C6: Range | D6: Yes | F6: 8.9 | H6: =IF(Forecasts[[#This Row],[Type]]="Range", MAX(Forecasts[[#This Row],[Outcome]], _xlfn.MAXIFS(AssignmentTable[P95], AssignmentTable[Forecast ID], Forecasts[[#This Row],[Forecast ID]])), "") -> 10 | I6: =IF(Forecasts[[#This Row],[Type]]="Range", MIN(Forecasts[[#This Row],[Outcome]], _xlfn.MINIFS(AssignmentTable[P5], AssignmentTable[Forecast ID], Forecasts[[#This Row],[Forecast ID]])), "") -> 2 | J6: =IF(Forecasts[[#This Row],[Type]]="Range", Forecasts[[#This Row],[Max]]+0.01*(Forecasts[[#This Row],[Max]]-Forecasts[[#This Row],[Min]]), "") -> 10.08 | K6: =IF(Forecasts[[#This Row],[Type]]="Range", Forecasts[[#This Row],[Min]]-0.01*(Forecasts[[#This Row],[Max]]-Forecasts[[#This Row],[Min]]), "") -> 1.92 | L6: =IF(Forecasts[[#This Row],[Type]]="Range",SUMIF(AssignmentTable[Forecast ID],Forecasts[[#This Row],[Forecast ID]],AssignmentTable[P5 weighted]),"") -> 4.997779466 | M6: =IF(Forecasts[[#This Row],[Type]]="Range",SUMIF(AssignmentTable[Forecast ID],Forecasts[[#This Row],[Forecast ID]],AssignmentTable[P95 weighted]),"") -> 9.770828681 | N6: =IF(Forecasts[[#This Row],[Type]]="Binary",SUMIF(AssignmentTable[Forecast ID],Forecasts[[#This Row],[Forecast ID]],AssignmentTable[Probability of Occurance Weighted]),"") ->  | O6: =IF(ISBLANK(Forecasts[[#This Row],[Outcome]]), "", IF(Forecasts[[#This Row],[Outcome]]<Forecasts[[#This Row],[Aggregate SME forcast LB]], 1, IF(Forecasts[[#This Row],[Outcome]]<Forecasts[[#This Row],[Aggregate SME UB forcast]], 2,3))) -> 2
A7: =10000+ROW(Forecasts[#This Row])-3 -> 10004 | B7: The Internet (then "Arpanet") was established as a military communications system in what year? | C7: Range | D7: Yes | F7: 1969 | H7: =IF(Forecasts[[#This Row],[Type]]="Range", MAX(Forecasts[[#This Row],[Outcome]], _xlfn.MAXIFS(AssignmentTable[P95], AssignmentTable[Forecast ID], Forecasts[[#This Row],[Forecast ID]])), "") -> 2000 | I7: =IF(Forecasts[[#This Row],[Type]]="Range", MIN(Forecasts[[#This Row],[Outcome]], _xlfn.MINIFS(AssignmentTable[P5], AssignmentTable[Forecast ID], Forecasts[[#This Row],[Forecast ID]])), "") -> 1840 | J7: =IF(Forecasts[[#This Row],[Type]]="Range", Forecasts[[#This Row],[Max]]+0.01*(Forecasts[[#This Row],[Max]]-Forecasts[[#This Row],[Min]]), "") -> 2001.6 | K7: =IF(Forecasts[[#This Row],[Type]]="Range", Forecasts[[#This Row],[Min]]-0.01*(Forecasts[[#This Row],[Max]]-Forecasts[[#This Row],[Min]]), "") -> 1838.4 | L7: =IF(Forecasts[[#This Row],[Type]]="Range",SUMIF(AssignmentTable[Forecast ID],Forecasts[[#This Row],[Forecast ID]],AssignmentTable[P5 weighted]),"") -> 1853.846502 | M7: =IF(Forecasts[[#This Row],[Type]]="Range",SUMIF(AssignmentTable[Forecast ID],Forecasts[[#This Row],[Forecast ID]],AssignmentTable[P95 weighted]),"") -> 1934.635239 | N7: =IF(Forecasts[[#This Row],[Type]]="Binary",SUMIF(AssignmentTable[Forecast ID],Forecasts[[#This Row],[Forecast ID]],AssignmentTable[Probability of Occurance Weighted]),"") ->  | O7: =IF(ISBLANK(Forecasts[[#This Row],[Outcome]]), "", IF(Forecasts[[#This Row],[Outcome]]<Forecasts[[#This Row],[Aggregate SME forcast LB]], 1, IF(Forecasts[[#This Row],[Outcome]]<Forecasts[[#This Row],[Aggregate SME UB forcast]], 2,3))) -> 3
A8: =10000+ROW(Forecasts[#This Row])-3 -> 10005 | B8: What year was William Shakespeare born? | C8: Range | D8: Yes | F8: 1564 | H8: =IF(Forecasts[[#This Row],[Type]]="Range", MAX(Forecasts[[#This Row],[Outcome]], _xlfn.MAXIFS(AssignmentTable[P95], AssignmentTable[Forecast ID], Forecasts[[#This Row],[Forecast ID]])), "") -> 1990 | I8: =IF(Forecasts[[#This Row],[Type]]="Range", MIN(Forecasts[[#This Row],[Outcome]], _xlfn.MINIFS(AssignmentTable[P5], AssignmentTable[Forecast ID], Forecasts[[#This Row],[Forecast ID]])), "") -> 1500 | J8: =IF(Forecasts[[#This Row],[Type]]="Range", Forecasts[[#This Row],[Max]]+0.01*(Forecasts[[#This Row],[Max]]-Forecasts[[#This Row],[Min]]), "") -> 1994.9 | K8: =IF(Forecasts[[#This Row],[Type]]="Range", Forecasts[[#This Row],[Min]]-0.01*(Forecasts[[#This Row],[Max]]-Forecasts[[#This Row],[Min]]), "") -> 1495.1 | L8: =IF(Forecasts[[#This Row],[Type]]="Range",SUMIF(AssignmentTable[Forecast ID],Forecasts[[#This Row],[Forecast ID]],AssignmentTable[P5 weighted]),"") -> 1883.16975 | M8: =IF(Forecasts[[#This Row],[Type]]="Range",SUMIF(AssignmentTable[Forecast ID],Forecasts[[#This Row],[Forecast ID]],AssignmentTable[P95 weighted]),"") -> 1959.307965 | N8: =IF(Forecasts[[#This Row],[Type]]="Binary",SUMIF(AssignmentTable[Forecast ID],Forecasts[[#This Row],[Forecast ID]],AssignmentTable[Probability of Occurance Weighted]),"") ->  | O8: =IF(ISBLANK(Forecasts[[#This Row],[Outcome]]), "", IF(Forecasts[[#This Row],[Outcome]]<Forecasts[[#This Row],[Aggregate SME forcast LB]], 1, IF(Forecasts[[#This Row],[Outcome]]<Forecasts[[#This Row],[Aggregate SME UB forcast]], 2,3))) -> 1
A9: =10000+ROW(Forecasts[#This Row])-3 -> 10006 | B9: What is the air distance between New York and Los Angeles (in km)? | C9: Range | D9: Yes | F9: 3944 | H9: =IF(Forecasts[[#This Row],[Type]]="Range", MAX(Forecasts[[#This Row],[Outcome]], _xlfn.MAXIFS(AssignmentTable[P95], AssignmentTable[Forecast ID], Forecasts[[#This Row],[Forecast ID]])), "") -> 25000 | I9: =IF(Forecasts[[#This Row],[Type]]="Range", MIN(Forecasts[[#This Row],[Outcome]], _xlfn.MINIFS(AssignmentTable[P5], AssignmentTable[Forecast ID], Forecasts[[#This Row],[Forecast ID]])), "") -> 120 | J9: =IF(Forecasts[[#This Row],[Type]]="Range", Forecasts[[#This Row],[Max]]+0.01*(Forecasts[[#This Row],[Max]]-Forecasts[[#This Row],[Min]]), "") -> 25248.8 | K9: =IF(Forecasts[[#This Row],[Type]]="Range", Forecasts[[#This Row],[Min]]-0.01*(Forecasts[[#This Row],[Max]]-Forecasts[[#This Row],[Min]]), "") -> -128.8 | L9: =IF(Forecasts[[#This Row],[Type]]="Range",SUMIF(AssignmentTable[Forecast ID],Forecasts[[#This Row],[Forecast ID]],AssignmentTable[P5 weighted]),"") -> 942.1890468 | M9: =IF(Forecasts[[#This Row],[Type]]="Range",SUMIF(AssignmentTable[Forecast ID],Forecasts[[#This Row],[Forecast ID]],AssignmentTable[P95 weighted]),"") -> 2769.348326 | N9: =IF(Forecasts[[#This Row],[Type]]="Binary",SUMIF(AssignmentTable[Forecast ID],Forecasts[[#This Row],[Forecast ID]],AssignmentTable[Probability of Occurance Weighted]),"") ->  | O9: =IF(ISBLANK(Forecasts[[#This Row],[Outcome]]), "", IF(Forecasts[[#This Row],[Outcome]]<Forecasts[[#This Row],[Aggregate SME forcast LB]], 1, IF(Forecasts[[#This Row],[Outcome]]<Forecasts[[#This Row],[Aggregate SME UB forcast]], 2,3))) -> 3
A10: =10000+ROW(Forecasts[#This Row])-3 -> 10007 | B10: What percentage of a square's area could be covered by a circle of the same width? | C10: Range | D10: Yes | F10: 0.7853981634 | H10: =IF(Forecasts[[#This Row],[Type]]="Range", MAX(Forecasts[[#This Row],[Outcome]], _xlfn.MAXIFS(AssignmentTable[P95], AssignmentTable[Forecast ID], Forecasts[[#This Row],[Forecast ID]])), "") -> 1 | I10: =IF(Forecasts[[#This Row],[Type]]="Range", MIN(Forecasts[[#This Row],[Outcome]], _xlfn.MINIFS(AssignmentTable[P5], AssignmentTable[Forecast ID], Forecasts[[#This Row],[Forecast ID]])), "") -> 0.2 | J10: =IF(Forecasts[[#This Row],[Type]]="Range", Forecasts[[#This Row],[Max]]+0.01*(Forecasts[[#This Row],[Max]]-Forecasts[[#This Row],[Min]]), "") -> 1.008 | K10: =IF(Forecasts[[#This Row],[Type]]="Range", Forecasts[[#This Row],[Min]]-0.01*(Forecasts[[#This Row],[Max]]-Forecasts[[#This Row],[Min]]), "") -> 0.192 | L10: =IF(Forecasts[[#This Row],[Type]]="Range",SUMIF(AssignmentTable[Forecast ID],Forecasts[[#This Row],[Forecast ID]],AssignmentTable[P5 weighted]),"") -> 0.7113105303 | M10: =IF(Forecasts[[#This Row],[Type]]="Range",SUMIF(AssignmentTable[Forecast ID],Forecasts[[#This Row],[Forecast ID]],AssignmentTable[P95 weighted]),"") -> 0.8116066015 | N10: =IF(Forecasts[[#This Row],[Type]]="Binary",SUMIF(AssignmentTable[Forecast ID],Forecasts[[#This Row],[Forecast ID]],AssignmentTable[Probability of Occurance Weighted]),"") ->  | O10: =IF(ISBLANK(Forecasts[[#This Row],[Outcome]]), "", IF(Forecasts[[#This Row],[Outcome]]<Forecasts[[#This Row],[Aggregate SME forcast LB]], 1, IF(Forecasts[[#This Row],[Outcome]]<Forecasts[[#This Row],[Aggregate SME UB forcast]], 2,3))) -> 2
A11: =10000+ROW(Forecasts[#This Row])-3 -> 10008 | B11: How old was Charlie Chaplin when he died? | C11: Range | D11: Yes | F11: 88 | H11: =IF(Forecasts[[#This Row],[Type]]="Range", MAX(Forecasts[[#This Row],[Outcome]], _xlfn.MAXIFS(AssignmentTable[P95], AssignmentTable[Forecast ID], Forecasts[[#This Row],[Forecast ID]])), "") -> 1950 | I11: =IF(Forecasts[[#This Row],[Type]]="Range", MIN(Forecasts[[#This Row],[Outcome]], _xlfn.MINIFS(AssignmentTable[P5], AssignmentTable[Forecast ID], Forecasts[[#This Row],[Forecast ID]])), "") -> 30 | J11: =IF(Forecasts[[#This Row],[Type]]="Range", Forecasts[[#This Row],[Max]]+0.01*(Forecasts[[#This Row],[Max]]-Forecasts[[#This Row],[Min]]), "") -> 1969.2 | K11: =IF(Forecasts[[#This Row],[Type]]="Range", Forecasts[[#This Row],[Min]]-0.01*(Forecasts[[#This Row],[Max]]-Forecasts[[#This Row],[Min]]), "") -> 10.8 | L11: =IF(Forecasts[[#This Row],[Type]]="Range",SUMIF(AssignmentTable[Forecast ID],Forecasts[[#This Row],[Forecast ID]],AssignmentTable[P5 weighted]),"") -> 47.69348327 | M11: =IF(Forecasts[[#This Row],[Type]]="Range",SUMIF(AssignmentTable[Forecast ID],Forecasts[[#This Row],[Forecast ID]],AssignmentTable[P95 weighted]),"") -> 67.71568861 | N11: =IF(Forecasts[[#This Row],[Type]]="Binary",SUMIF(AssignmentTable[Forecast ID],Forecasts[[#This Row],[Forecast ID]],AssignmentTable[Probability of Occurance Weighted]),"") ->  | O11: =IF(ISBLANK(Forecasts[[#This Row],[Outcome]]), "", IF(Forecasts[[#This Row],[Outcome]]<Forecasts[[#This Row],[Aggregate SME forcast LB]], 1, IF(Forecasts[[#This Row],[Outcome]]<Forecasts[[#This Row],[Aggregate SME UB forcast]], 2,3))) -> 3
A12: =10000+ROW(Forecasts[#This Row])-3 -> 10009 | B12: How much does Doug Hubbard's book How to Measure Anything weigh (in kg)? | C12: Range | D12: Yes | F12: 0.56 | H12: =IF(Forecasts[[#This Row],[Type]]="Range", MAX(Forecasts[[#This Row],[Outcome]], _xlfn.MAXIFS(AssignmentTable[P95], AssignmentTable[Forecast ID], Forecasts[[#This Row],[Forecast ID]])), "") -> 200 | I12: =IF(Forecasts[[#This Row],[Type]]="Range", MIN(Forecasts[[#This Row],[Outcome]], _xlfn.MINIFS(AssignmentTable[P5], AssignmentTable[Forecast ID], Forecasts[[#This Row],[Forecast ID]])), "") -> 0.3 | J12: =IF(Forecasts[[#This Row],[Type]]="Range", Forecasts[[#This Row],[Max]]+0.01*(Forecasts[[#This Row],[Max]]-Forecasts[[#This Row],[Min]]), "") -> 201.997 | K12: =IF(Forecasts[[#This Row],[Type]]="Range", Forecasts[[#This Row],[Min]]-0.01*(Forecasts[[#This Row],[Max]]-Forecasts[[#This Row],[Min]]), "") -> -1.697 | L12: =IF(Forecasts[[#This Row],[Type]]="Range",SUMIF(AssignmentTable[Forecast ID],Forecasts[[#This Row],[Forecast ID]],AssignmentTable[P5 weighted]),"") -> 1.826863208 | M12: =IF(Forecasts[[#This Row],[Type]]="Range",SUMIF(AssignmentTable[Forecast ID],Forecasts[[#This Row],[Forecast ID]],AssignmentTable[P95 weighted]),"") -> 3.654762666 | N12: =IF(Forecasts[[#This Row],[Type]]="Binary",SUMIF(AssignmentTable[Forecast ID],Forecasts[[#This Row],[Forecast ID]],AssignmentTable[Probability of Occurance Weighted]),"") ->  | O12: =IF(ISBLANK(Forecasts[[#This Row],[Outcome]]), "", IF(Forecasts[[#This Row],[Outcome]]<Forecasts[[#This Row],[Aggregate SME forcast LB]], 1, IF(Forecasts[[#This Row],[Outcome]]<Forecasts[[#This Row],[Aggregate SME UB forcast]], 2,3))) -> 1
A13: =10000+ROW(Forecasts[#This Row])-3 -> 10010 | B13: The TV show Gilligan's Island first aired in what year? | C13: Range | D13: Yes | F13: 1964 | H13: =IF(Forecasts[[#This Row],[Type]]="Range", MAX(Forecasts[[#This Row],[Outcome]], _xlfn.MAXIFS(AssignmentTable[P95], AssignmentTable[Forecast ID], Forecasts[[#This Row],[Forecast ID]])), "") -> 2014 | I13: =IF(Forecasts[[#This Row],[Type]]="Range", MIN(Forecasts[[#This Row],[Outcome]], _xlfn.MINIFS(AssignmentTable[P5], AssignmentTable[Forecast ID], Forecasts[[#This Row],[Forecast ID]])), "") -> 1800 | J13: =IF(Forecasts[[#This Row],[Type]]="Range", Forecasts[[#This Row],[Max]]+0.01*(Forecasts[[#This Row],[Max]]-Forecasts[[#This Row],[Min]]), "") -> 2016.14 | K13: =IF(Forecasts[[#This Row],[Type]]="Range", Forecasts[[#This Row],[Min]]-0.01*(Forecasts[[#This Row],[Max]]-Forecasts[[#This Row],[Min]]), "") -> 1797.86 | L13: =IF(Forecasts[[#This Row],[Type]]="Range",SUMIF(AssignmentTable[Forecast ID],Forecasts[[#This Row],[Forecast ID]],AssignmentTable[P5 weighted]),"") -> 1951.16066 | M13: =IF(Forecasts[[#This Row],[Type]]="Range",SUMIF(AssignmentTable[Forecast ID],Forecasts[[#This Row],[Forecast ID]],AssignmentTable[P95 weighted]),"") -> 1978.306381 | N13: =IF(Forecasts[[#This Row],[Type]]="Binary",SUMIF(AssignmentTable[Forecast ID],Forecasts[[#This Row],[Forecast ID]],AssignmentTable[Probability of Occurance Weighted]),"") ->  | O13: =IF(ISBLANK(Forecasts[[#This Row],[Outcome]]), "", IF(Forecasts[[#This Row],[Outcome]]<Forecasts[[#This Row],[Aggregate SME forcast LB]], 1, IF(Forecasts[[#This Row],[Outcome]]<Forecasts[[#This Row],[Aggregate SME UB forcast]], 2,3))) -> 2
A14: =10000+ROW(Forecasts[#This Row])-3 -> 10011 | B14: The ancient Romans were conquered by the ancient Greeks. | C14: Binary | D14: Yes | F14: 0 | H14: =IF(Forecasts[[#This Row],[Type]]="Range", MAX(Forecasts[[#This Row],[Outcome]], _xlfn.MAXIFS(AssignmentTable[P95], AssignmentTable[Forecast ID], Forecasts[[#This Row],[Forecast ID]])), "") ->  | I14: =IF(Forecasts[[#This Row],[Type]]="Range", MIN(Forecasts[[#This Row],[Outcome]], _xlfn.MINIFS(AssignmentTable[P5], AssignmentTable[Forecast ID], Forecasts[[#This Row],[Forecast ID]])), "") ->  | J14: =IF(Forecasts[[#This Row],[Type]]="Range", Forecasts[[#This Row],[Max]]+0.01*(Forecasts[[#This Row],[Max]]-Forecasts[[#This Row],[Min]]), "") ->  | K14: =IF(Forecasts[[#This Row],[Type]]="Range", Forecasts[[#This Row],[Min]]-0.01*(Forecasts[[#This Row],[Max]]-Forecasts[[#This Row],[Min]]), "") ->  | L14: =IF(Forecasts[[#This Row],[Type]]="Range",SUMIF(AssignmentTable[Forecast ID],Forecasts[[#This Row],[Forecast ID]],AssignmentTable[P5 weighted]),"") ->  | M14: =IF(Forecasts[[#This Row],[Type]]="Range",SUMIF(AssignmentTable[Forecast ID],Forecasts[[#This Row],[Forecast ID]],AssignmentTable[P95 weighted]),"") ->  | N14: =IF(Forecasts[[#This Row],[Type]]="Binary",SUMIF(AssignmentTable[Forecast ID],Forecasts[[#This Row],[Forecast ID]],AssignmentTable[Probability of Occurance Weighted]),"") -> 0.7540177005 | O14: =IF(ISBLANK(Forecasts[[#This Row],[Outcome]]), "", IF(Forecasts[[#This Row],[Outcome]]<Forecasts[[#This Row],[Aggregate SME forcast LB]], 1, IF(Forecasts[[#This Row],[Outcome]]<Forecasts[[#This Row],[Aggregate SME UB forcast]], 2,3))) -> 1
A15: =10000+ROW(Forecasts[#This Row])-3 -> 10012 | B15: There is no species of three-humped camel. | C15: Binary | D15: Yes | F15: 1 | H15: =IF(Forecasts[[#This Row],[Type]]="Range", MAX(Forecasts[[#This Row],[Outcome]], _xlfn.MAXIFS(AssignmentTable[P95], AssignmentTable[Forecast ID], Forecasts[[#This Row],[Forecast ID]])), "") ->  | I15: =IF(Forecasts[[#This Row],[Type]]="Range", MIN(Forecasts[[#This Row],[Outcome]], _xlfn.MINIFS(AssignmentTable[P5], AssignmentTable[Forecast ID], Forecasts[[#This Row],[Forecast ID]])), "") ->  | J15: =IF(Forecasts[[#This Row],[Type]]="Range", Forecasts[[#This Row],[Max]]+0.01*(Forecasts[[#This Row],[Max]]-Forecasts[[#This Row],[Min]]), "") ->  | K15: =IF(Forecasts[[#This Row],[Type]]="Range", Forecasts[[#This Row],[Min]]-0.01*(Forecasts[[#This Row],[Max]]-Forecasts[[#This Row],[Min]]), "") ->  | L15: =IF(Forecasts[[#This Row],[Type]]="Range",SUMIF(AssignmentTable[Forecast ID],Forecasts[[#This Row],[Forecast ID]],AssignmentTable[P5 weighted]),"") ->  | M15: =IF(Forecasts[[#This Row],[Type]]="Range",SUMIF(AssignmentTable[Forecast ID],Forecasts[[#This Row],[Forecast ID]],AssignmentTable[P95 weighted]),"") ->  | N15: =IF(Forecasts[[#This Row],[Type]]="Binary",SUMIF(AssignmentTable[Forecast ID],Forecasts[[#This Row],[Forecast ID]],AssignmentTable[Probability of Occurance Weighted]),"") -> 0.2862353158 | O15: =IF(ISBLANK(Forecasts[[#This Row],[Outcome]]), "", IF(Forecasts[[#This Row],[Outcome]]<Forecasts[[#This Row],[Aggregate SME forcast LB]], 1, IF(Forecasts[[#This Row],[Outcome]]<Forecasts[[#This Row],[Aggregate SME UB forcast]], 2,3))) -> 1
A16: =10000+ROW(Forecasts[#This Row])-3 -> 10013 | B16: A gallon of oil weighs less than a gallon of water. | C16: Binary | D16: Yes | F16: 1 | H16: =IF(Forecasts[[#This Row],[Type]]="Range", MAX(Forecasts[[#This Row],[Outcome]], _xlfn.MAXIFS(AssignmentTable[P95], AssignmentTable[Forecast ID], Forecasts[[#This Row],[Forecast ID]])), "") ->  | I16: =IF(Forecasts[[#This Row],[Type]]="Range", MIN(Forecasts[[#This Row],[Outcome]], _xlfn.MINIFS(AssignmentTable[P5], AssignmentTable[Forecast ID], Forecasts[[#This Row],[Forecast ID]])), "") ->  | J16: =IF(Forecasts[[#This Row],[Type]]="Range", Forecasts[[#This Row],[Max]]+0.01*(Forecasts[[#This Row],[Max]]-Forecasts[[#This Row],[Min]]), "") ->  | K16: =IF(Forecasts[[#This Row],[Type]]="Range", Forecasts[[#This Row],[Min]]-0.01*(Forecasts[[#This Row],[Max]]-Forecasts[[#This Row],[Min]]), "") ->  | L16: =IF(Forecasts[[#This Row],[Type]]="Range",SUMIF(AssignmentTable[Forecast ID],Forecasts[[#This Row],[Forecast ID]],AssignmentTable[P5 weighted]),"") ->  | M16: =IF(Forecasts[[#This Row],[Type]]="Range",SUMIF(AssignmentTable[Forecast ID],Forecasts[[#This Row],[Forecast ID]],AssignmentTable[P95 weighted]),"") ->  | N16: =IF(Forecasts[[#This Row],[Type]]="Binary",SUMIF(AssignmentTable[Forecast ID],Forecasts[[#This Row],[Forecast ID]],AssignmentTable[Probability of Occurance Weighted]),"") -> 0.9885044252 | O16: =IF(ISBLANK(Forecasts[[#This Row],[Outcome]]), "", IF(Forecasts[[#This Row],[Outcome]]<Forecasts[[#This Row],[Aggregate SME forcast LB]], 1, IF(Forecasts[[#This Row],[Outcome]]<Forecasts[[#This Row],[Aggregate SME UB forcast]], 2,3))) -> 1
A17: =10000+ROW(Forecasts[#This Row])-3 -> 10014 | B17: Mars is always further away from Earth than Venus. | C17: Binary | D17: Yes | F17: 0 | H17: =IF(Forecasts[[#This Row],[Type]]="Range", MAX(Forecasts[[#This Row],[Outcome]], _xlfn.MAXIFS(AssignmentTable[P95], AssignmentTable[Forecast ID], Forecasts[[#This Row],[Forecast ID]])), "") ->  | I17: =IF(Forecasts[[#This Row],[Type]]="Range", MIN(Forecasts[[#This Row],[Outcome]], _xlfn.MINIFS(AssignmentTable[P5], AssignmentTable[Forecast ID], Forecasts[[#This Row],[Forecast ID]])), "") ->  | J17: =IF(Forecasts[[#This Row],[Type]]="Range", Forecasts[[#This Row],[Max]]+0.01*(Forecasts[[#This Row],[Max]]-Forecasts[[#This Row],[Min]]), "") ->  | K17: =IF(Forecasts[[#This Row],[Type]]="Range", Forecasts[[#This Row],[Min]]-0.01*(Forecasts[[#This Row],[Max]]-Forecasts[[#This Row],[Min]]), "") ->  | L17: =IF(Forecasts[[#This Row],[Type]]="Range",SUMIF(AssignmentTable[Forecast ID],Forecasts[[#This Row],[Forecast ID]],AssignmentTable[P5 weighted]),"") ->  | M17: =IF(Forecasts[[#This Row],[Type]]="Range",SUMIF(AssignmentTable[Forecast ID],Forecasts[[#This Row],[Forecast ID]],AssignmentTable[P95 weighted]),"") ->  | N17: =IF(Forecasts[[#This Row],[Type]]="Binary",SUMIF(AssignmentTable[Forecast ID],Forecasts[[#This Row],[Forecast ID]],AssignmentTable[Probability of Occurance Weighted]),"") -> 0.05766291855 | O17: =IF(ISBLANK(Forecasts[[#This Row],[Outcome]]), "", IF(Forecasts[[#This Row],[Outcome]]<Forecasts[[#This Row],[Aggregate SME forcast LB]], 1, IF(Forecasts[[#This Row],[Outcome]]<Forecasts[[#This Row],[Aggregate SME UB forcast]], 2,3))) -> 1
A18: =10000+ROW(Forecasts[#This Row])-3 -> 10015 | B18: The Boston Red Sox (known then as the Boston Americans) won the first World Series in 1903. | C18: Binary | D18: Yes | F18: 1 | H18: =IF(Forecasts[[#This Row],[Type]]="Range", MAX(Forecasts[[#This Row],[Outcome]], _xlfn.MAXIFS(AssignmentTable[P95], AssignmentTable[Forecast ID], Forecasts[[#This Row],[Forecast ID]])), "") ->  | I18: =IF(Forecasts[[#This Row],[Type]]="Range", MIN(Forecasts[[#This Row],[Outcome]], _xlfn.MINIFS(AssignmentTable[P5], AssignmentTable[Forecast ID], Forecasts[[#This Row],[Forecast ID]])), "") ->  | J18: =IF(Forecasts[[#This Row],[Type]]="Range", Forecasts[[#This Row],[Max]]+0.01*(Forecasts[[#This Row],[Max]]-Forecasts[[#This Row],[Min]]), "") ->  | K18: =IF(Forecasts[[#This Row],[Type]]="Range", Forecasts[[#This Row],[Min]]-0.01*(Forecasts[[#This Row],[Max]]-Forecasts[[#This Row],[Min]]), "") ->  | L18: =IF(Forecasts[[#This Row],[Type]]="Range",SUMIF(AssignmentTable[Forecast ID],Forecasts[[#This Row],[Forecast ID]],AssignmentTable[P5 weighted]),"") ->  | M18: =IF(Forecasts[[#This Row],[Type]]="Range",SUMIF(AssignmentTable[Forecast ID],Forecasts[[#This Row],[Forecast ID]],AssignmentTable[P95 weighted]),"") ->  | N18: =IF(Forecasts[[#This Row],[Type]]="Binary",SUMIF(AssignmentTable[Forecast ID],Forecasts[[#This Row],[Forecast ID]],AssignmentTable[Probability of Occurance Weighted]),"") -> 0.5000000001 | O18: =IF(ISBLANK(Forecasts[[#This Row],[Outcome]]), "", IF(Forecasts[[#This Row],[Outcome]]<Forecasts[[#This Row],[Aggregate SME forcast LB]], 1, IF(Forecasts[[#This Row],[Outcome]]<Forecasts[[#This Row],[Aggregate SME UB forcast]], 2,3))) -> 1
A19: =10000+ROW(Forecasts[#This Row])-3 -> 10016 | B19: Napoleon Bonaparte was born on the island of Corsica. | C19: Binary | D19: Yes | F19: 1 | H19: =IF(Forecasts[[#This Row],[Type]]="Range", MAX(Forecasts[[#This Row],[Outcome]], _xlfn.MAXIFS(AssignmentTable[P95], AssignmentTable[Forecast ID], Forecasts[[#This Row],[Forecast ID]])), "") ->  | I19: =IF(Forecasts[[#This Row],[Type]]="Range", MIN(Forecasts[[#This Row],[Outcome]], _xlfn.MINIFS(AssignmentTable[P5], AssignmentTable[Forecast ID], Forecasts[[#This Row],[Forecast ID]])), "") ->  | J19: =IF(Forecasts[[#This Row],[Type]]="Range", Forecasts[[#This Row],[Max]]+0.01*(Forecasts[[#This Row],[Max]]-Forecasts[[#This Row],[Min]]), "") ->  | K19: =IF(Forecasts[[#This Row],[Type]]="Range", Forecasts[[#This Row],[Min]]-0.01*(Forecasts[[#This Row],[Max]]-Forecasts[[#This Row],[Min]]), "") ->  | L19: =IF(Forecasts[[#This Row],[Type]]="Range",SUMIF(AssignmentTable[Forecast ID],Forecasts[[#This Row],[Forecast ID]],AssignmentTable[P5 weighted]),"") ->  | M19: =IF(Forecasts[[#This Row],[Type]]="Range",SUMIF(AssignmentTable[Forecast ID],Forecasts[[#This Row],[Forecast ID]],AssignmentTable[P95 weighted]),"") ->  | N19: =IF(Forecasts[[#This Row],[Type]]="Binary",SUMIF(AssignmentTable[Forecast ID],Forecasts[[#This Row],[Forecast ID]],AssignmentTable[Probability of Occurance Weighted]),"") -> 0.4885414342 | O19: =IF(ISBLANK(Forecasts[[#This Row],[Outcome]]), "", IF(Forecasts[[#This Row],[Outcome]]<Forecasts[[#This Row],[Aggregate SME forcast LB]], 1, IF(Forecasts[[#This Row],[Outcome]]<Forecasts[[#This Row],[Aggregate SME UB forcast]], 2,3))) -> 1
A20: =10000+ROW(Forecasts[#This Row])-3 -> 10017 | B20: "M" is one of the five most commonly used letters. | C20: Binary | D20: Yes | F20: 0 | H20: =IF(Forecasts[[#This Row],[Type]]="Range", MAX(Forecasts[[#This Row],[Outcome]], _xlfn.MAXIFS(AssignmentTable[P95], AssignmentTable[Forecast ID], Forecasts[[#This Row],[Forecast ID]])), "") ->  | I20: =IF(Forecasts[[#This Row],[Type]]="Range", MIN(Forecasts[[#This Row],[Outcome]], _xlfn.MINIFS(AssignmentTable[P5], AssignmentTable[Forecast ID], Forecasts[[#This Row],[Forecast ID]])), "") ->  | J20: =IF(Forecasts[[#This Row],[Type]]="Range", Forecasts[[#This Row],[Max]]+0.01*(Forecasts[[#This Row],[Max]]-Forecasts[[#This Row],[Min]]), "") ->  | K20: =IF(Forecasts[[#This Row],[Type]]="Range", Forecasts[[#This Row],[Min]]-0.01*(Forecasts[[#This Row],[Max]]-Forecasts[[#This Row],[Min]]), "") ->  | L20: =IF(Forecasts[[#This Row],[Type]]="Range",SUMIF(AssignmentTable[Forecast ID],Forecasts[[#This Row],[Forecast ID]],AssignmentTable[P5 weighted]),"") ->  | M20: =IF(Forecasts[[#This Row],[Type]]="Range",SUMIF(AssignmentTable[Forecast ID],Forecasts[[#This Row],[Forecast ID]],AssignmentTable[P95 weighted]),"") ->  | N20: =IF(Forecasts[[#This Row],[Type]]="Binary",SUMIF(AssignmentTable[Forecast ID],Forecasts[[#This Row],[Forecast ID]],AssignmentTable[Probability of Occurance Weighted]),"") -> 0.6427071702 | O20: =IF(ISBLANK(Forecasts[[#This Row],[Outcome]]), "", IF(Forecasts[[#This Row],[Outcome]]<Forecasts[[#This Row],[Aggregate SME forcast LB]], 1, IF(Forecasts[[#This Row],[Outcome]]<Forecasts[[#This Row],[Aggregate SME UB forcast]], 2,3))) -> 1
A21: =10000+ROW(Forecasts[#This Row])-3 -> 10018 | B21: In 2002, the price of the average new desktop computer purchased was under $1,500. | C21: Binary | D21: Yes | F21: 1 | H21: =IF(Forecasts[[#This Row],[Type]]="Range", MAX(Forecasts[[#This Row],[Outcome]], _xlfn.MAXIFS(AssignmentTable[P95], AssignmentTable[Forecast ID], Forecasts[[#This Row],[Forecast ID]])), "") ->  | I21: =IF(Forecasts[[#This Row],[Type]]="Range", MIN(Forecasts[[#This Row],[Outcome]], _xlfn.MINIFS(AssignmentTable[P5], AssignmentTable[Forecast ID], Forecasts[[#This Row],[Forecast ID]])), "") ->  | J21: =IF(Forecasts[[#This Row],[Type]]="Range", Forecasts[[#This Row],[Max]]+0.01*(Forecasts[[#This Row],[Max]]-Forecasts[[#This Row],[Min]]), "") ->  | K21: =IF(Forecasts[[#This Row],[Type]]="Range", Forecasts[[#This Row],[Min]]-0.01*(Forecasts[[#This Row],[Max]]-Forecasts[[#This Row],[Min]]), "") ->  | L21: =IF(Forecasts[[#This Row],[Type]]="Range",SUMIF(AssignmentTable[Forecast ID],Forecasts[[#This Row],[Forecast ID]],AssignmentTable[P5 weighted]),"") ->  | M21: =IF(Forecasts[[#This Row],[Type]]="Range",SUMIF(AssignmentTable[Forecast ID],Forecasts[[#This Row],[Forecast ID]],AssignmentTable[P95 weighted]),"") ->  | N21: =IF(Forecasts[[#This Row],[Type]]="Binary",SUMIF(AssignmentTable[Forecast ID],Forecasts[[#This Row],[Forecast ID]],AssignmentTable[Probability of Occurance Weighted]),"") -> 0.7998519642 | O21: =IF(ISBLANK(Forecasts[[#This Row],[Outcome]]), "", IF(Forecasts[[#This Row],[Outcome]]<Forecasts[[#This Row],[Aggregate SME forcast LB]], 1, IF(Forecasts[[#This Row],[Outcome]]<Forecasts[[#This Row],[Aggregate SME UB forcast]], 2,3))) -> 1
A22: =10000+ROW(Forecasts[#This Row])-3 -> 10019 | B22: The movie Titanic still holds the record for the first six weeks of box office receipts. | C22: Binary | D22: Yes | F22: 0 | H22: =IF(Forecasts[[#This Row],[Type]]="Range", MAX(Forecasts[[#This Row],[Outcome]], _xlfn.MAXIFS(AssignmentTable[P95], AssignmentTable[Forecast ID], Forecasts[[#This Row],[Forecast ID]])), "") ->  | I22: =IF(Forecasts[[#This Row],[Type]]="Range", MIN(Forecasts[[#This Row],[Outcome]], _xlfn.MINIFS(AssignmentTable[P5], AssignmentTable[Forecast ID], Forecasts[[#This Row],[Forecast ID]])), "") ->  | J22: =IF(Forecasts[[#This Row],[Type]]="Range", Forecasts[[#This Row],[Max]]+0.01*(Forecasts[[#This Row],[Max]]-Forecasts[[#This Row],[Min]]), "") ->  | K22: =IF(Forecasts[[#This Row],[Type]]="Range", Forecasts[[#This Row],[Min]]-0.01*(Forecasts[[#This Row],[Max]]-Forecasts[[#This Row],[Min]]), "") ->  | L22: =IF(Forecasts[[#This Row],[Type]]="Range",SUMIF(AssignmentTable[Forecast ID],Forecasts[[#This Row],[Forecast ID]],AssignmentTable[P5 weighted]),"") ->  | M22: =IF(Forecasts[[#This Row],[Type]]="Range",SUMIF(AssignmentTable[Forecast ID],Forecasts[[#This Row],[Forecast ID]],AssignmentTable[P95 weighted]),"") ->  | N22: =IF(Forecasts[[#This Row],[Type]]="Binary",SUMIF(AssignmentTable[Forecast ID],Forecasts[[#This Row],[Forecast ID]],AssignmentTable[Probability of Occurance Weighted]),"") -> 0.4656243022 | O22: =IF(ISBLANK(Forecasts[[#This Row],[Outcome]]), "", IF(Forecasts[[#This Row],[Outcome]]<Forecasts[[#This Row],[Aggregate SME forcast LB]], 1, IF(Forecasts[[#This Row],[Outcome]]<Forecasts[[#This Row],[Aggregate SME UB forcast]], 2,3))) -> 1
A23: =10000+ROW(Forecasts[#This Row])-3 -> 10020 | B23: A kilogram weighs more than a pound. | C23: Binary | D23: Yes | F23: 1 | H23: =IF(Forecasts[[#This Row],[Type]]="Range", MAX(Forecasts[[#This Row],[Outcome]], _xlfn.MAXIFS(AssignmentTable[P95], AssignmentTable[Forecast ID], Forecasts[[#This Row],[Forecast ID]])), "") ->  | I23: =IF(Forecasts[[#This Row],[Type]]="Range", MIN(Forecasts[[#This Row],[Outcome]], _xlfn.MINIFS(AssignmentTable[P5], AssignmentTable[Forecast ID], Forecasts[[#This Row],[Forecast ID]])), "") ->  | J23: =IF(Forecasts[[#This Row],[Type]]="Range", Forecasts[[#This Row],[Max]]+0.01*(Forecasts[[#This Row],[Max]]-Forecasts[[#This Row],[Min]]), "") ->  | K23: =IF(Forecasts[[#This Row],[Type]]="Range", Forecasts[[#This Row],[Min]]-0.01*(Forecasts[[#This Row],[Max]]-Forecasts[[#This Row],[Min]]), "") ->  | L23: =IF(Forecasts[[#This Row],[Type]]="Range",SUMIF(AssignmentTable[Forecast ID],Forecasts[[#This Row],[Forecast ID]],AssignmentTable[P5 weighted]),"") ->  | M23: =IF(Forecasts[[#This Row],[Type]]="Range",SUMIF(AssignmentTable[Forecast ID],Forecasts[[#This Row],[Forecast ID]],AssignmentTable[P95 weighted]),"") ->  | N23: =IF(Forecasts[[#This Row],[Type]]="Binary",SUMIF(AssignmentTable[Forecast ID],Forecasts[[#This Row],[Forecast ID]],AssignmentTable[Probability of Occurance Weighted]),"") -> 0.2857912091 | O23: =IF(ISBLANK(Forecasts[[#This Row],[Outcome]]), "", IF(Forecasts[[#This Row],[Outcome]]<Forecasts[[#This Row],[Aggregate SME forcast LB]], 1, IF(Forecasts[[#This Row],[Outcome]]<Forecasts[[#This Row],[Aggregate SME UB forcast]], 2,3))) -> 1
A24: =10000+ROW(Forecasts[#This Row])-3 -> 10021 | B24: How many countries are in NATO? | C24: Range | D24: Yes | F24: 26 | H24: =IF(Forecasts[[#This Row],[Type]]="Range", MAX(Forecasts[[#This Row],[Outcome]], _xlfn.MAXIFS(AssignmentTable[P95], AssignmentTable[Forecast ID], Forecasts[[#This Row],[Forecast ID]])), "") -> 700 | I24: =IF(Forecasts[[#This Row],[Type]]="Range", MIN(Forecasts[[#This Row],[Outcome]], _xlfn.MINIFS(AssignmentTable[P5], AssignmentTable[Forecast ID], Forecasts[[#This Row],[Forecast ID]])), "") -> 2 | J24: =IF(Forecasts[[#This Row],[Type]]="Range", Forecasts[[#This Row],[Max]]+0.01*(Forecasts[[#This Row],[Max]]-Forecasts[[#This Row],[Min]]), "") -> 706.98 | K24: =IF(Forecasts[[#This Row],[Type]]="Range", Forecasts[[#This Row],[Min]]-0.01*(Forecasts[[#This Row],[Max]]-Forecasts[[#This Row],[Min]]), "") -> -4.98 | L24: =IF(Forecasts[[#This Row],[Type]]="Range",SUMIF(AssignmentTable[Forecast ID],Forecasts[[#This Row],[Forecast ID]],AssignmentTable[P5 weighted]),"") -> 9.421150285 | M24: =IF(Forecasts[[#This Row],[Type]]="Range",SUMIF(AssignmentTable[Forecast ID],Forecasts[[#This Row],[Forecast ID]],AssignmentTable[P95 weighted]),"") -> 122.9911496 | N24: =IF(Forecasts[[#This Row],[Type]]="Binary",SUMIF(AssignmentTable[Forecast ID],Forecasts[[#This Row],[Forecast ID]],AssignmentTable[Probability of Occurance Weighted]),"") ->  | O24: =IF(ISBLANK(Forecasts[[#This Row],[Outcome]]), "", IF(Forecasts[[#This Row],[Outcome]]<Forecasts[[#This Row],[Aggregate SME forcast LB]], 1, IF(Forecasts[[#This Row],[Outcome]]<Forecasts[[#This Row],[Aggregate SME UB forcast]], 2,3))) -> 2
A25: =10000+ROW(Forecasts[#This Row])-3 -> 10022 | B25: What is the average Fahrenheit temperature in Boston, MA in April? | C25: Range | D25: Yes | F25: 48.3 | H25: =IF(Forecasts[[#This Row],[Type]]="Range", MAX(Forecasts[[#This Row],[Outcome]], _xlfn.MAXIFS(AssignmentTable[P95], AssignmentTable[Forecast ID], Forecasts[[#This Row],[Forecast ID]])), "") -> 8000 | I25: =IF(Forecasts[[#This Row],[Type]]="Range", MIN(Forecasts[[#This Row],[Outcome]], _xlfn.MINIFS(AssignmentTable[P5], AssignmentTable[Forecast ID], Forecasts[[#This Row],[Forecast ID]])), "") -> -48 | J25: =IF(Forecasts[[#This Row],[Type]]="Range", Forecasts[[#This Row],[Max]]+0.01*(Forecasts[[#This Row],[Max]]-Forecasts[[#This Row],[Min]]), "") -> 8080.48 | K25: =IF(Forecasts[[#This Row],[Type]]="Range", Forecasts[[#This Row],[Min]]-0.01*(Forecasts[[#This Row],[Max]]-Forecasts[[#This Row],[Min]]), "") -> -128.48 | L25: =IF(Forecasts[[#This Row],[Type]]="Range",SUMIF(AssignmentTable[Forecast ID],Forecasts[[#This Row],[Forecast ID]],AssignmentTable[P5 weighted]),"") -> 36.53282311 | M25: =IF(Forecasts[[#This Row],[Type]]="Range",SUMIF(AssignmentTable[Forecast ID],Forecasts[[#This Row],[Forecast ID]],AssignmentTable[P95 weighted]),"") -> 188.6894696 | N25: =IF(Forecasts[[#This Row],[Type]]="Binary",SUMIF(AssignmentTable[Forecast ID],Forecasts[[#This Row],[Forecast ID]],AssignmentTable[Probability of Occurance Weighted]),"") ->  | O25: =IF(ISBLANK(Forecasts[[#This Row],[Outcome]]), "", IF(Forecasts[[#This Row],[Outcome]]<Forecasts[[#This Row],[Aggregate SME forcast LB]], 1, IF(Forecasts[[#This Row],[Outcome]]<Forecasts[[#This Row],[Aggregate SME UB forcast]], 2,3))) -> 2
A26: =10000+ROW(Forecasts[#This Row])-3 -> 10023 | B26: On behalf of the US, President Grover Cleveland accepted the Statue of Liberty as a gift from France in what year? | C26: Range | D26: Yes | F26: 1886 | H26: =IF(Forecasts[[#This Row],[Type]]="Range", MAX(Forecasts[[#This Row],[Outcome]], _xlfn.MAXIFS(AssignmentTable[P95], AssignmentTable[Forecast ID], Forecasts[[#This Row],[Forecast ID]])), "") -> 2050 | I26: =IF(Forecasts[[#This Row],[Type]]="Range", MIN(Forecasts[[#This Row],[Outcome]], _xlfn.MINIFS(AssignmentTable[P5], AssignmentTable[Forecast ID], Forecasts[[#This Row],[Forecast ID]])), "") -> 1730 | J26: =IF(Forecasts[[#This Row],[Type]]="Range", Forecasts[[#This Row],[Max]]+0.01*(Forecasts[[#This Row],[Max]]-Forecasts[[#This Row],[Min]]), "") -> 2053.2 | K26: =IF(Forecasts[[#This Row],[Type]]="Range", Forecasts[[#This Row],[Min]]-0.01*(Forecasts[[#This Row],[Max]]-Forecasts[[#This Row],[Min]]), "") -> 1726.8 | L26: =IF(Forecasts[[#This Row],[Type]]="Range",SUMIF(AssignmentTable[Forecast ID],Forecasts[[#This Row],[Forecast ID]],AssignmentTable[P5 weighted]),"") -> 1811.458566 | M26: =IF(Forecasts[[#This Row],[Type]]="Range",SUMIF(AssignmentTable[Forecast ID],Forecasts[[#This Row],[Forecast ID]],AssignmentTable[P95 weighted]),"") -> 1982.269508 | N26: =IF(Forecasts[[#This Row],[Type]]="Binary",SUMIF(AssignmentTable[Forecast ID],Forecasts[[#This Row],[Forecast ID]],AssignmentTable[Probability of Occurance Weighted]),"") ->  | O26: =IF(ISBLANK(Forecasts[[#This Row],[Outcome]]), "", IF(Forecasts[[#This Row],[Outcome]]<Forecasts[[#This Row],[Aggregate SME forcast LB]], 1, IF(Forecasts[[#This Row],[Outcome]]<Forecasts[[#This Row],[Aggregate SME UB forcast]], 2,3))) -> 2
A27: =10000+ROW(Forecasts[#This Row])-3 -> 10024 | B27: What were the total number of gold medals won by the USA in the 2008 Bejing Summer Olympics? | C27: Range | D27: Yes | F27: 36 | H27: =IF(Forecasts[[#This Row],[Type]]="Range", MAX(Forecasts[[#This Row],[Outcome]], _xlfn.MAXIFS(AssignmentTable[P95], AssignmentTable[Forecast ID], Forecasts[[#This Row],[Forecast ID]])), "") -> 1580 | I27: =IF(Forecasts[[#This Row],[Type]]="Range", MIN(Forecasts[[#This Row],[Outcome]], _xlfn.MINIFS(AssignmentTable[P5], AssignmentTable[Forecast ID], Forecasts[[#This Row],[Forecast ID]])), "") -> 1 | J27: =IF(Forecasts[[#This Row],[Type]]="Range", Forecasts[[#This Row],[Max]]+0.01*(Forecasts[[#This Row],[Max]]-Forecasts[[#This Row],[Min]]), "") -> 1595.79 | K27: =IF(Forecasts[[#This Row],[Type]]="Range", Forecasts[[#This Row],[Min]]-0.01*(Forecasts[[#This Row],[Max]]-Forecasts[[#This Row],[Min]]), "") -> -14.79 | L27: =IF(Forecasts[[#This Row],[Type]]="Range",SUMIF(AssignmentTable[Forecast ID],Forecasts[[#This Row],[Forecast ID]],AssignmentTable[P5 weighted]),"") -> 1.45834264 | M27: =IF(Forecasts[[#This Row],[Type]]="Range",SUMIF(AssignmentTable[Forecast ID],Forecasts[[#This Row],[Forecast ID]],AssignmentTable[P95 weighted]),"") -> 30.0241323 | N27: =IF(Forecasts[[#This Row],[Type]]="Binary",SUMIF(AssignmentTable[Forecast ID],Forecasts[[#This Row],[Forecast ID]],AssignmentTable[Probability of Occurance Weighted]),"") ->  | O27: =IF(ISBLANK(Forecasts[[#This Row],[Outcome]]), "", IF(Forecasts[[#This Row],[Outcome]]<Forecasts[[#This Row],[Aggregate SME forcast LB]], 1, IF(Forecasts[[#This Row],[Outcome]]<Forecasts[[#This Row],[Aggregate SME UB forcast]], 2,3))) -> 3
A28: =10000+ROW(Forecasts[#This Row])-3 -> 10025 | B28: What is the percentage of Americans without healthcare insurance? | C28: Range | D28: Yes | F28: 0.153 | H28: =IF(Forecasts[[#This Row],[Type]]="Range", MAX(Forecasts[[#This Row],[Outcome]], _xlfn.MAXIFS(AssignmentTable[P95], AssignmentTable[Forecast ID], Forecasts[[#This Row],[Forecast ID]])), "") -> 0.9 | I28: =IF(Forecasts[[#This Row],[Type]]="Range", MIN(Forecasts[[#This Row],[Outcome]], _xlfn.MINIFS(AssignmentTable[P5], AssignmentTable[Forecast ID], Forecasts[[#This Row],[Forecast ID]])), "") -> 0.02 | J28: =IF(Forecasts[[#This Row],[Type]]="Range", Forecasts[[#This Row],[Max]]+0.01*(Forecasts[[#This Row],[Max]]-Forecasts[[#This Row],[Min]]), "") -> 0.9088 | K28: =IF(Forecasts[[#This Row],[Type]]="Range", Forecasts[[#This Row],[Min]]-0.01*(Forecasts[[#This Row],[Max]]-Forecasts[[#This Row],[Min]]), "") -> 0.0112 | L28: =IF(Forecasts[[#This Row],[Type]]="Range",SUMIF(AssignmentTable[Forecast ID],Forecasts[[#This Row],[Forecast ID]],AssignmentTable[P5 weighted]),"") -> 0.02918905809 | M28: =IF(Forecasts[[#This Row],[Type]]="Range",SUMIF(AssignmentTable[Forecast ID],Forecasts[[#This Row],[Forecast ID]],AssignmentTable[P95 weighted]),"") -> 0.5345237332 | N28: =IF(Forecasts[[#This Row],[Type]]="Binary",SUMIF(AssignmentTable[Forecast ID],Forecasts[[#This Row],[Forecast ID]],AssignmentTable[Probability of Occurance Weighted]),"") ->  | O28: =IF(ISBLANK(Forecasts[[#This Row],[Outcome]]), "", IF(Forecasts[[#This Row],[Outcome]]<Forecasts[[#This Row],[Aggregate SME forcast LB]], 1, IF(Forecasts[[#This Row],[Outcome]]<Forecasts[[#This Row],[Aggregate SME UB forcast]], 2,3))) -> 2
A29: =10000+ROW(Forecasts[#This Row])-3 -> 10026 | B29: The Earth is 93 million miles from the sun. How far is Venus from the sun (in millions of miles)? | C29: Range | D29: Yes | F29: 67.2 | H29: =IF(Forecasts[[#This Row],[Type]]="Range", MAX(Forecasts[[#This Row],[Outcome]], _xlfn.MAXIFS(AssignmentTable[P95], AssignmentTable[Forecast ID], Forecasts[[#This Row],[Forecast ID]])), "") -> 875900000000 | I29: =IF(Forecasts[[#This Row],[Type]]="Range", MIN(Forecasts[[#This Row],[Outcome]], _xlfn.MINIFS(AssignmentTable[P5], AssignmentTable[Forecast ID], Forecasts[[#This Row],[Forecast ID]])), "") -> 10 | J29: =IF(Forecasts[[#This Row],[Type]]="Range", Forecasts[[#This Row],[Max]]+0.01*(Forecasts[[#This Row],[Max]]-Forecasts[[#This Row],[Min]]), "") -> 8.84659e+11 | K29: =IF(Forecasts[[#This Row],[Type]]="Range", Forecasts[[#This Row],[Min]]-0.01*(Forecasts[[#This Row],[Max]]-Forecasts[[#This Row],[Min]]), "") -> -8758999990 | L29: =IF(Forecasts[[#This Row],[Type]]="Range",SUMIF(AssignmentTable[Forecast ID],Forecasts[[#This Row],[Forecast ID]],AssignmentTable[P5 weighted]),"") -> 18.84679014 | M29: =IF(Forecasts[[#This Row],[Type]]="Range",SUMIF(AssignmentTable[Forecast ID],Forecasts[[#This Row],[Forecast ID]],AssignmentTable[P95 weighted]),"") -> 108.3455214 | N29: =IF(Forecasts[[#This Row],[Type]]="Binary",SUMIF(AssignmentTable[Forecast ID],Forecasts[[#This Row],[Forecast ID]],AssignmentTable[Probability of Occurance Weighted]),"") ->  | O29: =IF(ISBLANK(Forecasts[[#This Row],[Outcome]]), "", IF(Forecasts[[#This Row],[Outcome]]<Forecasts[[#This Row],[Aggregate SME forcast LB]], 1, IF(Forecasts[[#This Row],[Outcome]]<Forecasts[[#This Row],[Aggregate SME UB forcast]], 2,3))) -> 2
A30: =10000+ROW(Forecasts[#This Row])-3 -> 10027 | B30: What year did Gunsmoke premier on television? | C30: Range | D30: Yes | F30: 1955 | H30: =IF(Forecasts[[#This Row],[Type]]="Range", MAX(Forecasts[[#This Row],[Outcome]], _xlfn.MAXIFS(AssignmentTable[P95], AssignmentTable[Forecast ID], Forecasts[[#This Row],[Forecast ID]])), "") -> 2014 | I30: =IF(Forecasts[[#This Row],[Type]]="Range", MIN(Forecasts[[#This Row],[Outcome]], _xlfn.MINIFS(AssignmentTable[P5], AssignmentTable[Forecast ID], Forecasts[[#This Row],[Forecast ID]])), "") -> 1800 | J30: =IF(Forecasts[[#This Row],[Type]]="Range", Forecasts[[#This Row],[Max]]+0.01*(Forecasts[[#This Row],[Max]]-Forecasts[[#This Row],[Min]]), "") -> 2016.14 | K30: =IF(Forecasts[[#This Row],[Type]]="Range", Forecasts[[#This Row],[Min]]-0.01*(Forecasts[[#This Row],[Max]]-Forecasts[[#This Row],[Min]]), "") -> 1797.86 | L30: =IF(Forecasts[[#This Row],[Type]]="Range",SUMIF(AssignmentTable[Forecast ID],Forecasts[[#This Row],[Forecast ID]],AssignmentTable[P5 weighted]),"") -> 1926.584636 | M30: =IF(Forecasts[[#This Row],[Type]]="Range",SUMIF(AssignmentTable[Forecast ID],Forecasts[[#This Row],[Forecast ID]],AssignmentTable[P95 weighted]),"") -> 2004.267844 | N30: =IF(Forecasts[[#This Row],[Type]]="Binary",SUMIF(AssignmentTable[Forecast ID],Forecasts[[#This Row],[Forecast ID]],AssignmentTable[Probability of Occurance Weighted]),"") ->  | O30: =IF(ISBLANK(Forecasts[[#This Row],[Outcome]]), "", IF(Forecasts[[#This Row],[Outcome]]<Forecasts[[#This Row],[Aggregate SME forcast LB]], 1, IF(Forecasts[[#This Row],[Outcome]]<Forecasts[[#This Row],[Aggregate SME UB forcast]], 2,3))) -> 2
A31: =10000+ROW(Forecasts[#This Row])-3 -> 10028 | B31: How many billions of dollars did Microsoft earn in revenue in 2008? | C31: Range | D31: Yes | F31: 51.1 | H31: =IF(Forecasts[[#This Row],[Type]]="Range", MAX(Forecasts[[#This Row],[Outcome]], _xlfn.MAXIFS(AssignmentTable[P95], AssignmentTable[Forecast ID], Forecasts[[#This Row],[Forecast ID]])), "") -> 100000000 | I31: =IF(Forecasts[[#This Row],[Type]]="Range", MIN(Forecasts[[#This Row],[Outcome]], _xlfn.MINIFS(AssignmentTable[P5], AssignmentTable[Forecast ID], Forecasts[[#This Row],[Forecast ID]])), "") -> 1 | J31: =IF(Forecasts[[#This Row],[Type]]="Range", Forecasts[[#This Row],[Max]]+0.01*(Forecasts[[#This Row],[Max]]-Forecasts[[#This Row],[Min]]), "") -> 101000000 | K31: =IF(Forecasts[[#This Row],[Type]]="Range", Forecasts[[#This Row],[Min]]-0.01*(Forecasts[[#This Row],[Max]]-Forecasts[[#This Row],[Min]]), "") -> -999998.99 | L31: =IF(Forecasts[[#This Row],[Type]]="Range",SUMIF(AssignmentTable[Forecast ID],Forecasts[[#This Row],[Forecast ID]],AssignmentTable[P5 weighted]),"") -> 1.884674197 | M31: =IF(Forecasts[[#This Row],[Type]]="Range",SUMIF(AssignmentTable[Forecast ID],Forecasts[[#This Row],[Forecast ID]],AssignmentTable[P95 weighted]),"") -> 300.4471765 | N31: =IF(Forecasts[[#This Row],[Type]]="Binary",SUMIF(AssignmentTable[Forecast ID],Forecasts[[#This Row],[Forecast ID]],AssignmentTable[Probability of Occurance Weighted]),"") ->  | O31: =IF(ISBLANK(Forecasts[[#This Row],[Outcome]]), "", IF(Forecasts[[#This Row],[Outcome]]<Forecasts[[#This Row],[Aggregate SME forcast LB]], 1, IF(Forecasts[[#This Row],[Outcome]]<Forecasts[[#This Row],[Aggregate SME UB forcast]], 2,3))) -> 2
A32: =10000+ROW(Forecasts[#This Row])-3 -> 10029 | B32: How many stories tall is the Empire State Building? | C32: Range | D32: Yes | F32: 102 | H32: =IF(Forecasts[[#This Row],[Type]]="Range", MAX(Forecasts[[#This Row],[Outcome]], _xlfn.MAXIFS(AssignmentTable[P95], AssignmentTable[Forecast ID], Forecasts[[#This Row],[Forecast ID]])), "") -> 950 | I32: =IF(Forecasts[[#This Row],[Type]]="Range", MIN(Forecasts[[#This Row],[Outcome]], _xlfn.MINIFS(AssignmentTable[P5], AssignmentTable[Forecast ID], Forecasts[[#This Row],[Forecast ID]])), "") -> 2 | J32: =IF(Forecasts[[#This Row],[Type]]="Range", Forecasts[[#This Row],[Max]]+0.01*(Forecasts[[#This Row],[Max]]-Forecasts[[#This Row],[Min]]), "") -> 959.48 | K32: =IF(Forecasts[[#This Row],[Type]]="Range", Forecasts[[#This Row],[Min]]-0.01*(Forecasts[[#This Row],[Max]]-Forecasts[[#This Row],[Min]]), "") -> -7.48 | L32: =IF(Forecasts[[#This Row],[Type]]="Range",SUMIF(AssignmentTable[Forecast ID],Forecasts[[#This Row],[Forecast ID]],AssignmentTable[P5 weighted]),"") -> 2.930008502 | M32: =IF(Forecasts[[#This Row],[Type]]="Range",SUMIF(AssignmentTable[Forecast ID],Forecasts[[#This Row],[Forecast ID]],AssignmentTable[P95 weighted]),"") -> 282.6419102 | N32: =IF(Forecasts[[#This Row],[Type]]="Binary",SUMIF(AssignmentTable[Forecast ID],Forecasts[[#This Row],[Forecast ID]],AssignmentTable[Probability of Occurance Weighted]),"") ->  | O32: =IF(ISBLANK(Forecasts[[#This Row],[Outcome]]), "", IF(Forecasts[[#This Row],[Outcome]]<Forecasts[[#This Row],[Aggregate SME forcast LB]], 1, IF(Forecasts[[#This Row],[Outcome]]<Forecasts[[#This Row],[Aggregate SME UB forcast]], 2,3))) -> 2
A33: =10000+ROW(Forecasts[#This Row])-3 -> 10030 | B33: What is the weekly food expense (in dollars) for the average US household with children under 18 (per person)? | C33: Range | D33: Yes | F33: 31.25 | H33: =IF(Forecasts[[#This Row],[Type]]="Range", MAX(Forecasts[[#This Row],[Outcome]], _xlfn.MAXIFS(AssignmentTable[P95], AssignmentTable[Forecast ID], Forecasts[[#This Row],[Forecast ID]])), "") -> 100000 | I33: =IF(Forecasts[[#This Row],[Type]]="Range", MIN(Forecasts[[#This Row],[Outcome]], _xlfn.MINIFS(AssignmentTable[P5], AssignmentTable[Forecast ID], Forecasts[[#This Row],[Forecast ID]])), "") -> 10 | J33: =IF(Forecasts[[#This Row],[Type]]="Range", Forecasts[[#This Row],[Max]]+0.01*(Forecasts[[#This Row],[Max]]-Forecasts[[#This Row],[Min]]), "") -> 100999.9 | K33: =IF(Forecasts[[#This Row],[Type]]="Range", Forecasts[[#This Row],[Min]]-0.01*(Forecasts[[#This Row],[Max]]-Forecasts[[#This Row],[Min]]), "") -> -989.9 | L33: =IF(Forecasts[[#This Row],[Type]]="Range",SUMIF(AssignmentTable[Forecast ID],Forecasts[[#This Row],[Forecast ID]],AssignmentTable[P5 weighted]),"") -> 71.95679854 | M33: =IF(Forecasts[[#This Row],[Type]]="Range",SUMIF(AssignmentTable[Forecast ID],Forecasts[[#This Row],[Forecast ID]],AssignmentTable[P95 weighted]),"") -> 1781.176983 | N33: =IF(Forecasts[[#This Row],[Type]]="Binary",SUMIF(AssignmentTable[Forecast ID],Forecasts[[#This Row],[Forecast ID]],AssignmentTable[Probability of Occurance Weighted]),"") ->  | O33: =IF(ISBLANK(Forecasts[[#This Row],[Outcome]]), "", IF(Forecasts[[#This Row],[Outcome]]<Forecasts[[#This Row],[Aggregate SME forcast LB]], 1, IF(Forecasts[[#This Row],[Outcome]]<Forecasts[[#This Row],[Aggregate SME UB forcast]], 2,3))) -> 1
A34: =10000+ROW(Forecasts[#This Row])-3 -> 10031 | B34: The percentage of households which own their homes is higher in North Carolina than New York. | C34: Binary | D34: Yes | F34: 1 | H34: =IF(Forecasts[[#This Row],[Type]]="Range", MAX(Forecasts[[#This Row],[Outcome]], _xlfn.MAXIFS(AssignmentTable[P95], AssignmentTable[Forecast ID], Forecasts[[#This Row],[Forecast ID]])), "") ->  | I34: =IF(Forecasts[[#This Row],[Type]]="Range", MIN(Forecasts[[#This Row],[Outcome]], _xlfn.MINIFS(AssignmentTable[P5], AssignmentTable[Forecast ID], Forecasts[[#This Row],[Forecast ID]])), "") ->  | J34: =IF(Forecasts[[#This Row],[Type]]="Range", Forecasts[[#This Row],[Max]]+0.01*(Forecasts[[#This Row],[Max]]-Forecasts[[#This Row],[Min]]), "") ->  | K34: =IF(Forecasts[[#This Row],[Type]]="Range", Forecasts[[#This Row],[Min]]-0.01*(Forecasts[[#This Row],[Max]]-Forecasts[[#This Row],[Min]]), "") ->  | L34: =IF(Forecasts[[#This Row],[Type]]="Range",SUMIF(AssignmentTable[Forecast ID],Forecasts[[#This Row],[Forecast ID]],AssignmentTable[P5 weighted]),"") ->  | M34: =IF(Forecasts[[#This Row],[Type]]="Range",SUMIF(AssignmentTable[Forecast ID],Forecasts[[#This Row],[Forecast ID]],AssignmentTable[P95 weighted]),"") ->  | N34: =IF(Forecasts[[#This Row],[Type]]="Binary",SUMIF(AssignmentTable[Forecast ID],Forecasts[[#This Row],[Forecast ID]],AssignmentTable[Probability of Occurance Weighted]),"") -> 0.511458566 | O34: =IF(ISBLANK(Forecasts[[#This Row],[Outcome]]), "", IF(Forecasts[[#This Row],[Outcome]]<Forecasts[[#This Row],[Aggregate SME forcast LB]], 1, IF(Forecasts[[#This Row],[Outcome]]<Forecasts[[#This Row],[Aggregate SME UB forcast]], 2,3))) -> 1
A35: =10000+ROW(Forecasts[#This Row])-3 -> 10032 | B35: In high humidity, baseballs tend to be hit further than in low humidity. | C35: Binary | D35: Yes | F35: 1 | H35: =IF(Forecasts[[#This Row],[Type]]="Range", MAX(Forecasts[[#This Row],[Outcome]], _xlfn.MAXIFS(AssignmentTable[P95], AssignmentTable[Forecast ID], Forecasts[[#This Row],[Forecast ID]])), "") ->  | I35: =IF(Forecasts[[#This Row],[Type]]="Range", MIN(Forecasts[[#This Row],[Outcome]], _xlfn.MINIFS(AssignmentTable[P5], AssignmentTable[Forecast ID], Forecasts[[#This Row],[Forecast ID]])), "") ->  | J35: =IF(Forecasts[[#This Row],[Type]]="Range", Forecasts[[#This Row],[Max]]+0.01*(Forecasts[[#This Row],[Max]]-Forecasts[[#This Row],[Min]]), "") ->  | K35: =IF(Forecasts[[#This Row],[Type]]="Range", Forecasts[[#This Row],[Min]]-0.01*(Forecasts[[#This Row],[Max]]-Forecasts[[#This Row],[Min]]), "") ->  | L35: =IF(Forecasts[[#This Row],[Type]]="Range",SUMIF(AssignmentTable[Forecast ID],Forecasts[[#This Row],[Forecast ID]],AssignmentTable[P5 weighted]),"") ->  | M35: =IF(Forecasts[[#This Row],[Type]]="Range",SUMIF(AssignmentTable[Forecast ID],Forecasts[[#This Row],[Forecast ID]],AssignmentTable[P95 weighted]),"") ->  | N35: =IF(Forecasts[[#This Row],[Type]]="Binary",SUMIF(AssignmentTable[Forecast ID],Forecasts[[#This Row],[Forecast ID]],AssignmentTable[Probability of Occurance Weighted]),"") -> 0.400074018 | O35: =IF(ISBLANK(Forecasts[[#This Row],[Outcome]]), "", IF(Forecasts[[#This Row],[Outcome]]<Forecasts[[#This Row],[Aggregate SME forcast LB]], 1, IF(Forecasts[[#This Row],[Outcome]]<Forecasts[[#This Row],[Aggregate SME UB forcast]], 2,3))) -> 1
A36: =10000+ROW(Forecasts[#This Row])-3 -> 10033 | B36: Alpha Centauri is closer than Andromeda. | C36: Binary | D36: Yes | F36: 1 | H36: =IF(Forecasts[[#This Row],[Type]]="Range", MAX(Forecasts[[#This Row],[Outcome]], _xlfn.MAXIFS(AssignmentTable[P95], AssignmentTable[Forecast ID], Forecasts[[#This Row],[Forecast ID]])), "") ->  | I36: =IF(Forecasts[[#This Row],[Type]]="Range", MIN(Forecasts[[#This Row],[Outcome]], _xlfn.MINIFS(AssignmentTable[P5], AssignmentTable[Forecast ID], Forecasts[[#This Row],[Forecast ID]])), "") ->  | J36: =IF(Forecasts[[#This Row],[Type]]="Range", Forecasts[[#This Row],[Max]]+0.01*(Forecasts[[#This Row],[Max]]-Forecasts[[#This Row],[Min]]), "") ->  | K36: =IF(Forecasts[[#This Row],[Type]]="Range", Forecasts[[#This Row],[Min]]-0.01*(Forecasts[[#This Row],[Max]]-Forecasts[[#This Row],[Min]]), "") ->  | L36: =IF(Forecasts[[#This Row],[Type]]="Range",SUMIF(AssignmentTable[Forecast ID],Forecasts[[#This Row],[Forecast ID]],AssignmentTable[P5 weighted]),"") ->  | M36: =IF(Forecasts[[#This Row],[Type]]="Range",SUMIF(AssignmentTable[Forecast ID],Forecasts[[#This Row],[Forecast ID]],AssignmentTable[P95 weighted]),"") ->  | N36: =IF(Forecasts[[#This Row],[Type]]="Binary",SUMIF(AssignmentTable[Forecast ID],Forecasts[[#This Row],[Forecast ID]],AssignmentTable[Probability of Occurance Weighted]),"") -> 0.4999999999 | O36: =IF(ISBLANK(Forecasts[[#This Row],[Outcome]]), "", IF(Forecasts[[#This Row],[Outcome]]<Forecasts[[#This Row],[Aggregate SME forcast LB]], 1, IF(Forecasts[[#This Row],[Outcome]]<Forecasts[[#This Row],[Aggregate SME UB forcast]], 2,3))) -> 1
A37: =10000+ROW(Forecasts[#This Row])-3 -> 10034 | B37: When Churchill said "Never in the field of human conflict was so much owed by so many to so few," he was referring to the soldiers of D-Day. | C37: Binary | D37: Yes | F37: 0 | H37: =IF(Forecasts[[#This Row],[Type]]="Range", MAX(Forecasts[[#This Row],[Outcome]], _xlfn.MAXIFS(AssignmentTable[P95], AssignmentTable[Forecast ID], Forecasts[[#This Row],[Forecast ID]])), "") ->  | I37: =IF(Forecasts[[#This Row],[Type]]="Range", MIN(Forecasts[[#This Row],[Outcome]], _xlfn.MINIFS(AssignmentTable[P5], AssignmentTable[Forecast ID], Forecasts[[#This Row],[Forecast ID]])), "") ->  | J37: =IF(Forecasts[[#This Row],[Type]]="Range", Forecasts[[#This Row],[Max]]+0.01*(Forecasts[[#This Row],[Max]]-Forecasts[[#This Row],[Min]]), "") ->  | K37: =IF(Forecasts[[#This Row],[Type]]="Range", Forecasts[[#This Row],[Min]]-0.01*(Forecasts[[#This Row],[Max]]-Forecasts[[#This Row],[Min]]), "") ->  | L37: =IF(Forecasts[[#This Row],[Type]]="Range",SUMIF(AssignmentTable[Forecast ID],Forecasts[[#This Row],[Forecast ID]],AssignmentTable[P5 weighted]),"") ->  | M37: =IF(Forecasts[[#This Row],[Type]]="Range",SUMIF(AssignmentTable[Forecast ID],Forecasts[[#This Row],[Forecast ID]],AssignmentTable[P95 weighted]),"") ->  | N37: =IF(Forecasts[[#This Row],[Type]]="Binary",SUMIF(AssignmentTable[Forecast ID],Forecasts[[#This Row],[Forecast ID]],AssignmentTable[Probability of Occurance Weighted]),"") -> 0.5114585658 | O37: =IF(ISBLANK(Forecasts[[#This Row],[Outcome]]), "", IF(Forecasts[[#This Row],[Outcome]]<Forecasts[[#This Row],[Aggregate SME forcast LB]], 1, IF(Forecasts[[#This Row],[Outcome]]<Forecasts[[#This Row],[Aggregate SME UB forcast]], 2,3))) -> 1
A38: =10000+ROW(Forecasts[#This Row])-3 -> 10035 | B38: The US has competed in the soccer World Cup | C38: Binary | D38: Yes | F38: 1 | H38: =IF(Forecasts[[#This Row],[Type]]="Range", MAX(Forecasts[[#This Row],[Outcome]], _xlfn.MAXIFS(AssignmentTable[P95], AssignmentTable[Forecast ID], Forecasts[[#This Row],[Forecast ID]])), "") ->  | I38: =IF(Forecasts[[#This Row],[Type]]="Range", MIN(Forecasts[[#This Row],[Outcome]], _xlfn.MINIFS(AssignmentTable[P5], AssignmentTable[Forecast ID], Forecasts[[#This Row],[Forecast ID]])), "") ->  | J38: =IF(Forecasts[[#This Row],[Type]]="Range", Forecasts[[#This Row],[Max]]+0.01*(Forecasts[[#This Row],[Max]]-Forecasts[[#This Row],[Min]]), "") ->  | K38: =IF(Forecasts[[#This Row],[Type]]="Range", Forecasts[[#This Row],[Min]]-0.01*(Forecasts[[#This Row],[Max]]-Forecasts[[#This Row],[Min]]), "") ->  | L38: =IF(Forecasts[[#This Row],[Type]]="Range",SUMIF(AssignmentTable[Forecast ID],Forecasts[[#This Row],[Forecast ID]],AssignmentTable[P5 weighted]),"") ->  | M38: =IF(Forecasts[[#This Row],[Type]]="Range",SUMIF(AssignmentTable[Forecast ID],Forecasts[[#This Row],[Forecast ID]],AssignmentTable[P95 weighted]),"") ->  | N38: =IF(Forecasts[[#This Row],[Type]]="Binary",SUMIF(AssignmentTable[Forecast ID],Forecasts[[#This Row],[Forecast ID]],AssignmentTable[Probability of Occurance Weighted]),"") -> 0.4886154521 | O38: =IF(ISBLANK(Forecasts[[#This Row],[Outcome]]), "", IF(Forecasts[[#This Row],[Outcome]]<Forecasts[[#This Row],[Aggregate SME forcast LB]], 1, IF(Forecasts[[#This Row],[Outcome]]<Forecasts[[#This Row],[Aggregate SME UB forcast]], 2,3))) -> 1
A39: =10000+ROW(Forecasts[#This Row])-3 -> 10036 | B39: Adjusted for inflation, Hurricane Andrew was more costly than Hurricane Katrina | C39: Binary | D39: Yes | F39: 0 | H39: =IF(Forecasts[[#This Row],[Type]]="Range", MAX(Forecasts[[#This Row],[Outcome]], _xlfn.MAXIFS(AssignmentTable[P95], AssignmentTable[Forecast ID], Forecasts[[#This Row],[Forecast ID]])), "") ->  | I39: =IF(Forecasts[[#This Row],[Type]]="Range", MIN(Forecasts[[#This Row],[Outcome]], _xlfn.MINIFS(AssignmentTable[P5], AssignmentTable[Forecast ID], Forecasts[[#This Row],[Forecast ID]])), "") ->  | J39: =IF(Forecasts[[#This Row],[Type]]="Range", Forecasts[[#This Row],[Max]]+0.01*(Forecasts[[#This Row],[Max]]-Forecasts[[#This Row],[Min]]), "") ->  | K39: =IF(Forecasts[[#This Row],[Type]]="Range", Forecasts[[#This Row],[Min]]-0.01*(Forecasts[[#This Row],[Max]]-Forecasts[[#This Row],[Min]]), "") ->  | L39: =IF(Forecasts[[#This Row],[Type]]="Range",SUMIF(AssignmentTable[Forecast ID],Forecasts[[#This Row],[Forecast ID]],AssignmentTable[P5 weighted]),"") ->  | M39: =IF(Forecasts[[#This Row],[Type]]="Range",SUMIF(AssignmentTable[Forecast ID],Forecasts[[#This Row],[Forecast ID]],AssignmentTable[P95 weighted]),"") ->  | N39: =IF(Forecasts[[#This Row],[Type]]="Binary",SUMIF(AssignmentTable[Forecast ID],Forecasts[[#This Row],[Forecast ID]],AssignmentTable[Probability of Occurance Weighted]),"") -> 0.4999999999 | O39: =IF(ISBLANK(Forecasts[[#This Row],[Outcome]]), "", IF(Forecasts[[#This Row],[Outcome]]<Forecasts[[#This Row],[Aggregate SME forcast LB]], 1, IF(Forecasts[[#This Row],[Outcome]]<Forecasts[[#This Row],[Aggregate SME UB forcast]], 2,3))) -> 1
A40: =10000+ROW(Forecasts[#This Row])-3 -> 10037 | B40: Nuclear fusion involves splitting helium into hydrogen. | C40: Binary | D40: Yes | F40: 0 | H40: =IF(Forecasts[[#This Row],[Type]]="Range", MAX(Forecasts[[#This Row],[Outcome]], _xlfn.MAXIFS(AssignmentTable[P95], AssignmentTable[Forecast ID], Forecasts[[#This Row],[Forecast ID]])), "") ->  | I40: =IF(Forecasts[[#This Row],[Type]]="Range", MIN(Forecasts[[#This Row],[Outcome]], _xlfn.MINIFS(AssignmentTable[P5], AssignmentTable[Forecast ID], Forecasts[[#This Row],[Forecast ID]])), "") ->  | J40: =IF(Forecasts[[#This Row],[Type]]="Range", Forecasts[[#This Row],[Max]]+0.01*(Forecasts[[#This Row],[Max]]-Forecasts[[#This Row],[Min]]), "") ->  | K40: =IF(Forecasts[[#This Row],[Type]]="Range", Forecasts[[#This Row],[Min]]-0.01*(Forecasts[[#This Row],[Max]]-Forecasts[[#This Row],[Min]]), "") ->  | L40: =IF(Forecasts[[#This Row],[Type]]="Range",SUMIF(AssignmentTable[Forecast ID],Forecasts[[#This Row],[Forecast ID]],AssignmentTable[P5 weighted]),"") ->  | M40: =IF(Forecasts[[#This Row],[Type]]="Range",SUMIF(AssignmentTable[Forecast ID],Forecasts[[#This Row],[Forecast ID]],AssignmentTable[P95 weighted]),"") ->  | N40: =IF(Forecasts[[#This Row],[Type]]="Binary",SUMIF(AssignmentTable[Forecast ID],Forecasts[[#This Row],[Forecast ID]],AssignmentTable[Probability of Occurance Weighted]),"") -> 0.6113845479 | O40: =IF(ISBLANK(Forecasts[[#This Row],[Outcome]]), "", IF(Forecasts[[#This Row],[Outcome]]<Forecasts[[#This Row],[Aggregate SME forcast LB]], 1, IF(Forecasts[[#This Row],[Outcome]]<Forecasts[[#This Row],[Aggregate SME UB forcast]], 2,3))) -> 1
A41: =10000+ROW(Forecasts[#This Row])-3 -> 10038 | B41: In 2012 Sam's club (Walmart subsidiary) sales were greater than Amazon.com sales | C41: Binary | D41: Yes | F41: 0 | H41: =IF(Forecasts[[#This Row],[Type]]="Range", MAX(Forecasts[[#This Row],[Outcome]], _xlfn.MAXIFS(AssignmentTable[P95], AssignmentTable[Forecast ID], Forecasts[[#This Row],[Forecast ID]])), "") ->  | I41: =IF(Forecasts[[#This Row],[Type]]="Range", MIN(Forecasts[[#This Row],[Outcome]], _xlfn.MINIFS(AssignmentTable[P5], AssignmentTable[Forecast ID], Forecasts[[#This Row],[Forecast ID]])), "") ->  | J41: =IF(Forecasts[[#This Row],[Type]]="Range", Forecasts[[#This Row],[Max]]+0.01*(Forecasts[[#This Row],[Max]]-Forecasts[[#This Row],[Min]]), "") ->  | K41: =IF(Forecasts[[#This Row],[Type]]="Range", Forecasts[[#This Row],[Min]]-0.01*(Forecasts[[#This Row],[Max]]-Forecasts[[#This Row],[Min]]), "") ->  | L41: =IF(Forecasts[[#This Row],[Type]]="Range",SUMIF(AssignmentTable[Forecast ID],Forecasts[[#This Row],[Forecast ID]],AssignmentTable[P5 weighted]),"") ->  | M41: =IF(Forecasts[[#This Row],[Type]]="Range",SUMIF(AssignmentTable[Forecast ID],Forecasts[[#This Row],[Forecast ID]],AssignmentTable[P95 weighted]),"") ->  | N41: =IF(Forecasts[[#This Row],[Type]]="Binary",SUMIF(AssignmentTable[Forecast ID],Forecasts[[#This Row],[Forecast ID]],AssignmentTable[Probability of Occurance Weighted]),"") -> 0.4885414342 | O41: =IF(ISBLANK(Forecasts[[#This Row],[Outcome]]), "", IF(Forecasts[[#This Row],[Outcome]]<Forecasts[[#This Row],[Aggregate SME forcast LB]], 1, IF(Forecasts[[#This Row],[Outcome]]<Forecasts[[#This Row],[Aggregate SME UB forcast]], 2,3))) -> 1
A42: =10000+ROW(Forecasts[#This Row])-3 -> 10039 | B42: President John Adams was a lawyer. | C42: Binary | D42: Yes | F42: 1 | H42: =IF(Forecasts[[#This Row],[Type]]="Range", MAX(Forecasts[[#This Row],[Outcome]], _xlfn.MAXIFS(AssignmentTable[P95], AssignmentTable[Forecast ID], Forecasts[[#This Row],[Forecast ID]])), "") ->  | I42: =IF(Forecasts[[#This Row],[Type]]="Range", MIN(Forecasts[[#This Row],[Outcome]], _xlfn.MINIFS(AssignmentTable[P5], AssignmentTable[Forecast ID], Forecasts[[#This Row],[Forecast ID]])), "") ->  | J42: =IF(Forecasts[[#This Row],[Type]]="Range", Forecasts[[#This Row],[Max]]+0.01*(Forecasts[[#This Row],[Max]]-Forecasts[[#This Row],[Min]]), "") ->  | K42: =IF(Forecasts[[#This Row],[Type]]="Range", Forecasts[[#This Row],[Min]]-0.01*(Forecasts[[#This Row],[Max]]-Forecasts[[#This Row],[Min]]), "") ->  | L42: =IF(Forecasts[[#This Row],[Type]]="Range",SUMIF(AssignmentTable[Forecast ID],Forecasts[[#This Row],[Forecast ID]],AssignmentTable[P5 weighted]),"") ->  | M42: =IF(Forecasts[[#This Row],[Type]]="Range",SUMIF(AssignmentTable[Forecast ID],Forecasts[[#This Row],[Forecast ID]],AssignmentTable[P95 weighted]),"") ->  | N42: =IF(Forecasts[[#This Row],[Type]]="Binary",SUMIF(AssignmentTable[Forecast ID],Forecasts[[#This Row],[Forecast ID]],AssignmentTable[Probability of Occurance Weighted]),"") -> 0.5000000002 | O42: =IF(ISBLANK(Forecasts[[#This Row],[Outcome]]), "", IF(Forecasts[[#This Row],[Outcome]]<Forecasts[[#This Row],[Aggregate SME forcast LB]], 1, IF(Forecasts[[#This Row],[Outcome]]<Forecasts[[#This Row],[Aggregate SME UB forcast]], 2,3))) -> 1
A43: =10000+ROW(Forecasts[#This Row])-3 -> 10040 | B43: The Yangtze River is the longest river in Asia. | C43: Binary | D43: Yes | F43: 1 | H43: =IF(Forecasts[[#This Row],[Type]]="Range", MAX(Forecasts[[#This Row],[Outcome]], _xlfn.MAXIFS(AssignmentTable[P95], AssignmentTable[Forecast ID], Forecasts[[#This Row],[Forecast ID]])), "") ->  | I43: =IF(Forecasts[[#This Row],[Type]]="Range", MIN(Forecasts[[#This Row],[Outcome]], _xlfn.MINIFS(AssignmentTable[P5], AssignmentTable[Forecast ID], Forecasts[[#This Row],[Forecast ID]])), "") ->  | J43: =IF(Forecasts[[#This Row],[Type]]="Range", Forecasts[[#This Row],[Max]]+0.01*(Forecasts[[#This Row],[Max]]-Forecasts[[#This Row],[Min]]), "") ->  | K43: =IF(Forecasts[[#This Row],[Type]]="Range", Forecasts[[#This Row],[Min]]-0.01*(Forecasts[[#This Row],[Max]]-Forecasts[[#This Row],[Min]]), "") ->  | L43: =IF(Forecasts[[#This Row],[Type]]="Range",SUMIF(AssignmentTable[Forecast ID],Forecasts[[#This Row],[Forecast ID]],AssignmentTable[P5 weighted]),"") ->  | M43: =IF(Forecasts[[#This Row],[Type]]="Range",SUMIF(AssignmentTable[Forecast ID],Forecasts[[#This Row],[Forecast ID]],AssignmentTable[P95 weighted]),"") ->  | N43: =IF(Forecasts[[#This Row],[Type]]="Binary",SUMIF(AssignmentTable[Forecast ID],Forecasts[[#This Row],[Forecast ID]],AssignmentTable[Probability of Occurance Weighted]),"") -> 0.522917132 | O43: =IF(ISBLANK(Forecasts[[#This Row],[Outcome]]), "", IF(Forecasts[[#This Row],[Outcome]]<Forecasts[[#This Row],[Aggregate SME forcast LB]], 1, IF(Forecasts[[#This Row],[Outcome]]<Forecasts[[#This Row],[Aggregate SME UB forcast]], 2,3))) -> 1
A44: =10000+ROW(Forecasts[#This Row])-3 -> 10041 | B44: What year was the first Presidential radio broadcast from the White House? | C44: Range | D44: Yes | F44: 1924 | H44: =IF(Forecasts[[#This Row],[Type]]="Range", MAX(Forecasts[[#This Row],[Outcome]], _xlfn.MAXIFS(AssignmentTable[P95], AssignmentTable[Forecast ID], Forecasts[[#This Row],[Forecast ID]])), "") -> 2013 | I44: =IF(Forecasts[[#This Row],[Type]]="Range", MIN(Forecasts[[#This Row],[Outcome]], _xlfn.MINIFS(AssignmentTable[P5], AssignmentTable[Forecast ID], Forecasts[[#This Row],[Forecast ID]])), "") -> 1300 | J44: =IF(Forecasts[[#This Row],[Type]]="Range", Forecasts[[#This Row],[Max]]+0.01*(Forecasts[[#This Row],[Max]]-Forecasts[[#This Row],[Min]]), "") -> 2020.13 | K44: =IF(Forecasts[[#This Row],[Type]]="Range", Forecasts[[#This Row],[Min]]-0.01*(Forecasts[[#This Row],[Max]]-Forecasts[[#This Row],[Min]]), "") -> 1292.87 | L44: =IF(Forecasts[[#This Row],[Type]]="Range",SUMIF(AssignmentTable[Forecast ID],Forecasts[[#This Row],[Forecast ID]],AssignmentTable[P5 weighted]),"") -> 1788.541434 | M44: =IF(Forecasts[[#This Row],[Type]]="Range",SUMIF(AssignmentTable[Forecast ID],Forecasts[[#This Row],[Forecast ID]],AssignmentTable[P95 weighted]),"") -> 1994.248512 | N44: =IF(Forecasts[[#This Row],[Type]]="Binary",SUMIF(AssignmentTable[Forecast ID],Forecasts[[#This Row],[Forecast ID]],AssignmentTable[Probability of Occurance Weighted]),"") ->  | O44: =IF(ISBLANK(Forecasts[[#This Row],[Outcome]]), "", IF(Forecasts[[#This Row],[Outcome]]<Forecasts[[#This Row],[Aggregate SME forcast LB]], 1, IF(Forecasts[[#This Row],[Outcome]]<Forecasts[[#This Row],[Aggregate SME UB forcast]], 2,3))) -> 2
A45: =10000+ROW(Forecasts[#This Row])-3 -> 10042 | B45: What is the population of the metropolitan area of Kansas City, MO? | C45: Range | D45: Yes | F45: 1985429 | H45: =IF(Forecasts[[#This Row],[Type]]="Range", MAX(Forecasts[[#This Row],[Outcome]], _xlfn.MAXIFS(AssignmentTable[P95], AssignmentTable[Forecast ID], Forecasts[[#This Row],[Forecast ID]])), "") -> 100000000 | I45: =IF(Forecasts[[#This Row],[Type]]="Range", MIN(Forecasts[[#This Row],[Outcome]], _xlfn.MINIFS(AssignmentTable[P5], AssignmentTable[Forecast ID], Forecasts[[#This Row],[Forecast ID]])), "") -> 10 | J45: =IF(Forecasts[[#This Row],[Type]]="Range", Forecasts[[#This Row],[Max]]+0.01*(Forecasts[[#This Row],[Max]]-Forecasts[[#This Row],[Min]]), "") -> 100999999.9 | K45: =IF(Forecasts[[#This Row],[Type]]="Range", Forecasts[[#This Row],[Min]]-0.01*(Forecasts[[#This Row],[Max]]-Forecasts[[#This Row],[Min]]), "") -> -999989.9 | L45: =IF(Forecasts[[#This Row],[Type]]="Range",SUMIF(AssignmentTable[Forecast ID],Forecasts[[#This Row],[Forecast ID]],AssignmentTable[P5 weighted]),"") -> 6621.359615 | M45: =IF(Forecasts[[#This Row],[Type]]="Range",SUMIF(AssignmentTable[Forecast ID],Forecasts[[#This Row],[Forecast ID]],AssignmentTable[P95 weighted]),"") -> 44808856.97 | N45: =IF(Forecasts[[#This Row],[Type]]="Binary",SUMIF(AssignmentTable[Forecast ID],Forecasts[[#This Row],[Forecast ID]],AssignmentTable[Probability of Occurance Weighted]),"") ->  | O45: =IF(ISBLANK(Forecasts[[#This Row],[Outcome]]), "", IF(Forecasts[[#This Row],[Outcome]]<Forecasts[[#This Row],[Aggregate SME forcast LB]], 1, IF(Forecasts[[#This Row],[Outcome]]<Forecasts[[#This Row],[Aggregate SME UB forcast]], 2,3))) -> 2
A46: =10000+ROW(Forecasts[#This Row])-3 -> 10043 | B46: What year did South Dakota become a state? | C46: Range | D46: Yes | F46: 1889 | H46: =IF(Forecasts[[#This Row],[Type]]="Range", MAX(Forecasts[[#This Row],[Outcome]], _xlfn.MAXIFS(AssignmentTable[P95], AssignmentTable[Forecast ID], Forecasts[[#This Row],[Forecast ID]])), "") -> 2013 | I46: =IF(Forecasts[[#This Row],[Type]]="Range", MIN(Forecasts[[#This Row],[Outcome]], _xlfn.MINIFS(AssignmentTable[P5], AssignmentTable[Forecast ID], Forecasts[[#This Row],[Forecast ID]])), "") -> 1200 | J46: =IF(Forecasts[[#This Row],[Type]]="Range", Forecasts[[#This Row],[Max]]+0.01*(Forecasts[[#This Row],[Max]]-Forecasts[[#This Row],[Min]]), "") -> 2021.13 | K46: =IF(Forecasts[[#This Row],[Type]]="Range", Forecasts[[#This Row],[Min]]-0.01*(Forecasts[[#This Row],[Max]]-Forecasts[[#This Row],[Min]]), "") -> 1191.87 | L46: =IF(Forecasts[[#This Row],[Type]]="Range",SUMIF(AssignmentTable[Forecast ID],Forecasts[[#This Row],[Forecast ID]],AssignmentTable[P5 weighted]),"") -> 1788.541434 | M46: =IF(Forecasts[[#This Row],[Type]]="Range",SUMIF(AssignmentTable[Forecast ID],Forecasts[[#This Row],[Forecast ID]],AssignmentTable[P95 weighted]),"") -> 1999.985196 | N46: =IF(Forecasts[[#This Row],[Type]]="Binary",SUMIF(AssignmentTable[Forecast ID],Forecasts[[#This Row],[Forecast ID]],AssignmentTable[Probability of Occurance Weighted]),"") ->  | O46: =IF(ISBLANK(Forecasts[[#This Row],[Outcome]]), "", IF(Forecasts[[#This Row],[Outcome]]<Forecasts[[#This Row],[Aggregate SME forcast LB]], 1, IF(Forecasts[[#This Row],[Outcome]]<Forecasts[[#This Row],[Aggregate SME UB forcast]], 2,3))) -> 2
A47: =10000+ROW(Forecasts[#This Row])-3 -> 10044 | B47: As of 2008, what was the population of China (in billions)? | C47: Range | D47: Yes | F47: 1.33 | H47: =IF(Forecasts[[#This Row],[Type]]="Range", MAX(Forecasts[[#This Row],[Outcome]], _xlfn.MAXIFS(AssignmentTable[P95], AssignmentTable[Forecast ID], Forecasts[[#This Row],[Forecast ID]])), "") -> 200000000 | I47: =IF(Forecasts[[#This Row],[Type]]="Range", MIN(Forecasts[[#This Row],[Outcome]], _xlfn.MINIFS(AssignmentTable[P5], AssignmentTable[Forecast ID], Forecasts[[#This Row],[Forecast ID]])), "") -> 0.01 | J47: =IF(Forecasts[[#This Row],[Type]]="Range", Forecasts[[#This Row],[Max]]+0.01*(Forecasts[[#This Row],[Max]]-Forecasts[[#This Row],[Min]]), "") -> 202000000 | K47: =IF(Forecasts[[#This Row],[Type]]="Range", Forecasts[[#This Row],[Min]]-0.01*(Forecasts[[#This Row],[Max]]-Forecasts[[#This Row],[Min]]), "") -> -1999999.99 | L47: =IF(Forecasts[[#This Row],[Type]]="Range",SUMIF(AssignmentTable[Forecast ID],Forecasts[[#This Row],[Forecast ID]],AssignmentTable[P5 weighted]),"") -> 1.000000005 | M47: =IF(Forecasts[[#This Row],[Type]]="Range",SUMIF(AssignmentTable[Forecast ID],Forecasts[[#This Row],[Forecast ID]],AssignmentTable[P95 weighted]),"") -> 796.93385 | N47: =IF(Forecasts[[#This Row],[Type]]="Binary",SUMIF(AssignmentTable[Forecast ID],Forecasts[[#This Row],[Forecast ID]],AssignmentTable[Probability of Occurance Weighted]),"") ->  | O47: =IF(ISBLANK(Forecasts[[#This Row],[Outcome]]), "", IF(Forecasts[[#This Row],[Outcome]]<Forecasts[[#This Row],[Aggregate SME forcast LB]], 1, IF(Forecasts[[#This Row],[Outcome]]<Forecasts[[#This Row],[Aggregate SME UB forcast]], 2,3))) -> 2
A48: =10000+ROW(Forecasts[#This Row])-3 -> 10045 | B48: In the US, how many dentists are there per 100,000 residents, on average? | C48: Range | D48: Yes | F48: 28 | H48: =IF(Forecasts[[#This Row],[Type]]="Range", MAX(Forecasts[[#This Row],[Outcome]], _xlfn.MAXIFS(AssignmentTable[P95], AssignmentTable[Forecast ID], Forecasts[[#This Row],[Forecast ID]])), "") -> 100000 | I48: =IF(Forecasts[[#This Row],[Type]]="Range", MIN(Forecasts[[#This Row],[Outcome]], _xlfn.MINIFS(AssignmentTable[P5], AssignmentTable[Forecast ID], Forecasts[[#This Row],[Forecast ID]])), "") -> 1 | J48: =IF(Forecasts[[#This Row],[Type]]="Range", Forecasts[[#This Row],[Max]]+0.01*(Forecasts[[#This Row],[Max]]-Forecasts[[#This Row],[Min]]), "") -> 100999.99 | K48: =IF(Forecasts[[#This Row],[Type]]="Range", Forecasts[[#This Row],[Min]]-0.01*(Forecasts[[#This Row],[Max]]-Forecasts[[#This Row],[Min]]), "") -> -998.99 | L48: =IF(Forecasts[[#This Row],[Type]]="Range",SUMIF(AssignmentTable[Forecast ID],Forecasts[[#This Row],[Forecast ID]],AssignmentTable[P5 weighted]),"") -> 1.000000007 | M48: =IF(Forecasts[[#This Row],[Type]]="Range",SUMIF(AssignmentTable[Forecast ID],Forecasts[[#This Row],[Forecast ID]],AssignmentTable[P95 weighted]),"") -> 358.1365016 | N48: =IF(Forecasts[[#This Row],[Type]]="Binary",SUMIF(AssignmentTable[Forecast ID],Forecasts[[#This Row],[Forecast ID]],AssignmentTable[Probability of Occurance Weighted]),"") ->  | O48: =IF(ISBLANK(Forecasts[[#This Row],[Outcome]]), "", IF(Forecasts[[#This Row],[Outcome]]<Forecasts[[#This Row],[Aggregate SME forcast LB]], 1, IF(Forecasts[[#This Row],[Outcome]]<Forecasts[[#This Row],[Aggregate SME UB forcast]], 2,3))) -> 2
A49: =10000+ROW(Forecasts[#This Row])-3 -> 10046 | B49: Of all US energy needs (electricity, heat, transportation, etc.) what percentage is supplied by coal? | C49: Range | D49: Yes | F49: 0.23 | H49: =IF(Forecasts[[#This Row],[Type]]="Range", MAX(Forecasts[[#This Row],[Outcome]], _xlfn.MAXIFS(AssignmentTable[P95], AssignmentTable[Forecast ID], Forecasts[[#This Row],[Forecast ID]])), "") -> 1 | I49: =IF(Forecasts[[#This Row],[Type]]="Range", MIN(Forecasts[[#This Row],[Outcome]], _xlfn.MINIFS(AssignmentTable[P5], AssignmentTable[Forecast ID], Forecasts[[#This Row],[Forecast ID]])), "") -> 0.0005 | J49: =IF(Forecasts[[#This Row],[Type]]="Range", Forecasts[[#This Row],[Max]]+0.01*(Forecasts[[#This Row],[Max]]-Forecasts[[#This Row],[Min]]), "") -> 1.009995 | K49: =IF(Forecasts[[#This Row],[Type]]="Range", Forecasts[[#This Row],[Min]]-0.01*(Forecasts[[#This Row],[Max]]-Forecasts[[#This Row],[Min]]), "") -> -0.009495 | L49: =IF(Forecasts[[#This Row],[Type]]="Range",SUMIF(AssignmentTable[Forecast ID],Forecasts[[#This Row],[Forecast ID]],AssignmentTable[P5 weighted]),"") -> 0.02037932538 | M49: =IF(Forecasts[[#This Row],[Type]]="Range",SUMIF(AssignmentTable[Forecast ID],Forecasts[[#This Row],[Forecast ID]],AssignmentTable[P95 weighted]),"") -> 0.9114585657 | N49: =IF(Forecasts[[#This Row],[Type]]="Binary",SUMIF(AssignmentTable[Forecast ID],Forecasts[[#This Row],[Forecast ID]],AssignmentTable[Probability of Occurance Weighted]),"") ->  | O49: =IF(ISBLANK(Forecasts[[#This Row],[Outcome]]), "", IF(Forecasts[[#This Row],[Outcome]]<Forecasts[[#This Row],[Aggregate SME forcast LB]], 1, IF(Forecasts[[#This Row],[Outcome]]<Forecasts[[#This Row],[Aggregate SME UB forcast]], 2,3))) -> 2
A50: =10000+ROW(Forecasts[#This Row])-3 -> 10047 | B50: How many miles to the gallon does an M-1 Abrams tank get? | C50: Range | D50: Yes | F50: 0.3 | H50: =IF(Forecasts[[#This Row],[Type]]="Range", MAX(Forecasts[[#This Row],[Outcome]], _xlfn.MAXIFS(AssignmentTable[P95], AssignmentTable[Forecast ID], Forecasts[[#This Row],[Forecast ID]])), "") -> 100000000000000 | I50: =IF(Forecasts[[#This Row],[Type]]="Range", MIN(Forecasts[[#This Row],[Outcome]], _xlfn.MINIFS(AssignmentTable[P5], AssignmentTable[Forecast ID], Forecasts[[#This Row],[Forecast ID]])), "") -> 0.1 | J50: =IF(Forecasts[[#This Row],[Type]]="Range", Forecasts[[#This Row],[Max]]+0.01*(Forecasts[[#This Row],[Max]]-Forecasts[[#This Row],[Min]]), "") -> 101000000000000 | K50: =IF(Forecasts[[#This Row],[Type]]="Range", Forecasts[[#This Row],[Min]]-0.01*(Forecasts[[#This Row],[Max]]-Forecasts[[#This Row],[Min]]), "") -> -1e+12 | L50: =IF(Forecasts[[#This Row],[Type]]="Range",SUMIF(AssignmentTable[Forecast ID],Forecasts[[#This Row],[Forecast ID]],AssignmentTable[P5 weighted]),"") -> 0.9999999997 | M50: =IF(Forecasts[[#This Row],[Type]]="Range",SUMIF(AssignmentTable[Forecast ID],Forecasts[[#This Row],[Forecast ID]],AssignmentTable[P95 weighted]),"") -> 21909.92706 | N50: =IF(Forecasts[[#This Row],[Type]]="Binary",SUMIF(AssignmentTable[Forecast ID],Forecasts[[#This Row],[Forecast ID]],AssignmentTable[Probability of Occurance Weighted]),"") ->  | O50: =IF(ISBLANK(Forecasts[[#This Row],[Outcome]]), "", IF(Forecasts[[#This Row],[Outcome]]<Forecasts[[#This Row],[Aggregate SME forcast LB]], 1, IF(Forecasts[[#This Row],[Outcome]]<Forecasts[[#This Row],[Aggregate SME UB forcast]], 2,3))) -> 1
A51: =10000+ROW(Forecasts[#This Row])-3 -> 10048 | B51: The singer Madonna was born in what year? | C51: Range | D51: Yes | F51: 1958 | H51: =IF(Forecasts[[#This Row],[Type]]="Range", MAX(Forecasts[[#This Row],[Outcome]], _xlfn.MAXIFS(AssignmentTable[P95], AssignmentTable[Forecast ID], Forecasts[[#This Row],[Forecast ID]])), "") -> 2013 | I51: =IF(Forecasts[[#This Row],[Type]]="Range", MIN(Forecasts[[#This Row],[Outcome]], _xlfn.MINIFS(AssignmentTable[P5], AssignmentTable[Forecast ID], Forecasts[[#This Row],[Forecast ID]])), "") -> 1700 | J51: =IF(Forecasts[[#This Row],[Type]]="Range", Forecasts[[#This Row],[Max]]+0.01*(Forecasts[[#This Row],[Max]]-Forecasts[[#This Row],[Min]]), "") -> 2016.13 | K51: =IF(Forecasts[[#This Row],[Type]]="Range", Forecasts[[#This Row],[Min]]-0.01*(Forecasts[[#This Row],[Max]]-Forecasts[[#This Row],[Min]]), "") -> 1696.87 | L51: =IF(Forecasts[[#This Row],[Type]]="Range",SUMIF(AssignmentTable[Forecast ID],Forecasts[[#This Row],[Forecast ID]],AssignmentTable[P5 weighted]),"") -> 1727.678201 | M51: =IF(Forecasts[[#This Row],[Type]]="Range",SUMIF(AssignmentTable[Forecast ID],Forecasts[[#This Row],[Forecast ID]],AssignmentTable[P95 weighted]),"") -> 1997.686081 | N51: =IF(Forecasts[[#This Row],[Type]]="Binary",SUMIF(AssignmentTable[Forecast ID],Forecasts[[#This Row],[Forecast ID]],AssignmentTable[Probability of Occurance Weighted]),"") ->  | O51: =IF(ISBLANK(Forecasts[[#This Row],[Outcome]]), "", IF(Forecasts[[#This Row],[Outcome]]<Forecasts[[#This Row],[Aggregate SME forcast LB]], 1, IF(Forecasts[[#This Row],[Outcome]]<Forecasts[[#This Row],[Aggregate SME UB forcast]], 2,3))) -> 2
A52: =10000+ROW(Forecasts[#This Row])-3 -> 10049 | B52: What percentage of US citizens over the age of 68 use personal computers (directly, not as a part of some other product or service)? | C52: Range | D52: Yes | F52: 0.24 | H52: =IF(Forecasts[[#This Row],[Type]]="Range", MAX(Forecasts[[#This Row],[Outcome]], _xlfn.MAXIFS(AssignmentTable[P95], AssignmentTable[Forecast ID], Forecasts[[#This Row],[Forecast ID]])), "") -> 1 | I52: =IF(Forecasts[[#This Row],[Type]]="Range", MIN(Forecasts[[#This Row],[Outcome]], _xlfn.MINIFS(AssignmentTable[P5], AssignmentTable[Forecast ID], Forecasts[[#This Row],[Forecast ID]])), "") -> 0.005 | J52: =IF(Forecasts[[#This Row],[Type]]="Range", Forecasts[[#This Row],[Max]]+0.01*(Forecasts[[#This Row],[Max]]-Forecasts[[#This Row],[Min]]), "") -> 1.00995 | K52: =IF(Forecasts[[#This Row],[Type]]="Range", Forecasts[[#This Row],[Min]]-0.01*(Forecasts[[#This Row],[Max]]-Forecasts[[#This Row],[Min]]), "") -> -0.00495 | L52: =IF(Forecasts[[#This Row],[Type]]="Range",SUMIF(AssignmentTable[Forecast ID],Forecasts[[#This Row],[Forecast ID]],AssignmentTable[P5 weighted]),"") -> 0.029159451 | M52: =IF(Forecasts[[#This Row],[Type]]="Range",SUMIF(AssignmentTable[Forecast ID],Forecasts[[#This Row],[Forecast ID]],AssignmentTable[P95 weighted]),"") -> 0.9681621085 | N52: =IF(Forecasts[[#This Row],[Type]]="Binary",SUMIF(AssignmentTable[Forecast ID],Forecasts[[#This Row],[Forecast ID]],AssignmentTable[Probability of Occurance Weighted]),"") ->  | O52: =IF(ISBLANK(Forecasts[[#This Row],[Outcome]]), "", IF(Forecasts[[#This Row],[Outcome]]<Forecasts[[#This Row],[Aggregate SME forcast LB]], 1, IF(Forecasts[[#This Row],[Outcome]]<Forecasts[[#This Row],[Aggregate SME UB forcast]], 2,3))) -> 2
A53: =10000+ROW(Forecasts[#This Row])-3 -> 10050 | B53: In the standard configuration, the Airbus A380 seats how many passengers? | C53: Range | D53: Yes | F53: 555 | H53: =IF(Forecasts[[#This Row],[Type]]="Range", MAX(Forecasts[[#This Row],[Outcome]], _xlfn.MAXIFS(AssignmentTable[P95], AssignmentTable[Forecast ID], Forecasts[[#This Row],[Forecast ID]])), "") -> 100000000 | I53: =IF(Forecasts[[#This Row],[Type]]="Range", MIN(Forecasts[[#This Row],[Outcome]], _xlfn.MINIFS(AssignmentTable[P5], AssignmentTable[Forecast ID], Forecasts[[#This Row],[Forecast ID]])), "") -> 0 | J53: =IF(Forecasts[[#This Row],[Type]]="Range", Forecasts[[#This Row],[Max]]+0.01*(Forecasts[[#This Row],[Max]]-Forecasts[[#This Row],[Min]]), "") -> 101000000 | K53: =IF(Forecasts[[#This Row],[Type]]="Range", Forecasts[[#This Row],[Min]]-0.01*(Forecasts[[#This Row],[Max]]-Forecasts[[#This Row],[Min]]), "") -> -1000000 | L53: =IF(Forecasts[[#This Row],[Type]]="Range",SUMIF(AssignmentTable[Forecast ID],Forecasts[[#This Row],[Forecast ID]],AssignmentTable[P5 weighted]),"") -> 20.3793255 | M53: =IF(Forecasts[[#This Row],[Type]]="Range",SUMIF(AssignmentTable[Forecast ID],Forecasts[[#This Row],[Forecast ID]],AssignmentTable[P95 weighted]),"") -> 7135.281343 | N53: =IF(Forecasts[[#This Row],[Type]]="Binary",SUMIF(AssignmentTable[Forecast ID],Forecasts[[#This Row],[Forecast ID]],AssignmentTable[Probability of Occurance Weighted]),"") ->  | O53: =IF(ISBLANK(Forecasts[[#This Row],[Outcome]]), "", IF(Forecasts[[#This Row],[Outcome]]<Forecasts[[#This Row],[Aggregate SME forcast LB]], 1, IF(Forecasts[[#This Row],[Outcome]]<Forecasts[[#This Row],[Aggregate SME UB forcast]], 2,3))) -> 2
A54: =10000+ROW(Forecasts[#This Row])-3 -> 10051 | B54: The USS Enterprise was an active US nuclear-powered aircraft carrier in 2009. | C54: Binary | D54: Yes | F54: 1 | H54: =IF(Forecasts[[#This Row],[Type]]="Range", MAX(Forecasts[[#This Row],[Outcome]], _xlfn.MAXIFS(AssignmentTable[P95], AssignmentTable[Forecast ID], Forecasts[[#This Row],[Forecast ID]])), "") ->  | I54: =IF(Forecasts[[#This Row],[Type]]="Range", MIN(Forecasts[[#This Row],[Outcome]], _xlfn.MINIFS(AssignmentTable[P5], AssignmentTable[Forecast ID], Forecasts[[#This Row],[Forecast ID]])), "") ->  | J54: =IF(Forecasts[[#This Row],[Type]]="Range", Forecasts[[#This Row],[Max]]+0.01*(Forecasts[[#This Row],[Max]]-Forecasts[[#This Row],[Min]]), "") ->  | K54: =IF(Forecasts[[#This Row],[Type]]="Range", Forecasts[[#This Row],[Min]]-0.01*(Forecasts[[#This Row],[Max]]-Forecasts[[#This Row],[Min]]), "") ->  | L54: =IF(Forecasts[[#This Row],[Type]]="Range",SUMIF(AssignmentTable[Forecast ID],Forecasts[[#This Row],[Forecast ID]],AssignmentTable[P5 weighted]),"") ->  | M54: =IF(Forecasts[[#This Row],[Type]]="Range",SUMIF(AssignmentTable[Forecast ID],Forecasts[[#This Row],[Forecast ID]],AssignmentTable[P95 weighted]),"") ->  | N54: =IF(Forecasts[[#This Row],[Type]]="Binary",SUMIF(AssignmentTable[Forecast ID],Forecasts[[#This Row],[Forecast ID]],AssignmentTable[Probability of Occurance Weighted]),"") -> 0.5999259822 | O54: =IF(ISBLANK(Forecasts[[#This Row],[Outcome]]), "", IF(Forecasts[[#This Row],[Outcome]]<Forecasts[[#This Row],[Aggregate SME forcast LB]], 1, IF(Forecasts[[#This Row],[Outcome]]<Forecasts[[#This Row],[Aggregate SME UB forcast]], 2,3))) -> 1
A55: =10000+ROW(Forecasts[#This Row])-3 -> 10052 | B55: Prior to 2008, there were fewer than 30 times when the Dow Jones Industrial average fell more than 5% in a single day. | C55: Binary | D55: Yes | F55: 0 | H55: =IF(Forecasts[[#This Row],[Type]]="Range", MAX(Forecasts[[#This Row],[Outcome]], _xlfn.MAXIFS(AssignmentTable[P95], AssignmentTable[Forecast ID], Forecasts[[#This Row],[Forecast ID]])), "") ->  | I55: =IF(Forecasts[[#This Row],[Type]]="Range", MIN(Forecasts[[#This Row],[Outcome]], _xlfn.MINIFS(AssignmentTable[P5], AssignmentTable[Forecast ID], Forecasts[[#This Row],[Forecast ID]])), "") ->  | J55: =IF(Forecasts[[#This Row],[Type]]="Range", Forecasts[[#This Row],[Max]]+0.01*(Forecasts[[#This Row],[Max]]-Forecasts[[#This Row],[Min]]), "") ->  | K55: =IF(Forecasts[[#This Row],[Type]]="Range", Forecasts[[#This Row],[Min]]-0.01*(Forecasts[[#This Row],[Max]]-Forecasts[[#This Row],[Min]]), "") ->  | L55: =IF(Forecasts[[#This Row],[Type]]="Range",SUMIF(AssignmentTable[Forecast ID],Forecasts[[#This Row],[Forecast ID]],AssignmentTable[P5 weighted]),"") ->  | M55: =IF(Forecasts[[#This Row],[Type]]="Range",SUMIF(AssignmentTable[Forecast ID],Forecasts[[#This Row],[Forecast ID]],AssignmentTable[P95 weighted]),"") ->  | N55: =IF(Forecasts[[#This Row],[Type]]="Binary",SUMIF(AssignmentTable[Forecast ID],Forecasts[[#This Row],[Forecast ID]],AssignmentTable[Probability of Occurance Weighted]),"") -> 0.5 | O55: =IF(ISBLANK(Forecasts[[#This Row],[Outcome]]), "", IF(Forecasts[[#This Row],[Outcome]]<Forecasts[[#This Row],[Aggregate SME forcast LB]], 1, IF(Forecasts[[#This Row],[Outcome]]<Forecasts[[#This Row],[Aggregate SME UB forcast]], 2,3))) -> 1
A56: =10000+ROW(Forecasts[#This Row])-3 -> 10053 | B56: The capital of Wisconsin is Madison. | C56: Binary | D56: Yes | F56: 1 | H56: =IF(Forecasts[[#This Row],[Type]]="Range", MAX(Forecasts[[#This Row],[Outcome]], _xlfn.MAXIFS(AssignmentTable[P95], AssignmentTable[Forecast ID], Forecasts[[#This Row],[Forecast ID]])), "") ->  | I56: =IF(Forecasts[[#This Row],[Type]]="Range", MIN(Forecasts[[#This Row],[Outcome]], _xlfn.MINIFS(AssignmentTable[P5], AssignmentTable[Forecast ID], Forecasts[[#This Row],[Forecast ID]])), "") ->  | J56: =IF(Forecasts[[#This Row],[Type]]="Range", Forecasts[[#This Row],[Max]]+0.01*(Forecasts[[#This Row],[Max]]-Forecasts[[#This Row],[Min]]), "") ->  | K56: =IF(Forecasts[[#This Row],[Type]]="Range", Forecasts[[#This Row],[Min]]-0.01*(Forecasts[[#This Row],[Max]]-Forecasts[[#This Row],[Min]]), "") ->  | L56: =IF(Forecasts[[#This Row],[Type]]="Range",SUMIF(AssignmentTable[Forecast ID],Forecasts[[#This Row],[Forecast ID]],AssignmentTable[P5 weighted]),"") ->  | M56: =IF(Forecasts[[#This Row],[Type]]="Range",SUMIF(AssignmentTable[Forecast ID],Forecasts[[#This Row],[Forecast ID]],AssignmentTable[P95 weighted]),"") ->  | N56: =IF(Forecasts[[#This Row],[Type]]="Binary",SUMIF(AssignmentTable[Forecast ID],Forecasts[[#This Row],[Forecast ID]],AssignmentTable[Probability of Occurance Weighted]),"") -> 0.4999259824 | O56: =IF(ISBLANK(Forecasts[[#This Row],[Outcome]]), "", IF(Forecasts[[#This Row],[Outcome]]<Forecasts[[#This Row],[Aggregate SME forcast LB]], 1, IF(Forecasts[[#This Row],[Outcome]]<Forecasts[[#This Row],[Aggregate SME UB forcast]], 2,3))) -> 1
A57: =10000+ROW(Forecasts[#This Row])-3 -> 10054 | B57: Germany is more populous than Mexico. | C57: Binary | D57: Yes | F57: 0 | H57: =IF(Forecasts[[#This Row],[Type]]="Range", MAX(Forecasts[[#This Row],[Outcome]], _xlfn.MAXIFS(AssignmentTable[P95], AssignmentTable[Forecast ID], Forecasts[[#This Row],[Forecast ID]])), "") ->  | I57: =IF(Forecasts[[#This Row],[Type]]="Range", MIN(Forecasts[[#This Row],[Outcome]], _xlfn.MINIFS(AssignmentTable[P5], AssignmentTable[Forecast ID], Forecasts[[#This Row],[Forecast ID]])), "") ->  | J57: =IF(Forecasts[[#This Row],[Type]]="Range", Forecasts[[#This Row],[Max]]+0.01*(Forecasts[[#This Row],[Max]]-Forecasts[[#This Row],[Min]]), "") ->  | K57: =IF(Forecasts[[#This Row],[Type]]="Range", Forecasts[[#This Row],[Min]]-0.01*(Forecasts[[#This Row],[Max]]-Forecasts[[#This Row],[Min]]), "") ->  | L57: =IF(Forecasts[[#This Row],[Type]]="Range",SUMIF(AssignmentTable[Forecast ID],Forecasts[[#This Row],[Forecast ID]],AssignmentTable[P5 weighted]),"") ->  | M57: =IF(Forecasts[[#This Row],[Type]]="Range",SUMIF(AssignmentTable[Forecast ID],Forecasts[[#This Row],[Forecast ID]],AssignmentTable[P95 weighted]),"") ->  | N57: =IF(Forecasts[[#This Row],[Type]]="Binary",SUMIF(AssignmentTable[Forecast ID],Forecasts[[#This Row],[Forecast ID]],AssignmentTable[Probability of Occurance Weighted]),"") -> 0.3886154517 | O57: =IF(ISBLANK(Forecasts[[#This Row],[Outcome]]), "", IF(Forecasts[[#This Row],[Outcome]]<Forecasts[[#This Row],[Aggregate SME forcast LB]], 1, IF(Forecasts[[#This Row],[Outcome]]<Forecasts[[#This Row],[Aggregate SME UB forcast]], 2,3))) -> 1
A58: =10000+ROW(Forecasts[#This Row])-3 -> 10055 | B58: There are more electrical engineers in the US than actuaries. | C58: Binary | D58: Yes | F58: 1 | H58: =IF(Forecasts[[#This Row],[Type]]="Range", MAX(Forecasts[[#This Row],[Outcome]], _xlfn.MAXIFS(AssignmentTable[P95], AssignmentTable[Forecast ID], Forecasts[[#This Row],[Forecast ID]])), "") ->  | I58: =IF(Forecasts[[#This Row],[Type]]="Range", MIN(Forecasts[[#This Row],[Outcome]], _xlfn.MINIFS(AssignmentTable[P5], AssignmentTable[Forecast ID], Forecasts[[#This Row],[Forecast ID]])), "") ->  | J58: =IF(Forecasts[[#This Row],[Type]]="Range", Forecasts[[#This Row],[Max]]+0.01*(Forecasts[[#This Row],[Max]]-Forecasts[[#This Row],[Min]]), "") ->  | K58: =IF(Forecasts[[#This Row],[Type]]="Range", Forecasts[[#This Row],[Min]]-0.01*(Forecasts[[#This Row],[Max]]-Forecasts[[#This Row],[Min]]), "") ->  | L58: =IF(Forecasts[[#This Row],[Type]]="Range",SUMIF(AssignmentTable[Forecast ID],Forecasts[[#This Row],[Forecast ID]],AssignmentTable[P5 weighted]),"") ->  | M58: =IF(Forecasts[[#This Row],[Type]]="Range",SUMIF(AssignmentTable[Forecast ID],Forecasts[[#This Row],[Forecast ID]],AssignmentTable[P95 weighted]),"") ->  | N58: =IF(Forecasts[[#This Row],[Type]]="Binary",SUMIF(AssignmentTable[Forecast ID],Forecasts[[#This Row],[Forecast ID]],AssignmentTable[Probability of Occurance Weighted]),"") -> 0.5884674163 | O58: =IF(ISBLANK(Forecasts[[#This Row],[Outcome]]), "", IF(Forecasts[[#This Row],[Outcome]]<Forecasts[[#This Row],[Aggregate SME forcast LB]], 1, IF(Forecasts[[#This Row],[Outcome]]<Forecasts[[#This Row],[Aggregate SME UB forcast]], 2,3))) -> 1
A59: =10000+ROW(Forecasts[#This Row])-3 -> 10056 | B59: Titan is a moon of Mars. | C59: Binary | D59: Yes | F59: 0 | H59: =IF(Forecasts[[#This Row],[Type]]="Range", MAX(Forecasts[[#This Row],[Outcome]], _xlfn.MAXIFS(AssignmentTable[P95], AssignmentTable[Forecast ID], Forecasts[[#This Row],[Forecast ID]])), "") ->  | I59: =IF(Forecasts[[#This Row],[Type]]="Range", MIN(Forecasts[[#This Row],[Outcome]], _xlfn.MINIFS(AssignmentTable[P5], AssignmentTable[Forecast ID], Forecasts[[#This Row],[Forecast ID]])), "") ->  | J59: =IF(Forecasts[[#This Row],[Type]]="Range", Forecasts[[#This Row],[Max]]+0.01*(Forecasts[[#This Row],[Max]]-Forecasts[[#This Row],[Min]]), "") ->  | K59: =IF(Forecasts[[#This Row],[Type]]="Range", Forecasts[[#This Row],[Min]]-0.01*(Forecasts[[#This Row],[Max]]-Forecasts[[#This Row],[Min]]), "") ->  | L59: =IF(Forecasts[[#This Row],[Type]]="Range",SUMIF(AssignmentTable[Forecast ID],Forecasts[[#This Row],[Forecast ID]],AssignmentTable[P5 weighted]),"") ->  | M59: =IF(Forecasts[[#This Row],[Type]]="Range",SUMIF(AssignmentTable[Forecast ID],Forecasts[[#This Row],[Forecast ID]],AssignmentTable[P95 weighted]),"") ->  | N59: =IF(Forecasts[[#This Row],[Type]]="Binary",SUMIF(AssignmentTable[Forecast ID],Forecasts[[#This Row],[Forecast ID]],AssignmentTable[Probability of Occurance Weighted]),"") -> 0.6769348324 | O59: =IF(ISBLANK(Forecasts[[#This Row],[Outcome]]), "", IF(Forecasts[[#This Row],[Outcome]]<Forecasts[[#This Row],[Aggregate SME forcast LB]], 1, IF(Forecasts[[#This Row],[Outcome]]<Forecasts[[#This Row],[Aggregate SME UB forcast]], 2,3))) -> 1
A60: =10000+ROW(Forecasts[#This Row])-3 -> 10057 | B60: The first passenger carrying hot-air balloon was heated with natural gas. | C60: Binary | D60: Yes | F60: 0 | H60: =IF(Forecasts[[#This Row],[Type]]="Range", MAX(Forecasts[[#This Row],[Outcome]], _xlfn.MAXIFS(AssignmentTable[P95], AssignmentTable[Forecast ID], Forecasts[[#This Row],[Forecast ID]])), "") ->  | I60: =IF(Forecasts[[#This Row],[Type]]="Range", MIN(Forecasts[[#This Row],[Outcome]], _xlfn.MINIFS(AssignmentTable[P5], AssignmentTable[Forecast ID], Forecasts[[#This Row],[Forecast ID]])), "") ->  | J60: =IF(Forecasts[[#This Row],[Type]]="Range", Forecasts[[#This Row],[Max]]+0.01*(Forecasts[[#This Row],[Max]]-Forecasts[[#This Row],[Min]]), "") ->  | K60: =IF(Forecasts[[#This Row],[Type]]="Range", Forecasts[[#This Row],[Min]]-0.01*(Forecasts[[#This Row],[Max]]-Forecasts[[#This Row],[Min]]), "") ->  | L60: =IF(Forecasts[[#This Row],[Type]]="Range",SUMIF(AssignmentTable[Forecast ID],Forecasts[[#This Row],[Forecast ID]],AssignmentTable[P5 weighted]),"") ->  | M60: =IF(Forecasts[[#This Row],[Type]]="Range",SUMIF(AssignmentTable[Forecast ID],Forecasts[[#This Row],[Forecast ID]],AssignmentTable[P95 weighted]),"") ->  | N60: =IF(Forecasts[[#This Row],[Type]]="Binary",SUMIF(AssignmentTable[Forecast ID],Forecasts[[#This Row],[Forecast ID]],AssignmentTable[Probability of Occurance Weighted]),"") -> 0.5114585658 | O60: =IF(ISBLANK(Forecasts[[#This Row],[Outcome]]), "", IF(Forecasts[[#This Row],[Outcome]]<Forecasts[[#This Row],[Aggregate SME forcast LB]], 1, IF(Forecasts[[#This Row],[Outcome]]<Forecasts[[#This Row],[Aggregate SME UB forcast]], 2,3))) -> 1
A61: =10000+ROW(Forecasts[#This Row])-3 -> 10058 | B61: There were more Medal of Honor winners in the Civil War than any other war in US history. | C61: Binary | D61: Yes | F61: 1 | H61: =IF(Forecasts[[#This Row],[Type]]="Range", MAX(Forecasts[[#This Row],[Outcome]], _xlfn.MAXIFS(AssignmentTable[P95], AssignmentTable[Forecast ID], Forecasts[[#This Row],[Forecast ID]])), "") ->  | I61: =IF(Forecasts[[#This Row],[Type]]="Range", MIN(Forecasts[[#This Row],[Outcome]], _xlfn.MINIFS(AssignmentTable[P5], AssignmentTable[Forecast ID], Forecasts[[#This Row],[Forecast ID]])), "") ->  | J61: =IF(Forecasts[[#This Row],[Type]]="Range", Forecasts[[#This Row],[Max]]+0.01*(Forecasts[[#This Row],[Max]]-Forecasts[[#This Row],[Min]]), "") ->  | K61: =IF(Forecasts[[#This Row],[Type]]="Range", Forecasts[[#This Row],[Min]]-0.01*(Forecasts[[#This Row],[Max]]-Forecasts[[#This Row],[Min]]), "") ->  | L61: =IF(Forecasts[[#This Row],[Type]]="Range",SUMIF(AssignmentTable[Forecast ID],Forecasts[[#This Row],[Forecast ID]],AssignmentTable[P5 weighted]),"") ->  | M61: =IF(Forecasts[[#This Row],[Type]]="Range",SUMIF(AssignmentTable[Forecast ID],Forecasts[[#This Row],[Forecast ID]],AssignmentTable[P95 weighted]),"") ->  | N61: =IF(Forecasts[[#This Row],[Type]]="Binary",SUMIF(AssignmentTable[Forecast ID],Forecasts[[#This Row],[Forecast ID]],AssignmentTable[Probability of Occurance Weighted]),"") -> 0.5 | O61: =IF(ISBLANK(Forecasts[[#This Row],[Outcome]]), "", IF(Forecasts[[#This Row],[Outcome]]<Forecasts[[#This Row],[Aggregate SME forcast LB]], 1, IF(Forecasts[[#This Row],[Outcome]]<Forecasts[[#This Row],[Aggregate SME UB forcast]], 2,3))) -> 1
A62: =10000+ROW(Forecasts[#This Row])-3 -> 10059 | B62: Aluminum is the lightest metal. | C62: Binary | D62: Yes | F62: 0 | H62: =IF(Forecasts[[#This Row],[Type]]="Range", MAX(Forecasts[[#This Row],[Outcome]], _xlfn.MAXIFS(AssignmentTable[P95], AssignmentTable[Forecast ID], Forecasts[[#This Row],[Forecast ID]])), "") ->  | I62: =IF(Forecasts[[#This Row],[Type]]="Range", MIN(Forecasts[[#This Row],[Outcome]], _xlfn.MINIFS(AssignmentTable[P5], AssignmentTable[Forecast ID], Forecasts[[#This Row],[Forecast ID]])), "") ->  | J62: =IF(Forecasts[[#This Row],[Type]]="Range", Forecasts[[#This Row],[Max]]+0.01*(Forecasts[[#This Row],[Max]]-Forecasts[[#This Row],[Min]]), "") ->  | K62: =IF(Forecasts[[#This Row],[Type]]="Range", Forecasts[[#This Row],[Min]]-0.01*(Forecasts[[#This Row],[Max]]-Forecasts[[#This Row],[Min]]), "") ->  | L62: =IF(Forecasts[[#This Row],[Type]]="Range",SUMIF(AssignmentTable[Forecast ID],Forecasts[[#This Row],[Forecast ID]],AssignmentTable[P5 weighted]),"") ->  | M62: =IF(Forecasts[[#This Row],[Type]]="Range",SUMIF(AssignmentTable[Forecast ID],Forecasts[[#This Row],[Forecast ID]],AssignmentTable[P95 weighted]),"") ->  | N62: =IF(Forecasts[[#This Row],[Type]]="Binary",SUMIF(AssignmentTable[Forecast ID],Forecasts[[#This Row],[Forecast ID]],AssignmentTable[Probability of Occurance Weighted]),"") -> 0.7883933982 | O62: =IF(ISBLANK(Forecasts[[#This Row],[Outcome]]), "", IF(Forecasts[[#This Row],[Outcome]]<Forecasts[[#This Row],[Aggregate SME forcast LB]], 1, IF(Forecasts[[#This Row],[Outcome]]<Forecasts[[#This Row],[Aggregate SME UB forcast]], 2,3))) -> 1
A63: =10000+ROW(Forecasts[#This Row])-3 -> 10060 | B63: O’Hare International Airport is no longer the world’s busiest airport. | C63: Binary | D63: Yes | F63: 1 | H63: =IF(Forecasts[[#This Row],[Type]]="Range", MAX(Forecasts[[#This Row],[Outcome]], _xlfn.MAXIFS(AssignmentTable[P95], AssignmentTable[Forecast ID], Forecasts[[#This Row],[Forecast ID]])), "") ->  | I63: =IF(Forecasts[[#This Row],[Type]]="Range", MIN(Forecasts[[#This Row],[Outcome]], _xlfn.MINIFS(AssignmentTable[P5], AssignmentTable[Forecast ID], Forecasts[[#This Row],[Forecast ID]])), "") ->  | J63: =IF(Forecasts[[#This Row],[Type]]="Range", Forecasts[[#This Row],[Max]]+0.01*(Forecasts[[#This Row],[Max]]-Forecasts[[#This Row],[Min]]), "") ->  | K63: =IF(Forecasts[[#This Row],[Type]]="Range", Forecasts[[#This Row],[Min]]-0.01*(Forecasts[[#This Row],[Max]]-Forecasts[[#This Row],[Min]]), "") ->  | L63: =IF(Forecasts[[#This Row],[Type]]="Range",SUMIF(AssignmentTable[Forecast ID],Forecasts[[#This Row],[Forecast ID]],AssignmentTable[P5 weighted]),"") ->  | M63: =IF(Forecasts[[#This Row],[Type]]="Range",SUMIF(AssignmentTable[Forecast ID],Forecasts[[#This Row],[Forecast ID]],AssignmentTable[P95 weighted]),"") ->  | N63: =IF(Forecasts[[#This Row],[Type]]="Binary",SUMIF(AssignmentTable[Forecast ID],Forecasts[[#This Row],[Forecast ID]],AssignmentTable[Probability of Occurance Weighted]),"") -> 0.6113845482 | O63: =IF(ISBLANK(Forecasts[[#This Row],[Outcome]]), "", IF(Forecasts[[#This Row],[Outcome]]<Forecasts[[#This Row],[Aggregate SME forcast LB]], 1, IF(Forecasts[[#This Row],[Outcome]]<Forecasts[[#This Row],[Aggregate SME UB forcast]], 2,3))) -> 1
A64: =10000+ROW(Forecasts[#This Row])-3 -> 10061 | B64: How many feet tall is Hoover Dam? | C64: Range | D64: Yes | F64: 738 | H64: =IF(Forecasts[[#This Row],[Type]]="Range", MAX(Forecasts[[#This Row],[Outcome]], _xlfn.MAXIFS(AssignmentTable[P95], AssignmentTable[Forecast ID], Forecasts[[#This Row],[Forecast ID]])), "") -> 738 | I64: =IF(Forecasts[[#This Row],[Type]]="Range", MIN(Forecasts[[#This Row],[Outcome]], _xlfn.MINIFS(AssignmentTable[P5], AssignmentTable[Forecast ID], Forecasts[[#This Row],[Forecast ID]])), "") -> 0 | J64: =IF(Forecasts[[#This Row],[Type]]="Range", Forecasts[[#This Row],[Max]]+0.01*(Forecasts[[#This Row],[Max]]-Forecasts[[#This Row],[Min]]), "") -> 745.38 | K64: =IF(Forecasts[[#This Row],[Type]]="Range", Forecasts[[#This Row],[Min]]-0.01*(Forecasts[[#This Row],[Max]]-Forecasts[[#This Row],[Min]]), "") -> -7.38
A65: =10000+ROW(Forecasts[#This Row])-3 -> 10062 | B65: How many inches long is a 20 dollar bill? | C65: Range | D65: Yes | F65: 6.1875 | H65: =IF(Forecasts[[#This Row],[Type]]="Range", MAX(Forecasts[[#This Row],[Outcome]], _xlfn.MAXIFS(AssignmentTable[P95], AssignmentTable[Forecast ID], Forecasts[[#This Row],[Forecast ID]])), "") -> 6.1875 | I65: =IF(Forecasts[[#This Row],[Type]]="Range", MIN(Forecasts[[#This Row],[Outcome]], _xlfn.MINIFS(AssignmentTable[P5], AssignmentTable[Forecast ID], Forecasts[[#This Row],[Forecast ID]])), "") -> 0 | J65: =IF(Forecasts[[#This Row],[Type]]="Range", Forecasts[[#This Row],[Max]]+0.01*(Forecasts[[#This Row],[Max]]-Forecasts[[#This Row],[Min]]), "") -> 6.249375 | K65: =IF(Forecasts[[#This Row],[Type]]="Range", Forecasts[[#This Row],[Min]]-0.01*(Forecasts[[#This Row],[Max]]-Forecasts[[#This Row],[Min]]), "") -> -0.061875
A66: =10000+ROW(Forecasts[#This Row])-3 -> 10063 | B66: What percentage of alumninum is recycled in the US? | C66: Range | D66: Yes | F66: 0.45 | H66: =IF(Forecasts[[#This Row],[Type]]="Range", MAX(Forecasts[[#This Row],[Outcome]], _xlfn.MAXIFS(AssignmentTable[P95], AssignmentTable[Forecast ID], Forecasts[[#This Row],[Forecast ID]])), "") -> 0.45 | I66: =IF(Forecasts[[#This Row],[Type]]="Range", MIN(Forecasts[[#This Row],[Outcome]], _xlfn.MINIFS(AssignmentTable[P5], AssignmentTable[Forecast ID], Forecasts[[#This Row],[Forecast ID]])), "") -> 0 | J66: =IF(Forecasts[[#This Row],[Type]]="Range", Forecasts[[#This Row],[Max]]+0.01*(Forecasts[[#This Row],[Max]]-Forecasts[[#This Row],[Min]]), "") -> 0.4545 | K66: =IF(Forecasts[[#This Row],[Type]]="Range", Forecasts[[#This Row],[Min]]-0.01*(Forecasts[[#This Row],[Max]]-Forecasts[[#This Row],[Min]]), "") -> -0.0045
A67: =10000+ROW(Forecasts[#This Row])-3 -> 10064 | B67: What year was Elvis Presley born? | C67: Range | D67: Yes | F67: 1935 | H67: =IF(Forecasts[[#This Row],[Type]]="Range", MAX(Forecasts[[#This Row],[Outcome]], _xlfn.MAXIFS(AssignmentTable[P95], AssignmentTable[Forecast ID], Forecasts[[#This Row],[Forecast ID]])), "") -> 1935 | I67: =IF(Forecasts[[#This Row],[Type]]="Range", MIN(Forecasts[[#This Row],[Outcome]], _xlfn.MINIFS(AssignmentTable[P5], AssignmentTable[Forecast ID], Forecasts[[#This Row],[Forecast ID]])), "") -> 0 | J67: =IF(Forecasts[[#This Row],[Type]]="Range", Forecasts[[#This Row],[Max]]+0.01*(Forecasts[[#This Row],[Max]]-Forecasts[[#This Row],[Min]]), "") -> 1954.35 | K67: =IF(Forecasts[[#This Row],[Type]]="Range", Forecasts[[#This Row],[Min]]-0.01*(Forecasts[[#This Row],[Max]]-Forecasts[[#This Row],[Min]]), "") -> -19.35
A68: =10000+ROW(Forecasts[#This Row])-3 -> 10065 | B68: What percentage of the atmosphere is oxygen by volume? | C68: Range | D68: Yes | F68: 0.21 | H68: =IF(Forecasts[[#This Row],[Type]]="Range", MAX(Forecasts[[#This Row],[Outcome]], _xlfn.MAXIFS(AssignmentTable[P95], AssignmentTable[Forecast ID], Forecasts[[#This Row],[Forecast ID]])), "") -> 0.21 | I68: =IF(Forecasts[[#This Row],[Type]]="Range", MIN(Forecasts[[#This Row],[Outcome]], _xlfn.MINIFS(AssignmentTable[P5], AssignmentTable[Forecast ID], Forecasts[[#This Row],[Forecast ID]])), "") -> 0 | J68: =IF(Forecasts[[#This Row],[Type]]="Range", Forecasts[[#This Row],[Max]]+0.01*(Forecasts[[#This Row],[Max]]-Forecasts[[#This Row],[Min]]), "") -> 0.2121 | K68: =IF(Forecasts[[#This Row],[Type]]="Range", Forecasts[[#This Row],[Min]]-0.01*(Forecasts[[#This Row],[Max]]-Forecasts[[#This Row],[Min]]), "") -> -0.0021
A69: =10000+ROW(Forecasts[#This Row])-3 -> 10066 | B69: What is the latitude of New Orleans? Hint: Latitude is 0° at the equator and 90° at the North Pole. | C69: Range | D69: Yes | F69: 31 | H69: =IF(Forecasts[[#This Row],[Type]]="Range", MAX(Forecasts[[#This Row],[Outcome]], _xlfn.MAXIFS(AssignmentTable[P95], AssignmentTable[Forecast ID], Forecasts[[#This Row],[Forecast ID]])), "") -> 31 | I69: =IF(Forecasts[[#This Row],[Type]]="Range", MIN(Forecasts[[#This Row],[Outcome]], _xlfn.MINIFS(AssignmentTable[P5], AssignmentTable[Forecast ID], Forecasts[[#This Row],[Forecast ID]])), "") -> 0 | J69: =IF(Forecasts[[#This Row],[Type]]="Range", Forecasts[[#This Row],[Max]]+0.01*(Forecasts[[#This Row],[Max]]-Forecasts[[#This Row],[Min]]), "") -> 31.31 | K69: =IF(Forecasts[[#This Row],[Type]]="Range", Forecasts[[#This Row],[Min]]-0.01*(Forecasts[[#This Row],[Max]]-Forecasts[[#This Row],[Min]]), "") -> -0.31
A70: =10000+ROW(Forecasts[#This Row])-3 -> 10067 | B70: In 1913, the US military owned how many airplanes? | C70: Range | D70: Yes | F70: 23 | H70: =IF(Forecasts[[#This Row],[Type]]="Range", MAX(Forecasts[[#This Row],[Outcome]], _xlfn.MAXIFS(AssignmentTable[P95], AssignmentTable[Forecast ID], Forecasts[[#This Row],[Forecast ID]])), "") -> 23 | I70: =IF(Forecasts[[#This Row],[Type]]="Range", MIN(Forecasts[[#This Row],[Outcome]], _xlfn.MINIFS(AssignmentTable[P5], AssignmentTable[Forecast ID], Forecasts[[#This Row],[Forecast ID]])), "") -> 0 | J70: =IF(Forecasts[[#This Row],[Type]]="Range", Forecasts[[#This Row],[Max]]+0.01*(Forecasts[[#This Row],[Max]]-Forecasts[[#This Row],[Min]]), "") -> 23.23 | K70: =IF(Forecasts[[#This Row],[Type]]="Range", Forecasts[[#This Row],[Min]]-0.01*(Forecasts[[#This Row],[Max]]-Forecasts[[#This Row],[Min]]), "") -> -0.23
A71: =10000+ROW(Forecasts[#This Row])-3 -> 10068 | B71: The first European printing press was invented in what year? | C71: Range | D71: Yes | F71: 1450 | H71: =IF(Forecasts[[#This Row],[Type]]="Range", MAX(Forecasts[[#This Row],[Outcome]], _xlfn.MAXIFS(AssignmentTable[P95], AssignmentTable[Forecast ID], Forecasts[[#This Row],[Forecast ID]])), "") -> 1450 | I71: =IF(Forecasts[[#This Row],[Type]]="Range", MIN(Forecasts[[#This Row],[Outcome]], _xlfn.MINIFS(AssignmentTable[P5], AssignmentTable[Forecast ID], Forecasts[[#This Row],[Forecast ID]])), "") -> 0 | J71: =IF(Forecasts[[#This Row],[Type]]="Range", Forecasts[[#This Row],[Max]]+0.01*(Forecasts[[#This Row],[Max]]-Forecasts[[#This Row],[Min]]), "") -> 1464.5 | K71: =IF(Forecasts[[#This Row],[Type]]="Range", Forecasts[[#This Row],[Min]]-0.01*(Forecasts[[#This Row],[Max]]-Forecasts[[#This Row],[Min]]), "") -> -14.5
A72: =10000+ROW(Forecasts[#This Row])-3 -> 10069 | B72: What percentage of all electricity consumed in US households was used by kitchen appliances in 2001? | C72: Range | D72: Yes | F72: 0.267 | H72: =IF(Forecasts[[#This Row],[Type]]="Range", MAX(Forecasts[[#This Row],[Outcome]], _xlfn.MAXIFS(AssignmentTable[P95], AssignmentTable[Forecast ID], Forecasts[[#This Row],[Forecast ID]])), "") -> 0.267 | I72: =IF(Forecasts[[#This Row],[Type]]="Range", MIN(Forecasts[[#This Row],[Outcome]], _xlfn.MINIFS(AssignmentTable[P5], AssignmentTable[Forecast ID], Forecasts[[#This Row],[Forecast ID]])), "") -> 0 | J72: =IF(Forecasts[[#This Row],[Type]]="Range", Forecasts[[#This Row],[Max]]+0.01*(Forecasts[[#This Row],[Max]]-Forecasts[[#This Row],[Min]]), "") -> 0.26967 | K72: =IF(Forecasts[[#This Row],[Type]]="Range", Forecasts[[#This Row],[Min]]-0.01*(Forecasts[[#This Row],[Max]]-Forecasts[[#This Row],[Min]]), "") -> -0.00267
A73: =10000+ROW(Forecasts[#This Row])-3 -> 10070 | B73: The peak of Mt. Everest is how many miles above sea level? | C73: Range | D73: Yes | F73: 5.5 | H73: =IF(Forecasts[[#This Row],[Type]]="Range", MAX(Forecasts[[#This Row],[Outcome]], _xlfn.MAXIFS(AssignmentTable[P95], AssignmentTable[Forecast ID], Forecasts[[#This Row],[Forecast ID]])), "") -> 5.5 | I73: =IF(Forecasts[[#This Row],[Type]]="Range", MIN(Forecasts[[#This Row],[Outcome]], _xlfn.MINIFS(AssignmentTable[P5], AssignmentTable[Forecast ID], Forecasts[[#This Row],[Forecast ID]])), "") -> 0 | J73: =IF(Forecasts[[#This Row],[Type]]="Range", Forecasts[[#This Row],[Max]]+0.01*(Forecasts[[#This Row],[Max]]-Forecasts[[#This Row],[Min]]), "") -> 5.555 | K73: =IF(Forecasts[[#This Row],[Type]]="Range", Forecasts[[#This Row],[Min]]-0.01*(Forecasts[[#This Row],[Max]]-Forecasts[[#This Row],[Min]]), "") -> -0.055
A74: =10000+ROW(Forecasts[#This Row])-3 -> 10071 | B74: How long is Iraq's border with Iran (in km)? | C74: Range | D74: Yes | F74: 1458 | H74: =IF(Forecasts[[#This Row],[Type]]="Range", MAX(Forecasts[[#This Row],[Outcome]], _xlfn.MAXIFS(AssignmentTable[P95], AssignmentTable[Forecast ID], Forecasts[[#This Row],[Forecast ID]])), "") -> 1458 | I74: =IF(Forecasts[[#This Row],[Type]]="Range", MIN(Forecasts[[#This Row],[Outcome]], _xlfn.MINIFS(AssignmentTable[P5], AssignmentTable[Forecast ID], Forecasts[[#This Row],[Forecast ID]])), "") -> 0 | J74: =IF(Forecasts[[#This Row],[Type]]="Range", Forecasts[[#This Row],[Max]]+0.01*(Forecasts[[#This Row],[Max]]-Forecasts[[#This Row],[Min]]), "") -> 1472.58 | K74: =IF(Forecasts[[#This Row],[Type]]="Range", Forecasts[[#This Row],[Min]]-0.01*(Forecasts[[#This Row],[Max]]-Forecasts[[#This Row],[Min]]), "") -> -14.58
A75: =10000+ROW(Forecasts[#This Row])-3 -> 10072 | B75: How many miles long is the Nile River? | C75: Range | D75: Yes | F75: 4160 | H75: =IF(Forecasts[[#This Row],[Type]]="Range", MAX(Forecasts[[#This Row],[Outcome]], _xlfn.MAXIFS(AssignmentTable[P95], AssignmentTable[Forecast ID], Forecasts[[#This Row],[Forecast ID]])), "") -> 4160 | I75: =IF(Forecasts[[#This Row],[Type]]="Range", MIN(Forecasts[[#This Row],[Outcome]], _xlfn.MINIFS(AssignmentTable[P5], AssignmentTable[Forecast ID], Forecasts[[#This Row],[Forecast ID]])), "") -> 0 | J75: =IF(Forecasts[[#This Row],[Type]]="Range", Forecasts[[#This Row],[Max]]+0.01*(Forecasts[[#This Row],[Max]]-Forecasts[[#This Row],[Min]]), "") -> 4201.6 | K75: =IF(Forecasts[[#This Row],[Type]]="Range", Forecasts[[#This Row],[Min]]-0.01*(Forecasts[[#This Row],[Max]]-Forecasts[[#This Row],[Min]]), "") -> -41.6
A76: =10000+ROW(Forecasts[#This Row])-3 -> 10073 | B76: In what year was Harvard University founded? | C76: Range | D76: Yes | F76: 1636 | H76: =IF(Forecasts[[#This Row],[Type]]="Range", MAX(Forecasts[[#This Row],[Outcome]], _xlfn.MAXIFS(AssignmentTable[P95], AssignmentTable[Forecast ID], Forecasts[[#This Row],[Forecast ID]])), "") -> 1636 | I76: =IF(Forecasts[[#This Row],[Type]]="Range", MIN(Forecasts[[#This Row],[Outcome]], _xlfn.MINIFS(AssignmentTable[P5], AssignmentTable[Forecast ID], Forecasts[[#This Row],[Forecast ID]])), "") -> 0 | J76: =IF(Forecasts[[#This Row],[Type]]="Range", Forecasts[[#This Row],[Max]]+0.01*(Forecasts[[#This Row],[Max]]-Forecasts[[#This Row],[Min]]), "") -> 1652.36 | K76: =IF(Forecasts[[#This Row],[Type]]="Range", Forecasts[[#This Row],[Min]]-0.01*(Forecasts[[#This Row],[Max]]-Forecasts[[#This Row],[Min]]), "") -> -16.36
A77: =10000+ROW(Forecasts[#This Row])-3 -> 10074 | B77: What is the wingspan (in feet) of a Boeing 747 jumbo jet? | C77: Range | D77: Yes | F77: 196 | H77: =IF(Forecasts[[#This Row],[Type]]="Range", MAX(Forecasts[[#This Row],[Outcome]], _xlfn.MAXIFS(AssignmentTable[P95], AssignmentTable[Forecast ID], Forecasts[[#This Row],[Forecast ID]])), "") -> 196 | I77: =IF(Forecasts[[#This Row],[Type]]="Range", MIN(Forecasts[[#This Row],[Outcome]], _xlfn.MINIFS(AssignmentTable[P5], AssignmentTable[Forecast ID], Forecasts[[#This Row],[Forecast ID]])), "") -> 0 | J77: =IF(Forecasts[[#This Row],[Type]]="Range", Forecasts[[#This Row],[Max]]+0.01*(Forecasts[[#This Row],[Max]]-Forecasts[[#This Row],[Min]]), "") -> 197.96 | K77: =IF(Forecasts[[#This Row],[Type]]="Range", Forecasts[[#This Row],[Min]]-0.01*(Forecasts[[#This Row],[Max]]-Forecasts[[#This Row],[Min]]), "") -> -1.96
A78: =10000+ROW(Forecasts[#This Row])-3 -> 10075 | B78: How many soldiers were in a Roman legion? | C78: Range | D78: Yes | F78: 6000 | H78: =IF(Forecasts[[#This Row],[Type]]="Range", MAX(Forecasts[[#This Row],[Outcome]], _xlfn.MAXIFS(AssignmentTable[P95], AssignmentTable[Forecast ID], Forecasts[[#This Row],[Forecast ID]])), "") -> 6000 | I78: =IF(Forecasts[[#This Row],[Type]]="Range", MIN(Forecasts[[#This Row],[Outcome]], _xlfn.MINIFS(AssignmentTable[P5], AssignmentTable[Forecast ID], Forecasts[[#This Row],[Forecast ID]])), "") -> 0 | J78: =IF(Forecasts[[#This Row],[Type]]="Range", Forecasts[[#This Row],[Max]]+0.01*(Forecasts[[#This Row],[Max]]-Forecasts[[#This Row],[Min]]), "") -> 6060 | K78: =IF(Forecasts[[#This Row],[Type]]="Range", Forecasts[[#This Row],[Min]]-0.01*(Forecasts[[#This Row],[Max]]-Forecasts[[#This Row],[Min]]), "") -> -60
A79: =10000+ROW(Forecasts[#This Row])-3 -> 10076 | B79: What is the average temperature of the abyssal zone (where the oceans are more than 6,500 feet deep) in °F? | C79: Range | D79: Yes | F79: 39 | H79: =IF(Forecasts[[#This Row],[Type]]="Range", MAX(Forecasts[[#This Row],[Outcome]], _xlfn.MAXIFS(AssignmentTable[P95], AssignmentTable[Forecast ID], Forecasts[[#This Row],[Forecast ID]])), "") -> 39 | I79: =IF(Forecasts[[#This Row],[Type]]="Range", MIN(Forecasts[[#This Row],[Outcome]], _xlfn.MINIFS(AssignmentTable[P5], AssignmentTable[Forecast ID], Forecasts[[#This Row],[Forecast ID]])), "") -> 0 | J79: =IF(Forecasts[[#This Row],[Type]]="Range", Forecasts[[#This Row],[Max]]+0.01*(Forecasts[[#This Row],[Max]]-Forecasts[[#This Row],[Min]]), "") -> 39.39 | K79: =IF(Forecasts[[#This Row],[Type]]="Range", Forecasts[[#This Row],[Min]]-0.01*(Forecasts[[#This Row],[Max]]-Forecasts[[#This Row],[Min]]), "") -> -0.39
A80: =10000+ROW(Forecasts[#This Row])-3 -> 10077 | B80: How many feet long is the Space Shuttle Orbiter (exluding the external tank)? | C80: Range | D80: Yes | F80: 122 | H80: =IF(Forecasts[[#This Row],[Type]]="Range", MAX(Forecasts[[#This Row],[Outcome]], _xlfn.MAXIFS(AssignmentTable[P95], AssignmentTable[Forecast ID], Forecasts[[#This Row],[Forecast ID]])), "") -> 122 | I80: =IF(Forecasts[[#This Row],[Type]]="Range", MIN(Forecasts[[#This Row],[Outcome]], _xlfn.MINIFS(AssignmentTable[P5], AssignmentTable[Forecast ID], Forecasts[[#This Row],[Forecast ID]])), "") -> 0 | J80: =IF(Forecasts[[#This Row],[Type]]="Range", Forecasts[[#This Row],[Max]]+0.01*(Forecasts[[#This Row],[Max]]-Forecasts[[#This Row],[Min]]), "") -> 123.22 | K80: =IF(Forecasts[[#This Row],[Type]]="Range", Forecasts[[#This Row],[Min]]-0.01*(Forecasts[[#This Row],[Max]]-Forecasts[[#This Row],[Min]]), "") -> -1.22
A81: =10000+ROW(Forecasts[#This Row])-3 -> 10078 | B81: What year did Jules Verne publish 20,000 Leagues Under the Sea? | C81: Range | D81: Yes | F81: 1870 | H81: =IF(Forecasts[[#This Row],[Type]]="Range", MAX(Forecasts[[#This Row],[Outcome]], _xlfn.MAXIFS(AssignmentTable[P95], AssignmentTable[Forecast ID], Forecasts[[#This Row],[Forecast ID]])), "") -> 1870 | I81: =IF(Forecasts[[#This Row],[Type]]="Range", MIN(Forecasts[[#This Row],[Outcome]], _xlfn.MINIFS(AssignmentTable[P5], AssignmentTable[Forecast ID], Forecasts[[#This Row],[Forecast ID]])), "") -> 0 | J81: =IF(Forecasts[[#This Row],[Type]]="Range", Forecasts[[#This Row],[Max]]+0.01*(Forecasts[[#This Row],[Max]]-Forecasts[[#This Row],[Min]]), "") -> 1888.7 | K81: =IF(Forecasts[[#This Row],[Type]]="Range", Forecasts[[#This Row],[Min]]-0.01*(Forecasts[[#This Row],[Max]]-Forecasts[[#This Row],[Min]]), "") -> -18.7
A82: =10000+ROW(Forecasts[#This Row])-3 -> 10079 | B82: How wide is the goal in field hockey (in feet)? | C82: Range | D82: Yes | F82: 12 | H82: =IF(Forecasts[[#This Row],[Type]]="Range", MAX(Forecasts[[#This Row],[Outcome]], _xlfn.MAXIFS(AssignmentTable[P95], AssignmentTable[Forecast ID], Forecasts[[#This Row],[Forecast ID]])), "") -> 12 | I82: =IF(Forecasts[[#This Row],[Type]]="Range", MIN(Forecasts[[#This Row],[Outcome]], _xlfn.MINIFS(AssignmentTable[P5], AssignmentTable[Forecast ID], Forecasts[[#This Row],[Forecast ID]])), "") -> 0 | J82: =IF(Forecasts[[#This Row],[Type]]="Range", Forecasts[[#This Row],[Max]]+0.01*(Forecasts[[#This Row],[Max]]-Forecasts[[#This Row],[Min]]), "") -> 12.12 | K82: =IF(Forecasts[[#This Row],[Type]]="Range", Forecasts[[#This Row],[Min]]-0.01*(Forecasts[[#This Row],[Max]]-Forecasts[[#This Row],[Min]]), "") -> -0.12
A83: =10000+ROW(Forecasts[#This Row])-3 -> 10080 | B83: The Roman Colosseum held how many spectators? | C83: Range | D83: Yes | F83: 50000 | H83: =IF(Forecasts[[#This Row],[Type]]="Range", MAX(Forecasts[[#This Row],[Outcome]], _xlfn.MAXIFS(AssignmentTable[P95], AssignmentTable[Forecast ID], Forecasts[[#This Row],[Forecast ID]])), "") -> 50000 | I83: =IF(Forecasts[[#This Row],[Type]]="Range", MIN(Forecasts[[#This Row],[Outcome]], _xlfn.MINIFS(AssignmentTable[P5], AssignmentTable[Forecast ID], Forecasts[[#This Row],[Forecast ID]])), "") -> 0 | J83: =IF(Forecasts[[#This Row],[Type]]="Range", Forecasts[[#This Row],[Max]]+0.01*(Forecasts[[#This Row],[Max]]-Forecasts[[#This Row],[Min]]), "") -> 50500 | K83: =IF(Forecasts[[#This Row],[Type]]="Range", Forecasts[[#This Row],[Min]]-0.01*(Forecasts[[#This Row],[Max]]-Forecasts[[#This Row],[Min]]), "") -> -500
A84: =10000+ROW(Forecasts[#This Row])-3 -> 10081 | B84: The first probe to land on Mars, Viking 1, landed there in what year? | C84: Range | D84: Yes | F84: 1976 | H84: =IF(Forecasts[[#This Row],[Type]]="Range", MAX(Forecasts[[#This Row],[Outcome]], _xlfn.MAXIFS(AssignmentTable[P95], AssignmentTable[Forecast ID], Forecasts[[#This Row],[Forecast ID]])), "") -> 1976 | I84: =IF(Forecasts[[#This Row],[Type]]="Range", MIN(Forecasts[[#This Row],[Outcome]], _xlfn.MINIFS(AssignmentTable[P5], AssignmentTable[Forecast ID], Forecasts[[#This Row],[Forecast ID]])), "") -> 0 | J84: =IF(Forecasts[[#This Row],[Type]]="Range", Forecasts[[#This Row],[Max]]+0.01*(Forecasts[[#This Row],[Max]]-Forecasts[[#This Row],[Min]]), "") -> 1995.76 | K84: =IF(Forecasts[[#This Row],[Type]]="Range", Forecasts[[#This Row],[Min]]-0.01*(Forecasts[[#This Row],[Max]]-Forecasts[[#This Row],[Min]]), "") -> -19.76
A85: =10000+ROW(Forecasts[#This Row])-3 -> 10082 | B85: How old was the youngest person to fly into space? | C85: Range | D85: Yes | F85: 26 | H85: =IF(Forecasts[[#This Row],[Type]]="Range", MAX(Forecasts[[#This Row],[Outcome]], _xlfn.MAXIFS(AssignmentTable[P95], AssignmentTable[Forecast ID], Forecasts[[#This Row],[Forecast ID]])), "") -> 26 | I85: =IF(Forecasts[[#This Row],[Type]]="Range", MIN(Forecasts[[#This Row],[Outcome]], _xlfn.MINIFS(AssignmentTable[P5], AssignmentTable[Forecast ID], Forecasts[[#This Row],[Forecast ID]])), "") -> 0 | J85: =IF(Forecasts[[#This Row],[Type]]="Range", Forecasts[[#This Row],[Max]]+0.01*(Forecasts[[#This Row],[Max]]-Forecasts[[#This Row],[Min]]), "") -> 26.26 | K85: =IF(Forecasts[[#This Row],[Type]]="Range", Forecasts[[#This Row],[Min]]-0.01*(Forecasts[[#This Row],[Max]]-Forecasts[[#This Row],[Min]]), "") -> -0.26
A86: =10000+ROW(Forecasts[#This Row])-3 -> 10083 | B86: How many meters tall is the Willis (formerly Sears) Tower in Chicago (excluding antenna)? | C86: Range | D86: Yes | F86: 443 | H86: =IF(Forecasts[[#This Row],[Type]]="Range", MAX(Forecasts[[#This Row],[Outcome]], _xlfn.MAXIFS(AssignmentTable[P95], AssignmentTable[Forecast ID], Forecasts[[#This Row],[Forecast ID]])), "") -> 443 | I86: =IF(Forecasts[[#This Row],[Type]]="Range", MIN(Forecasts[[#This Row],[Outcome]], _xlfn.MINIFS(AssignmentTable[P5], AssignmentTable[Forecast ID], Forecasts[[#This Row],[Forecast ID]])), "") -> 0 | J86: =IF(Forecasts[[#This Row],[Type]]="Range", Forecasts[[#This Row],[Max]]+0.01*(Forecasts[[#This Row],[Max]]-Forecasts[[#This Row],[Min]]), "") -> 447.43 | K86: =IF(Forecasts[[#This Row],[Type]]="Range", Forecasts[[#This Row],[Min]]-0.01*(Forecasts[[#This Row],[Max]]-Forecasts[[#This Row],[Min]]), "") -> -4.43
A87: =10000+ROW(Forecasts[#This Row])-3 -> 10084 | B87: What was the maximum altitude of the Breitling Orbiter 3, the first balloon to circumnavigate the globe, in miles? | C87: Range | D87: Yes | F87: 6.9 | H87: =IF(Forecasts[[#This Row],[Type]]="Range", MAX(Forecasts[[#This Row],[Outcome]], _xlfn.MAXIFS(AssignmentTable[P95], AssignmentTable[Forecast ID], Forecasts[[#This Row],[Forecast ID]])), "") -> 6.9 | I87: =IF(Forecasts[[#This Row],[Type]]="Range", MIN(Forecasts[[#This Row],[Outcome]], _xlfn.MINIFS(AssignmentTable[P5], AssignmentTable[Forecast ID], Forecasts[[#This Row],[Forecast ID]])), "") -> 0 | J87: =IF(Forecasts[[#This Row],[Type]]="Range", Forecasts[[#This Row],[Max]]+0.01*(Forecasts[[#This Row],[Max]]-Forecasts[[#This Row],[Min]]), "") -> 6.969 | K87: =IF(Forecasts[[#This Row],[Type]]="Range", Forecasts[[#This Row],[Min]]-0.01*(Forecasts[[#This Row],[Max]]-Forecasts[[#This Row],[Min]]), "") -> -0.069
A88: =10000+ROW(Forecasts[#This Row])-3 -> 10085 | B88: On average, what percentage of the total software development project effort is spent in design? | C88: Range | D88: Yes | F88: 0.2 | H88: =IF(Forecasts[[#This Row],[Type]]="Range", MAX(Forecasts[[#This Row],[Outcome]], _xlfn.MAXIFS(AssignmentTable[P95], AssignmentTable[Forecast ID], Forecasts[[#This Row],[Forecast ID]])), "") -> 0.2 | I88: =IF(Forecasts[[#This Row],[Type]]="Range", MIN(Forecasts[[#This Row],[Outcome]], _xlfn.MINIFS(AssignmentTable[P5], AssignmentTable[Forecast ID], Forecasts[[#This Row],[Forecast ID]])), "") -> 0 | J88: =IF(Forecasts[[#This Row],[Type]]="Range", Forecasts[[#This Row],[Max]]+0.01*(Forecasts[[#This Row],[Max]]-Forecasts[[#This Row],[Min]]), "") -> 0.202 | K88: =IF(Forecasts[[#This Row],[Type]]="Range", Forecasts[[#This Row],[Min]]-0.01*(Forecasts[[#This Row],[Max]]-Forecasts[[#This Row],[Min]]), "") -> -0.002
A89: =10000+ROW(Forecasts[#This Row])-3 -> 10086 | B89: How many people were permanently evacuated after the Chernobyl nuclear power plant accident? | C89: Range | D89: Yes | F89: 135000 | H89: =IF(Forecasts[[#This Row],[Type]]="Range", MAX(Forecasts[[#This Row],[Outcome]], _xlfn.MAXIFS(AssignmentTable[P95], AssignmentTable[Forecast ID], Forecasts[[#This Row],[Forecast ID]])), "") -> 135000 | I89: =IF(Forecasts[[#This Row],[Type]]="Range", MIN(Forecasts[[#This Row],[Outcome]], _xlfn.MINIFS(AssignmentTable[P5], AssignmentTable[Forecast ID], Forecasts[[#This Row],[Forecast ID]])), "") -> 0 | J89: =IF(Forecasts[[#This Row],[Type]]="Range", Forecasts[[#This Row],[Max]]+0.01*(Forecasts[[#This Row],[Max]]-Forecasts[[#This Row],[Min]]), "") -> 136350 | K89: =IF(Forecasts[[#This Row],[Type]]="Range", Forecasts[[#This Row],[Min]]-0.01*(Forecasts[[#This Row],[Max]]-Forecasts[[#This Row],[Min]]), "") -> -1350
A90: =10000+ROW(Forecasts[#This Row])-3 -> 10087 | B90: How many feet long were the largest airships? | C90: Range | D90: Yes | F90: 803 | H90: =IF(Forecasts[[#This Row],[Type]]="Range", MAX(Forecasts[[#This Row],[Outcome]], _xlfn.MAXIFS(AssignmentTable[P95], AssignmentTable[Forecast ID], Forecasts[[#This Row],[Forecast ID]])), "") -> 803 | I90: =IF(Forecasts[[#This Row],[Type]]="Range", MIN(Forecasts[[#This Row],[Outcome]], _xlfn.MINIFS(AssignmentTable[P5], AssignmentTable[Forecast ID], Forecasts[[#This Row],[Forecast ID]])), "") -> 0 | J90: =IF(Forecasts[[#This Row],[Type]]="Range", Forecasts[[#This Row],[Max]]+0.01*(Forecasts[[#This Row],[Max]]-Forecasts[[#This Row],[Min]]), "") -> 811.03 | K90: =IF(Forecasts[[#This Row],[Type]]="Range", Forecasts[[#This Row],[Min]]-0.01*(Forecasts[[#This Row],[Max]]-Forecasts[[#This Row],[Min]]), "") -> -8.03
A91: =10000+ROW(Forecasts[#This Row])-3 -> 10088 | B91: How many miles is the flying distance from San Francisco to Honolulu? | C91: Range | D91: Yes | F91: 2394 | H91: =IF(Forecasts[[#This Row],[Type]]="Range", MAX(Forecasts[[#This Row],[Outcome]], _xlfn.MAXIFS(AssignmentTable[P95], AssignmentTable[Forecast ID], Forecasts[[#This Row],[Forecast ID]])), "") -> 2394 | I91: =IF(Forecasts[[#This Row],[Type]]="Range", MIN(Forecasts[[#This Row],[Outcome]], _xlfn.MINIFS(AssignmentTable[P5], AssignmentTable[Forecast ID], Forecasts[[#This Row],[Forecast ID]])), "") -> 0 | J91: =IF(Forecasts[[#This Row],[Type]]="Range", Forecasts[[#This Row],[Max]]+0.01*(Forecasts[[#This Row],[Max]]-Forecasts[[#This Row],[Min]]), "") -> 2417.94 | K91: =IF(Forecasts[[#This Row],[Type]]="Range", Forecasts[[#This Row],[Min]]-0.01*(Forecasts[[#This Row],[Max]]-Forecasts[[#This Row],[Min]]), "") -> -23.94
A92: =10000+ROW(Forecasts[#This Row])-3 -> 10089 | B92: The fastest bird, the falcon, can fly at a speed of how many miles per hour in a dive? | C92: Range | D92: Yes | F92: 150 | H92: =IF(Forecasts[[#This Row],[Type]]="Range", MAX(Forecasts[[#This Row],[Outcome]], _xlfn.MAXIFS(AssignmentTable[P95], AssignmentTable[Forecast ID], Forecasts[[#This Row],[Forecast ID]])), "") -> 150 | I92: =IF(Forecasts[[#This Row],[Type]]="Range", MIN(Forecasts[[#This Row],[Outcome]], _xlfn.MINIFS(AssignmentTable[P5], AssignmentTable[Forecast ID], Forecasts[[#This Row],[Forecast ID]])), "") -> 0 | J92: =IF(Forecasts[[#This Row],[Type]]="Range", Forecasts[[#This Row],[Max]]+0.01*(Forecasts[[#This Row],[Max]]-Forecasts[[#This Row],[Min]]), "") -> 151.5 | K92: =IF(Forecasts[[#This Row],[Type]]="Range", Forecasts[[#This Row],[Min]]-0.01*(Forecasts[[#This Row],[Max]]-Forecasts[[#This Row],[Min]]), "") -> -1.5
A93: =10000+ROW(Forecasts[#This Row])-3 -> 10090 | B93: What year was the double helix structure of DNA discovered? | C93: Range | D93: Yes | F93: 1953 | H93: =IF(Forecasts[[#This Row],[Type]]="Range", MAX(Forecasts[[#This Row],[Outcome]], _xlfn.MAXIFS(AssignmentTable[P95], AssignmentTable[Forecast ID], Forecasts[[#This Row],[Forecast ID]])), "") -> 1953 | I93: =IF(Forecasts[[#This Row],[Type]]="Range", MIN(Forecasts[[#This Row],[Outcome]], _xlfn.MINIFS(AssignmentTable[P5], AssignmentTable[Forecast ID], Forecasts[[#This Row],[Forecast ID]])), "") -> 0 | J93: =IF(Forecasts[[#This Row],[Type]]="Range", Forecasts[[#This Row],[Max]]+0.01*(Forecasts[[#This Row],[Max]]-Forecasts[[#This Row],[Min]]), "") -> 1972.53 | K93: =IF(Forecasts[[#This Row],[Type]]="Range", Forecasts[[#This Row],[Min]]-0.01*(Forecasts[[#This Row],[Max]]-Forecasts[[#This Row],[Min]]), "") -> -19.53
A94: =10000+ROW(Forecasts[#This Row])-3 -> 10091 | B94: How many yards wide is a football field? | C94: Range | D94: Yes | F94: 53.3 | H94: =IF(Forecasts[[#This Row],[Type]]="Range", MAX(Forecasts[[#This Row],[Outcome]], _xlfn.MAXIFS(AssignmentTable[P95], AssignmentTable[Forecast ID], Forecasts[[#This Row],[Forecast ID]])), "") -> 53.3 | I94: =IF(Forecasts[[#This Row],[Type]]="Range", MIN(Forecasts[[#This Row],[Outcome]], _xlfn.MINIFS(AssignmentTable[P5], AssignmentTable[Forecast ID], Forecasts[[#This Row],[Forecast ID]])), "") -> 0 | J94: =IF(Forecasts[[#This Row],[Type]]="Range", Forecasts[[#This Row],[Max]]+0.01*(Forecasts[[#This Row],[Max]]-Forecasts[[#This Row],[Min]]), "") -> 53.833 | K94: =IF(Forecasts[[#This Row],[Type]]="Range", Forecasts[[#This Row],[Min]]-0.01*(Forecasts[[#This Row],[Max]]-Forecasts[[#This Row],[Min]]), "") -> -0.533
A95: =10000+ROW(Forecasts[#This Row])-3 -> 10092 | B95: What was the percentage growth in Internet hosts from 1996 to 1997? | C95: Range | D95: Yes | F95: 0.7 | H95: =IF(Forecasts[[#This Row],[Type]]="Range", MAX(Forecasts[[#This Row],[Outcome]], _xlfn.MAXIFS(AssignmentTable[P95], AssignmentTable[Forecast ID], Forecasts[[#This Row],[Forecast ID]])), "") -> 0.7 | I95: =IF(Forecasts[[#This Row],[Type]]="Range", MIN(Forecasts[[#This Row],[Outcome]], _xlfn.MINIFS(AssignmentTable[P5], AssignmentTable[Forecast ID], Forecasts[[#This Row],[Forecast ID]])), "") -> 0 | J95: =IF(Forecasts[[#This Row],[Type]]="Range", Forecasts[[#This Row],[Max]]+0.01*(Forecasts[[#This Row],[Max]]-Forecasts[[#This Row],[Min]]), "") -> 0.707 | K95: =IF(Forecasts[[#This Row],[Type]]="Range", Forecasts[[#This Row],[Min]]-0.01*(Forecasts[[#This Row],[Max]]-Forecasts[[#This Row],[Min]]), "") -> -0.007
A96: =10000+ROW(Forecasts[#This Row])-3 -> 10093 | B96: How many calories are in 8 ounces of orange juice? | C96: Range | D96: Yes | F96: 120 | H96: =IF(Forecasts[[#This Row],[Type]]="Range", MAX(Forecasts[[#This Row],[Outcome]], _xlfn.MAXIFS(AssignmentTable[P95], AssignmentTable[Forecast ID], Forecasts[[#This Row],[Forecast ID]])), "") -> 120 | I96: =IF(Forecasts[[#This Row],[Type]]="Range", MIN(Forecasts[[#This Row],[Outcome]], _xlfn.MINIFS(AssignmentTable[P5], AssignmentTable[Forecast ID], Forecasts[[#This Row],[Forecast ID]])), "") -> 0 | J96: =IF(Forecasts[[#This Row],[Type]]="Range", Forecasts[[#This Row],[Max]]+0.01*(Forecasts[[#This Row],[Max]]-Forecasts[[#This Row],[Min]]), "") -> 121.2 | K96: =IF(Forecasts[[#This Row],[Type]]="Range", Forecasts[[#This Row],[Min]]-0.01*(Forecasts[[#This Row],[Max]]-Forecasts[[#This Row],[Min]]), "") -> -1.2
A97: =10000+ROW(Forecasts[#This Row])-3 -> 10094 | B97: How fast would you have to travel at sea level to break the sound barrier (in mph)? | C97: Range | D97: Yes | F97: 760 | H97: =IF(Forecasts[[#This Row],[Type]]="Range", MAX(Forecasts[[#This Row],[Outcome]], _xlfn.MAXIFS(AssignmentTable[P95], AssignmentTable[Forecast ID], Forecasts[[#This Row],[Forecast ID]])), "") -> 760 | I97: =IF(Forecasts[[#This Row],[Type]]="Range", MIN(Forecasts[[#This Row],[Outcome]], _xlfn.MINIFS(AssignmentTable[P5], AssignmentTable[Forecast ID], Forecasts[[#This Row],[Forecast ID]])), "") -> 0 | J97: =IF(Forecasts[[#This Row],[Type]]="Range", Forecasts[[#This Row],[Max]]+0.01*(Forecasts[[#This Row],[Max]]-Forecasts[[#This Row],[Min]]), "") -> 767.6 | K97: =IF(Forecasts[[#This Row],[Type]]="Range", Forecasts[[#This Row],[Min]]-0.01*(Forecasts[[#This Row],[Max]]-Forecasts[[#This Row],[Min]]), "") -> -7.6
A98: =10000+ROW(Forecasts[#This Row])-3 -> 10095 | B98: How many years was Nelson Mandela in prison? | C98: Range | D98: Yes | F98: 26 | H98: =IF(Forecasts[[#This Row],[Type]]="Range", MAX(Forecasts[[#This Row],[Outcome]], _xlfn.MAXIFS(AssignmentTable[P95], AssignmentTable[Forecast ID], Forecasts[[#This Row],[Forecast ID]])), "") -> 26 | I98: =IF(Forecasts[[#This Row],[Type]]="Range", MIN(Forecasts[[#This Row],[Outcome]], _xlfn.MINIFS(AssignmentTable[P5], AssignmentTable[Forecast ID], Forecasts[[#This Row],[Forecast ID]])), "") -> 0 | J98: =IF(Forecasts[[#This Row],[Type]]="Range", Forecasts[[#This Row],[Max]]+0.01*(Forecasts[[#This Row],[Max]]-Forecasts[[#This Row],[Min]]), "") -> 26.26 | K98: =IF(Forecasts[[#This Row],[Type]]="Range", Forecasts[[#This Row],[Min]]-0.01*(Forecasts[[#This Row],[Max]]-Forecasts[[#This Row],[Min]]), "") -> -0.26
A99: =10000+ROW(Forecasts[#This Row])-3 -> 10096 | B99: What is the average daily calorie intake in developed countries (per person)? | C99: Range | D99: Yes | F99: 3300 | H99: =IF(Forecasts[[#This Row],[Type]]="Range", MAX(Forecasts[[#This Row],[Outcome]], _xlfn.MAXIFS(AssignmentTable[P95], AssignmentTable[Forecast ID], Forecasts[[#This Row],[Forecast ID]])), "") -> 3300 | I99: =IF(Forecasts[[#This Row],[Type]]="Range", MIN(Forecasts[[#This Row],[Outcome]], _xlfn.MINIFS(AssignmentTable[P5], AssignmentTable[Forecast ID], Forecasts[[#This Row],[Forecast ID]])), "") -> 0 | J99: =IF(Forecasts[[#This Row],[Type]]="Range", Forecasts[[#This Row],[Max]]+0.01*(Forecasts[[#This Row],[Max]]-Forecasts[[#This Row],[Min]]), "") -> 3333 | K99: =IF(Forecasts[[#This Row],[Type]]="Range", Forecasts[[#This Row],[Min]]-0.01*(Forecasts[[#This Row],[Max]]-Forecasts[[#This Row],[Min]]), "") -> -33
A100: =10000+ROW(Forecasts[#This Row])-3 -> 10097 | B100: In 1994, how many nations were members of the United Nations? | C100: Range | D100: Yes | F100: 184 | H100: =IF(Forecasts[[#This Row],[Type]]="Range", MAX(Forecasts[[#This Row],[Outcome]], _xlfn.MAXIFS(AssignmentTable[P95], AssignmentTable[Forecast ID], Forecasts[[#This Row],[Forecast ID]])), "") -> 184 | I100: =IF(Forecasts[[#This Row],[Type]]="Range", MIN(Forecasts[[#This Row],[Outcome]], _xlfn.MINIFS(AssignmentTable[P5], AssignmentTable[Forecast ID], Forecasts[[#This Row],[Forecast ID]])), "") -> 0 | J100: =IF(Forecasts[[#This Row],[Type]]="Range", Forecasts[[#This Row],[Max]]+0.01*(Forecasts[[#This Row],[Max]]-Forecasts[[#This Row],[Min]]), "") -> 185.84 | K100: =IF(Forecasts[[#This Row],[Type]]="Range", Forecasts[[#This Row],[Min]]-0.01*(Forecasts[[#This Row],[Max]]-Forecasts[[#This Row],[Min]]), "") -> -1.84
A101: =10000+ROW(Forecasts[#This Row])-3 -> 10098 | B101: The Audubon Society was formed in the US in what year? | C101: Range | D101: Yes | F101: 1905 | H101: =IF(Forecasts[[#This Row],[Type]]="Range", MAX(Forecasts[[#This Row],[Outcome]], _xlfn.MAXIFS(AssignmentTable[P95], AssignmentTable[Forecast ID], Forecasts[[#This Row],[Forecast ID]])), "") -> 1905 | I101: =IF(Forecasts[[#This Row],[Type]]="Range", MIN(Forecasts[[#This Row],[Outcome]], _xlfn.MINIFS(AssignmentTable[P5], AssignmentTable[Forecast ID], Forecasts[[#This Row],[Forecast ID]])), "") -> 0 | J101: =IF(Forecasts[[#This Row],[Type]]="Range", Forecasts[[#This Row],[Max]]+0.01*(Forecasts[[#This Row],[Max]]-Forecasts[[#This Row],[Min]]), "") -> 1924.05 | K101: =IF(Forecasts[[#This Row],[Type]]="Range", Forecasts[[#This Row],[Min]]-0.01*(Forecasts[[#This Row],[Max]]-Forecasts[[#This Row],[Min]]), "") -> -19.05
A102: =10000+ROW(Forecasts[#This Row])-3 -> 10099 | B102: How many feet high is the world’s highest waterfall (Angel Falls, Venezuela)? | C102: Range | D102: Yes | F102: 3212 | H102: =IF(Forecasts[[#This Row],[Type]]="Range", MAX(Forecasts[[#This Row],[Outcome]], _xlfn.MAXIFS(AssignmentTable[P95], AssignmentTable[Forecast ID], Forecasts[[#This Row],[Forecast ID]])), "") -> 3212 | I102: =IF(Forecasts[[#This Row],[Type]]="Range", MIN(Forecasts[[#This Row],[Outcome]], _xlfn.MINIFS(AssignmentTable[P5], AssignmentTable[Forecast ID], Forecasts[[#This Row],[Forecast ID]])), "") -> 0 | J102: =IF(Forecasts[[#This Row],[Type]]="Range", Forecasts[[#This Row],[Max]]+0.01*(Forecasts[[#This Row],[Max]]-Forecasts[[#This Row],[Min]]), "") -> 3244.12 | K102: =IF(Forecasts[[#This Row],[Type]]="Range", Forecasts[[#This Row],[Min]]-0.01*(Forecasts[[#This Row],[Max]]-Forecasts[[#This Row],[Min]]), "") -> -32.12
A103: =10000+ROW(Forecasts[#This Row])-3 -> 10100 | B103: How deep beneath the sea was the Titanic found (in miles)? | C103: Range | D103: Yes | F103: 2.5 | H103: =IF(Forecasts[[#This Row],[Type]]="Range", MAX(Forecasts[[#This Row],[Outcome]], _xlfn.MAXIFS(AssignmentTable[P95], AssignmentTable[Forecast ID], Forecasts[[#This Row],[Forecast ID]])), "") -> 2.5 | I103: =IF(Forecasts[[#This Row],[Type]]="Range", MIN(Forecasts[[#This Row],[Outcome]], _xlfn.MINIFS(AssignmentTable[P5], AssignmentTable[Forecast ID], Forecasts[[#This Row],[Forecast ID]])), "") -> 0 | J103: =IF(Forecasts[[#This Row],[Type]]="Range", Forecasts[[#This Row],[Max]]+0.01*(Forecasts[[#This Row],[Max]]-Forecasts[[#This Row],[Min]]), "") -> 2.525 | K103: =IF(Forecasts[[#This Row],[Type]]="Range", Forecasts[[#This Row],[Min]]-0.01*(Forecasts[[#This Row],[Max]]-Forecasts[[#This Row],[Min]]), "") -> -0.025
A104: =10000+ROW(Forecasts[#This Row])-3 -> 10101 | B104: What is the high school graduation rate in New Hampshire? | C104: Range | D104: Yes | F104: 0.71 | H104: =IF(Forecasts[[#This Row],[Type]]="Range", MAX(Forecasts[[#This Row],[Outcome]], _xlfn.MAXIFS(AssignmentTable[P95], AssignmentTable[Forecast ID], Forecasts[[#This Row],[Forecast ID]])), "") -> 0.71 | I104: =IF(Forecasts[[#This Row],[Type]]="Range", MIN(Forecasts[[#This Row],[Outcome]], _xlfn.MINIFS(AssignmentTable[P5], AssignmentTable[Forecast ID], Forecasts[[#This Row],[Forecast ID]])), "") -> 0 | J104: =IF(Forecasts[[#This Row],[Type]]="Range", Forecasts[[#This Row],[Max]]+0.01*(Forecasts[[#This Row],[Max]]-Forecasts[[#This Row],[Min]]), "") -> 0.7171 | K104: =IF(Forecasts[[#This Row],[Type]]="Range", Forecasts[[#This Row],[Min]]-0.01*(Forecasts[[#This Row],[Max]]-Forecasts[[#This Row],[Min]]), "") -> -0.0071
A105: =10000+ROW(Forecasts[#This Row])-3 -> 10102 | B105: How many countries have at least one McDonald’s restaurant? | C105: Range | D105: Yes | F105: 120 | H105: =IF(Forecasts[[#This Row],[Type]]="Range", MAX(Forecasts[[#This Row],[Outcome]], _xlfn.MAXIFS(AssignmentTable[P95], AssignmentTable[Forecast ID], Forecasts[[#This Row],[Forecast ID]])), "") -> 120 | I105: =IF(Forecasts[[#This Row],[Type]]="Range", MIN(Forecasts[[#This Row],[Outcome]], _xlfn.MINIFS(AssignmentTable[P5], AssignmentTable[Forecast ID], Forecasts[[#This Row],[Forecast ID]])), "") -> 0 | J105: =IF(Forecasts[[#This Row],[Type]]="Range", Forecasts[[#This Row],[Max]]+0.01*(Forecasts[[#This Row],[Max]]-Forecasts[[#This Row],[Min]]), "") -> 121.2 | K105: =IF(Forecasts[[#This Row],[Type]]="Range", Forecasts[[#This Row],[Min]]-0.01*(Forecasts[[#This Row],[Max]]-Forecasts[[#This Row],[Min]]), "") -> -1.2
A106: =10000+ROW(Forecasts[#This Row])-3 -> 10103 | B106: How many employees did eBay have in the first quarter of 2006? | C106: Range | D106: Yes | F106: 11600 | H106: =IF(Forecasts[[#This Row],[Type]]="Range", MAX(Forecasts[[#This Row],[Outcome]], _xlfn.MAXIFS(AssignmentTable[P95], AssignmentTable[Forecast ID], Forecasts[[#This Row],[Forecast ID]])), "") -> 11600 | I106: =IF(Forecasts[[#This Row],[Type]]="Range", MIN(Forecasts[[#This Row],[Outcome]], _xlfn.MINIFS(AssignmentTable[P5], AssignmentTable[Forecast ID], Forecasts[[#This Row],[Forecast ID]])), "") -> 0 | J106: =IF(Forecasts[[#This Row],[Type]]="Range", Forecasts[[#This Row],[Max]]+0.01*(Forecasts[[#This Row],[Max]]-Forecasts[[#This Row],[Min]]), "") -> 11716 | K106: =IF(Forecasts[[#This Row],[Type]]="Range", Forecasts[[#This Row],[Min]]-0.01*(Forecasts[[#This Row],[Max]]-Forecasts[[#This Row],[Min]]), "") -> -116
A107: =10000+ROW(Forecasts[#This Row])-3 -> 10104 | B107: According to the Auto Affordability Index, what was the average price of a new car in 2008? | C107: Range | D107: Yes | F107: 28715 | H107: =IF(Forecasts[[#This Row],[Type]]="Range", MAX(Forecasts[[#This Row],[Outcome]], _xlfn.MAXIFS(AssignmentTable[P95], AssignmentTable[Forecast ID], Forecasts[[#This Row],[Forecast ID]])), "") -> 28715 | I107: =IF(Forecasts[[#This Row],[Type]]="Range", MIN(Forecasts[[#This Row],[Outcome]], _xlfn.MINIFS(AssignmentTable[P5], AssignmentTable[Forecast ID], Forecasts[[#This Row],[Forecast ID]])), "") -> 0 | J107: =IF(Forecasts[[#This Row],[Type]]="Range", Forecasts[[#This Row],[Max]]+0.01*(Forecasts[[#This Row],[Max]]-Forecasts[[#This Row],[Min]]), "") -> 29002.15 | K107: =IF(Forecasts[[#This Row],[Type]]="Range", Forecasts[[#This Row],[Min]]-0.01*(Forecasts[[#This Row],[Max]]-Forecasts[[#This Row],[Min]]), "") -> -287.15
A108: =10000+ROW(Forecasts[#This Row])-3 -> 10105 | B108: How many casualties did the French suffer in the Battle of Waterloo? | C108: Range | D108: Yes | F108: 37000 | H108: =IF(Forecasts[[#This Row],[Type]]="Range", MAX(Forecasts[[#This Row],[Outcome]], _xlfn.MAXIFS(AssignmentTable[P95], AssignmentTable[Forecast ID], Forecasts[[#This Row],[Forecast ID]])), "") -> 37000 | I108: =IF(Forecasts[[#This Row],[Type]]="Range", MIN(Forecasts[[#This Row],[Outcome]], _xlfn.MINIFS(AssignmentTable[P5], AssignmentTable[Forecast ID], Forecasts[[#This Row],[Forecast ID]])), "") -> 0 | J108: =IF(Forecasts[[#This Row],[Type]]="Range", Forecasts[[#This Row],[Max]]+0.01*(Forecasts[[#This Row],[Max]]-Forecasts[[#This Row],[Min]]), "") -> 37370 | K108: =IF(Forecasts[[#This Row],[Type]]="Range", Forecasts[[#This Row],[Min]]-0.01*(Forecasts[[#This Row],[Max]]-Forecasts[[#This Row],[Min]]), "") -> -370
A109: =10000+ROW(Forecasts[#This Row])-3 -> 10106 | B109: What is the range in miles of a Minuteman Missile? | C109: Range | D109: Yes | F109: 5000 | H109: =IF(Forecasts[[#This Row],[Type]]="Range", MAX(Forecasts[[#This Row],[Outcome]], _xlfn.MAXIFS(AssignmentTable[P95], AssignmentTable[Forecast ID], Forecasts[[#This Row],[Forecast ID]])), "") -> 5000 | I109: =IF(Forecasts[[#This Row],[Type]]="Range", MIN(Forecasts[[#This Row],[Outcome]], _xlfn.MINIFS(AssignmentTable[P5], AssignmentTable[Forecast ID], Forecasts[[#This Row],[Forecast ID]])), "") -> 0 | J109: =IF(Forecasts[[#This Row],[Type]]="Range", Forecasts[[#This Row],[Max]]+0.01*(Forecasts[[#This Row],[Max]]-Forecasts[[#This Row],[Min]]), "") -> 5050 | K109: =IF(Forecasts[[#This Row],[Type]]="Range", Forecasts[[#This Row],[Min]]-0.01*(Forecasts[[#This Row],[Max]]-Forecasts[[#This Row],[Min]]), "") -> -50
A110: =10000+ROW(Forecasts[#This Row])-3 -> 10107 | B110: What is the percentage of IT jobs in the US were unfilled in 1997? | C110: Range | D110: Yes | F110: 0.1 | H110: =IF(Forecasts[[#This Row],[Type]]="Range", MAX(Forecasts[[#This Row],[Outcome]], _xlfn.MAXIFS(AssignmentTable[P95], AssignmentTable[Forecast ID], Forecasts[[#This Row],[Forecast ID]])), "") -> 0.1 | I110: =IF(Forecasts[[#This Row],[Type]]="Range", MIN(Forecasts[[#This Row],[Outcome]], _xlfn.MINIFS(AssignmentTable[P5], AssignmentTable[Forecast ID], Forecasts[[#This Row],[Forecast ID]])), "") -> 0 | J110: =IF(Forecasts[[#This Row],[Type]]="Range", Forecasts[[#This Row],[Max]]+0.01*(Forecasts[[#This Row],[Max]]-Forecasts[[#This Row],[Min]]), "") -> 0.101 | K110: =IF(Forecasts[[#This Row],[Type]]="Range", Forecasts[[#This Row],[Min]]-0.01*(Forecasts[[#This Row],[Max]]-Forecasts[[#This Row],[Min]]), "") -> -0.001
A111: =10000+ROW(Forecasts[#This Row])-3 -> 10108 | B111: The Supremes’ (with Diana Ross) song Stop! In the Name of Love was how long (in minutes)? | C111: Range | D111: Yes | F111: 2.866666667 | H111: =IF(Forecasts[[#This Row],[Type]]="Range", MAX(Forecasts[[#This Row],[Outcome]], _xlfn.MAXIFS(AssignmentTable[P95], AssignmentTable[Forecast ID], Forecasts[[#This Row],[Forecast ID]])), "") -> 2.866666667 | I111: =IF(Forecasts[[#This Row],[Type]]="Range", MIN(Forecasts[[#This Row],[Outcome]], _xlfn.MINIFS(AssignmentTable[P5], AssignmentTable[Forecast ID], Forecasts[[#This Row],[Forecast ID]])), "") -> 0 | J111: =IF(Forecasts[[#This Row],[Type]]="Range", Forecasts[[#This Row],[Max]]+0.01*(Forecasts[[#This Row],[Max]]-Forecasts[[#This Row],[Min]]), "") -> 2.895333333 | K111: =IF(Forecasts[[#This Row],[Type]]="Range", Forecasts[[#This Row],[Min]]-0.01*(Forecasts[[#This Row],[Max]]-Forecasts[[#This Row],[Min]]), "") -> -0.02866666667
A112: =10000+ROW(Forecasts[#This Row])-3 -> 10109 | B112: How many undergraduates attended the University of Cambridge in 1990? | C112: Range | D112: Yes | F112: 10000 | H112: =IF(Forecasts[[#This Row],[Type]]="Range", MAX(Forecasts[[#This Row],[Outcome]], _xlfn.MAXIFS(AssignmentTable[P95], AssignmentTable[Forecast ID], Forecasts[[#This Row],[Forecast ID]])), "") -> 10000 | I112: =IF(Forecasts[[#This Row],[Type]]="Range", MIN(Forecasts[[#This Row],[Outcome]], _xlfn.MINIFS(AssignmentTable[P5], AssignmentTable[Forecast ID], Forecasts[[#This Row],[Forecast ID]])), "") -> 0 | J112: =IF(Forecasts[[#This Row],[Type]]="Range", Forecasts[[#This Row],[Max]]+0.01*(Forecasts[[#This Row],[Max]]-Forecasts[[#This Row],[Min]]), "") -> 10100 | K112: =IF(Forecasts[[#This Row],[Type]]="Range", Forecasts[[#This Row],[Min]]-0.01*(Forecasts[[#This Row],[Max]]-Forecasts[[#This Row],[Min]]), "") -> -100
A113: =10000+ROW(Forecasts[#This Row])-3 -> 10110 | B113: If you could jump 50 feet straight up into the air, how many seconds would you be airborne before you landed? | C113: Range | D113: Yes | F113: 3.525 | H113: =IF(Forecasts[[#This Row],[Type]]="Range", MAX(Forecasts[[#This Row],[Outcome]], _xlfn.MAXIFS(AssignmentTable[P95], AssignmentTable[Forecast ID], Forecasts[[#This Row],[Forecast ID]])), "") -> 3.525 | I113: =IF(Forecasts[[#This Row],[Type]]="Range", MIN(Forecasts[[#This Row],[Outcome]], _xlfn.MINIFS(AssignmentTable[P5], AssignmentTable[Forecast ID], Forecasts[[#This Row],[Forecast ID]])), "") -> 0 | J113: =IF(Forecasts[[#This Row],[Type]]="Range", Forecasts[[#This Row],[Max]]+0.01*(Forecasts[[#This Row],[Max]]-Forecasts[[#This Row],[Min]]), "") -> 3.56025 | K113: =IF(Forecasts[[#This Row],[Type]]="Range", Forecasts[[#This Row],[Min]]-0.01*(Forecasts[[#This Row],[Max]]-Forecasts[[#This Row],[Min]]), "") -> -0.03525
A114: =10000+ROW(Forecasts[#This Row])-3 -> 10111 | B114: How many gallons are in a bushel (both are measures of volume)? | C114: Range | D114: Yes | F114: 8 | H114: =IF(Forecasts[[#This Row],[Type]]="Range", MAX(Forecasts[[#This Row],[Outcome]], _xlfn.MAXIFS(AssignmentTable[P95], AssignmentTable[Forecast ID], Forecasts[[#This Row],[Forecast ID]])), "") -> 8 | I114: =IF(Forecasts[[#This Row],[Type]]="Range", MIN(Forecasts[[#This Row],[Outcome]], _xlfn.MINIFS(AssignmentTable[P5], AssignmentTable[Forecast ID], Forecasts[[#This Row],[Forecast ID]])), "") -> 0 | J114: =IF(Forecasts[[#This Row],[Type]]="Range", Forecasts[[#This Row],[Max]]+0.01*(Forecasts[[#This Row],[Max]]-Forecasts[[#This Row],[Min]]), "") -> 8.08 | K114: =IF(Forecasts[[#This Row],[Type]]="Range", Forecasts[[#This Row],[Min]]-0.01*(Forecasts[[#This Row],[Max]]-Forecasts[[#This Row],[Min]]), "") -> -0.08
A115: =10000+ROW(Forecasts[#This Row])-3 -> 10112 | B115: How many monarchs has England had in the last thousand years? | C115: Range | D115: Yes | F115: 47 | H115: =IF(Forecasts[[#This Row],[Type]]="Range", MAX(Forecasts[[#This Row],[Outcome]], _xlfn.MAXIFS(AssignmentTable[P95], AssignmentTable[Forecast ID], Forecasts[[#This Row],[Forecast ID]])), "") -> 47 | I115: =IF(Forecasts[[#This Row],[Type]]="Range", MIN(Forecasts[[#This Row],[Outcome]], _xlfn.MINIFS(AssignmentTable[P5], AssignmentTable[Forecast ID], Forecasts[[#This Row],[Forecast ID]])), "") -> 0 | J115: =IF(Forecasts[[#This Row],[Type]]="Range", Forecasts[[#This Row],[Max]]+0.01*(Forecasts[[#This Row],[Max]]-Forecasts[[#This Row],[Min]]), "") -> 47.47 | K115: =IF(Forecasts[[#This Row],[Type]]="Range", Forecasts[[#This Row],[Min]]-0.01*(Forecasts[[#This Row],[Max]]-Forecasts[[#This Row],[Min]]), "") -> -0.47
A116: =10000+ROW(Forecasts[#This Row])-3 -> 10113 | B116: If the air temperature is -5°F, and the wind speed is 15 mph, what would wind chill be (in °F)? | C116: Range | D116: Yes | F116: -25 | H116: =IF(Forecasts[[#This Row],[Type]]="Range", MAX(Forecasts[[#This Row],[Outcome]], _xlfn.MAXIFS(AssignmentTable[P95], AssignmentTable[Forecast ID], Forecasts[[#This Row],[Forecast ID]])), "") -> 0 | I116: =IF(Forecasts[[#This Row],[Type]]="Range", MIN(Forecasts[[#This Row],[Outcome]], _xlfn.MINIFS(AssignmentTable[P5], AssignmentTable[Forecast ID], Forecasts[[#This Row],[Forecast ID]])), "") -> -25 | J116: =IF(Forecasts[[#This Row],[Type]]="Range", Forecasts[[#This Row],[Max]]+0.01*(Forecasts[[#This Row],[Max]]-Forecasts[[#This Row],[Min]]), "") -> 0.25 | K116: =IF(Forecasts[[#This Row],[Type]]="Range", Forecasts[[#This Row],[Min]]-0.01*(Forecasts[[#This Row],[Max]]-Forecasts[[#This Row],[Min]]), "") -> -25.25
A117: =10000+ROW(Forecasts[#This Row])-3 -> 10114 | B117: The average cost of testing in software development is what percentage of total project costs? | C117: Range | D117: Yes | F117: 0.25 | H117: =IF(Forecasts[[#This Row],[Type]]="Range", MAX(Forecasts[[#This Row],[Outcome]], _xlfn.MAXIFS(AssignmentTable[P95], AssignmentTable[Forecast ID], Forecasts[[#This Row],[Forecast ID]])), "") -> 0.25 | I117: =IF(Forecasts[[#This Row],[Type]]="Range", MIN(Forecasts[[#This Row],[Outcome]], _xlfn.MINIFS(AssignmentTable[P5], AssignmentTable[Forecast ID], Forecasts[[#This Row],[Forecast ID]])), "") -> 0 | J117: =IF(Forecasts[[#This Row],[Type]]="Range", Forecasts[[#This Row],[Max]]+0.01*(Forecasts[[#This Row],[Max]]-Forecasts[[#This Row],[Min]]), "") -> 0.2525 | K117: =IF(Forecasts[[#This Row],[Type]]="Range", Forecasts[[#This Row],[Min]]-0.01*(Forecasts[[#This Row],[Max]]-Forecasts[[#This Row],[Min]]), "") -> -0.0025
A118: =10000+ROW(Forecasts[#This Row])-3 -> 10115 | B118: If a software development project was projected to take 17 months, how long does it actually take (in months)? | C118: Range | D118: Yes | F118: 33 | H118: =IF(Forecasts[[#This Row],[Type]]="Range", MAX(Forecasts[[#This Row],[Outcome]], _xlfn.MAXIFS(AssignmentTable[P95], AssignmentTable[Forecast ID], Forecasts[[#This Row],[Forecast ID]])), "") -> 33 | I118: =IF(Forecasts[[#This Row],[Type]]="Range", MIN(Forecasts[[#This Row],[Outcome]], _xlfn.MINIFS(AssignmentTable[P5], AssignmentTable[Forecast ID], Forecasts[[#This Row],[Forecast ID]])), "") -> 0 | J118: =IF(Forecasts[[#This Row],[Type]]="Range", Forecasts[[#This Row],[Max]]+0.01*(Forecasts[[#This Row],[Max]]-Forecasts[[#This Row],[Min]]), "") -> 33.33 | K118: =IF(Forecasts[[#This Row],[Type]]="Range", Forecasts[[#This Row],[Min]]-0.01*(Forecasts[[#This Row],[Max]]-Forecasts[[#This Row],[Min]]), "") -> -0.33
A119: =10000+ROW(Forecasts[#This Row])-3 -> 10116 | B119: The 2008 Ford Taurus SEL has how much horse power? | C119: Range | D119: Yes | F119: 263 | H119: =IF(Forecasts[[#This Row],[Type]]="Range", MAX(Forecasts[[#This Row],[Outcome]], _xlfn.MAXIFS(AssignmentTable[P95], AssignmentTable[Forecast ID], Forecasts[[#This Row],[Forecast ID]])), "") -> 263 | I119: =IF(Forecasts[[#This Row],[Type]]="Range", MIN(Forecasts[[#This Row],[Outcome]], _xlfn.MINIFS(AssignmentTable[P5], AssignmentTable[Forecast ID], Forecasts[[#This Row],[Forecast ID]])), "") -> 0 | J119: =IF(Forecasts[[#This Row],[Type]]="Range", Forecasts[[#This Row],[Max]]+0.01*(Forecasts[[#This Row],[Max]]-Forecasts[[#This Row],[Min]]), "") -> 265.63 | K119: =IF(Forecasts[[#This Row],[Type]]="Range", Forecasts[[#This Row],[Min]]-0.01*(Forecasts[[#This Row],[Max]]-Forecasts[[#This Row],[Min]]), "") -> -2.63
A120: =10000+ROW(Forecasts[#This Row])-3 -> 10117 | B120: How many gold medals did Jesse Owens win at the 1936 Berlin Olympics? | C120: Range | D120: Yes | F120: 4 | H120: =IF(Forecasts[[#This Row],[Type]]="Range", MAX(Forecasts[[#This Row],[Outcome]], _xlfn.MAXIFS(AssignmentTable[P95], AssignmentTable[Forecast ID], Forecasts[[#This Row],[Forecast ID]])), "") -> 4 | I120: =IF(Forecasts[[#This Row],[Type]]="Range", MIN(Forecasts[[#This Row],[Outcome]], _xlfn.MINIFS(AssignmentTable[P5], AssignmentTable[Forecast ID], Forecasts[[#This Row],[Forecast ID]])), "") -> 0 | J120: =IF(Forecasts[[#This Row],[Type]]="Range", Forecasts[[#This Row],[Max]]+0.01*(Forecasts[[#This Row],[Max]]-Forecasts[[#This Row],[Min]]), "") -> 4.04 | K120: =IF(Forecasts[[#This Row],[Type]]="Range", Forecasts[[#This Row],[Min]]-0.01*(Forecasts[[#This Row],[Max]]-Forecasts[[#This Row],[Min]]), "") -> -0.04
A121: =10000+ROW(Forecasts[#This Row])-3 -> 10118 | B121: In 2005, the average fuel economy for all US cars and light trucks on the road was how much (in miles per gal)? | C121: Range | D121: Yes | F121: 19.8 | H121: =IF(Forecasts[[#This Row],[Type]]="Range", MAX(Forecasts[[#This Row],[Outcome]], _xlfn.MAXIFS(AssignmentTable[P95], AssignmentTable[Forecast ID], Forecasts[[#This Row],[Forecast ID]])), "") -> 19.8 | I121: =IF(Forecasts[[#This Row],[Type]]="Range", MIN(Forecasts[[#This Row],[Outcome]], _xlfn.MINIFS(AssignmentTable[P5], AssignmentTable[Forecast ID], Forecasts[[#This Row],[Forecast ID]])), "") -> 0 | J121: =IF(Forecasts[[#This Row],[Type]]="Range", Forecasts[[#This Row],[Max]]+0.01*(Forecasts[[#This Row],[Max]]-Forecasts[[#This Row],[Min]]), "") -> 19.998 | K121: =IF(Forecasts[[#This Row],[Type]]="Range", Forecasts[[#This Row],[Min]]-0.01*(Forecasts[[#This Row],[Max]]-Forecasts[[#This Row],[Min]]), "") -> -0.198
A122: =10000+ROW(Forecasts[#This Row])-3 -> 10119 | B122: The average house in the United States uses how many gallons of water per day? | C122: Range | D122: Yes | F122: 350 | H122: =IF(Forecasts[[#This Row],[Type]]="Range", MAX(Forecasts[[#This Row],[Outcome]], _xlfn.MAXIFS(AssignmentTable[P95], AssignmentTable[Forecast ID], Forecasts[[#This Row],[Forecast ID]])), "") -> 350 | I122: =IF(Forecasts[[#This Row],[Type]]="Range", MIN(Forecasts[[#This Row],[Outcome]], _xlfn.MINIFS(AssignmentTable[P5], AssignmentTable[Forecast ID], Forecasts[[#This Row],[Forecast ID]])), "") -> 0 | J122: =IF(Forecasts[[#This Row],[Type]]="Range", Forecasts[[#This Row],[Max]]+0.01*(Forecasts[[#This Row],[Max]]-Forecasts[[#This Row],[Min]]), "") -> 353.5 | K122: =IF(Forecasts[[#This Row],[Type]]="Range", Forecasts[[#This Row],[Min]]-0.01*(Forecasts[[#This Row],[Max]]-Forecasts[[#This Row],[Min]]), "") -> -3.5
A123: =10000+ROW(Forecasts[#This Row])-3 -> 10120 | B123: What was the average price in the United States of a house sold in 2001? | C123: Range | D123: Yes | F123: 179500 | H123: =IF(Forecasts[[#This Row],[Type]]="Range", MAX(Forecasts[[#This Row],[Outcome]], _xlfn.MAXIFS(AssignmentTable[P95], AssignmentTable[Forecast ID], Forecasts[[#This Row],[Forecast ID]])), "") -> 179500 | I123: =IF(Forecasts[[#This Row],[Type]]="Range", MIN(Forecasts[[#This Row],[Outcome]], _xlfn.MINIFS(AssignmentTable[P5], AssignmentTable[Forecast ID], Forecasts[[#This Row],[Forecast ID]])), "") -> 0 | J123: =IF(Forecasts[[#This Row],[Type]]="Range", Forecasts[[#This Row],[Max]]+0.01*(Forecasts[[#This Row],[Max]]-Forecasts[[#This Row],[Min]]), "") -> 181295 | K123: =IF(Forecasts[[#This Row],[Type]]="Range", Forecasts[[#This Row],[Min]]-0.01*(Forecasts[[#This Row],[Max]]-Forecasts[[#This Row],[Min]]), "") -> -1795
A124: =10000+ROW(Forecasts[#This Row])-3 -> 10121 | B124: The Airbus A380 seats 525 people in standard three-class configuration. How many could it seat if all seats were economy class? | C124: Range | D124: Yes | F124: 853 | H124: =IF(Forecasts[[#This Row],[Type]]="Range", MAX(Forecasts[[#This Row],[Outcome]], _xlfn.MAXIFS(AssignmentTable[P95], AssignmentTable[Forecast ID], Forecasts[[#This Row],[Forecast ID]])), "") -> 853 | I124: =IF(Forecasts[[#This Row],[Type]]="Range", MIN(Forecasts[[#This Row],[Outcome]], _xlfn.MINIFS(AssignmentTable[P5], AssignmentTable[Forecast ID], Forecasts[[#This Row],[Forecast ID]])), "") -> 0 | J124: =IF(Forecasts[[#This Row],[Type]]="Range", Forecasts[[#This Row],[Max]]+0.01*(Forecasts[[#This Row],[Max]]-Forecasts[[#This Row],[Min]]), "") -> 861.53 | K124: =IF(Forecasts[[#This Row],[Type]]="Range", Forecasts[[#This Row],[Min]]-0.01*(Forecasts[[#This Row],[Max]]-Forecasts[[#This Row],[Min]]), "") -> -8.53
A125: =10000+ROW(Forecasts[#This Row])-3 -> 10122 | B125: New development is what percentage of US software costs? | C125: Range | D125: Yes | F125: 0.41 | H125: =IF(Forecasts[[#This Row],[Type]]="Range", MAX(Forecasts[[#This Row],[Outcome]], _xlfn.MAXIFS(AssignmentTable[P95], AssignmentTable[Forecast ID], Forecasts[[#This Row],[Forecast ID]])), "") -> 0.41 | I125: =IF(Forecasts[[#This Row],[Type]]="Range", MIN(Forecasts[[#This Row],[Outcome]], _xlfn.MINIFS(AssignmentTable[P5], AssignmentTable[Forecast ID], Forecasts[[#This Row],[Forecast ID]])), "") -> 0 | J125: =IF(Forecasts[[#This Row],[Type]]="Range", Forecasts[[#This Row],[Max]]+0.01*(Forecasts[[#This Row],[Max]]-Forecasts[[#This Row],[Min]]), "") -> 0.4141 | K125: =IF(Forecasts[[#This Row],[Type]]="Range", Forecasts[[#This Row],[Min]]-0.01*(Forecasts[[#This Row],[Max]]-Forecasts[[#This Row],[Min]]), "") -> -0.0041
A126: =10000+ROW(Forecasts[#This Row])-3 -> 10123 | B126: Human hair on the head grows at an average rate of how many inches per year? | C126: Range | D126: Yes | F126: 7.1 | H126: =IF(Forecasts[[#This Row],[Type]]="Range", MAX(Forecasts[[#This Row],[Outcome]], _xlfn.MAXIFS(AssignmentTable[P95], AssignmentTable[Forecast ID], Forecasts[[#This Row],[Forecast ID]])), "") -> 7.1 | I126: =IF(Forecasts[[#This Row],[Type]]="Range", MIN(Forecasts[[#This Row],[Outcome]], _xlfn.MINIFS(AssignmentTable[P5], AssignmentTable[Forecast ID], Forecasts[[#This Row],[Forecast ID]])), "") -> 0 | J126: =IF(Forecasts[[#This Row],[Type]]="Range", Forecasts[[#This Row],[Max]]+0.01*(Forecasts[[#This Row],[Max]]-Forecasts[[#This Row],[Min]]), "") -> 7.171 | K126: =IF(Forecasts[[#This Row],[Type]]="Range", Forecasts[[#This Row],[Min]]-0.01*(Forecasts[[#This Row],[Max]]-Forecasts[[#This Row],[Min]]), "") -> -0.071
A127: =10000+ROW(Forecasts[#This Row])-3 -> 10124 | B127: California became a state in what year? | C127: Range | D127: Yes | F127: 1850 | H127: =IF(Forecasts[[#This Row],[Type]]="Range", MAX(Forecasts[[#This Row],[Outcome]], _xlfn.MAXIFS(AssignmentTable[P95], AssignmentTable[Forecast ID], Forecasts[[#This Row],[Forecast ID]])), "") -> 1850 | I127: =IF(Forecasts[[#This Row],[Type]]="Range", MIN(Forecasts[[#This Row],[Outcome]], _xlfn.MINIFS(AssignmentTable[P5], AssignmentTable[Forecast ID], Forecasts[[#This Row],[Forecast ID]])), "") -> 0 | J127: =IF(Forecasts[[#This Row],[Type]]="Range", Forecasts[[#This Row],[Max]]+0.01*(Forecasts[[#This Row],[Max]]-Forecasts[[#This Row],[Min]]), "") -> 1868.5 | K127: =IF(Forecasts[[#This Row],[Type]]="Range", Forecasts[[#This Row],[Min]]-0.01*(Forecasts[[#This Row],[Max]]-Forecasts[[#This Row],[Min]]), "") -> -18.5
A128: =10000+ROW(Forecasts[#This Row])-3 -> 10125 | B128: How many grams does the average business card weigh? | C128: Range | D128: Yes | F128: 1 | H128: =IF(Forecasts[[#This Row],[Type]]="Range", MAX(Forecasts[[#This Row],[Outcome]], _xlfn.MAXIFS(AssignmentTable[P95], AssignmentTable[Forecast ID], Forecasts[[#This Row],[Forecast ID]])), "") -> 1 | I128: =IF(Forecasts[[#This Row],[Type]]="Range", MIN(Forecasts[[#This Row],[Outcome]], _xlfn.MINIFS(AssignmentTable[P5], AssignmentTable[Forecast ID], Forecasts[[#This Row],[Forecast ID]])), "") -> 0 | J128: =IF(Forecasts[[#This Row],[Type]]="Range", Forecasts[[#This Row],[Max]]+0.01*(Forecasts[[#This Row],[Max]]-Forecasts[[#This Row],[Min]]), "") -> 1.01 | K128: =IF(Forecasts[[#This Row],[Type]]="Range", Forecasts[[#This Row],[Min]]-0.01*(Forecasts[[#This Row],[Max]]-Forecasts[[#This Row],[Min]]), "") -> -0.01
A129: =10000+ROW(Forecasts[#This Row])-3 -> 10126 | B129: What is the average age of a woman giving birth to her first child in Australia? | C129: Range | D129: Yes | F129: 26.3 | H129: =IF(Forecasts[[#This Row],[Type]]="Range", MAX(Forecasts[[#This Row],[Outcome]], _xlfn.MAXIFS(AssignmentTable[P95], AssignmentTable[Forecast ID], Forecasts[[#This Row],[Forecast ID]])), "") -> 26.3 | I129: =IF(Forecasts[[#This Row],[Type]]="Range", MIN(Forecasts[[#This Row],[Outcome]], _xlfn.MINIFS(AssignmentTable[P5], AssignmentTable[Forecast ID], Forecasts[[#This Row],[Forecast ID]])), "") -> 0 | J129: =IF(Forecasts[[#This Row],[Type]]="Range", Forecasts[[#This Row],[Max]]+0.01*(Forecasts[[#This Row],[Max]]-Forecasts[[#This Row],[Min]]), "") -> 26.563 | K129: =IF(Forecasts[[#This Row],[Type]]="Range", Forecasts[[#This Row],[Min]]-0.01*(Forecasts[[#This Row],[Max]]-Forecasts[[#This Row],[Min]]), "") -> -0.263
A130: =10000+ROW(Forecasts[#This Row])-3 -> 10127 | B130: What is the average number of defects per thousand lines of code for US commercial software? | C130: Range | D130: Yes | F130: 50 | H130: =IF(Forecasts[[#This Row],[Type]]="Range", MAX(Forecasts[[#This Row],[Outcome]], _xlfn.MAXIFS(AssignmentTable[P95], AssignmentTable[Forecast ID], Forecasts[[#This Row],[Forecast ID]])), "") -> 50 | I130: =IF(Forecasts[[#This Row],[Type]]="Range", MIN(Forecasts[[#This Row],[Outcome]], _xlfn.MINIFS(AssignmentTable[P5], AssignmentTable[Forecast ID], Forecasts[[#This Row],[Forecast ID]])), "") -> 0 | J130: =IF(Forecasts[[#This Row],[Type]]="Range", Forecasts[[#This Row],[Max]]+0.01*(Forecasts[[#This Row],[Max]]-Forecasts[[#This Row],[Min]]), "") -> 50.5 | K130: =IF(Forecasts[[#This Row],[Type]]="Range", Forecasts[[#This Row],[Min]]-0.01*(Forecasts[[#This Row],[Max]]-Forecasts[[#This Row],[Min]]), "") -> -0.5
A131: =10000+ROW(Forecasts[#This Row])-3 -> 10128 | B131: What was the total number of pages in the Greater Dallas Yellow Pages in 1998? | C131: Range | D131: Yes | F131: 2258 | H131: =IF(Forecasts[[#This Row],[Type]]="Range", MAX(Forecasts[[#This Row],[Outcome]], _xlfn.MAXIFS(AssignmentTable[P95], AssignmentTable[Forecast ID], Forecasts[[#This Row],[Forecast ID]])), "") -> 2258 | I131: =IF(Forecasts[[#This Row],[Type]]="Range", MIN(Forecasts[[#This Row],[Outcome]], _xlfn.MINIFS(AssignmentTable[P5], AssignmentTable[Forecast ID], Forecasts[[#This Row],[Forecast ID]])), "") -> 0 | J131: =IF(Forecasts[[#This Row],[Type]]="Range", Forecasts[[#This Row],[Max]]+0.01*(Forecasts[[#This Row],[Max]]-Forecasts[[#This Row],[Min]]), "") -> 2280.58 | K131: =IF(Forecasts[[#This Row],[Type]]="Range", Forecasts[[#This Row],[Min]]-0.01*(Forecasts[[#This Row],[Max]]-Forecasts[[#This Row],[Min]]), "") -> -22.58
A132: =10000+ROW(Forecasts[#This Row])-3 -> 10129 | B132: The largest meteorite ever found on Earth weighed how many tons? | C132: Range | D132: Yes | F132: 60 | H132: =IF(Forecasts[[#This Row],[Type]]="Range", MAX(Forecasts[[#This Row],[Outcome]], _xlfn.MAXIFS(AssignmentTable[P95], AssignmentTable[Forecast ID], Forecasts[[#This Row],[Forecast ID]])), "") -> 60 | I132: =IF(Forecasts[[#This Row],[Type]]="Range", MIN(Forecasts[[#This Row],[Outcome]], _xlfn.MINIFS(AssignmentTable[P5], AssignmentTable[Forecast ID], Forecasts[[#This Row],[Forecast ID]])), "") -> 0 | J132: =IF(Forecasts[[#This Row],[Type]]="Range", Forecasts[[#This Row],[Max]]+0.01*(Forecasts[[#This Row],[Max]]-Forecasts[[#This Row],[Min]]), "") -> 60.6 | K132: =IF(Forecasts[[#This Row],[Type]]="Range", Forecasts[[#This Row],[Min]]-0.01*(Forecasts[[#This Row],[Max]]-Forecasts[[#This Row],[Min]]), "") -> -0.6
A133: =10000+ROW(Forecasts[#This Row])-3 -> 10130 | B133: Gone With The Wind won the Oscar for Best Picture in what year? | C133: Range | D133: Yes | F133: 1939 | H133: =IF(Forecasts[[#This Row],[Type]]="Range", MAX(Forecasts[[#This Row],[Outcome]], _xlfn.MAXIFS(AssignmentTable[P95], AssignmentTable[Forecast ID], Forecasts[[#This Row],[Forecast ID]])), "") -> 1939 | I133: =IF(Forecasts[[#This Row],[Type]]="Range", MIN(Forecasts[[#This Row],[Outcome]], _xlfn.MINIFS(AssignmentTable[P5], AssignmentTable[Forecast ID], Forecasts[[#This Row],[Forecast ID]])), "") -> 0 | J133: =IF(Forecasts[[#This Row],[Type]]="Range", Forecasts[[#This Row],[Max]]+0.01*(Forecasts[[#This Row],[Max]]-Forecasts[[#This Row],[Min]]), "") -> 1958.39 | K133: =IF(Forecasts[[#This Row],[Type]]="Range", Forecasts[[#This Row],[Min]]-0.01*(Forecasts[[#This Row],[Max]]-Forecasts[[#This Row],[Min]]), "") -> -19.39
A134: =10000+ROW(Forecasts[#This Row])-3 -> 10131 | B134: What is the road mileage from Seattle to Atlanta? | C134: Range | D134: Yes | F134: 2756 | H134: =IF(Forecasts[[#This Row],[Type]]="Range", MAX(Forecasts[[#This Row],[Outcome]], _xlfn.MAXIFS(AssignmentTable[P95], AssignmentTable[Forecast ID], Forecasts[[#This Row],[Forecast ID]])), "") -> 2756 | I134: =IF(Forecasts[[#This Row],[Type]]="Range", MIN(Forecasts[[#This Row],[Outcome]], _xlfn.MINIFS(AssignmentTable[P5], AssignmentTable[Forecast ID], Forecasts[[#This Row],[Forecast ID]])), "") -> 0 | J134: =IF(Forecasts[[#This Row],[Type]]="Range", Forecasts[[#This Row],[Max]]+0.01*(Forecasts[[#This Row],[Max]]-Forecasts[[#This Row],[Min]]), "") -> 2783.56 | K134: =IF(Forecasts[[#This Row],[Type]]="Range", Forecasts[[#This Row],[Min]]-0.01*(Forecasts[[#This Row],[Max]]-Forecasts[[#This Row],[Min]]), "") -> -27.56
A135: =10000+ROW(Forecasts[#This Row])-3 -> 10132 | B135: How many letters are in the Greek alphabet? | C135: Range | D135: Yes | F135: 24 | H135: =IF(Forecasts[[#This Row],[Type]]="Range", MAX(Forecasts[[#This Row],[Outcome]], _xlfn.MAXIFS(AssignmentTable[P95], AssignmentTable[Forecast ID], Forecasts[[#This Row],[Forecast ID]])), "") -> 24 | I135: =IF(Forecasts[[#This Row],[Type]]="Range", MIN(Forecasts[[#This Row],[Outcome]], _xlfn.MINIFS(AssignmentTable[P5], AssignmentTable[Forecast ID], Forecasts[[#This Row],[Forecast ID]])), "") -> 0 | J135: =IF(Forecasts[[#This Row],[Type]]="Range", Forecasts[[#This Row],[Max]]+0.01*(Forecasts[[#This Row],[Max]]-Forecasts[[#This Row],[Min]]), "") -> 24.24 | K135: =IF(Forecasts[[#This Row],[Type]]="Range", Forecasts[[#This Row],[Min]]-0.01*(Forecasts[[#This Row],[Max]]-Forecasts[[#This Row],[Min]]), "") -> -0.24
A136: =10000+ROW(Forecasts[#This Row])-3 -> 10133 | B136: What year did Walt Disney create Mickey Mouse? | C136: Range | D136: Yes | F136: 1928 | H136: =IF(Forecasts[[#This Row],[Type]]="Range", MAX(Forecasts[[#This Row],[Outcome]], _xlfn.MAXIFS(AssignmentTable[P95], AssignmentTable[Forecast ID], Forecasts[[#This Row],[Forecast ID]])), "") -> 1928 | I136: =IF(Forecasts[[#This Row],[Type]]="Range", MIN(Forecasts[[#This Row],[Outcome]], _xlfn.MINIFS(AssignmentTable[P5], AssignmentTable[Forecast ID], Forecasts[[#This Row],[Forecast ID]])), "") -> 0 | J136: =IF(Forecasts[[#This Row],[Type]]="Range", Forecasts[[#This Row],[Max]]+0.01*(Forecasts[[#This Row],[Max]]-Forecasts[[#This Row],[Min]]), "") -> 1947.28 | K136: =IF(Forecasts[[#This Row],[Type]]="Range", Forecasts[[#This Row],[Min]]-0.01*(Forecasts[[#This Row],[Max]]-Forecasts[[#This Row],[Min]]), "") -> -19.28
A137: =10000+ROW(Forecasts[#This Row])-3 -> 10134 | B137: How many 20th century earthquakes world-wide measured above 8.0 on the Richter scale? | C137: Range | D137: Yes | F137: 7 | H137: =IF(Forecasts[[#This Row],[Type]]="Range", MAX(Forecasts[[#This Row],[Outcome]], _xlfn.MAXIFS(AssignmentTable[P95], AssignmentTable[Forecast ID], Forecasts[[#This Row],[Forecast ID]])), "") -> 7 | I137: =IF(Forecasts[[#This Row],[Type]]="Range", MIN(Forecasts[[#This Row],[Outcome]], _xlfn.MINIFS(AssignmentTable[P5], AssignmentTable[Forecast ID], Forecasts[[#This Row],[Forecast ID]])), "") -> 0 | J137: =IF(Forecasts[[#This Row],[Type]]="Range", Forecasts[[#This Row],[Max]]+0.01*(Forecasts[[#This Row],[Max]]-Forecasts[[#This Row],[Min]]), "") -> 7.07 | K137: =IF(Forecasts[[#This Row],[Type]]="Range", Forecasts[[#This Row],[Min]]-0.01*(Forecasts[[#This Row],[Max]]-Forecasts[[#This Row],[Min]]), "") -> -0.07
A138: =10000+ROW(Forecasts[#This Row])-3 -> 10135 | B138: How many plays did William Shakespeare write? | C138: Range | D138: Yes | F138: 37 | H138: =IF(Forecasts[[#This Row],[Type]]="Range", MAX(Forecasts[[#This Row],[Outcome]], _xlfn.MAXIFS(AssignmentTable[P95], AssignmentTable[Forecast ID], Forecasts[[#This Row],[Forecast ID]])), "") -> 37 | I138: =IF(Forecasts[[#This Row],[Type]]="Range", MIN(Forecasts[[#This Row],[Outcome]], _xlfn.MINIFS(AssignmentTable[P5], AssignmentTable[Forecast ID], Forecasts[[#This Row],[Forecast ID]])), "") -> 0 | J138: =IF(Forecasts[[#This Row],[Type]]="Range", Forecasts[[#This Row],[Max]]+0.01*(Forecasts[[#This Row],[Max]]-Forecasts[[#This Row],[Min]]), "") -> 37.37 | K138: =IF(Forecasts[[#This Row],[Type]]="Range", Forecasts[[#This Row],[Min]]-0.01*(Forecasts[[#This Row],[Max]]-Forecasts[[#This Row],[Min]]), "") -> -0.37
A139: =10000+ROW(Forecasts[#This Row])-3 -> 10136 | B139: How many of the elements in the Periodic Table were discovered in the 20th century? | C139: Range | D139: Yes | F139: 29 | H139: =IF(Forecasts[[#This Row],[Type]]="Range", MAX(Forecasts[[#This Row],[Outcome]], _xlfn.MAXIFS(AssignmentTable[P95], AssignmentTable[Forecast ID], Forecasts[[#This Row],[Forecast ID]])), "") -> 29 | I139: =IF(Forecasts[[#This Row],[Type]]="Range", MIN(Forecasts[[#This Row],[Outcome]], _xlfn.MINIFS(AssignmentTable[P5], AssignmentTable[Forecast ID], Forecasts[[#This Row],[Forecast ID]])), "") -> 0 | J139: =IF(Forecasts[[#This Row],[Type]]="Range", Forecasts[[#This Row],[Max]]+0.01*(Forecasts[[#This Row],[Max]]-Forecasts[[#This Row],[Min]]), "") -> 29.29 | K139: =IF(Forecasts[[#This Row],[Type]]="Range", Forecasts[[#This Row],[Min]]-0.01*(Forecasts[[#This Row],[Max]]-Forecasts[[#This Row],[Min]]), "") -> -0.29
A140: =10000+ROW(Forecasts[#This Row])-3 -> 10137 | B140: What year was Mozart born? | C140: Range | D140: Yes | F140: 1756 | H140: =IF(Forecasts[[#This Row],[Type]]="Range", MAX(Forecasts[[#This Row],[Outcome]], _xlfn.MAXIFS(AssignmentTable[P95], AssignmentTable[Forecast ID], Forecasts[[#This Row],[Forecast ID]])), "") -> 1756 | I140: =IF(Forecasts[[#This Row],[Type]]="Range", MIN(Forecasts[[#This Row],[Outcome]], _xlfn.MINIFS(AssignmentTable[P5], AssignmentTable[Forecast ID], Forecasts[[#This Row],[Forecast ID]])), "") -> 0 | J140: =IF(Forecasts[[#This Row],[Type]]="Range", Forecasts[[#This Row],[Max]]+0.01*(Forecasts[[#This Row],[Max]]-Forecasts[[#This Row],[Min]]), "") -> 1773.56 | K140: =IF(Forecasts[[#This Row],[Type]]="Range", Forecasts[[#This Row],[Min]]-0.01*(Forecasts[[#This Row],[Max]]-Forecasts[[#This Row],[Min]]), "") -> -17.56
A141: =10000+ROW(Forecasts[#This Row])-3 -> 10138 | B141: The given name “Matthew” was the __th most common name for boys in the US in 2006. (The highest rank is the lower bound) | C141: Range | D141: Yes | F141: 5 | H141: =IF(Forecasts[[#This Row],[Type]]="Range", MAX(Forecasts[[#This Row],[Outcome]], _xlfn.MAXIFS(AssignmentTable[P95], AssignmentTable[Forecast ID], Forecasts[[#This Row],[Forecast ID]])), "") -> 5 | I141: =IF(Forecasts[[#This Row],[Type]]="Range", MIN(Forecasts[[#This Row],[Outcome]], _xlfn.MINIFS(AssignmentTable[P5], AssignmentTable[Forecast ID], Forecasts[[#This Row],[Forecast ID]])), "") -> 0 | J141: =IF(Forecasts[[#This Row],[Type]]="Range", Forecasts[[#This Row],[Max]]+0.01*(Forecasts[[#This Row],[Max]]-Forecasts[[#This Row],[Min]]), "") -> 5.05 | K141: =IF(Forecasts[[#This Row],[Type]]="Range", Forecasts[[#This Row],[Min]]-0.01*(Forecasts[[#This Row],[Max]]-Forecasts[[#This Row],[Min]]), "") -> -0.05
A142: =10000+ROW(Forecasts[#This Row])-3 -> 10139 | B142: The average US home has how many television sets? | C142: Range | D142: Yes | F142: 2.7 | H142: =IF(Forecasts[[#This Row],[Type]]="Range", MAX(Forecasts[[#This Row],[Outcome]], _xlfn.MAXIFS(AssignmentTable[P95], AssignmentTable[Forecast ID], Forecasts[[#This Row],[Forecast ID]])), "") -> 2.7 | I142: =IF(Forecasts[[#This Row],[Type]]="Range", MIN(Forecasts[[#This Row],[Outcome]], _xlfn.MINIFS(AssignmentTable[P5], AssignmentTable[Forecast ID], Forecasts[[#This Row],[Forecast ID]])), "") -> 0 | J142: =IF(Forecasts[[#This Row],[Type]]="Range", Forecasts[[#This Row],[Max]]+0.01*(Forecasts[[#This Row],[Max]]-Forecasts[[#This Row],[Min]]), "") -> 2.727 | K142: =IF(Forecasts[[#This Row],[Type]]="Range", Forecasts[[#This Row],[Min]]-0.01*(Forecasts[[#This Row],[Max]]-Forecasts[[#This Row],[Min]]), "") -> -0.027
A143: =10000+ROW(Forecasts[#This Row])-3 -> 10140 | B143: Construction of Hoover Dam began in what year? | C143: Range | D143: Yes | F143: 1931 | H143: =IF(Forecasts[[#This Row],[Type]]="Range", MAX(Forecasts[[#This Row],[Outcome]], _xlfn.MAXIFS(AssignmentTable[P95], AssignmentTable[Forecast ID], Forecasts[[#This Row],[Forecast ID]])), "") -> 1931 | I143: =IF(Forecasts[[#This Row],[Type]]="Range", MIN(Forecasts[[#This Row],[Outcome]], _xlfn.MINIFS(AssignmentTable[P5], AssignmentTable[Forecast ID], Forecasts[[#This Row],[Forecast ID]])), "") -> 0 | J143: =IF(Forecasts[[#This Row],[Type]]="Range", Forecasts[[#This Row],[Max]]+0.01*(Forecasts[[#This Row],[Max]]-Forecasts[[#This Row],[Min]]), "") -> 1950.31 | K143: =IF(Forecasts[[#This Row],[Type]]="Range", Forecasts[[#This Row],[Min]]-0.01*(Forecasts[[#This Row],[Max]]-Forecasts[[#This Row],[Min]]), "") -> -19.31
A144: =10000+ROW(Forecasts[#This Row])-3 -> 10141 | B144: The Lincoln Highway was the first paved road in the United States and it ran from Chicago to San Francisco. | C144: Binary | D144: Yes | F144: 0 | H144: =IF(Forecasts[[#This Row],[Type]]="Range", MAX(Forecasts[[#This Row],[Outcome]], _xlfn.MAXIFS(AssignmentTable[P95], AssignmentTable[Forecast ID], Forecasts[[#This Row],[Forecast ID]])), "") ->  | I144: =IF(Forecasts[[#This Row],[Type]]="Range", MIN(Forecasts[[#This Row],[Outcome]], _xlfn.MINIFS(AssignmentTable[P5], AssignmentTable[Forecast ID], Forecasts[[#This Row],[Forecast ID]])), "") ->  | J144: =IF(Forecasts[[#This Row],[Type]]="Range", Forecasts[[#This Row],[Max]]+0.01*(Forecasts[[#This Row],[Max]]-Forecasts[[#This Row],[Min]]), "") ->  | K144: =IF(Forecasts[[#This Row],[Type]]="Range", Forecasts[[#This Row],[Min]]-0.01*(Forecasts[[#This Row],[Max]]-Forecasts[[#This Row],[Min]]), "") -> 
A145: =10000+ROW(Forecasts[#This Row])-3 -> 10142 | B145: Gold is denser than iron. | C145: Binary | D145: Yes | F145: 1 | H145: =IF(Forecasts[[#This Row],[Type]]="Range", MAX(Forecasts[[#This Row],[Outcome]], _xlfn.MAXIFS(AssignmentTable[P95], AssignmentTable[Forecast ID], Forecasts[[#This Row],[Forecast ID]])), "") ->  | I145: =IF(Forecasts[[#This Row],[Type]]="Range", MIN(Forecasts[[#This Row],[Outcome]], _xlfn.MINIFS(AssignmentTable[P5], AssignmentTable[Forecast ID], Forecasts[[#This Row],[Forecast ID]])), "") ->  | J145: =IF(Forecasts[[#This Row],[Type]]="Range", Forecasts[[#This Row],[Max]]+0.01*(Forecasts[[#This Row],[Max]]-Forecasts[[#This Row],[Min]]), "") ->  | K145: =IF(Forecasts[[#This Row],[Type]]="Range", Forecasts[[#This Row],[Min]]-0.01*(Forecasts[[#This Row],[Max]]-Forecasts[[#This Row],[Min]]), "") -> 
A146: =10000+ROW(Forecasts[#This Row])-3 -> 10143 | B146: More American homes have microwaves than telephones. | C146: Binary | D146: Yes | F146: 0 | H146: =IF(Forecasts[[#This Row],[Type]]="Range", MAX(Forecasts[[#This Row],[Outcome]], _xlfn.MAXIFS(AssignmentTable[P95], AssignmentTable[Forecast ID], Forecasts[[#This Row],[Forecast ID]])), "") ->  | I146: =IF(Forecasts[[#This Row],[Type]]="Range", MIN(Forecasts[[#This Row],[Outcome]], _xlfn.MINIFS(AssignmentTable[P5], AssignmentTable[Forecast ID], Forecasts[[#This Row],[Forecast ID]])), "") ->  | J146: =IF(Forecasts[[#This Row],[Type]]="Range", Forecasts[[#This Row],[Max]]+0.01*(Forecasts[[#This Row],[Max]]-Forecasts[[#This Row],[Min]]), "") ->  | K146: =IF(Forecasts[[#This Row],[Type]]="Range", Forecasts[[#This Row],[Min]]-0.01*(Forecasts[[#This Row],[Max]]-Forecasts[[#This Row],[Min]]), "") -> 
A147: =10000+ROW(Forecasts[#This Row])-3 -> 10144 | B147: "Doric" is an architectural term for the shape of a roof. | C147: Binary | D147: Yes | F147: 0 | H147: =IF(Forecasts[[#This Row],[Type]]="Range", MAX(Forecasts[[#This Row],[Outcome]], _xlfn.MAXIFS(AssignmentTable[P95], AssignmentTable[Forecast ID], Forecasts[[#This Row],[Forecast ID]])), "") ->  | I147: =IF(Forecasts[[#This Row],[Type]]="Range", MIN(Forecasts[[#This Row],[Outcome]], _xlfn.MINIFS(AssignmentTable[P5], AssignmentTable[Forecast ID], Forecasts[[#This Row],[Forecast ID]])), "") ->  | J147: =IF(Forecasts[[#This Row],[Type]]="Range", Forecasts[[#This Row],[Max]]+0.01*(Forecasts[[#This Row],[Max]]-Forecasts[[#This Row],[Min]]), "") ->  | K147: =IF(Forecasts[[#This Row],[Type]]="Range", Forecasts[[#This Row],[Min]]-0.01*(Forecasts[[#This Row],[Max]]-Forecasts[[#This Row],[Min]]), "") -> 
A148: =10000+ROW(Forecasts[#This Row])-3 -> 10145 | B148: The World Tourism Organization predicts that Europe will still be the most popular tourist destination in 2020. | C148: Binary | D148: Yes | F148: 1 | H148: =IF(Forecasts[[#This Row],[Type]]="Range", MAX(Forecasts[[#This Row],[Outcome]], _xlfn.MAXIFS(AssignmentTable[P95], AssignmentTable[Forecast ID], Forecasts[[#This Row],[Forecast ID]])), "") ->  | I148: =IF(Forecasts[[#This Row],[Type]]="Range", MIN(Forecasts[[#This Row],[Outcome]], _xlfn.MINIFS(AssignmentTable[P5], AssignmentTable[Forecast ID], Forecasts[[#This Row],[Forecast ID]])), "") ->  | J148: =IF(Forecasts[[#This Row],[Type]]="Range", Forecasts[[#This Row],[Max]]+0.01*(Forecasts[[#This Row],[Max]]-Forecasts[[#This Row],[Min]]), "") ->  | K148: =IF(Forecasts[[#This Row],[Type]]="Range", Forecasts[[#This Row],[Min]]-0.01*(Forecasts[[#This Row],[Max]]-Forecasts[[#This Row],[Min]]), "") -> 
A149: =10000+ROW(Forecasts[#This Row])-3 -> 10146 | B149: Germany was the second country to develop atomic weapons. | C149: Binary | D149: Yes | F149: 0 | H149: =IF(Forecasts[[#This Row],[Type]]="Range", MAX(Forecasts[[#This Row],[Outcome]], _xlfn.MAXIFS(AssignmentTable[P95], AssignmentTable[Forecast ID], Forecasts[[#This Row],[Forecast ID]])), "") ->  | I149: =IF(Forecasts[[#This Row],[Type]]="Range", MIN(Forecasts[[#This Row],[Outcome]], _xlfn.MINIFS(AssignmentTable[P5], AssignmentTable[Forecast ID], Forecasts[[#This Row],[Forecast ID]])), "") ->  | J149: =IF(Forecasts[[#This Row],[Type]]="Range", Forecasts[[#This Row],[Max]]+0.01*(Forecasts[[#This Row],[Max]]-Forecasts[[#This Row],[Min]]), "") ->  | K149: =IF(Forecasts[[#This Row],[Type]]="Range", Forecasts[[#This Row],[Min]]-0.01*(Forecasts[[#This Row],[Max]]-Forecasts[[#This Row],[Min]]), "") -> 
A150: =10000+ROW(Forecasts[#This Row])-3 -> 10147 | B150: A hockey puck will fit in a golf hole. | C150: Binary | D150: Yes | F150: 1 | H150: =IF(Forecasts[[#This Row],[Type]]="Range", MAX(Forecasts[[#This Row],[Outcome]], _xlfn.MAXIFS(AssignmentTable[P95], AssignmentTable[Forecast ID], Forecasts[[#This Row],[Forecast ID]])), "") ->  | I150: =IF(Forecasts[[#This Row],[Type]]="Range", MIN(Forecasts[[#This Row],[Outcome]], _xlfn.MINIFS(AssignmentTable[P5], AssignmentTable[Forecast ID], Forecasts[[#This Row],[Forecast ID]])), "") ->  | J150: =IF(Forecasts[[#This Row],[Type]]="Range", Forecasts[[#This Row],[Max]]+0.01*(Forecasts[[#This Row],[Max]]-Forecasts[[#This Row],[Min]]), "") ->  | K150: =IF(Forecasts[[#This Row],[Type]]="Range", Forecasts[[#This Row],[Min]]-0.01*(Forecasts[[#This Row],[Max]]-Forecasts[[#This Row],[Min]]), "") -> 
A151: =10000+ROW(Forecasts[#This Row])-3 -> 10148 | B151: The Sioux were one of the Plains Indian tribes. | C151: Binary | D151: Yes | F151: 1 | H151: =IF(Forecasts[[#This Row],[Type]]="Range", MAX(Forecasts[[#This Row],[Outcome]], _xlfn.MAXIFS(AssignmentTable[P95], AssignmentTable[Forecast ID], Forecasts[[#This Row],[Forecast ID]])), "") ->  | I151: =IF(Forecasts[[#This Row],[Type]]="Range", MIN(Forecasts[[#This Row],[Outcome]], _xlfn.MINIFS(AssignmentTable[P5], AssignmentTable[Forecast ID], Forecasts[[#This Row],[Forecast ID]])), "") ->  | J151: =IF(Forecasts[[#This Row],[Type]]="Range", Forecasts[[#This Row],[Max]]+0.01*(Forecasts[[#This Row],[Max]]-Forecasts[[#This Row],[Min]]), "") ->  | K151: =IF(Forecasts[[#This Row],[Type]]="Range", Forecasts[[#This Row],[Min]]-0.01*(Forecasts[[#This Row],[Max]]-Forecasts[[#This Row],[Min]]), "") -> 
A152: =10000+ROW(Forecasts[#This Row])-3 -> 10149 | B152: To a physicist, "plasma" is a type of rock. | C152: Binary | D152: Yes | F152: 0 | H152: =IF(Forecasts[[#This Row],[Type]]="Range", MAX(Forecasts[[#This Row],[Outcome]], _xlfn.MAXIFS(AssignmentTable[P95], AssignmentTable[Forecast ID], Forecasts[[#This Row],[Forecast ID]])), "") ->  | I152: =IF(Forecasts[[#This Row],[Type]]="Range", MIN(Forecasts[[#This Row],[Outcome]], _xlfn.MINIFS(AssignmentTable[P5], AssignmentTable[Forecast ID], Forecasts[[#This Row],[Forecast ID]])), "") ->  | J152: =IF(Forecasts[[#This Row],[Type]]="Range", Forecasts[[#This Row],[Max]]+0.01*(Forecasts[[#This Row],[Max]]-Forecasts[[#This Row],[Min]]), "") ->  | K152: =IF(Forecasts[[#This Row],[Type]]="Range", Forecasts[[#This Row],[Min]]-0.01*(Forecasts[[#This Row],[Max]]-Forecasts[[#This Row],[Min]]), "") -> 
A153: =10000+ROW(Forecasts[#This Row])-3 -> 10150 | B153: The Hundred Years’ War was actually over a century long. | C153: Binary | D153: Yes | F153: 1 | H153: =IF(Forecasts[[#This Row],[Type]]="Range", MAX(Forecasts[[#This Row],[Outcome]], _xlfn.MAXIFS(AssignmentTable[P95], AssignmentTable[Forecast ID], Forecasts[[#This Row],[Forecast ID]])), "") ->  | I153: =IF(Forecasts[[#This Row],[Type]]="Range", MIN(Forecasts[[#This Row],[Outcome]], _xlfn.MINIFS(AssignmentTable[P5], AssignmentTable[Forecast ID], Forecasts[[#This Row],[Forecast ID]])), "") ->  | J153: =IF(Forecasts[[#This Row],[Type]]="Range", Forecasts[[#This Row],[Max]]+0.01*(Forecasts[[#This Row],[Max]]-Forecasts[[#This Row],[Min]]), "") ->  | K153: =IF(Forecasts[[#This Row],[Type]]="Range", Forecasts[[#This Row],[Min]]-0.01*(Forecasts[[#This Row],[Max]]-Forecasts[[#This Row],[Min]]), "") -> 
A154: =10000+ROW(Forecasts[#This Row])-3 -> 10151 | B154: Most of the freshwater on Earth is in the polar ice caps. | C154: Binary | D154: Yes | F154: 1 | H154: =IF(Forecasts[[#This Row],[Type]]="Range", MAX(Forecasts[[#This Row],[Outcome]], _xlfn.MAXIFS(AssignmentTable[P95], AssignmentTable[Forecast ID], Forecasts[[#This Row],[Forecast ID]])), "") ->  | I154: =IF(Forecasts[[#This Row],[Type]]="Range", MIN(Forecasts[[#This Row],[Outcome]], _xlfn.MINIFS(AssignmentTable[P5], AssignmentTable[Forecast ID], Forecasts[[#This Row],[Forecast ID]])), "") ->  | J154: =IF(Forecasts[[#This Row],[Type]]="Range", Forecasts[[#This Row],[Max]]+0.01*(Forecasts[[#This Row],[Max]]-Forecasts[[#This Row],[Min]]), "") ->  | K154: =IF(Forecasts[[#This Row],[Type]]="Range", Forecasts[[#This Row],[Min]]-0.01*(Forecasts[[#This Row],[Max]]-Forecasts[[#This Row],[Min]]), "") -> 
A155: =10000+ROW(Forecasts[#This Row])-3 -> 10152 | B155: The Academy Awards (Oscars) began over a century ago. | C155: Binary | D155: Yes | F155: 0 | H155: =IF(Forecasts[[#This Row],[Type]]="Range", MAX(Forecasts[[#This Row],[Outcome]], _xlfn.MAXIFS(AssignmentTable[P95], AssignmentTable[Forecast ID], Forecasts[[#This Row],[Forecast ID]])), "") ->  | I155: =IF(Forecasts[[#This Row],[Type]]="Range", MIN(Forecasts[[#This Row],[Outcome]], _xlfn.MINIFS(AssignmentTable[P5], AssignmentTable[Forecast ID], Forecasts[[#This Row],[Forecast ID]])), "") ->  | J155: =IF(Forecasts[[#This Row],[Type]]="Range", Forecasts[[#This Row],[Max]]+0.01*(Forecasts[[#This Row],[Max]]-Forecasts[[#This Row],[Min]]), "") ->  | K155: =IF(Forecasts[[#This Row],[Type]]="Range", Forecasts[[#This Row],[Min]]-0.01*(Forecasts[[#This Row],[Max]]-Forecasts[[#This Row],[Min]]), "") -> 
A156: =10000+ROW(Forecasts[#This Row])-3 -> 10153 | B156: There are fewer than 200 billionaires in the world. | C156: Binary | D156: Yes | F156: 0 | H156: =IF(Forecasts[[#This Row],[Type]]="Range", MAX(Forecasts[[#This Row],[Outcome]], _xlfn.MAXIFS(AssignmentTable[P95], AssignmentTable[Forecast ID], Forecasts[[#This Row],[Forecast ID]])), "") ->  | I156: =IF(Forecasts[[#This Row],[Type]]="Range", MIN(Forecasts[[#This Row],[Outcome]], _xlfn.MINIFS(AssignmentTable[P5], AssignmentTable[Forecast ID], Forecasts[[#This Row],[Forecast ID]])), "") ->  | J156: =IF(Forecasts[[#This Row],[Type]]="Range", Forecasts[[#This Row],[Max]]+0.01*(Forecasts[[#This Row],[Max]]-Forecasts[[#This Row],[Min]]), "") ->  | K156: =IF(Forecasts[[#This Row],[Type]]="Range", Forecasts[[#This Row],[Min]]-0.01*(Forecasts[[#This Row],[Max]]-Forecasts[[#This Row],[Min]]), "") -> 
A157: =10000+ROW(Forecasts[#This Row])-3 -> 10154 | B157: In Microsoft Excel, the "^" symbol means "raise to the power of." | C157: Binary | D157: Yes | F157: 1 | H157: =IF(Forecasts[[#This Row],[Type]]="Range", MAX(Forecasts[[#This Row],[Outcome]], _xlfn.MAXIFS(AssignmentTable[P95], AssignmentTable[Forecast ID], Forecasts[[#This Row],[Forecast ID]])), "") ->  | I157: =IF(Forecasts[[#This Row],[Type]]="Range", MIN(Forecasts[[#This Row],[Outcome]], _xlfn.MINIFS(AssignmentTable[P5], AssignmentTable[Forecast ID], Forecasts[[#This Row],[Forecast ID]])), "") ->  | J157: =IF(Forecasts[[#This Row],[Type]]="Range", Forecasts[[#This Row],[Max]]+0.01*(Forecasts[[#This Row],[Max]]-Forecasts[[#This Row],[Min]]), "") ->  | K157: =IF(Forecasts[[#This Row],[Type]]="Range", Forecasts[[#This Row],[Min]]-0.01*(Forecasts[[#This Row],[Max]]-Forecasts[[#This Row],[Min]]), "") -> 
A158: =10000+ROW(Forecasts[#This Row])-3 -> 10155 | B158: The average annual salary of airline captains is over $150,000. | C158: Binary | D158: Yes | F158: 0 | H158: =IF(Forecasts[[#This Row],[Type]]="Range", MAX(Forecasts[[#This Row],[Outcome]], _xlfn.MAXIFS(AssignmentTable[P95], AssignmentTable[Forecast ID], Forecasts[[#This Row],[Forecast ID]])), "") ->  | I158: =IF(Forecasts[[#This Row],[Type]]="Range", MIN(Forecasts[[#This Row],[Outcome]], _xlfn.MINIFS(AssignmentTable[P5], AssignmentTable[Forecast ID], Forecasts[[#This Row],[Forecast ID]])), "") ->  | J158: =IF(Forecasts[[#This Row],[Type]]="Range", Forecasts[[#This Row],[Max]]+0.01*(Forecasts[[#This Row],[Max]]-Forecasts[[#This Row],[Min]]), "") ->  | K158: =IF(Forecasts[[#This Row],[Type]]="Range", Forecasts[[#This Row],[Min]]-0.01*(Forecasts[[#This Row],[Max]]-Forecasts[[#This Row],[Min]]), "") -> 
A159: =10000+ROW(Forecasts[#This Row])-3 -> 10156 | B159: By 1997, Bill Gates was worth more than $10 billion. | C159: Binary | D159: Yes | F159: 1 | H159: =IF(Forecasts[[#This Row],[Type]]="Range", MAX(Forecasts[[#This Row],[Outcome]], _xlfn.MAXIFS(AssignmentTable[P95], AssignmentTable[Forecast ID], Forecasts[[#This Row],[Forecast ID]])), "") ->  | I159: =IF(Forecasts[[#This Row],[Type]]="Range", MIN(Forecasts[[#This Row],[Outcome]], _xlfn.MINIFS(AssignmentTable[P5], AssignmentTable[Forecast ID], Forecasts[[#This Row],[Forecast ID]])), "") ->  | J159: =IF(Forecasts[[#This Row],[Type]]="Range", Forecasts[[#This Row],[Max]]+0.01*(Forecasts[[#This Row],[Max]]-Forecasts[[#This Row],[Min]]), "") ->  | K159: =IF(Forecasts[[#This Row],[Type]]="Range", Forecasts[[#This Row],[Min]]-0.01*(Forecasts[[#This Row],[Max]]-Forecasts[[#This Row],[Min]]), "") -> 
A160: =10000+ROW(Forecasts[#This Row])-3 -> 10157 | B160: Cannons were used in European warfare by the 11th century. | C160: Binary | D160: Yes | F160: 0 | H160: =IF(Forecasts[[#This Row],[Type]]="Range", MAX(Forecasts[[#This Row],[Outcome]], _xlfn.MAXIFS(AssignmentTable[P95], AssignmentTable[Forecast ID], Forecasts[[#This Row],[Forecast ID]])), "") ->  | I160: =IF(Forecasts[[#This Row],[Type]]="Range", MIN(Forecasts[[#This Row],[Outcome]], _xlfn.MINIFS(AssignmentTable[P5], AssignmentTable[Forecast ID], Forecasts[[#This Row],[Forecast ID]])), "") ->  | J160: =IF(Forecasts[[#This Row],[Type]]="Range", Forecasts[[#This Row],[Max]]+0.01*(Forecasts[[#This Row],[Max]]-Forecasts[[#This Row],[Min]]), "") ->  | K160: =IF(Forecasts[[#This Row],[Type]]="Range", Forecasts[[#This Row],[Min]]-0.01*(Forecasts[[#This Row],[Max]]-Forecasts[[#This Row],[Min]]), "") -> 
A161: =10000+ROW(Forecasts[#This Row])-3 -> 10158 | B161: Anchorage is the capital of Alaska. | C161: Binary | D161: Yes | F161: 0 | H161: =IF(Forecasts[[#This Row],[Type]]="Range", MAX(Forecasts[[#This Row],[Outcome]], _xlfn.MAXIFS(AssignmentTable[P95], AssignmentTable[Forecast ID], Forecasts[[#This Row],[Forecast ID]])), "") ->  | I161: =IF(Forecasts[[#This Row],[Type]]="Range", MIN(Forecasts[[#This Row],[Outcome]], _xlfn.MINIFS(AssignmentTable[P5], AssignmentTable[Forecast ID], Forecasts[[#This Row],[Forecast ID]])), "") ->  | J161: =IF(Forecasts[[#This Row],[Type]]="Range", Forecasts[[#This Row],[Max]]+0.01*(Forecasts[[#This Row],[Max]]-Forecasts[[#This Row],[Min]]), "") ->  | K161: =IF(Forecasts[[#This Row],[Type]]="Range", Forecasts[[#This Row],[Min]]-0.01*(Forecasts[[#This Row],[Max]]-Forecasts[[#This Row],[Min]]), "") -> 
A162: =10000+ROW(Forecasts[#This Row])-3 -> 10159 | B162: Washington, Jefferson, Lincoln, and Grant are the four presidents' heads sculpted into Mount Rushmore. | C162: Binary | D162: Yes | F162: 0 | H162: =IF(Forecasts[[#This Row],[Type]]="Range", MAX(Forecasts[[#This Row],[Outcome]], _xlfn.MAXIFS(AssignmentTable[P95], AssignmentTable[Forecast ID], Forecasts[[#This Row],[Forecast ID]])), "") ->  | I162: =IF(Forecasts[[#This Row],[Type]]="Range", MIN(Forecasts[[#This Row],[Outcome]], _xlfn.MINIFS(AssignmentTable[P5], AssignmentTable[Forecast ID], Forecasts[[#This Row],[Forecast ID]])), "") ->  | J162: =IF(Forecasts[[#This Row],[Type]]="Range", Forecasts[[#This Row],[Max]]+0.01*(Forecasts[[#This Row],[Max]]-Forecasts[[#This Row],[Min]]), "") ->  | K162: =IF(Forecasts[[#This Row],[Type]]="Range", Forecasts[[#This Row],[Min]]-0.01*(Forecasts[[#This Row],[Max]]-Forecasts[[#This Row],[Min]]), "") -> 
A163: =10000+ROW(Forecasts[#This Row])-3 -> 10160 | B163: John Wiley & Sons is not the world's largest book publisher. | C163: Binary | D163: Yes | F163: 1 | H163: =IF(Forecasts[[#This Row],[Type]]="Range", MAX(Forecasts[[#This Row],[Outcome]], _xlfn.MAXIFS(AssignmentTable[P95], AssignmentTable[Forecast ID], Forecasts[[#This Row],[Forecast ID]])), "") ->  | I163: =IF(Forecasts[[#This Row],[Type]]="Range", MIN(Forecasts[[#This Row],[Outcome]], _xlfn.MINIFS(AssignmentTable[P5], AssignmentTable[Forecast ID], Forecasts[[#This Row],[Forecast ID]])), "") ->  | J163: =IF(Forecasts[[#This Row],[Type]]="Range", Forecasts[[#This Row],[Max]]+0.01*(Forecasts[[#This Row],[Max]]-Forecasts[[#This Row],[Min]]), "") ->  | K163: =IF(Forecasts[[#This Row],[Type]]="Range", Forecasts[[#This Row],[Min]]-0.01*(Forecasts[[#This Row],[Max]]-Forecasts[[#This Row],[Min]]), "") -> 
A164: =10000+ROW(Forecasts[#This Row])-3 -> 10161 | B164: Jupiter's "Great Red Spot" is larger than the Earth. | C164: Binary | D164: Yes | F164: 1 | H164: =IF(Forecasts[[#This Row],[Type]]="Range", MAX(Forecasts[[#This Row],[Outcome]], _xlfn.MAXIFS(AssignmentTable[P95], AssignmentTable[Forecast ID], Forecasts[[#This Row],[Forecast ID]])), "") ->  | I164: =IF(Forecasts[[#This Row],[Type]]="Range", MIN(Forecasts[[#This Row],[Outcome]], _xlfn.MINIFS(AssignmentTable[P5], AssignmentTable[Forecast ID], Forecasts[[#This Row],[Forecast ID]])), "") ->  | J164: =IF(Forecasts[[#This Row],[Type]]="Range", Forecasts[[#This Row],[Max]]+0.01*(Forecasts[[#This Row],[Max]]-Forecasts[[#This Row],[Min]]), "") ->  | K164: =IF(Forecasts[[#This Row],[Type]]="Range", Forecasts[[#This Row],[Min]]-0.01*(Forecasts[[#This Row],[Max]]-Forecasts[[#This Row],[Min]]), "") -> 
A165: =10000+ROW(Forecasts[#This Row])-3 -> 10162 | B165: The Brooklyn Dodgers’ team nickname was shortened from the original “Trolley Dodgers.” | C165: Binary | D165: Yes | F165: 1 | H165: =IF(Forecasts[[#This Row],[Type]]="Range", MAX(Forecasts[[#This Row],[Outcome]], _xlfn.MAXIFS(AssignmentTable[P95], AssignmentTable[Forecast ID], Forecasts[[#This Row],[Forecast ID]])), "") ->  | I165: =IF(Forecasts[[#This Row],[Type]]="Range", MIN(Forecasts[[#This Row],[Outcome]], _xlfn.MINIFS(AssignmentTable[P5], AssignmentTable[Forecast ID], Forecasts[[#This Row],[Forecast ID]])), "") ->  | J165: =IF(Forecasts[[#This Row],[Type]]="Range", Forecasts[[#This Row],[Max]]+0.01*(Forecasts[[#This Row],[Max]]-Forecasts[[#This Row],[Min]]), "") ->  | K165: =IF(Forecasts[[#This Row],[Type]]="Range", Forecasts[[#This Row],[Min]]-0.01*(Forecasts[[#This Row],[Max]]-Forecasts[[#This Row],[Min]]), "") -> 
A166: =10000+ROW(Forecasts[#This Row])-3 -> 10163 | B166: "Hypersonic" is faster than "subsonic." | C166: Binary | D166: Yes | F166: 1 | H166: =IF(Forecasts[[#This Row],[Type]]="Range", MAX(Forecasts[[#This Row],[Outcome]], _xlfn.MAXIFS(AssignmentTable[P95], AssignmentTable[Forecast ID], Forecasts[[#This Row],[Forecast ID]])), "") ->  | I166: =IF(Forecasts[[#This Row],[Type]]="Range", MIN(Forecasts[[#This Row],[Outcome]], _xlfn.MINIFS(AssignmentTable[P5], AssignmentTable[Forecast ID], Forecasts[[#This Row],[Forecast ID]])), "") ->  | J166: =IF(Forecasts[[#This Row],[Type]]="Range", Forecasts[[#This Row],[Max]]+0.01*(Forecasts[[#This Row],[Max]]-Forecasts[[#This Row],[Min]]), "") ->  | K166: =IF(Forecasts[[#This Row],[Type]]="Range", Forecasts[[#This Row],[Min]]-0.01*(Forecasts[[#This Row],[Max]]-Forecasts[[#This Row],[Min]]), "") -> 
A167: =10000+ROW(Forecasts[#This Row])-3 -> 10164 | B167: A "polygon" is 3-dimensional, whereas a polyhedron is 2-dimensional. | C167: Binary | D167: Yes | F167: 0 | H167: =IF(Forecasts[[#This Row],[Type]]="Range", MAX(Forecasts[[#This Row],[Outcome]], _xlfn.MAXIFS(AssignmentTable[P95], AssignmentTable[Forecast ID], Forecasts[[#This Row],[Forecast ID]])), "") ->  | I167: =IF(Forecasts[[#This Row],[Type]]="Range", MIN(Forecasts[[#This Row],[Outcome]], _xlfn.MINIFS(AssignmentTable[P5], AssignmentTable[Forecast ID], Forecasts[[#This Row],[Forecast ID]])), "") ->  | J167: =IF(Forecasts[[#This Row],[Type]]="Range", Forecasts[[#This Row],[Max]]+0.01*(Forecasts[[#This Row],[Max]]-Forecasts[[#This Row],[Min]]), "") ->  | K167: =IF(Forecasts[[#This Row],[Type]]="Range", Forecasts[[#This Row],[Min]]-0.01*(Forecasts[[#This Row],[Max]]-Forecasts[[#This Row],[Min]]), "") -> 
A168: =10000+ROW(Forecasts[#This Row])-3 -> 10165 | B168: A one watt electric motor produces one horse power. | C168: Binary | D168: Yes | F168: 0 | H168: =IF(Forecasts[[#This Row],[Type]]="Range", MAX(Forecasts[[#This Row],[Outcome]], _xlfn.MAXIFS(AssignmentTable[P95], AssignmentTable[Forecast ID], Forecasts[[#This Row],[Forecast ID]])), "") ->  | I168: =IF(Forecasts[[#This Row],[Type]]="Range", MIN(Forecasts[[#This Row],[Outcome]], _xlfn.MINIFS(AssignmentTable[P5], AssignmentTable[Forecast ID], Forecasts[[#This Row],[Forecast ID]])), "") ->  | J168: =IF(Forecasts[[#This Row],[Type]]="Range", Forecasts[[#This Row],[Max]]+0.01*(Forecasts[[#This Row],[Max]]-Forecasts[[#This Row],[Min]]), "") ->  | K168: =IF(Forecasts[[#This Row],[Type]]="Range", Forecasts[[#This Row],[Min]]-0.01*(Forecasts[[#This Row],[Max]]-Forecasts[[#This Row],[Min]]), "") -> 
A169: =10000+ROW(Forecasts[#This Row])-3 -> 10166 | B169: Chicago is more populous than Boston. | C169: Binary | D169: Yes | F169: 1 | H169: =IF(Forecasts[[#This Row],[Type]]="Range", MAX(Forecasts[[#This Row],[Outcome]], _xlfn.MAXIFS(AssignmentTable[P95], AssignmentTable[Forecast ID], Forecasts[[#This Row],[Forecast ID]])), "") ->  | I169: =IF(Forecasts[[#This Row],[Type]]="Range", MIN(Forecasts[[#This Row],[Outcome]], _xlfn.MINIFS(AssignmentTable[P5], AssignmentTable[Forecast ID], Forecasts[[#This Row],[Forecast ID]])), "") ->  | J169: =IF(Forecasts[[#This Row],[Type]]="Range", Forecasts[[#This Row],[Max]]+0.01*(Forecasts[[#This Row],[Max]]-Forecasts[[#This Row],[Min]]), "") ->  | K169: =IF(Forecasts[[#This Row],[Type]]="Range", Forecasts[[#This Row],[Min]]-0.01*(Forecasts[[#This Row],[Max]]-Forecasts[[#This Row],[Min]]), "") -> 
A170: =10000+ROW(Forecasts[#This Row])-3 -> 10167 | B170: In 2005, Walmart sales dropped below $100 billion. | C170: Binary | D170: Yes | F170: 0 | H170: =IF(Forecasts[[#This Row],[Type]]="Range", MAX(Forecasts[[#This Row],[Outcome]], _xlfn.MAXIFS(AssignmentTable[P95], AssignmentTable[Forecast ID], Forecasts[[#This Row],[Forecast ID]])), "") ->  | I170: =IF(Forecasts[[#This Row],[Type]]="Range", MIN(Forecasts[[#This Row],[Outcome]], _xlfn.MINIFS(AssignmentTable[P5], AssignmentTable[Forecast ID], Forecasts[[#This Row],[Forecast ID]])), "") ->  | J170: =IF(Forecasts[[#This Row],[Type]]="Range", Forecasts[[#This Row],[Max]]+0.01*(Forecasts[[#This Row],[Max]]-Forecasts[[#This Row],[Min]]), "") ->  | K170: =IF(Forecasts[[#This Row],[Type]]="Range", Forecasts[[#This Row],[Min]]-0.01*(Forecasts[[#This Row],[Max]]-Forecasts[[#This Row],[Min]]), "") -> 
A171: =10000+ROW(Forecasts[#This Row])-3 -> 10168 | B171: Post-it Notes were invented by 3M. | C171: Binary | D171: Yes | F171: 1 | H171: =IF(Forecasts[[#This Row],[Type]]="Range", MAX(Forecasts[[#This Row],[Outcome]], _xlfn.MAXIFS(AssignmentTable[P95], AssignmentTable[Forecast ID], Forecasts[[#This Row],[Forecast ID]])), "") ->  | I171: =IF(Forecasts[[#This Row],[Type]]="Range", MIN(Forecasts[[#This Row],[Outcome]], _xlfn.MINIFS(AssignmentTable[P5], AssignmentTable[Forecast ID], Forecasts[[#This Row],[Forecast ID]])), "") ->  | J171: =IF(Forecasts[[#This Row],[Type]]="Range", Forecasts[[#This Row],[Max]]+0.01*(Forecasts[[#This Row],[Max]]-Forecasts[[#This Row],[Min]]), "") ->  | K171: =IF(Forecasts[[#This Row],[Type]]="Range", Forecasts[[#This Row],[Min]]-0.01*(Forecasts[[#This Row],[Max]]-Forecasts[[#This Row],[Min]]), "") -> 
A172: =10000+ROW(Forecasts[#This Row])-3 -> 10169 | B172: Alfred Nobel, who endowed the Nobel Prize, made his fortune in oil and explosives. | C172: Binary | D172: Yes | F172: 1 | H172: =IF(Forecasts[[#This Row],[Type]]="Range", MAX(Forecasts[[#This Row],[Outcome]], _xlfn.MAXIFS(AssignmentTable[P95], AssignmentTable[Forecast ID], Forecasts[[#This Row],[Forecast ID]])), "") ->  | I172: =IF(Forecasts[[#This Row],[Type]]="Range", MIN(Forecasts[[#This Row],[Outcome]], _xlfn.MINIFS(AssignmentTable[P5], AssignmentTable[Forecast ID], Forecasts[[#This Row],[Forecast ID]])), "") ->  | J172: =IF(Forecasts[[#This Row],[Type]]="Range", Forecasts[[#This Row],[Max]]+0.01*(Forecasts[[#This Row],[Max]]-Forecasts[[#This Row],[Min]]), "") ->  | K172: =IF(Forecasts[[#This Row],[Type]]="Range", Forecasts[[#This Row],[Min]]-0.01*(Forecasts[[#This Row],[Max]]-Forecasts[[#This Row],[Min]]), "") -> 
A173: =10000+ROW(Forecasts[#This Row])-3 -> 10170 | B173: A BTU is a measure of heat. | C173: Binary | D173: Yes | F173: 1 | H173: =IF(Forecasts[[#This Row],[Type]]="Range", MAX(Forecasts[[#This Row],[Outcome]], _xlfn.MAXIFS(AssignmentTable[P95], AssignmentTable[Forecast ID], Forecasts[[#This Row],[Forecast ID]])), "") ->  | I173: =IF(Forecasts[[#This Row],[Type]]="Range", MIN(Forecasts[[#This Row],[Outcome]], _xlfn.MINIFS(AssignmentTable[P5], AssignmentTable[Forecast ID], Forecasts[[#This Row],[Forecast ID]])), "") ->  | J173: =IF(Forecasts[[#This Row],[Type]]="Range", Forecasts[[#This Row],[Max]]+0.01*(Forecasts[[#This Row],[Max]]-Forecasts[[#This Row],[Min]]), "") ->  | K173: =IF(Forecasts[[#This Row],[Type]]="Range", Forecasts[[#This Row],[Min]]-0.01*(Forecasts[[#This Row],[Max]]-Forecasts[[#This Row],[Min]]), "") -> 
A174: =10000+ROW(Forecasts[#This Row])-3 -> 10171 | B174: The winner of the first Indianapolis 500 clocked an average speed of under 100 mph. | C174: Binary | D174: Yes | F174: 1 | H174: =IF(Forecasts[[#This Row],[Type]]="Range", MAX(Forecasts[[#This Row],[Outcome]], _xlfn.MAXIFS(AssignmentTable[P95], AssignmentTable[Forecast ID], Forecasts[[#This Row],[Forecast ID]])), "") ->  | I174: =IF(Forecasts[[#This Row],[Type]]="Range", MIN(Forecasts[[#This Row],[Outcome]], _xlfn.MINIFS(AssignmentTable[P5], AssignmentTable[Forecast ID], Forecasts[[#This Row],[Forecast ID]])), "") ->  | J174: =IF(Forecasts[[#This Row],[Type]]="Range", Forecasts[[#This Row],[Max]]+0.01*(Forecasts[[#This Row],[Max]]-Forecasts[[#This Row],[Min]]), "") ->  | K174: =IF(Forecasts[[#This Row],[Type]]="Range", Forecasts[[#This Row],[Min]]-0.01*(Forecasts[[#This Row],[Max]]-Forecasts[[#This Row],[Min]]), "") -> 
A175: =10000+ROW(Forecasts[#This Row])-3 -> 10172 | B175: Microsoft has more employees than IBM. | C175: Binary | D175: Yes | F175: 0 | H175: =IF(Forecasts[[#This Row],[Type]]="Range", MAX(Forecasts[[#This Row],[Outcome]], _xlfn.MAXIFS(AssignmentTable[P95], AssignmentTable[Forecast ID], Forecasts[[#This Row],[Forecast ID]])), "") ->  | I175: =IF(Forecasts[[#This Row],[Type]]="Range", MIN(Forecasts[[#This Row],[Outcome]], _xlfn.MINIFS(AssignmentTable[P5], AssignmentTable[Forecast ID], Forecasts[[#This Row],[Forecast ID]])), "") ->  | J175: =IF(Forecasts[[#This Row],[Type]]="Range", Forecasts[[#This Row],[Max]]+0.01*(Forecasts[[#This Row],[Max]]-Forecasts[[#This Row],[Min]]), "") ->  | K175: =IF(Forecasts[[#This Row],[Type]]="Range", Forecasts[[#This Row],[Min]]-0.01*(Forecasts[[#This Row],[Max]]-Forecasts[[#This Row],[Min]]), "") -> 
A176: =10000+ROW(Forecasts[#This Row])-3 -> 10173 | B176: Romania borders Hungary. | C176: Binary | D176: Yes | F176: 1 | H176: =IF(Forecasts[[#This Row],[Type]]="Range", MAX(Forecasts[[#This Row],[Outcome]], _xlfn.MAXIFS(AssignmentTable[P95], AssignmentTable[Forecast ID], Forecasts[[#This Row],[Forecast ID]])), "") ->  | I176: =IF(Forecasts[[#This Row],[Type]]="Range", MIN(Forecasts[[#This Row],[Outcome]], _xlfn.MINIFS(AssignmentTable[P5], AssignmentTable[Forecast ID], Forecasts[[#This Row],[Forecast ID]])), "") ->  | J176: =IF(Forecasts[[#This Row],[Type]]="Range", Forecasts[[#This Row],[Max]]+0.01*(Forecasts[[#This Row],[Max]]-Forecasts[[#This Row],[Min]]), "") ->  | K176: =IF(Forecasts[[#This Row],[Type]]="Range", Forecasts[[#This Row],[Min]]-0.01*(Forecasts[[#This Row],[Max]]-Forecasts[[#This Row],[Min]]), "") -> 
A177: =10000+ROW(Forecasts[#This Row])-3 -> 10174 | B177: Idaho is larger in area than Iraq. | C177: Binary | D177: Yes | F177: 0 | H177: =IF(Forecasts[[#This Row],[Type]]="Range", MAX(Forecasts[[#This Row],[Outcome]], _xlfn.MAXIFS(AssignmentTable[P95], AssignmentTable[Forecast ID], Forecasts[[#This Row],[Forecast ID]])), "") ->  | I177: =IF(Forecasts[[#This Row],[Type]]="Range", MIN(Forecasts[[#This Row],[Outcome]], _xlfn.MINIFS(AssignmentTable[P5], AssignmentTable[Forecast ID], Forecasts[[#This Row],[Forecast ID]])), "") ->  | J177: =IF(Forecasts[[#This Row],[Type]]="Range", Forecasts[[#This Row],[Max]]+0.01*(Forecasts[[#This Row],[Max]]-Forecasts[[#This Row],[Min]]), "") ->  | K177: =IF(Forecasts[[#This Row],[Type]]="Range", Forecasts[[#This Row],[Min]]-0.01*(Forecasts[[#This Row],[Max]]-Forecasts[[#This Row],[Min]]), "") -> 
A178: =10000+ROW(Forecasts[#This Row])-3 -> 10175 | B178: Casablanca is on the African continent. | C178: Binary | D178: Yes | F178: 1 | H178: =IF(Forecasts[[#This Row],[Type]]="Range", MAX(Forecasts[[#This Row],[Outcome]], _xlfn.MAXIFS(AssignmentTable[P95], AssignmentTable[Forecast ID], Forecasts[[#This Row],[Forecast ID]])), "") ->  | I178: =IF(Forecasts[[#This Row],[Type]]="Range", MIN(Forecasts[[#This Row],[Outcome]], _xlfn.MINIFS(AssignmentTable[P5], AssignmentTable[Forecast ID], Forecasts[[#This Row],[Forecast ID]])), "") ->  | J178: =IF(Forecasts[[#This Row],[Type]]="Range", Forecasts[[#This Row],[Max]]+0.01*(Forecasts[[#This Row],[Max]]-Forecasts[[#This Row],[Min]]), "") ->  | K178: =IF(Forecasts[[#This Row],[Type]]="Range", Forecasts[[#This Row],[Min]]-0.01*(Forecasts[[#This Row],[Max]]-Forecasts[[#This Row],[Min]]), "") -> 
A179: =10000+ROW(Forecasts[#This Row])-3 -> 10176 | B179: The first manmade plastic was invented in the 19th century. | C179: Binary | D179: Yes | F179: 1 | H179: =IF(Forecasts[[#This Row],[Type]]="Range", MAX(Forecasts[[#This Row],[Outcome]], _xlfn.MAXIFS(AssignmentTable[P95], AssignmentTable[Forecast ID], Forecasts[[#This Row],[Forecast ID]])), "") ->  | I179: =IF(Forecasts[[#This Row],[Type]]="Range", MIN(Forecasts[[#This Row],[Outcome]], _xlfn.MINIFS(AssignmentTable[P5], AssignmentTable[Forecast ID], Forecasts[[#This Row],[Forecast ID]])), "") ->  | J179: =IF(Forecasts[[#This Row],[Type]]="Range", Forecasts[[#This Row],[Max]]+0.01*(Forecasts[[#This Row],[Max]]-Forecasts[[#This Row],[Min]]), "") ->  | K179: =IF(Forecasts[[#This Row],[Type]]="Range", Forecasts[[#This Row],[Min]]-0.01*(Forecasts[[#This Row],[Max]]-Forecasts[[#This Row],[Min]]), "") -> 
A180: =10000+ROW(Forecasts[#This Row])-3 -> 10177 | B180: A chamois is an Alpine animal. | C180: Binary | D180: Yes | F180: 1 | H180: =IF(Forecasts[[#This Row],[Type]]="Range", MAX(Forecasts[[#This Row],[Outcome]], _xlfn.MAXIFS(AssignmentTable[P95], AssignmentTable[Forecast ID], Forecasts[[#This Row],[Forecast ID]])), "") ->  | I180: =IF(Forecasts[[#This Row],[Type]]="Range", MIN(Forecasts[[#This Row],[Outcome]], _xlfn.MINIFS(AssignmentTable[P5], AssignmentTable[Forecast ID], Forecasts[[#This Row],[Forecast ID]])), "") ->  | J180: =IF(Forecasts[[#This Row],[Type]]="Range", Forecasts[[#This Row],[Max]]+0.01*(Forecasts[[#This Row],[Max]]-Forecasts[[#This Row],[Min]]), "") ->  | K180: =IF(Forecasts[[#This Row],[Type]]="Range", Forecasts[[#This Row],[Min]]-0.01*(Forecasts[[#This Row],[Max]]-Forecasts[[#This Row],[Min]]), "") -> 
A181: =10000+ROW(Forecasts[#This Row])-3 -> 10178 | B181: The base of pyramid is in the shape of a square. | C181: Binary | D181: Yes | F181: 1 | H181: =IF(Forecasts[[#This Row],[Type]]="Range", MAX(Forecasts[[#This Row],[Outcome]], _xlfn.MAXIFS(AssignmentTable[P95], AssignmentTable[Forecast ID], Forecasts[[#This Row],[Forecast ID]])), "") ->  | I181: =IF(Forecasts[[#This Row],[Type]]="Range", MIN(Forecasts[[#This Row],[Outcome]], _xlfn.MINIFS(AssignmentTable[P5], AssignmentTable[Forecast ID], Forecasts[[#This Row],[Forecast ID]])), "") ->  | J181: =IF(Forecasts[[#This Row],[Type]]="Range", Forecasts[[#This Row],[Max]]+0.01*(Forecasts[[#This Row],[Max]]-Forecasts[[#This Row],[Min]]), "") ->  | K181: =IF(Forecasts[[#This Row],[Type]]="Range", Forecasts[[#This Row],[Min]]-0.01*(Forecasts[[#This Row],[Max]]-Forecasts[[#This Row],[Min]]), "") -> 
A182: =10000+ROW(Forecasts[#This Row])-3 -> 10179 | B182: Stonehenge is located on the largest British Island (Great Britain). | C182: Binary | D182: Yes | F182: 1 | H182: =IF(Forecasts[[#This Row],[Type]]="Range", MAX(Forecasts[[#This Row],[Outcome]], _xlfn.MAXIFS(AssignmentTable[P95], AssignmentTable[Forecast ID], Forecasts[[#This Row],[Forecast ID]])), "") ->  | I182: =IF(Forecasts[[#This Row],[Type]]="Range", MIN(Forecasts[[#This Row],[Outcome]], _xlfn.MINIFS(AssignmentTable[P5], AssignmentTable[Forecast ID], Forecasts[[#This Row],[Forecast ID]])), "") ->  | J182: =IF(Forecasts[[#This Row],[Type]]="Range", Forecasts[[#This Row],[Max]]+0.01*(Forecasts[[#This Row],[Max]]-Forecasts[[#This Row],[Min]]), "") ->  | K182: =IF(Forecasts[[#This Row],[Type]]="Range", Forecasts[[#This Row],[Min]]-0.01*(Forecasts[[#This Row],[Max]]-Forecasts[[#This Row],[Min]]), "") -> 
A183: =10000+ROW(Forecasts[#This Row])-3 -> 10180 | B183: Computer processors double in power every 3 months or less. | C183: Binary | D183: Yes | F183: 0 | H183: =IF(Forecasts[[#This Row],[Type]]="Range", MAX(Forecasts[[#This Row],[Outcome]], _xlfn.MAXIFS(AssignmentTable[P95], AssignmentTable[Forecast ID], Forecasts[[#This Row],[Forecast ID]])), "") ->  | I183: =IF(Forecasts[[#This Row],[Type]]="Range", MIN(Forecasts[[#This Row],[Outcome]], _xlfn.MINIFS(AssignmentTable[P5], AssignmentTable[Forecast ID], Forecasts[[#This Row],[Forecast ID]])), "") ->  | J183: =IF(Forecasts[[#This Row],[Type]]="Range", Forecasts[[#This Row],[Max]]+0.01*(Forecasts[[#This Row],[Max]]-Forecasts[[#This Row],[Min]]), "") ->  | K183: =IF(Forecasts[[#This Row],[Type]]="Range", Forecasts[[#This Row],[Min]]-0.01*(Forecasts[[#This Row],[Max]]-Forecasts[[#This Row],[Min]]), "") -> 
A184: =10000+ROW(Forecasts[#This Row])-3 -> 10181 | B184: The melting point of tin is higher than the melting point of aluminum. | C184: Binary | D184: Yes | F184: 0 | H184: =IF(Forecasts[[#This Row],[Type]]="Range", MAX(Forecasts[[#This Row],[Outcome]], _xlfn.MAXIFS(AssignmentTable[P95], AssignmentTable[Forecast ID], Forecasts[[#This Row],[Forecast ID]])), "") ->  | I184: =IF(Forecasts[[#This Row],[Type]]="Range", MIN(Forecasts[[#This Row],[Outcome]], _xlfn.MINIFS(AssignmentTable[P5], AssignmentTable[Forecast ID], Forecasts[[#This Row],[Forecast ID]])), "") ->  | J184: =IF(Forecasts[[#This Row],[Type]]="Range", Forecasts[[#This Row],[Max]]+0.01*(Forecasts[[#This Row],[Max]]-Forecasts[[#This Row],[Min]]), "") ->  | K184: =IF(Forecasts[[#This Row],[Type]]="Range", Forecasts[[#This Row],[Min]]-0.01*(Forecasts[[#This Row],[Max]]-Forecasts[[#This Row],[Min]]), "") -> 
A185: =10000+ROW(Forecasts[#This Row])-3 -> 10182 | B185: In English, the word “quality” is more frequently used that the word “speed.” | C185: Binary | D185: Yes | F185: 1 | H185: =IF(Forecasts[[#This Row],[Type]]="Range", MAX(Forecasts[[#This Row],[Outcome]], _xlfn.MAXIFS(AssignmentTable[P95], AssignmentTable[Forecast ID], Forecasts[[#This Row],[Forecast ID]])), "") ->  | I185: =IF(Forecasts[[#This Row],[Type]]="Range", MIN(Forecasts[[#This Row],[Outcome]], _xlfn.MINIFS(AssignmentTable[P5], AssignmentTable[Forecast ID], Forecasts[[#This Row],[Forecast ID]])), "") ->  | J185: =IF(Forecasts[[#This Row],[Type]]="Range", Forecasts[[#This Row],[Max]]+0.01*(Forecasts[[#This Row],[Max]]-Forecasts[[#This Row],[Min]]), "") ->  | K185: =IF(Forecasts[[#This Row],[Type]]="Range", Forecasts[[#This Row],[Min]]-0.01*(Forecasts[[#This Row],[Max]]-Forecasts[[#This Row],[Min]]), "") -> 
A186: =10000+ROW(Forecasts[#This Row])-3 -> 10183 | B186: Any male pig is referred to as a hog. | C186: Binary | D186: Yes | F186: 0 | H186: =IF(Forecasts[[#This Row],[Type]]="Range", MAX(Forecasts[[#This Row],[Outcome]], _xlfn.MAXIFS(AssignmentTable[P95], AssignmentTable[Forecast ID], Forecasts[[#This Row],[Forecast ID]])), "") ->  | I186: =IF(Forecasts[[#This Row],[Type]]="Range", MIN(Forecasts[[#This Row],[Outcome]], _xlfn.MINIFS(AssignmentTable[P5], AssignmentTable[Forecast ID], Forecasts[[#This Row],[Forecast ID]])), "") ->  | J186: =IF(Forecasts[[#This Row],[Type]]="Range", Forecasts[[#This Row],[Max]]+0.01*(Forecasts[[#This Row],[Max]]-Forecasts[[#This Row],[Min]]), "") ->  | K186: =IF(Forecasts[[#This Row],[Type]]="Range", Forecasts[[#This Row],[Min]]-0.01*(Forecasts[[#This Row],[Max]]-Forecasts[[#This Row],[Min]]), "") -> 
A187: =10000+ROW(Forecasts[#This Row])-3 -> 10184 | B187: California’s giant sequoia trees are named for an early 19th century leader of the Cherokee Indians. | C187: Binary | D187: Yes | F187: 1 | H187: =IF(Forecasts[[#This Row],[Type]]="Range", MAX(Forecasts[[#This Row],[Outcome]], _xlfn.MAXIFS(AssignmentTable[P95], AssignmentTable[Forecast ID], Forecasts[[#This Row],[Forecast ID]])), "") ->  | I187: =IF(Forecasts[[#This Row],[Type]]="Range", MIN(Forecasts[[#This Row],[Outcome]], _xlfn.MINIFS(AssignmentTable[P5], AssignmentTable[Forecast ID], Forecasts[[#This Row],[Forecast ID]])), "") ->  | J187: =IF(Forecasts[[#This Row],[Type]]="Range", Forecasts[[#This Row],[Max]]+0.01*(Forecasts[[#This Row],[Max]]-Forecasts[[#This Row],[Min]]), "") ->  | K187: =IF(Forecasts[[#This Row],[Type]]="Range", Forecasts[[#This Row],[Min]]-0.01*(Forecasts[[#This Row],[Max]]-Forecasts[[#This Row],[Min]]), "") -> 
A188: =10000+ROW(Forecasts[#This Row])-3 -> 10185 | B188: The Model T was the first car produced by Henry Ford. | C188: Binary | D188: Yes | F188: 0 | H188: =IF(Forecasts[[#This Row],[Type]]="Range", MAX(Forecasts[[#This Row],[Outcome]], _xlfn.MAXIFS(AssignmentTable[P95], AssignmentTable[Forecast ID], Forecasts[[#This Row],[Forecast ID]])), "") ->  | I188: =IF(Forecasts[[#This Row],[Type]]="Range", MIN(Forecasts[[#This Row],[Outcome]], _xlfn.MINIFS(AssignmentTable[P5], AssignmentTable[Forecast ID], Forecasts[[#This Row],[Forecast ID]])), "") ->  | J188: =IF(Forecasts[[#This Row],[Type]]="Range", Forecasts[[#This Row],[Max]]+0.01*(Forecasts[[#This Row],[Max]]-Forecasts[[#This Row],[Min]]), "") ->  | K188: =IF(Forecasts[[#This Row],[Type]]="Range", Forecasts[[#This Row],[Min]]-0.01*(Forecasts[[#This Row],[Max]]-Forecasts[[#This Row],[Min]]), "") -> 
A189: =10000+ROW(Forecasts[#This Row])-3 -> 10186 | B189: When rolling two dice, a roll of 7 is more likely than a 3. | C189: Binary | D189: Yes | F189: 1 | H189: =IF(Forecasts[[#This Row],[Type]]="Range", MAX(Forecasts[[#This Row],[Outcome]], _xlfn.MAXIFS(AssignmentTable[P95], AssignmentTable[Forecast ID], Forecasts[[#This Row],[Forecast ID]])), "") ->  | I189: =IF(Forecasts[[#This Row],[Type]]="Range", MIN(Forecasts[[#This Row],[Outcome]], _xlfn.MINIFS(AssignmentTable[P5], AssignmentTable[Forecast ID], Forecasts[[#This Row],[Forecast ID]])), "") ->  | J189: =IF(Forecasts[[#This Row],[Type]]="Range", Forecasts[[#This Row],[Max]]+0.01*(Forecasts[[#This Row],[Max]]-Forecasts[[#This Row],[Min]]), "") ->  | K189: =IF(Forecasts[[#This Row],[Type]]="Range", Forecasts[[#This Row],[Min]]-0.01*(Forecasts[[#This Row],[Max]]-Forecasts[[#This Row],[Min]]), "") -> 
A190: =10000+ROW(Forecasts[#This Row])-3 -> 10187 | B190: No one has ever been reported to have been hit by any object that fell from space. | C190: Binary | D190: Yes | F190: 0 | H190: =IF(Forecasts[[#This Row],[Type]]="Range", MAX(Forecasts[[#This Row],[Outcome]], _xlfn.MAXIFS(AssignmentTable[P95], AssignmentTable[Forecast ID], Forecasts[[#This Row],[Forecast ID]])), "") ->  | I190: =IF(Forecasts[[#This Row],[Type]]="Range", MIN(Forecasts[[#This Row],[Outcome]], _xlfn.MINIFS(AssignmentTable[P5], AssignmentTable[Forecast ID], Forecasts[[#This Row],[Forecast ID]])), "") ->  | J190: =IF(Forecasts[[#This Row],[Type]]="Range", Forecasts[[#This Row],[Max]]+0.01*(Forecasts[[#This Row],[Max]]-Forecasts[[#This Row],[Min]]), "") ->  | K190: =IF(Forecasts[[#This Row],[Type]]="Range", Forecasts[[#This Row],[Min]]-0.01*(Forecasts[[#This Row],[Max]]-Forecasts[[#This Row],[Min]]), "") -> 
A191: =10000+ROW(Forecasts[#This Row])-3 -> 10188 | B191: Sir Christopher Wren was a British anthropologist. | C191: Binary | D191: Yes | F191: 0 | H191: =IF(Forecasts[[#This Row],[Type]]="Range", MAX(Forecasts[[#This Row],[Outcome]], _xlfn.MAXIFS(AssignmentTable[P95], AssignmentTable[Forecast ID], Forecasts[[#This Row],[Forecast ID]])), "") ->  | I191: =IF(Forecasts[[#This Row],[Type]]="Range", MIN(Forecasts[[#This Row],[Outcome]], _xlfn.MINIFS(AssignmentTable[P5], AssignmentTable[Forecast ID], Forecasts[[#This Row],[Forecast ID]])), "") ->  | J191: =IF(Forecasts[[#This Row],[Type]]="Range", Forecasts[[#This Row],[Max]]+0.01*(Forecasts[[#This Row],[Max]]-Forecasts[[#This Row],[Min]]), "") ->  | K191: =IF(Forecasts[[#This Row],[Type]]="Range", Forecasts[[#This Row],[Min]]-0.01*(Forecasts[[#This Row],[Max]]-Forecasts[[#This Row],[Min]]), "") -> 
A192: =10000+ROW(Forecasts[#This Row])-3 -> 10189 | B192: Pakistan does not border Russia. | C192: Binary | D192: Yes | F192: 1 | H192: =IF(Forecasts[[#This Row],[Type]]="Range", MAX(Forecasts[[#This Row],[Outcome]], _xlfn.MAXIFS(AssignmentTable[P95], AssignmentTable[Forecast ID], Forecasts[[#This Row],[Forecast ID]])), "") ->  | I192: =IF(Forecasts[[#This Row],[Type]]="Range", MIN(Forecasts[[#This Row],[Outcome]], _xlfn.MINIFS(AssignmentTable[P5], AssignmentTable[Forecast ID], Forecasts[[#This Row],[Forecast ID]])), "") ->  | J192: =IF(Forecasts[[#This Row],[Type]]="Range", Forecasts[[#This Row],[Max]]+0.01*(Forecasts[[#This Row],[Max]]-Forecasts[[#This Row],[Min]]), "") ->  | K192: =IF(Forecasts[[#This Row],[Type]]="Range", Forecasts[[#This Row],[Min]]-0.01*(Forecasts[[#This Row],[Max]]-Forecasts[[#This Row],[Min]]), "") -> 
A193: =10000+ROW(Forecasts[#This Row])-3 -> 10190 | B193: Navy won the first Army-Navy football game. | C193: Binary | D193: Yes | F193: 1 | H193: =IF(Forecasts[[#This Row],[Type]]="Range", MAX(Forecasts[[#This Row],[Outcome]], _xlfn.MAXIFS(AssignmentTable[P95], AssignmentTable[Forecast ID], Forecasts[[#This Row],[Forecast ID]])), "") ->  | I193: =IF(Forecasts[[#This Row],[Type]]="Range", MIN(Forecasts[[#This Row],[Outcome]], _xlfn.MINIFS(AssignmentTable[P5], AssignmentTable[Forecast ID], Forecasts[[#This Row],[Forecast ID]])), "") ->  | J193: =IF(Forecasts[[#This Row],[Type]]="Range", Forecasts[[#This Row],[Max]]+0.01*(Forecasts[[#This Row],[Max]]-Forecasts[[#This Row],[Min]]), "") ->  | K193: =IF(Forecasts[[#This Row],[Type]]="Range", Forecasts[[#This Row],[Min]]-0.01*(Forecasts[[#This Row],[Max]]-Forecasts[[#This Row],[Min]]), "") -> 
A194: =10000+ROW(Forecasts[#This Row])-3 -> 10191 | B194: The paperback version of The DaVinci Code, as of July 2007, still ranks in the top 500 bestselling books on Amazon. | C194: Binary | D194: Yes | F194: 0 | H194: =IF(Forecasts[[#This Row],[Type]]="Range", MAX(Forecasts[[#This Row],[Outcome]], _xlfn.MAXIFS(AssignmentTable[P95], AssignmentTable[Forecast ID], Forecasts[[#This Row],[Forecast ID]])), "") ->  | I194: =IF(Forecasts[[#This Row],[Type]]="Range", MIN(Forecasts[[#This Row],[Outcome]], _xlfn.MINIFS(AssignmentTable[P5], AssignmentTable[Forecast ID], Forecasts[[#This Row],[Forecast ID]])), "") ->  | J194: =IF(Forecasts[[#This Row],[Type]]="Range", Forecasts[[#This Row],[Max]]+0.01*(Forecasts[[#This Row],[Max]]-Forecasts[[#This Row],[Min]]), "") ->  | K194: =IF(Forecasts[[#This Row],[Type]]="Range", Forecasts[[#This Row],[Min]]-0.01*(Forecasts[[#This Row],[Max]]-Forecasts[[#This Row],[Min]]), "") -> 
A195: =10000+ROW(Forecasts[#This Row])-3 -> 10192 | B195: Italian has more words than any other language. | C195: Binary | D195: Yes | F195: 0 | H195: =IF(Forecasts[[#This Row],[Type]]="Range", MAX(Forecasts[[#This Row],[Outcome]], _xlfn.MAXIFS(AssignmentTable[P95], AssignmentTable[Forecast ID], Forecasts[[#This Row],[Forecast ID]])), "") ->  | I195: =IF(Forecasts[[#This Row],[Type]]="Range", MIN(Forecasts[[#This Row],[Outcome]], _xlfn.MINIFS(AssignmentTable[P5], AssignmentTable[Forecast ID], Forecasts[[#This Row],[Forecast ID]])), "") ->  | J195: =IF(Forecasts[[#This Row],[Type]]="Range", Forecasts[[#This Row],[Max]]+0.01*(Forecasts[[#This Row],[Max]]-Forecasts[[#This Row],[Min]]), "") ->  | K195: =IF(Forecasts[[#This Row],[Type]]="Range", Forecasts[[#This Row],[Min]]-0.01*(Forecasts[[#This Row],[Max]]-Forecasts[[#This Row],[Min]]), "") -> 
A196: =10000+ROW(Forecasts[#This Row])-3 -> 10193 | B196: The month of August is named after a Greek god. | C196: Binary | D196: Yes | F196: 0 | H196: =IF(Forecasts[[#This Row],[Type]]="Range", MAX(Forecasts[[#This Row],[Outcome]], _xlfn.MAXIFS(AssignmentTable[P95], AssignmentTable[Forecast ID], Forecasts[[#This Row],[Forecast ID]])), "") ->  | I196: =IF(Forecasts[[#This Row],[Type]]="Range", MIN(Forecasts[[#This Row],[Outcome]], _xlfn.MINIFS(AssignmentTable[P5], AssignmentTable[Forecast ID], Forecasts[[#This Row],[Forecast ID]])), "") ->  | J196: =IF(Forecasts[[#This Row],[Type]]="Range", Forecasts[[#This Row],[Max]]+0.01*(Forecasts[[#This Row],[Max]]-Forecasts[[#This Row],[Min]]), "") ->  | K196: =IF(Forecasts[[#This Row],[Type]]="Range", Forecasts[[#This Row],[Min]]-0.01*(Forecasts[[#This Row],[Max]]-Forecasts[[#This Row],[Min]]), "") -> 
A197: =10000+ROW(Forecasts[#This Row])-3 -> 10194 | B197: The deepest ocean trench is deeper than the Grand Canyon. | C197: Binary | D197: Yes | F197: 1 | H197: =IF(Forecasts[[#This Row],[Type]]="Range", MAX(Forecasts[[#This Row],[Outcome]], _xlfn.MAXIFS(AssignmentTable[P95], AssignmentTable[Forecast ID], Forecasts[[#This Row],[Forecast ID]])), "") ->  | I197: =IF(Forecasts[[#This Row],[Type]]="Range", MIN(Forecasts[[#This Row],[Outcome]], _xlfn.MINIFS(AssignmentTable[P5], AssignmentTable[Forecast ID], Forecasts[[#This Row],[Forecast ID]])), "") ->  | J197: =IF(Forecasts[[#This Row],[Type]]="Range", Forecasts[[#This Row],[Max]]+0.01*(Forecasts[[#This Row],[Max]]-Forecasts[[#This Row],[Min]]), "") ->  | K197: =IF(Forecasts[[#This Row],[Type]]="Range", Forecasts[[#This Row],[Min]]-0.01*(Forecasts[[#This Row],[Max]]-Forecasts[[#This Row],[Min]]), "") -> 
A198: =10000+ROW(Forecasts[#This Row])-3 -> 10195 | B198: Abraham Lincoln was the first president born in a log cabin. | C198: Binary | D198: Yes | F198: 0 | H198: =IF(Forecasts[[#This Row],[Type]]="Range", MAX(Forecasts[[#This Row],[Outcome]], _xlfn.MAXIFS(AssignmentTable[P95], AssignmentTable[Forecast ID], Forecasts[[#This Row],[Forecast ID]])), "") ->  | I198: =IF(Forecasts[[#This Row],[Type]]="Range", MIN(Forecasts[[#This Row],[Outcome]], _xlfn.MINIFS(AssignmentTable[P5], AssignmentTable[Forecast ID], Forecasts[[#This Row],[Forecast ID]])), "") ->  | J198: =IF(Forecasts[[#This Row],[Type]]="Range", Forecasts[[#This Row],[Max]]+0.01*(Forecasts[[#This Row],[Max]]-Forecasts[[#This Row],[Min]]), "") ->  | K198: =IF(Forecasts[[#This Row],[Type]]="Range", Forecasts[[#This Row],[Min]]-0.01*(Forecasts[[#This Row],[Max]]-Forecasts[[#This Row],[Min]]), "") -> 
A199: =10000+ROW(Forecasts[#This Row])-3 -> 10196 | B199: In July 2007, more people searched Google for “Harry Potter” than “Hillary Clinton” (according to GoogleTrends). | C199: Binary | D199: Yes | F199: 1 | H199: =IF(Forecasts[[#This Row],[Type]]="Range", MAX(Forecasts[[#This Row],[Outcome]], _xlfn.MAXIFS(AssignmentTable[P95], AssignmentTable[Forecast ID], Forecasts[[#This Row],[Forecast ID]])), "") ->  | I199: =IF(Forecasts[[#This Row],[Type]]="Range", MIN(Forecasts[[#This Row],[Outcome]], _xlfn.MINIFS(AssignmentTable[P5], AssignmentTable[Forecast ID], Forecasts[[#This Row],[Forecast ID]])), "") ->  | J199: =IF(Forecasts[[#This Row],[Type]]="Range", Forecasts[[#This Row],[Max]]+0.01*(Forecasts[[#This Row],[Max]]-Forecasts[[#This Row],[Min]]), "") ->  | K199: =IF(Forecasts[[#This Row],[Type]]="Range", Forecasts[[#This Row],[Min]]-0.01*(Forecasts[[#This Row],[Max]]-Forecasts[[#This Row],[Min]]), "") -> 
A200: =10000+ROW(Forecasts[#This Row])-3 -> 10197 | B200: The population of Alabama is higher than the population of Arizona. | C200: Binary | D200: Yes | F200: 0 | H200: =IF(Forecasts[[#This Row],[Type]]="Range", MAX(Forecasts[[#This Row],[Outcome]], _xlfn.MAXIFS(AssignmentTable[P95], AssignmentTable[Forecast ID], Forecasts[[#This Row],[Forecast ID]])), "") ->  | I200: =IF(Forecasts[[#This Row],[Type]]="Range", MIN(Forecasts[[#This Row],[Outcome]], _xlfn.MINIFS(AssignmentTable[P5], AssignmentTable[Forecast ID], Forecasts[[#This Row],[Forecast ID]])), "") ->  | J200: =IF(Forecasts[[#This Row],[Type]]="Range", Forecasts[[#This Row],[Max]]+0.01*(Forecasts[[#This Row],[Max]]-Forecasts[[#This Row],[Min]]), "") ->  | K200: =IF(Forecasts[[#This Row],[Type]]="Range", Forecasts[[#This Row],[Min]]-0.01*(Forecasts[[#This Row],[Max]]-Forecasts[[#This Row],[Min]]), "") -> 
... 23 more rows

Sheet Forecasters
A1: Forecasters Table | V1: Use Cooke | W1: 1 | X1: 0 | Y1: <- For data validation
A2: Introduction: In this table, you will list the individuals that are making Forecasts. The Forecaster ID is populated automatically for you. Simply fill in the name, state date of forecasts, and whether to include them in a subgroup as a deicion-maker. The state date of forecasts value should be the date at which you want to start considering that Forecaster's Forecasts. For example, you might choose to compute performance weights based only on Forecasts made within the last twelve months. If left blank, the performance weights will be computed based on all Forecasts provided by a Forecaster. Performance weights are calculated for each Forecaster based on their Forecasts on both range and binary type questions. The weights are normalized within the subgroup identified so that the sum of all weights is equal to 1. | S2: Use Cooke | V2: Use Brier | W2: 0 | X2: 1
A3: Forecaster ID | B3: Name | C3: Start Date of Forecasts | D3: Include in Subgroup for Normalization | E3: Num in Quantile 1 | F3: Num in Quantile 2 | G3: Num in Quantile 3 | H3: Total Num Forecasts | I3: Exp in Quantile 1 | J3: Exp in Quantile 2 | K3: Exp in Quantile 3 | L3: Range Cal Score | M3: Range Info Score | N3: Range Raw Weight | O3: Binary Raw Weight | P3: Range Wt Normalized on [0,1] | Q3: Binary Wt Normalized on [0,1] | R3: Total Wt | S3: Total Wt Normalized across Subgroup | V3: Use Cooke and Brier | W3: 0.5 | X3: 0.5
A4: =20000+ROW(Forecasters[#This Row])-3 -> 20001 | B4: Jaiden Lindsey | D4: 1 | E4: =IF(ISBLANK(Forecasters[[#This Row],[Start Date of Forecasts]]), COUNTIFS(AssignmentTable[Forecaster ID], Forecasters[[#This Row],[Forecaster ID]], AssignmentTable[Outcome Quantile], 1), COUNTIFS(AssignmentTable[Forecaster ID], Forecasters[[#This Row],[Forecaster ID]], AssignmentTable[Outcome Quantile], 1, AssignmentTable[Date of Forecast], ">="&Forecasters[[#This Row],[Start Date of Forecasts]])) -> 10 | F4: =IF(ISBLANK(Forecasters[[#This Row],[Start Date of Forecasts]]), COUNTIFS(AssignmentTable[Forecaster ID], Forecasters[[#This Row],[Forecaster ID]], AssignmentTable[Outcome Quantile], 2), COUNTIFS(AssignmentTable[Forecaster ID], Forecasters[[#This Row],[Forecaster ID]], AssignmentTable[Outcome Quantile], 2, AssignmentTable[Date of Forecast], ">="&Forecasters[[#This Row],[Start Date of Forecasts]])) -> 10 | G4: =IF(ISBLANK(Forecasters[[#This Row],[Start Date of Forecasts]]), COUNTIFS(AssignmentTable[Forecaster ID], Forecasters[[#This Row],[Forecaster ID]], AssignmentTable[Outcome Quantile], 3), COUNTIFS(AssignmentTable[Forecaster ID], Forecasters[[#This Row],[Forecaster ID]], AssignmentTable[Outcome Quantile], 3, AssignmentTable[Date of Forecast], ">="&Forecasters[[#This Row],[Start Date of Forecasts]])) -> 10 | H4: =SUM(Forecasters[[#This Row],[Num in Quantile 1]:[Num in Quantile 3]]) -> 30 | I4: =0.05*Forecasters[[#This Row],[Total Num Forecasts]] -> 1.5 | J4: =0.9*Forecasters[[#This Row],[Total Num Forecasts]] -> 27 | K4: =0.05*Forecasters[[#This Row],[Total Num Forecasts]] -> 1.5 | L4: =IF(SUM(Forecasters[[#This Row],[Num in Quantile 1]:[Num in Quantile 3]])=0, 0, _xlfn.CHISQ.TEST(Forecasters[[#This Row],[Num in Quantile 1]:[Num in Quantile 3]], Forecasters[[#This Row],[Exp in Quantile 1]:[Exp in Quantile 3]])) -> 5.71745464e-24 | M4: =IFERROR(IF(ISBLANK(Forecasters[[#This Row],[Start Date of Forecasts]]), AVERAGEIFS(AssignmentTable[Range Info Score], AssignmentTable[Forecaster ID], Forecasters[[#This Row],[Forecaster ID]])-1, AVERAGEIFS(AssignmentTable[Range Info Score], AssignmentTable[Forecaster ID], Forecasters[[#This Row],[Forecaster ID]], AssignmentTable[Date of Forecast], ">="&Forecasters[[#This Row],[Start Date of Forecasts]])-1), 0) -> 3.673080833 | N4: =Forecasters[[#This Row],[Range Info Score]]*Forecasters[[#This Row],[Range Cal Score]] -> 2.100067305e-23 | O4: =IFERROR(IF(ISBLANK(Forecasters[[#This Row],[Start Date of Forecasts]]), AVERAGEIFS(AssignmentTable[Brier], AssignmentTable[Forecaster ID], Forecasters[[#This Row],[Forecaster ID]]), AVERAGEIFS(AssignmentTable[Brier], AssignmentTable[Forecaster ID], Forecasters[[#This Row],[Forecaster ID]], AssignmentTable[Date of Forecast], ">="&Forecasters[[#This Row],[Start Date of Forecasts]])), 0) -> 0.6991666667 | P4: =IFERROR(Forecasters[[#This Row],[Range Raw Weight]]/MAX(Forecasters[Range Raw Weight]), 0) -> 6.861548306e-22 | Q4: =Forecasters[[#This Row],[Binary Raw Weight]]/MAX(Forecasters[Binary Raw Weight]) -> 0.7768518519 | R4: =IF($S$2=$V$4,1,INDEX($W$1:$W$3,MATCH($S$2,$V$1:$V$3,0),1)*Forecasters[[#This Row],[Range Wt Normalized on '[0,1']]]+INDEX($X$1:$X$3,MATCH($S$2,$V$1:$V$3,0),1)*Forecasters[[#This Row],[Binary Wt Normalized on '[0,1']]]) -> 6.861548306e-22 | S4: =IF(Forecasters[[#This Row],[Include in Subgroup for Normalization]]=0, 0, Forecasters[[#This Row],[Total Wt]]/SUMIF(Forecasters[Include in Subgroup for Normalization], 1, Forecasters[Total Wt])) -> 6.070234502e-22 | V4: Average Everyone
A5: =20000+ROW(Forecasters[#This Row])-3 -> 20002 | B5: Baylee Olson | D5: 1 | E5: =IF(ISBLANK(Forecasters[[#This Row],[Start Date of Forecasts]]), COUNTIFS(AssignmentTable[Forecaster ID], Forecasters[[#This Row],[Forecaster ID]], AssignmentTable[Outcome Quantile], 1), COUNTIFS(AssignmentTable[Forecaster ID], Forecasters[[#This Row],[Forecaster ID]], AssignmentTable[Outcome Quantile], 1, AssignmentTable[Date of Forecast], ">="&Forecasters[[#This Row],[Start Date of Forecasts]])) -> 4 | F5: =IF(ISBLANK(Forecasters[[#This Row],[Start Date of Forecasts]]), COUNTIFS(AssignmentTable[Forecaster ID], Forecasters[[#This Row],[Forecaster ID]], AssignmentTable[Outcome Quantile], 2), COUNTIFS(AssignmentTable[Forecaster ID], Forecasters[[#This Row],[Forecaster ID]], AssignmentTable[Outcome Quantile], 2, AssignmentTable[Date of Forecast], ">="&Forecasters[[#This Row],[Start Date of Forecasts]])) -> 21 | G5: =IF(ISBLANK(Forecasters[[#This Row],[Start Date of Forecasts]]), COUNTIFS(AssignmentTable[Forecaster ID], Forecasters[[#This Row],[Forecaster ID]], AssignmentTable[Outcome Quantile], 3), COUNTIFS(AssignmentTable[Forecaster ID], Forecasters[[#This Row],[Forecaster ID]], AssignmentTable[Outcome Quantile], 3, AssignmentTable[Date of Forecast], ">="&Forecasters[[#This Row],[Start Date of Forecasts]])) -> 5 | H5: =SUM(Forecasters[[#This Row],[Num in Quantile 1]:[Num in Quantile 3]]) -> 30 | I5: =0.05*Forecasters[[#This Row],[Total Num Forecasts]] -> 1.5 | J5: =0.9*Forecasters[[#This Row],[Total Num Forecasts]] -> 27 | K5: =0.05*Forecasters[[#This Row],[Total Num Forecasts]] -> 1.5 | L5: =IF(SUM(Forecasters[[#This Row],[Num in Quantile 1]:[Num in Quantile 3]])=0, 0, _xlfn.CHISQ.TEST(Forecasters[[#This Row],[Num in Quantile 1]:[Num in Quantile 3]], Forecasters[[#This Row],[Exp in Quantile 1]:[Exp in Quantile 3]])) -> 0.001077261255 | M5: =IFERROR(IF(ISBLANK(Forecasters[[#This Row],[Start Date of Forecasts]]), AVERAGEIFS(AssignmentTable[Range Info Score], AssignmentTable[Forecaster ID], Forecasters[[#This Row],[Forecaster ID]])-1, AVERAGEIFS(AssignmentTable[Range Info Score], AssignmentTable[Forecaster ID], Forecasters[[#This Row],[Forecaster ID]], AssignmentTable[Date of Forecast], ">="&Forecasters[[#This Row],[Start Date of Forecasts]])-1), 0) -> 3.679908089 | N5: =Forecasters[[#This Row],[Range Info Score]]*Forecasters[[#This Row],[Range Cal Score]] -> 0.003964222407 | O5: =IFERROR(IF(ISBLANK(Forecasters[[#This Row],[Start Date of Forecasts]]), AVERAGEIFS(AssignmentTable[Brier], AssignmentTable[Forecaster ID], Forecasters[[#This Row],[Forecaster ID]]), AVERAGEIFS(AssignmentTable[Brier], AssignmentTable[Forecaster ID], Forecasters[[#This Row],[Forecaster ID]], AssignmentTable[Date of Forecast], ">="&Forecasters[[#This Row],[Start Date of Forecasts]])), 0) -> 0.7891666667 | P5: =IFERROR(Forecasters[[#This Row],[Range Raw Weight]]/MAX(Forecasters[Range Raw Weight]), 0) -> 0.1295230085 | Q5: =Forecasters[[#This Row],[Binary Raw Weight]]/MAX(Forecasters[Binary Raw Weight]) -> 0.8768518519 | R5: =IF($S$2=$V$4,1,INDEX($W$1:$W$3,MATCH($S$2,$V$1:$V$3,0),1)*Forecasters[[#This Row],[Range Wt Normalized on '[0,1']]]+INDEX($X$1:$X$3,MATCH($S$2,$V$1:$V$3,0),1)*Forecasters[[#This Row],[Binary Wt Normalized on '[0,1']]]) -> 0.1295230085 | S5: =IF(Forecasters[[#This Row],[Include in Subgroup for Normalization]]=0, 0, Forecasters[[#This Row],[Total Wt]]/SUMIF(Forecasters[Include in Subgroup for Normalization], 1, Forecasters[Total Wt])) -> 0.1145856591
A6: =20000+ROW(Forecasters[#This Row])-3 -> 20003 | B6: Mattie Cobb | D6: 1 | E6: =IF(ISBLANK(Forecasters[[#This Row],[Start Date of Forecasts]]), COUNTIFS(AssignmentTable[Forecaster ID], Forecasters[[#This Row],[Forecaster ID]], AssignmentTable[Outcome Quantile], 1), COUNTIFS(AssignmentTable[Forecaster ID], Forecasters[[#This Row],[Forecaster ID]], AssignmentTable[Outcome Quantile], 1, AssignmentTable[Date of Forecast], ">="&Forecasters[[#This Row],[Start Date of Forecasts]])) -> 11 | F6: =IF(ISBLANK(Forecasters[[#This Row],[Start Date of Forecasts]]), COUNTIFS(AssignmentTable[Forecaster ID], Forecasters[[#This Row],[Forecaster ID]], AssignmentTable[Outcome Quantile], 2), COUNTIFS(AssignmentTable[Forecaster ID], Forecasters[[#This Row],[Forecaster ID]], AssignmentTable[Outcome Quantile], 2, AssignmentTable[Date of Forecast], ">="&Forecasters[[#This Row],[Start Date of Forecasts]])) -> 12 | G6: =IF(ISBLANK(Forecasters[[#This Row],[Start Date of Forecasts]]), COUNTIFS(AssignmentTable[Forecaster ID], Forecasters[[#This Row],[Forecaster ID]], AssignmentTable[Outcome Quantile], 3), COUNTIFS(AssignmentTable[Forecaster ID], Forecasters[[#This Row],[Forecaster ID]], AssignmentTable[Outcome Quantile], 3, AssignmentTable[Date of Forecast], ">="&Forecasters[[#This Row],[Start Date of Forecasts]])) -> 7 | H6: =SUM(Forecasters[[#This Row],[Num in Quantile 1]:[Num in Quantile 3]]) -> 30 | I6: =0.05*Forecasters[[#This Row],[Total Num Forecasts]] -> 1.5 | J6: =0.9*Forecasters[[#This Row],[Total Num Forecasts]] -> 27 | K6: =0.05*Forecasters[[#This Row],[Total Num Forecasts]] -> 1.5 | L6: =IF(SUM(Forecasters[[#This Row],[Num in Quantile 1]:[Num in Quantile 3]])=0, 0, _xlfn.CHISQ.TEST(Forecasters[[#This Row],[Num in Quantile 1]:[Num in Quantile 3]], Forecasters[[#This Row],[Exp in Quantile 1]:[Exp in Quantile 3]])) -> 5.575424882e-20 | M6: =IFERROR(IF(ISBLANK(Forecasters[[#This Row],[Start Date of Forecasts]]), AVERAGEIFS(AssignmentTable[Range Info Score], AssignmentTable[Forecaster ID], Forecasters[[#This Row],[Forecaster ID]])-1, AVERAGEIFS(AssignmentTable[Range Info Score], AssignmentTable[Forecaster ID], Forecasters[[#This Row],[Forecaster ID]], AssignmentTable[Date of Forecast], ">="&Forecasters[[#This Row],[Start Date of Forecasts]])-1), 0) -> 4.073728726 | N6: =Forecasters[[#This Row],[Range Info Score]]*Forecasters[[#This Row],[Range Cal Score]] -> 2.27127685e-19 | O6: =IFERROR(IF(ISBLANK(Forecasters[[#This Row],[Start Date of Forecasts]]), AVERAGEIFS(AssignmentTable[Brier], AssignmentTable[Forecaster ID], Forecasters[[#This Row],[Forecaster ID]]), AVERAGEIFS(AssignmentTable[Brier], AssignmentTable[Forecaster ID], Forecasters[[#This Row],[Forecaster ID]], AssignmentTable[Date of Forecast], ">="&Forecasters[[#This Row],[Start Date of Forecasts]])), 0) -> 0.6454166667 | P6: =IFERROR(Forecasters[[#This Row],[Range Raw Weight]]/MAX(Forecasters[Range Raw Weight]), 0) -> 7.420941123e-18 | Q6: =Forecasters[[#This Row],[Binary Raw Weight]]/MAX(Forecasters[Binary Raw Weight]) -> 0.7171296296 | R6: =IF($S$2=$V$4,1,INDEX($W$1:$W$3,MATCH($S$2,$V$1:$V$3,0),1)*Forecasters[[#This Row],[Range Wt Normalized on '[0,1']]]+INDEX($X$1:$X$3,MATCH($S$2,$V$1:$V$3,0),1)*Forecasters[[#This Row],[Binary Wt Normalized on '[0,1']]]) -> 7.420941123e-18 | S6: =IF(Forecasters[[#This Row],[Include in Subgroup for Normalization]]=0, 0, Forecasters[[#This Row],[Total Wt]]/SUMIF(Forecasters[Include in Subgroup for Normalization], 1, Forecasters[Total Wt])) -> 6.565114874e-18
A7: =20000+ROW(Forecasters[#This Row])-3 -> 20004 | B7: Beckham Mcclure | D7: 1 | E7: =IF(ISBLANK(Forecasters[[#This Row],[Start Date of Forecasts]]), COUNTIFS(AssignmentTable[Forecaster ID], Forecasters[[#This Row],[Forecaster ID]], AssignmentTable[Outcome Quantile], 1), COUNTIFS(AssignmentTable[Forecaster ID], Forecasters[[#This Row],[Forecaster ID]], AssignmentTable[Outcome Quantile], 1, AssignmentTable[Date of Forecast], ">="&Forecasters[[#This Row],[Start Date of Forecasts]])) -> 3 | F7: =IF(ISBLANK(Forecasters[[#This Row],[Start Date of Forecasts]]), COUNTIFS(AssignmentTable[Forecaster ID], Forecasters[[#This Row],[Forecaster ID]], AssignmentTable[Outcome Quantile], 2), COUNTIFS(AssignmentTable[Forecaster ID], Forecasters[[#This Row],[Forecaster ID]], AssignmentTable[Outcome Quantile], 2, AssignmentTable[Date of Forecast], ">="&Forecasters[[#This Row],[Start Date of Forecasts]])) -> 17 | G7: =IF(ISBLANK(Forecasters[[#This Row],[Start Date of Forecasts]]), COUNTIFS(AssignmentTable[Forecaster ID], Forecasters[[#This Row],[Forecaster ID]], AssignmentTable[Outcome Quantile], 3), COUNTIFS(AssignmentTable[Forecaster ID], Forecasters[[#This Row],[Forecaster ID]], AssignmentTable[Outcome Quantile], 3, AssignmentTable[Date of Forecast], ">="&Forecasters[[#This Row],[Start Date of Forecasts]])) -> 10 | H7: =SUM(Forecasters[[#This Row],[Num in Quantile 1]:[Num in Quantile 3]]) -> 30 | I7: =0.05*Forecasters[[#This Row],[Total Num Forecasts]] -> 1.5 | J7: =0.9*Forecasters[[#This Row],[Total Num Forecasts]] -> 27 | K7: =0.05*Forecasters[[#This Row],[Total Num Forecasts]] -> 1.5 | L7: =IF(SUM(Forecasters[[#This Row],[Num in Quantile 1]:[Num in Quantile 3]])=0, 0, _xlfn.CHISQ.TEST(Forecasters[[#This Row],[Num in Quantile 1]:[Num in Quantile 3]], Forecasters[[#This Row],[Exp in Quantile 1]:[Exp in Quantile 3]])) -> 2.574964972e-12 | M7: =IFERROR(IF(ISBLANK(Forecasters[[#This Row],[Start Date of Forecasts]]), AVERAGEIFS(AssignmentTable[Range Info Score], AssignmentTable[Forecaster ID], Forecasters[[#This Row],[Forecaster ID]])-1, AVERAGEIFS(AssignmentTable[Range Info Score], AssignmentTable[Forecaster ID], Forecasters[[#This Row],[Forecaster ID]], AssignmentTable[Date of Forecast], ">="&Forecasters[[#This Row],[Start Date of Forecasts]])-1), 0) -> 4.78359005 | N7: =Forecasters[[#This Row],[Range Info Score]]*Forecasters[[#This Row],[Range Cal Score]] -> 1.231757682e-11 | O7: =IFERROR(IF(ISBLANK(Forecasters[[#This Row],[Start Date of Forecasts]]), AVERAGEIFS(AssignmentTable[Brier], AssignmentTable[Forecaster ID], Forecasters[[#This Row],[Forecaster ID]]), AVERAGEIFS(AssignmentTable[Brier], AssignmentTable[Forecaster ID], Forecasters[[#This Row],[Forecaster ID]], AssignmentTable[Date of Forecast], ">="&Forecasters[[#This Row],[Start Date of Forecasts]])), 0) -> 0.9 | P7: =IFERROR(Forecasters[[#This Row],[Range Raw Weight]]/MAX(Forecasters[Range Raw Weight]), 0) -> 4.024520936e-10 | Q7: =Forecasters[[#This Row],[Binary Raw Weight]]/MAX(Forecasters[Binary Raw Weight]) -> 1 | R7: =IF($S$2=$V$4,1,INDEX($W$1:$W$3,MATCH($S$2,$V$1:$V$3,0),1)*Forecasters[[#This Row],[Range Wt Normalized on '[0,1']]]+INDEX($X$1:$X$3,MATCH($S$2,$V$1:$V$3,0),1)*Forecasters[[#This Row],[Binary Wt Normalized on '[0,1']]]) -> 4.024520936e-10 | S7: =IF(Forecasters[[#This Row],[Include in Subgroup for Normalization]]=0, 0, Forecasters[[#This Row],[Total Wt]]/SUMIF(Forecasters[Include in Subgroup for Normalization], 1, Forecasters[Total Wt])) -> 3.560389689e-10
A8: =20000+ROW(Forecasters[#This Row])-3 -> 20005 | B8: Conner Gibson | D8: 1 | E8: =IF(ISBLANK(Forecasters[[#This Row],[Start Date of Forecasts]]), COUNTIFS(AssignmentTable[Forecaster ID], Forecasters[[#This Row],[Forecaster ID]], AssignmentTable[Outcome Quantile], 1), COUNTIFS(AssignmentTable[Forecaster ID], Forecasters[[#This Row],[Forecaster ID]], AssignmentTable[Outcome Quantile], 1, AssignmentTable[Date of Forecast], ">="&Forecasters[[#This Row],[Start Date of Forecasts]])) -> 9 | F8: =IF(ISBLANK(Forecasters[[#This Row],[Start Date of Forecasts]]), COUNTIFS(AssignmentTable[Forecaster ID], Forecasters[[#This Row],[Forecaster ID]], AssignmentTable[Outcome Quantile], 2), COUNTIFS(AssignmentTable[Forecaster ID], Forecasters[[#This Row],[Forecaster ID]], AssignmentTable[Outcome Quantile], 2, AssignmentTable[Date of Forecast], ">="&Forecasters[[#This Row],[Start Date of Forecasts]])) -> 14 | G8: =IF(ISBLANK(Forecasters[[#This Row],[Start Date of Forecasts]]), COUNTIFS(AssignmentTable[Forecaster ID], Forecasters[[#This Row],[Forecaster ID]], AssignmentTable[Outcome Quantile], 3), COUNTIFS(AssignmentTable[Forecaster ID], Forecasters[[#This Row],[Forecaster ID]], AssignmentTable[Outcome Quantile], 3, AssignmentTable[Date of Forecast], ">="&Forecasters[[#This Row],[Start Date of Forecasts]])) -> 7 | H8: =SUM(Forecasters[[#This Row],[Num in Quantile 1]:[Num in Quantile 3]]) -> 30 | I8: =0.05*Forecasters[[#This Row],[Total Num Forecasts]] -> 1.5 | J8: =0.9*Forecasters[[#This Row],[Total Num Forecasts]] -> 27 | K8: =0.05*Forecasters[[#This Row],[Total Num Forecasts]] -> 1.5 | L8: =IF(SUM(Forecasters[[#This Row],[Num in Quantile 1]:[Num in Quantile 3]])=0, 0, _xlfn.CHISQ.TEST(Forecasters[[#This Row],[Num in Quantile 1]:[Num in Quantile 3]], Forecasters[[#This Row],[Exp in Quantile 1]:[Exp in Quantile 3]])) -> 1.314200294e-14 | M8: =IFERROR(IF(ISBLANK(Forecasters[[#This Row],[Start Date of Forecasts]]), AVERAGEIFS(AssignmentTable[Range Info Score], AssignmentTable[Forecaster ID], Forecasters[[#This Row],[Forecaster ID]])-1, AVERAGEIFS(AssignmentTable[Range Info Score], AssignmentTable[Forecaster ID], Forecasters[[#This Row],[Forecaster ID]], AssignmentTable[Date of Forecast], ">="&Forecasters[[#This Row],[Start Date of Forecasts]])-1), 0) -> 3.650133044 | N8: =Forecasters[[#This Row],[Range Info Score]]*Forecasters[[#This Row],[Range Cal Score]] -> 4.797005918e-14 | O8: =IFERROR(IF(ISBLANK(Forecasters[[#This Row],[Start Date of Forecasts]]), AVERAGEIFS(AssignmentTable[Brier], AssignmentTable[Forecaster ID], Forecasters[[#This Row],[Forecaster ID]]), AVERAGEIFS(AssignmentTable[Brier], AssignmentTable[Forecaster ID], Forecasters[[#This Row],[Forecaster ID]], AssignmentTable[Date of Forecast], ">="&Forecasters[[#This Row],[Start Date of Forecasts]])), 0) -> 0.7308333333 | P8: =IFERROR(Forecasters[[#This Row],[Range Raw Weight]]/MAX(Forecasters[Range Raw Weight]), 0) -> 1.567325378e-12 | Q8: =Forecasters[[#This Row],[Binary Raw Weight]]/MAX(Forecasters[Binary Raw Weight]) -> 0.812037037 | R8: =IF($S$2=$V$4,1,INDEX($W$1:$W$3,MATCH($S$2,$V$1:$V$3,0),1)*Forecasters[[#This Row],[Range Wt Normalized on '[0,1']]]+INDEX($X$1:$X$3,MATCH($S$2,$V$1:$V$3,0),1)*Forecasters[[#This Row],[Binary Wt Normalized on '[0,1']]]) -> 1.567325378e-12 | S8: =IF(Forecasters[[#This Row],[Include in Subgroup for Normalization]]=0, 0, Forecasters[[#This Row],[Total Wt]]/SUMIF(Forecasters[Include in Subgroup for Normalization], 1, Forecasters[Total Wt])) -> 1.386572267e-12
A9: =20000+ROW(Forecasters[#This Row])-3 -> 20006 | B9: Larry Sawyer | D9: 1 | E9: =IF(ISBLANK(Forecasters[[#This Row],[Start Date of Forecasts]]), COUNTIFS(AssignmentTable[Forecaster ID], Forecasters[[#This Row],[Forecaster ID]], AssignmentTable[Outcome Quantile], 1), COUNTIFS(AssignmentTable[Forecaster ID], Forecasters[[#This Row],[Forecaster ID]], AssignmentTable[Outcome Quantile], 1, AssignmentTable[Date of Forecast], ">="&Forecasters[[#This Row],[Start Date of Forecasts]])) -> 12 | F9: =IF(ISBLANK(Forecasters[[#This Row],[Start Date of Forecasts]]), COUNTIFS(AssignmentTable[Forecaster ID], Forecasters[[#This Row],[Forecaster ID]], AssignmentTable[Outcome Quantile], 2), COUNTIFS(AssignmentTable[Forecaster ID], Forecasters[[#This Row],[Forecaster ID]], AssignmentTable[Outcome Quantile], 2, AssignmentTable[Date of Forecast], ">="&Forecasters[[#This Row],[Start Date of Forecasts]])) -> 8 | G9: =IF(ISBLANK(Forecasters[[#This Row],[Start Date of Forecasts]]), COUNTIFS(AssignmentTable[Forecaster ID], Forecasters[[#This Row],[Forecaster ID]], AssignmentTable[Outcome Quantile], 3), COUNTIFS(AssignmentTable[Forecaster ID], Forecasters[[#This Row],[Forecaster ID]], AssignmentTable[Outcome Quantile], 3, AssignmentTable[Date of Forecast], ">="&Forecasters[[#This Row],[Start Date of Forecasts]])) -> 10 | H9: =SUM(Forecasters[[#This Row],[Num in Quantile 1]:[Num in Quantile 3]]) -> 30 | I9: =0.05*Forecasters[[#This Row],[Total Num Forecasts]] -> 1.5 | J9: =0.9*Forecasters[[#This Row],[Total Num Forecasts]] -> 27 | K9: =0.05*Forecasters[[#This Row],[Total Num Forecasts]] -> 1.5 | L9: =IF(SUM(Forecasters[[#This Row],[Num in Quantile 1]:[Num in Quantile 3]])=0, 0, _xlfn.CHISQ.TEST(Forecasters[[#This Row],[Num in Quantile 1]:[Num in Quantile 3]], Forecasters[[#This Row],[Exp in Quantile 1]:[Exp in Quantile 3]])) -> 4.754227733e-30 | M9: =IFERROR(IF(ISBLANK(Forecasters[[#This Row],[Start Date of Forecasts]]), AVERAGEIFS(AssignmentTable[Range Info Score], AssignmentTable[Forecaster ID], Forecasters[[#This Row],[Forecaster ID]])-1, AVERAGEIFS(AssignmentTable[Range Info Score], AssignmentTable[Forecaster ID], Forecasters[[#This Row],[Forecaster ID]], AssignmentTable[Date of Forecast], ">="&Forecasters[[#This Row],[Start Date of Forecasts]])-1), 0) -> 4.187905047 | N9: =Forecasters[[#This Row],[Range Info Score]]*Forecasters[[#This Row],[Range Cal Score]] -> 1.991025432e-29 | O9: =IFERROR(IF(ISBLANK(Forecasters[[#This Row],[Start Date of Forecasts]]), AVERAGEIFS(AssignmentTable[Brier], AssignmentTable[Forecaster ID], Forecasters[[#This Row],[Forecaster ID]]), AVERAGEIFS(AssignmentTable[Brier], AssignmentTable[Forecaster ID], Forecasters[[#This Row],[Forecaster ID]], AssignmentTable[Date of Forecast], ">="&Forecasters[[#This Row],[Start Date of Forecasts]])), 0) -> 0.6709166667 | P9: =IFERROR(Forecasters[[#This Row],[Range Raw Weight]]/MAX(Forecasters[Range Raw Weight]), 0) -> 6.505275877e-28 | Q9: =Forecasters[[#This Row],[Binary Raw Weight]]/MAX(Forecasters[Binary Raw Weight]) -> 0.745462963 | R9: =IF($S$2=$V$4,1,INDEX($W$1:$W$3,MATCH($S$2,$V$1:$V$3,0),1)*Forecasters[[#This Row],[Range Wt Normalized on '[0,1']]]+INDEX($X$1:$X$3,MATCH($S$2,$V$1:$V$3,0),1)*Forecasters[[#This Row],[Binary Wt Normalized on '[0,1']]]) -> 6.505275877e-28 | S9: =IF(Forecasters[[#This Row],[Include in Subgroup for Normalization]]=0, 0, Forecasters[[#This Row],[Total Wt]]/SUMIF(Forecasters[Include in Subgroup for Normalization], 1, Forecasters[Total Wt])) -> 5.75504949e-28
A10: =20000+ROW(Forecasters[#This Row])-3 -> 20007 | B10: Tessa Ruiz | D10: 1 | E10: =IF(ISBLANK(Forecasters[[#This Row],[Start Date of Forecasts]]), COUNTIFS(AssignmentTable[Forecaster ID], Forecasters[[#This Row],[Forecaster ID]], AssignmentTable[Outcome Quantile], 1), COUNTIFS(AssignmentTable[Forecaster ID], Forecasters[[#This Row],[Forecaster ID]], AssignmentTable[Outcome Quantile], 1, AssignmentTable[Date of Forecast], ">="&Forecasters[[#This Row],[Start Date of Forecasts]])) -> 4 | F10: =IF(ISBLANK(Forecasters[[#This Row],[Start Date of Forecasts]]), COUNTIFS(AssignmentTable[Forecaster ID], Forecasters[[#This Row],[Forecaster ID]], AssignmentTable[Outcome Quantile], 2), COUNTIFS(AssignmentTable[Forecaster ID], Forecasters[[#This Row],[Forecaster ID]], AssignmentTable[Outcome Quantile], 2, AssignmentTable[Date of Forecast], ">="&Forecasters[[#This Row],[Start Date of Forecasts]])) -> 22 | G10: =IF(ISBLANK(Forecasters[[#This Row],[Start Date of Forecasts]]), COUNTIFS(AssignmentTable[Forecaster ID], Forecasters[[#This Row],[Forecaster ID]], AssignmentTable[Outcome Quantile], 3), COUNTIFS(AssignmentTable[Forecaster ID], Forecasters[[#This Row],[Forecaster ID]], AssignmentTable[Outcome Quantile], 3, AssignmentTable[Date of Forecast], ">="&Forecasters[[#This Row],[Start Date of Forecasts]])) -> 4 | H10: =SUM(Forecasters[[#This Row],[Num in Quantile 1]:[Num in Quantile 3]]) -> 30 | I10: =0.05*Forecasters[[#This Row],[Total Num Forecasts]] -> 1.5 | J10: =0.9*Forecasters[[#This Row],[Total Num Forecasts]] -> 27 | K10: =0.05*Forecasters[[#This Row],[Total Num Forecasts]] -> 1.5 | L10: =IF(SUM(Forecasters[[#This Row],[Num in Quantile 1]:[Num in Quantile 3]])=0, 0, _xlfn.CHISQ.TEST(Forecasters[[#This Row],[Num in Quantile 1]:[Num in Quantile 3]], Forecasters[[#This Row],[Exp in Quantile 1]:[Exp in Quantile 3]])) -> 0.009758372645 | M10: =IFERROR(IF(ISBLANK(Forecasters[[#This Row],[Start Date of Forecasts]]), AVERAGEIFS(AssignmentTable[Range Info Score], AssignmentTable[Forecaster ID], Forecasters[[#This Row],[Forecaster ID]])-1, AVERAGEIFS(AssignmentTable[Range Info Score], AssignmentTable[Forecaster ID], Forecasters[[#This Row],[Forecaster ID]], AssignmentTable[Date of Forecast], ">="&Forecasters[[#This Row],[Start Date of Forecasts]])-1), 0) -> 3.136416211 | N10: =Forecasters[[#This Row],[Range Info Score]]*Forecasters[[#This Row],[Range Cal Score]] -> 0.03060631816 | O10: =IFERROR(IF(ISBLANK(Forecasters[[#This Row],[Start Date of Forecasts]]), AVERAGEIFS(AssignmentTable[Brier], AssignmentTable[Forecaster ID], Forecasters[[#This Row],[Forecaster ID]]), AVERAGEIFS(AssignmentTable[Brier], AssignmentTable[Forecaster ID], Forecasters[[#This Row],[Forecaster ID]], AssignmentTable[Date of Forecast], ">="&Forecasters[[#This Row],[Start Date of Forecasts]])), 0) -> 0.7103333333 | P10: =IFERROR(Forecasters[[#This Row],[Range Raw Weight]]/MAX(Forecasters[Range Raw Weight]), 0) -> 1 | Q10: =Forecasters[[#This Row],[Binary Raw Weight]]/MAX(Forecasters[Binary Raw Weight]) -> 0.7892592593 | R10: =IF($S$2=$V$4,1,INDEX($W$1:$W$3,MATCH($S$2,$V$1:$V$3,0),1)*Forecasters[[#This Row],[Range Wt Normalized on '[0,1']]]+INDEX($X$1:$X$3,MATCH($S$2,$V$1:$V$3,0),1)*Forecasters[[#This Row],[Binary Wt Normalized on '[0,1']]]) -> 1 | S10: =IF(Forecasters[[#This Row],[Include in Subgroup for Normalization]]=0, 0, Forecasters[[#This Row],[Total Wt]]/SUMIF(Forecasters[Include in Subgroup for Normalization], 1, Forecasters[Total Wt])) -> 0.8846741627
A11: =20000+ROW(Forecasters[#This Row])-3 -> 20008 | B11: Kyan Cantrell | D11: 1 | E11: =IF(ISBLANK(Forecasters[[#This Row],[Start Date of Forecasts]]), COUNTIFS(AssignmentTable[Forecaster ID], Forecasters[[#This Row],[Forecaster ID]], AssignmentTable[Outcome Quantile], 1), COUNTIFS(AssignmentTable[Forecaster ID], Forecasters[[#This Row],[Forecaster ID]], AssignmentTable[Outcome Quantile], 1, AssignmentTable[Date of Forecast], ">="&Forecasters[[#This Row],[Start Date of Forecasts]])) -> 10 | F11: =IF(ISBLANK(Forecasters[[#This Row],[Start Date of Forecasts]]), COUNTIFS(AssignmentTable[Forecaster ID], Forecasters[[#This Row],[Forecaster ID]], AssignmentTable[Outcome Quantile], 2), COUNTIFS(AssignmentTable[Forecaster ID], Forecasters[[#This Row],[Forecaster ID]], AssignmentTable[Outcome Quantile], 2, AssignmentTable[Date of Forecast], ">="&Forecasters[[#This Row],[Start Date of Forecasts]])) -> 17 | G11: =IF(ISBLANK(Forecasters[[#This Row],[Start Date of Forecasts]]), COUNTIFS(AssignmentTable[Forecaster ID], Forecasters[[#This Row],[Forecaster ID]], AssignmentTable[Outcome Quantile], 3), COUNTIFS(AssignmentTable[Forecaster ID], Forecasters[[#This Row],[Forecaster ID]], AssignmentTable[Outcome Quantile], 3, AssignmentTable[Date of Forecast], ">="&Forecasters[[#This Row],[Start Date of Forecasts]])) -> 3 | H11: =SUM(Forecasters[[#This Row],[Num in Quantile 1]:[Num in Quantile 3]]) -> 30 | I11: =0.05*Forecasters[[#This Row],[Total Num Forecasts]] -> 1.5 | J11: =0.9*Forecasters[[#This Row],[Total Num Forecasts]] -> 27 | K11: =0.05*Forecasters[[#This Row],[Total Num Forecasts]] -> 1.5 | L11: =IF(SUM(Forecasters[[#This Row],[Num in Quantile 1]:[Num in Quantile 3]])=0, 0, _xlfn.CHISQ.TEST(Forecasters[[#This Row],[Num in Quantile 1]:[Num in Quantile 3]], Forecasters[[#This Row],[Exp in Quantile 1]:[Exp in Quantile 3]])) -> 2.574964972e-12 | M11: =IFERROR(IF(ISBLANK(Forecasters[[#This Row],[Start Date of Forecasts]]), AVERAGEIFS(AssignmentTable[Range Info Score], AssignmentTable[Forecaster ID], Forecasters[[#This Row],[Forecaster ID]])-1, AVERAGEIFS(AssignmentTable[Range Info Score], AssignmentTable[Forecaster ID], Forecasters[[#This Row],[Forecaster ID]], AssignmentTable[Date of Forecast], ">="&Forecasters[[#This Row],[Start Date of Forecasts]])-1), 0) -> 0.412451754 | N11: =Forecasters[[#This Row],[Range Info Score]]*Forecasters[[#This Row],[Range Cal Score]] -> 1.062048819e-12 | O11: =IFERROR(IF(ISBLANK(Forecasters[[#This Row],[Start Date of Forecasts]]), AVERAGEIFS(AssignmentTable[Brier], AssignmentTable[Forecaster ID], Forecasters[[#This Row],[Forecaster ID]]), AVERAGEIFS(AssignmentTable[Brier], AssignmentTable[Forecaster ID], Forecasters[[#This Row],[Forecaster ID]], AssignmentTable[Date of Forecast], ">="&Forecasters[[#This Row],[Start Date of Forecasts]])), 0) -> 0.7206666667 | P11: =IFERROR(Forecasters[[#This Row],[Range Raw Weight]]/MAX(Forecasters[Range Raw Weight]), 0) -> 3.470031297e-11 | Q11: =Forecasters[[#This Row],[Binary Raw Weight]]/MAX(Forecasters[Binary Raw Weight]) -> 0.8007407407 | R11: =IF($S$2=$V$4,1,INDEX($W$1:$W$3,MATCH($S$2,$V$1:$V$3,0),1)*Forecasters[[#This Row],[Range Wt Normalized on '[0,1']]]+INDEX($X$1:$X$3,MATCH($S$2,$V$1:$V$3,0),1)*Forecasters[[#This Row],[Binary Wt Normalized on '[0,1']]]) -> 3.470031297e-11 | S11: =IF(Forecasters[[#This Row],[Include in Subgroup for Normalization]]=0, 0, Forecasters[[#This Row],[Total Wt]]/SUMIF(Forecasters[Include in Subgroup for Normalization], 1, Forecasters[Total Wt])) -> 3.069847032e-11
A12: =20000+ROW(Forecasters[#This Row])-3 -> 20009 | B12: Bella Drake | D12: 1 | E12: =IF(ISBLANK(Forecasters[[#This Row],[Start Date of Forecasts]]), COUNTIFS(AssignmentTable[Forecaster ID], Forecasters[[#This Row],[Forecaster ID]], AssignmentTable[Outcome Quantile], 1), COUNTIFS(AssignmentTable[Forecaster ID], Forecasters[[#This Row],[Forecaster ID]], AssignmentTable[Outcome Quantile], 1, AssignmentTable[Date of Forecast], ">="&Forecasters[[#This Row],[Start Date of Forecasts]])) -> 12 | F12: =IF(ISBLANK(Forecasters[[#This Row],[Start Date of Forecasts]]), COUNTIFS(AssignmentTable[Forecaster ID], Forecasters[[#This Row],[Forecaster ID]], AssignmentTable[Outcome Quantile], 2), COUNTIFS(AssignmentTable[Forecaster ID], Forecasters[[#This Row],[Forecaster ID]], AssignmentTable[Outcome Quantile], 2, AssignmentTable[Date of Forecast], ">="&Forecasters[[#This Row],[Start Date of Forecasts]])) -> 6 | G12: =IF(ISBLANK(Forecasters[[#This Row],[Start Date of Forecasts]]), COUNTIFS(AssignmentTable[Forecaster ID], Forecasters[[#This Row],[Forecaster ID]], AssignmentTable[Outcome Quantile], 3), COUNTIFS(AssignmentTable[Forecaster ID], Forecasters[[#This Row],[Forecaster ID]], AssignmentTable[Outcome Quantile], 3, AssignmentTable[Date of Forecast], ">="&Forecasters[[#This Row],[Start Date of Forecasts]])) -> 12 | H12: =SUM(Forecasters[[#This Row],[Num in Quantile 1]:[Num in Quantile 3]]) -> 30 | I12: =0.05*Forecasters[[#This Row],[Total Num Forecasts]] -> 1.5 | J12: =0.9*Forecasters[[#This Row],[Total Num Forecasts]] -> 27 | K12: =0.05*Forecasters[[#This Row],[Total Num Forecasts]] -> 1.5 | L12: =IF(SUM(Forecasters[[#This Row],[Num in Quantile 1]:[Num in Quantile 3]])=0, 0, _xlfn.CHISQ.TEST(Forecasters[[#This Row],[Num in Quantile 1]:[Num in Quantile 3]], Forecasters[[#This Row],[Exp in Quantile 1]:[Exp in Quantile 3]])) -> 3.408923939e-36 | M12: =IFERROR(IF(ISBLANK(Forecasters[[#This Row],[Start Date of Forecasts]]), AVERAGEIFS(AssignmentTable[Range Info Score], AssignmentTable[Forecaster ID], Forecasters[[#This Row],[Forecaster ID]])-1, AVERAGEIFS(AssignmentTable[Range Info Score], AssignmentTable[Forecaster ID], Forecasters[[#This Row],[Forecaster ID]], AssignmentTable[Date of Forecast], ">="&Forecasters[[#This Row],[Start Date of Forecasts]])-1), 0) -> 4.345677965 | N12: =Forecasters[[#This Row],[Range Info Score]]*Forecasters[[#This Row],[Range Cal Score]] -> 1.481408565e-35 | O12: =IFERROR(IF(ISBLANK(Forecasters[[#This Row],[Start Date of Forecasts]]), AVERAGEIFS(AssignmentTable[Brier], AssignmentTable[Forecaster ID], Forecasters[[#This Row],[Forecaster ID]]), AVERAGEIFS(AssignmentTable[Brier], AssignmentTable[Forecaster ID], Forecasters[[#This Row],[Forecaster ID]], AssignmentTable[Date of Forecast], ">="&Forecasters[[#This Row],[Start Date of Forecasts]])), 0) -> 0.65625 | P12: =IFERROR(Forecasters[[#This Row],[Range Raw Weight]]/MAX(Forecasters[Range Raw Weight]), 0) -> 4.840205075e-34 | Q12: =Forecasters[[#This Row],[Binary Raw Weight]]/MAX(Forecasters[Binary Raw Weight]) -> 0.7291666667 | R12: =IF($S$2=$V$4,1,INDEX($W$1:$W$3,MATCH($S$2,$V$1:$V$3,0),1)*Forecasters[[#This Row],[Range Wt Normalized on '[0,1']]]+INDEX($X$1:$X$3,MATCH($S$2,$V$1:$V$3,0),1)*Forecasters[[#This Row],[Binary Wt Normalized on '[0,1']]]) -> 4.840205075e-34 | S12: =IF(Forecasters[[#This Row],[Include in Subgroup for Normalization]]=0, 0, Forecasters[[#This Row],[Total Wt]]/SUMIF(Forecasters[Include in Subgroup for Normalization], 1, Forecasters[Total Wt])) -> 4.282004372e-34
A13: =20000+ROW(Forecasters[#This Row])-3 -> 20010 | B13: Kiara Hess | D13: 1 | E13: =IF(ISBLANK(Forecasters[[#This Row],[Start Date of Forecasts]]), COUNTIFS(AssignmentTable[Forecaster ID], Forecasters[[#This Row],[Forecaster ID]], AssignmentTable[Outcome Quantile], 1), COUNTIFS(AssignmentTable[Forecaster ID], Forecasters[[#This Row],[Forecaster ID]], AssignmentTable[Outcome Quantile], 1, AssignmentTable[Date of Forecast], ">="&Forecasters[[#This Row],[Start Date of Forecasts]])) -> 7 | F13: =IF(ISBLANK(Forecasters[[#This Row],[Start Date of Forecasts]]), COUNTIFS(AssignmentTable[Forecaster ID], Forecasters[[#This Row],[Forecaster ID]], AssignmentTable[Outcome Quantile], 2), COUNTIFS(AssignmentTable[Forecaster ID], Forecasters[[#This Row],[Forecaster ID]], AssignmentTable[Outcome Quantile], 2, AssignmentTable[Date of Forecast], ">="&Forecasters[[#This Row],[Start Date of Forecasts]])) -> 20 | G13: =IF(ISBLANK(Forecasters[[#This Row],[Start Date of Forecasts]]), COUNTIFS(AssignmentTable[Forecaster ID], Forecasters[[#This Row],[Forecaster ID]], AssignmentTable[Outcome Quantile], 3), COUNTIFS(AssignmentTable[Forecaster ID], Forecasters[[#This Row],[Forecaster ID]], AssignmentTable[Outcome Quantile], 3, AssignmentTable[Date of Forecast], ">="&Forecasters[[#This Row],[Start Date of Forecasts]])) -> 3 | H13: =SUM(Forecasters[[#This Row],[Num in Quantile 1]:[Num in Quantile 3]]) -> 30 | I13: =0.05*Forecasters[[#This Row],[Total Num Forecasts]] -> 1.5 | J13: =0.9*Forecasters[[#This Row],[Total Num Forecasts]] -> 27 | K13: =0.05*Forecasters[[#This Row],[Total Num Forecasts]] -> 1.5 | L13: =IF(SUM(Forecasters[[#This Row],[Num in Quantile 1]:[Num in Quantile 3]])=0, 0, _xlfn.CHISQ.TEST(Forecasters[[#This Row],[Num in Quantile 1]:[Num in Quantile 3]], Forecasters[[#This Row],[Exp in Quantile 1]:[Exp in Quantile 3]])) -> 7.962713369e-06 | M13: =IFERROR(IF(ISBLANK(Forecasters[[#This Row],[Start Date of Forecasts]]), AVERAGEIFS(AssignmentTable[Range Info Score], AssignmentTable[Forecaster ID], Forecasters[[#This Row],[Forecaster ID]])-1, AVERAGEIFS(AssignmentTable[Range Info Score], AssignmentTable[Forecaster ID], Forecasters[[#This Row],[Forecaster ID]], AssignmentTable[Date of Forecast], ">="&Forecasters[[#This Row],[Start Date of Forecasts]])-1), 0) -> 3.215901579 | N13: =Forecasters[[#This Row],[Range Info Score]]*Forecasters[[#This Row],[Range Cal Score]] -> 2.56073025e-05 | O13: =IFERROR(IF(ISBLANK(Forecasters[[#This Row],[Start Date of Forecasts]]), AVERAGEIFS(AssignmentTable[Brier], AssignmentTable[Forecaster ID], Forecasters[[#This Row],[Forecaster ID]]), AVERAGEIFS(AssignmentTable[Brier], AssignmentTable[Forecaster ID], Forecasters[[#This Row],[Forecaster ID]], AssignmentTable[Date of Forecast], ">="&Forecasters[[#This Row],[Start Date of Forecasts]])), 0) -> 0.72325 | P13: =IFERROR(Forecasters[[#This Row],[Range Raw Weight]]/MAX(Forecasters[Range Raw Weight]), 0) -> 0.0008366671995 | Q13: =Forecasters[[#This Row],[Binary Raw Weight]]/MAX(Forecasters[Binary Raw Weight]) -> 0.8036111111 | R13: =IF($S$2=$V$4,1,INDEX($W$1:$W$3,MATCH($S$2,$V$1:$V$3,0),1)*Forecasters[[#This Row],[Range Wt Normalized on '[0,1']]]+INDEX($X$1:$X$3,MATCH($S$2,$V$1:$V$3,0),1)*Forecasters[[#This Row],[Binary Wt Normalized on '[0,1']]]) -> 0.0008366671995 | S13: =IF(Forecasters[[#This Row],[Include in Subgroup for Normalization]]=0, 0, Forecasters[[#This Row],[Total Wt]]/SUMIF(Forecasters[Include in Subgroup for Normalization], 1, Forecasters[Total Wt])) -> 0.0007401778541
A15: Ranges | B15: Quantile 1 | C15: Quantile 2 | D15: Quantile 3
A16: Aggregate SME | B16: =COUNTIFS(Forecasts[Outcome Quantile],1,Forecasts[Type],"RANGE") -> 4 | C16: =COUNTIFS(Forecasts[Outcome Quantile],2,Forecasts[Type],"RANGE") -> 22 | D16: =COUNTIFS(Forecasts[Outcome Quantile],3,Forecasts[Type],"RANGE") -> 4

Sheet Assignment Table
A1: Assignment Table - Forecasters Making Forecasts
A2: Introduction: This is where Forecasters make specific Forecasts. For range type questions, a Forecaster will provide a 90% confidence interval by filling out the P5 and P95 columns. For binary type questions, a Forecaster will fill out the probability of occurrence. It as assumed that each Forecaster will answer each Forecast. If a Forecaster decides to update a previous Forecast before the outcome is known, they can simply add a new row with their Forecaster ID, the Forecast ID, and an updated Date of Forecast.
A3: Forecaster ID | B3: Forecast ID | C3: Date of Forecast | D3: P5 | E3: P95 | F3: Probability of Occurrence | G3: Type | H3: Outcome | I3: Outcome Quantile | J3: U | K3: L | L3: Range Info Score | M3: Brier | N3: P5 weighted | O3: P95 weighted | P3: Probability of Occurance Weighted
A4: 20001 | B4: 10001 | C4: 42737.50167 | D4: 200 | E4: 2500 | G4: =IFERROR(INDEX(Forecasts[Type], MATCH(AssignmentTable[[#This Row],[Forecast ID]], Forecasts[Forecast ID], 0)), "") -> Range | H4: =IF(ISBLANK(AssignmentTable[[#This Row],[Forecast ID]]), "", INDEX(Forecasts[Outcome], MATCH(AssignmentTable[[#This Row],[Forecast ID]], Forecasts[Forecast ID], 0))) -> 203 | I4: =IF(OR(COUNTBLANK(AssignmentTable[[#This Row],[P5]:[P95]])>0, ISBLANK(AssignmentTable[[#This Row],[Outcome]])), "", IF(AssignmentTable[[#This Row],[Outcome]]<AssignmentTable[[#This Row],[P5]], 1, IF(AssignmentTable[[#This Row],[Outcome]]<AssignmentTable[[#This Row],[P95]], 2,3))) -> 2 | J4: =IFERROR(INDEX(Forecasts[U], MATCH(AssignmentTable[[#This Row],[Forecast ID]], Forecasts[Forecast ID], 0)), "") -> 2525 | K4: =IFERROR(INDEX(Forecasts[L], MATCH(AssignmentTable[[#This Row],[Forecast ID]], Forecasts[Forecast ID], 0)), "") -> -25 | L4: =IFERROR(LN((AssignmentTable[[#This Row],[U]]-AssignmentTable[[#This Row],[L]])/((AssignmentTable[[#This Row],[P5]]-AssignmentTable[[#This Row],[L]])^0.05*(AssignmentTable[[#This Row],[P95]]-AssignmentTable[[#This Row],[P5]])^0.9*(AssignmentTable[[#This Row],[U]]-AssignmentTable[[#This Row],[P95]])^0.05)),"") -> 0.4455018651 | M4: =IF(OR(ISBLANK(AssignmentTable[[#This Row],[Probability of Occurrence]]), ISBLANK(AssignmentTable[[#This Row],[Outcome]])), "", 1-(IF(AssignmentTable[[#This Row],[Outcome]]=1, 1, 0)-AssignmentTable[[#This Row],[Probability of Occurrence]])^2) ->  | N4: =IF(ISBLANK(AssignmentTable[[#This Row],[P5]]),"",INDEX(Forecasters[Total Wt Normalized across Subgroup],MATCH(AssignmentTable[[#This Row],[Forecaster ID]],Forecasters[Forecaster ID],0),1)*AssignmentTable[[#This Row],[P5]]) -> 1.2140469e-19 | O4: =IF(ISBLANK(AssignmentTable[[#This Row],[P95]]),"",INDEX(Forecasters[Total Wt Normalized across Subgroup],MATCH(AssignmentTable[[#This Row],[Forecaster ID]],Forecasters[Forecaster ID],0),1)*AssignmentTable[[#This Row],[P95]]) -> 1.517558626e-18 | P4: =IF(ISBLANK(AssignmentTable[[#This Row],[Probability of Occurrence]]),"",INDEX(Forecasters[Total Wt Normalized across Subgroup],MATCH(AssignmentTable[[#This Row],[Forecaster ID]],Forecasters[Forecaster ID],0),1)*AssignmentTable[[#This Row],[Probability of Occurrence]]) -> 
A5: 20001 | B5: 10002 | C5: 42738.82216 | D5: 1829 | E5: 1900 | G5: =IFERROR(INDEX(Forecasts[Type], MATCH(AssignmentTable[[#This Row],[Forecast ID]], Forecasts[Forecast ID], 0)), "") -> Range | H5: =IF(ISBLANK(AssignmentTable[[#This Row],[Forecast ID]]), "", INDEX(Forecasts[Outcome], MATCH(AssignmentTable[[#This Row],[Forecast ID]], Forecasts[Forecast ID], 0))) -> 1685 | I5: =IF(OR(COUNTBLANK(AssignmentTable[[#This Row],[P5]:[P95]])>0, ISBLANK(AssignmentTable[[#This Row],[Outcome]])), "", IF(AssignmentTable[[#This Row],[Outcome]]<AssignmentTable[[#This Row],[P5]], 1, IF(AssignmentTable[[#This Row],[Outcome]]<AssignmentTable[[#This Row],[P95]], 2,3))) -> 1 | J5: =IFERROR(INDEX(Forecasts[U], MATCH(AssignmentTable[[#This Row],[Forecast ID]], Forecasts[Forecast ID], 0)), "") -> 1955.5 | K5: =IFERROR(INDEX(Forecasts[L], MATCH(AssignmentTable[[#This Row],[Forecast ID]], Forecasts[Forecast ID], 0)), "") -> 1394.5 | L5: =IFERROR(LN((AssignmentTable[[#This Row],[U]]-AssignmentTable[[#This Row],[L]])/((AssignmentTable[[#This Row],[P5]]-AssignmentTable[[#This Row],[L]])^0.05*(AssignmentTable[[#This Row],[P95]]-AssignmentTable[[#This Row],[P5]])^0.9*(AssignmentTable[[#This Row],[U]]-AssignmentTable[[#This Row],[P95]])^0.05)),"") -> 1.988780068 | M5: =IF(OR(ISBLANK(AssignmentTable[[#This Row],[Probability of Occurrence]]), ISBLANK(AssignmentTable[[#This Row],[Outcome]])), "", 1-(IF(AssignmentTable[[#This Row],[Outcome]]=1, 1, 0)-AssignmentTable[[#This Row],[Probability of Occurrence]])^2) ->  | N5: =IF(ISBLANK(AssignmentTable[[#This Row],[P5]]),"",INDEX(Forecasters[Total Wt Normalized across Subgroup],MATCH(AssignmentTable[[#This Row],[Forecaster ID]],Forecasters[Forecaster ID],0),1)*AssignmentTable[[#This Row],[P5]]) -> 1.11024589e-18 | O5: =IF(ISBLANK(AssignmentTable[[#This Row],[P95]]),"",INDEX(Forecasters[Total Wt Normalized across Subgroup],MATCH(AssignmentTable[[#This Row],[Forecaster ID]],Forecasters[Forecaster ID],0),1)*AssignmentTable[[#This Row],[P95]]) -> 1.153344555e-18 | P5: =IF(ISBLANK(AssignmentTable[[#This Row],[Probability of Occurrence]]),"",INDEX(Forecasters[Total Wt Normalized across Subgroup],MATCH(AssignmentTable[[#This Row],[Forecaster ID]],Forecasters[Forecaster ID],0),1)*AssignmentTable[[#This Row],[Probability of Occurrence]]) -> 
A6: 20001 | B6: 10003 | C6: 42738.97291 | D6: 4 | E6: 10 | G6: =IFERROR(INDEX(Forecasts[Type], MATCH(AssignmentTable[[#This Row],[Forecast ID]], Forecasts[Forecast ID], 0)), "") -> Range | H6: =IF(ISBLANK(AssignmentTable[[#This Row],[Forecast ID]]), "", INDEX(Forecasts[Outcome], MATCH(AssignmentTable[[#This Row],[Forecast ID]], Forecasts[Forecast ID], 0))) -> 8.9 | I6: =IF(OR(COUNTBLANK(AssignmentTable[[#This Row],[P5]:[P95]])>0, ISBLANK(AssignmentTable[[#This Row],[Outcome]])), "", IF(AssignmentTable[[#This Row],[Outcome]]<AssignmentTable[[#This Row],[P5]], 1, IF(AssignmentTable[[#This Row],[Outcome]]<AssignmentTable[[#This Row],[P95]], 2,3))) -> 2 | J6: =IFERROR(INDEX(Forecasts[U], MATCH(AssignmentTable[[#This Row],[Forecast ID]], Forecasts[Forecast ID], 0)), "") -> 10.08 | K6: =IFERROR(INDEX(Forecasts[L], MATCH(AssignmentTable[[#This Row],[Forecast ID]], Forecasts[Forecast ID], 0)), "") -> 1.92 | L6: =IFERROR(LN((AssignmentTable[[#This Row],[U]]-AssignmentTable[[#This Row],[L]])/((AssignmentTable[[#This Row],[P5]]-AssignmentTable[[#This Row],[L]])^0.05*(AssignmentTable[[#This Row],[P95]]-AssignmentTable[[#This Row],[P5]])^0.9*(AssignmentTable[[#This Row],[U]]-AssignmentTable[[#This Row],[P95]])^0.05)),"") -> 0.5763286842 | M6: =IF(OR(ISBLANK(AssignmentTable[[#This Row],[Probability of Occurrence]]), ISBLANK(AssignmentTable[[#This Row],[Outcome]])), "", 1-(IF(AssignmentTable[[#This Row],[Outcome]]=1, 1, 0)-AssignmentTable[[#This Row],[Probability of Occurrence]])^2) ->  | N6: =IF(ISBLANK(AssignmentTable[[#This Row],[P5]]),"",INDEX(Forecasters[Total Wt Normalized across Subgroup],MATCH(AssignmentTable[[#This Row],[Forecaster ID]],Forecasters[Forecaster ID],0),1)*AssignmentTable[[#This Row],[P5]]) -> 2.428093801e-21 | O6: =IF(ISBLANK(AssignmentTable[[#This Row],[P95]]),"",INDEX(Forecasters[Total Wt Normalized across Subgroup],MATCH(AssignmentTable[[#This Row],[Forecaster ID]],Forecasters[Forecaster ID],0),1)*AssignmentTable[[#This Row],[P95]]) -> 6.070234502e-21 | P6: =IF(ISBLANK(AssignmentTable[[#This Row],[Probability of Occurrence]]),"",INDEX(Forecasters[Total Wt Normalized across Subgroup],MATCH(AssignmentTable[[#This Row],[Forecaster ID]],Forecasters[Forecaster ID],0),1)*AssignmentTable[[#This Row],[Probability of Occurrence]]) -> 
A7: 20001 | B7: 10004 | C7: 42746.27649 | D7: 1900 | E7: 1950 | G7: =IFERROR(INDEX(Forecasts[Type], MATCH(AssignmentTable[[#This Row],[Forecast ID]], Forecasts[Forecast ID], 0)), "") -> Range | H7: =IF(ISBLANK(AssignmentTable[[#This Row],[Forecast ID]]), "", INDEX(Forecasts[Outcome], MATCH(AssignmentTable[[#This Row],[Forecast ID]], Forecasts[Forecast ID], 0))) -> 1969 | I7: =IF(OR(COUNTBLANK(AssignmentTable[[#This Row],[P5]:[P95]])>0, ISBLANK(AssignmentTable[[#This Row],[Outcome]])), "", IF(AssignmentTable[[#This Row],[Outcome]]<AssignmentTable[[#This Row],[P5]], 1, IF(AssignmentTable[[#This Row],[Outcome]]<AssignmentTable[[#This Row],[P95]], 2,3))) -> 3 | J7: =IFERROR(INDEX(Forecasts[U], MATCH(AssignmentTable[[#This Row],[Forecast ID]], Forecasts[Forecast ID], 0)), "") -> 2001.6 | K7: =IFERROR(INDEX(Forecasts[L], MATCH(AssignmentTable[[#This Row],[Forecast ID]], Forecasts[Forecast ID], 0)), "") -> 1838.4 | L7: =IFERROR(LN((AssignmentTable[[#This Row],[U]]-AssignmentTable[[#This Row],[L]])/((AssignmentTable[[#This Row],[P5]]-AssignmentTable[[#This Row],[L]])^0.05*(AssignmentTable[[#This Row],[P95]]-AssignmentTable[[#This Row],[P5]])^0.9*(AssignmentTable[[#This Row],[U]]-AssignmentTable[[#This Row],[P95]])^0.05)),"") -> 1.17094656 | M7: =IF(OR(ISBLANK(AssignmentTable[[#This Row],[Probability of Occurrence]]), ISBLANK(AssignmentTable[[#This Row],[Outcome]])), "", 1-(IF(AssignmentTable[[#This Row],[Outcome]]=1, 1, 0)-AssignmentTable[[#This Row],[Probability of Occurrence]])^2) ->  | N7: =IF(ISBLANK(AssignmentTable[[#This Row],[P5]]),"",INDEX(Forecasters[Total Wt Normalized across Subgroup],MATCH(AssignmentTable[[#This Row],[Forecaster ID]],Forecasters[Forecaster ID],0),1)*AssignmentTable[[#This Row],[P5]]) -> 1.153344555e-18 | O7: =IF(ISBLANK(AssignmentTable[[#This Row],[P95]]),"",INDEX(Forecasters[Total Wt Normalized across Subgroup],MATCH(AssignmentTable[[#This Row],[Forecaster ID]],Forecasters[Forecaster ID],0),1)*AssignmentTable[[#This Row],[P95]]) -> 1.183695728e-18 | P7: =IF(ISBLANK(AssignmentTable[[#This Row],[Probability of Occurrence]]),"",INDEX(Forecasters[Total Wt Normalized across Subgroup],MATCH(AssignmentTable[[#This Row],[Forecaster ID]],Forecasters[Forecaster ID],0),1)*AssignmentTable[[#This Row],[Probability of Occurrence]]) -> 
A8: 20001 | B8: 10005 | C8: 42746.45819 | D8: 1920 | E8: 1930 | G8: =IFERROR(INDEX(Forecasts[Type], MATCH(AssignmentTable[[#This Row],[Forecast ID]], Forecasts[Forecast ID], 0)), "") -> Range | H8: =IF(ISBLANK(AssignmentTable[[#This Row],[Forecast ID]]), "", INDEX(Forecasts[Outcome], MATCH(AssignmentTable[[#This Row],[Forecast ID]], Forecasts[Forecast ID], 0))) -> 1564 | I8: =IF(OR(COUNTBLANK(AssignmentTable[[#This Row],[P5]:[P95]])>0, ISBLANK(AssignmentTable[[#This Row],[Outcome]])), "", IF(AssignmentTable[[#This Row],[Outcome]]<AssignmentTable[[#This Row],[P5]], 1, IF(AssignmentTable[[#This Row],[Outcome]]<AssignmentTable[[#This Row],[P95]], 2,3))) -> 1 | J8: =IFERROR(INDEX(Forecasts[U], MATCH(AssignmentTable[[#This Row],[Forecast ID]], Forecasts[Forecast ID], 0)), "") -> 1994.9 | K8: =IFERROR(INDEX(Forecasts[L], MATCH(AssignmentTable[[#This Row],[Forecast ID]], Forecasts[Forecast ID], 0)), "") -> 1495.1 | L8: =IFERROR(LN((AssignmentTable[[#This Row],[U]]-AssignmentTable[[#This Row],[L]])/((AssignmentTable[[#This Row],[P5]]-AssignmentTable[[#This Row],[L]])^0.05*(AssignmentTable[[#This Row],[P95]]-AssignmentTable[[#This Row],[P5]])^0.9*(AssignmentTable[[#This Row],[U]]-AssignmentTable[[#This Row],[P95]])^0.05)),"") -> 3.630646361 | M8: =IF(OR(ISBLANK(AssignmentTable[[#This Row],[Probability of Occurrence]]), ISBLANK(AssignmentTable[[#This Row],[Outcome]])), "", 1-(IF(AssignmentTable[[#This Row],[Outcome]]=1, 1, 0)-AssignmentTable[[#This Row],[Probability of Occurrence]])^2) ->  | N8: =IF(ISBLANK(AssignmentTable[[#This Row],[P5]]),"",INDEX(Forecasters[Total Wt Normalized across Subgroup],MATCH(AssignmentTable[[#This Row],[Forecaster ID]],Forecasters[Forecaster ID],0),1)*AssignmentTable[[#This Row],[P5]]) -> 1.165485024e-18 | O8: =IF(ISBLANK(AssignmentTable[[#This Row],[P95]]),"",INDEX(Forecasters[Total Wt Normalized across Subgroup],MATCH(AssignmentTable[[#This Row],[Forecaster ID]],Forecasters[Forecaster ID],0),1)*AssignmentTable[[#This Row],[P95]]) -> 1.171555259e-18 | P8: =IF(ISBLANK(AssignmentTable[[#This Row],[Probability of Occurrence]]),"",INDEX(Forecasters[Total Wt Normalized across Subgroup],MATCH(AssignmentTable[[#This Row],[Forecaster ID]],Forecasters[Forecaster ID],0),1)*AssignmentTable[[#This Row],[Probability of Occurrence]]) -> 
A9: 20001 | B9: 10006 | C9: 42748.74739 | D9: 500 | E9: 3000 | G9: =IFERROR(INDEX(Forecasts[Type], MATCH(AssignmentTable[[#This Row],[Forecast ID]], Forecasts[Forecast ID], 0)), "") -> Range | H9: =IF(ISBLANK(AssignmentTable[[#This Row],[Forecast ID]]), "", INDEX(Forecasts[Outcome], MATCH(AssignmentTable[[#This Row],[Forecast ID]], Forecasts[Forecast ID], 0))) -> 3944 | I9: =IF(OR(COUNTBLANK(AssignmentTable[[#This Row],[P5]:[P95]])>0, ISBLANK(AssignmentTable[[#This Row],[Outcome]])), "", IF(AssignmentTable[[#This Row],[Outcome]]<AssignmentTable[[#This Row],[P5]], 1, IF(AssignmentTable[[#This Row],[Outcome]]<AssignmentTable[[#This Row],[P95]], 2,3))) -> 3 | J9: =IFERROR(INDEX(Forecasts[U], MATCH(AssignmentTable[[#This Row],[Forecast ID]], Forecasts[Forecast ID], 0)), "") -> 25248.8 | K9: =IFERROR(INDEX(Forecasts[L], MATCH(AssignmentTable[[#This Row],[Forecast ID]], Forecasts[Forecast ID], 0)), "") -> -128.8 | L9: =IFERROR(LN((AssignmentTable[[#This Row],[U]]-AssignmentTable[[#This Row],[L]])/((AssignmentTable[[#This Row],[P5]]-AssignmentTable[[#This Row],[L]])^0.05*(AssignmentTable[[#This Row],[P95]]-AssignmentTable[[#This Row],[P5]])^0.9*(AssignmentTable[[#This Row],[U]]-AssignmentTable[[#This Row],[P95]])^0.05)),"") -> 2.277287935 | M9: =IF(OR(ISBLANK(AssignmentTable[[#This Row],[Probability of Occurrence]]), ISBLANK(AssignmentTable[[#This Row],[Outcome]])), "", 1-(IF(AssignmentTable[[#This Row],[Outcome]]=1, 1, 0)-AssignmentTable[[#This Row],[Probability of Occurrence]])^2) ->  | N9: =IF(ISBLANK(AssignmentTable[[#This Row],[P5]]),"",INDEX(Forecasters[Total Wt Normalized across Subgroup],MATCH(AssignmentTable[[#This Row],[Forecaster ID]],Forecasters[Forecaster ID],0),1)*AssignmentTable[[#This Row],[P5]]) -> 3.035117251e-19 | O9: =IF(ISBLANK(AssignmentTable[[#This Row],[P95]]),"",INDEX(Forecasters[Total Wt Normalized across Subgroup],MATCH(AssignmentTable[[#This Row],[Forecaster ID]],Forecasters[Forecaster ID],0),1)*AssignmentTable[[#This Row],[P95]]) -> 1.821070351e-18 | P9: =IF(ISBLANK(AssignmentTable[[#This Row],[Probability of Occurrence]]),"",INDEX(Forecasters[Total Wt Normalized across Subgroup],MATCH(AssignmentTable[[#This Row],[Forecaster ID]],Forecasters[Forecaster ID],0),1)*AssignmentTable[[#This Row],[Probability of Occurrence]]) -> 
A10: 20001 | B10: 10007 | C10: 42750.67297 | D10: 0.3 | E10: 0.4 | G10: =IFERROR(INDEX(Forecasts[Type], MATCH(AssignmentTable[[#This Row],[Forecast ID]], Forecasts[Forecast ID], 0)), "") -> Range | H10: =IF(ISBLANK(AssignmentTable[[#This Row],[Forecast ID]]), "", INDEX(Forecasts[Outcome], MATCH(AssignmentTable[[#This Row],[Forecast ID]], Forecasts[Forecast ID], 0))) -> 0.7853981634 | I10: =IF(OR(COUNTBLANK(AssignmentTable[[#This Row],[P5]:[P95]])>0, ISBLANK(AssignmentTable[[#This Row],[Outcome]])), "", IF(AssignmentTable[[#This Row],[Outcome]]<AssignmentTable[[#This Row],[P5]], 1, IF(AssignmentTable[[#This Row],[Outcome]]<AssignmentTable[[#This Row],[P95]], 2,3))) -> 3 | J10: =IFERROR(INDEX(Forecasts[U], MATCH(AssignmentTable[[#This Row],[Forecast ID]], Forecasts[Forecast ID], 0)), "") -> 1.008 | K10: =IFERROR(INDEX(Forecasts[L], MATCH(AssignmentTable[[#This Row],[Forecast ID]], Forecasts[Forecast ID], 0)), "") -> 0.192 | L10: =IFERROR(LN((AssignmentTable[[#This Row],[U]]-AssignmentTable[[#This Row],[L]])/((AssignmentTable[[#This Row],[P5]]-AssignmentTable[[#This Row],[L]])^0.05*(AssignmentTable[[#This Row],[P95]]-AssignmentTable[[#This Row],[P5]])^0.9*(AssignmentTable[[#This Row],[U]]-AssignmentTable[[#This Row],[P95]])^0.05)),"") -> 2.005145882 | M10: =IF(OR(ISBLANK(AssignmentTable[[#This Row],[Probability of Occurrence]]), ISBLANK(AssignmentTable[[#This Row],[Outcome]])), "", 1-(IF(AssignmentTable[[#This Row],[Outcome]]=1, 1, 0)-AssignmentTable[[#This Row],[Probability of Occurrence]])^2) ->  | N10: =IF(ISBLANK(AssignmentTable[[#This Row],[P5]]),"",INDEX(Forecasters[Total Wt Normalized across Subgroup],MATCH(AssignmentTable[[#This Row],[Forecaster ID]],Forecasters[Forecaster ID],0),1)*AssignmentTable[[#This Row],[P5]]) -> 1.821070351e-22 | O10: =IF(ISBLANK(AssignmentTable[[#This Row],[P95]]),"",INDEX(Forecasters[Total Wt Normalized across Subgroup],MATCH(AssignmentTable[[#This Row],[Forecaster ID]],Forecasters[Forecaster ID],0),1)*AssignmentTable[[#This Row],[P95]]) -> 2.428093801e-22 | P10: =IF(ISBLANK(AssignmentTable[[#This Row],[Probability of Occurrence]]),"",INDEX(Forecasters[Total Wt Normalized across Subgroup],MATCH(AssignmentTable[[#This Row],[Forecaster ID]],Forecasters[Forecaster ID],0),1)*AssignmentTable[[#This Row],[Probability of Occurrence]]) -> 
A11: 20001 | B11: 10008 | C11: 42751.59142 | D11: 50 | E11: 70 | G11: =IFERROR(INDEX(Forecasts[Type], MATCH(AssignmentTable[[#This Row],[Forecast ID]], Forecasts[Forecast ID], 0)), "") -> Range | H11: =IF(ISBLANK(AssignmentTable[[#This Row],[Forecast ID]]), "", INDEX(Forecasts[Outcome], MATCH(AssignmentTable[[#This Row],[Forecast ID]], Forecasts[Forecast ID], 0))) -> 88 | I11: =IF(OR(COUNTBLANK(AssignmentTable[[#This Row],[P5]:[P95]])>0, ISBLANK(AssignmentTable[[#This Row],[Outcome]])), "", IF(AssignmentTable[[#This Row],[Outcome]]<AssignmentTable[[#This Row],[P5]], 1, IF(AssignmentTable[[#This Row],[Outcome]]<AssignmentTable[[#This Row],[P95]], 2,3))) -> 3 | J11: =IFERROR(INDEX(Forecasts[U], MATCH(AssignmentTable[[#This Row],[Forecast ID]], Forecasts[Forecast ID], 0)), "") -> 1969.2 | K11: =IFERROR(INDEX(Forecasts[L], MATCH(AssignmentTable[[#This Row],[Forecast ID]], Forecasts[Forecast ID], 0)), "") -> 10.8 | L11: =IFERROR(LN((AssignmentTable[[#This Row],[U]]-AssignmentTable[[#This Row],[L]])/((AssignmentTable[[#This Row],[P5]]-AssignmentTable[[#This Row],[L]])^0.05*(AssignmentTable[[#This Row],[P95]]-AssignmentTable[[#This Row],[P5]])^0.9*(AssignmentTable[[#This Row],[U]]-AssignmentTable[[#This Row],[P95]])^0.05)),"") -> 4.322830808 | M11: =IF(OR(ISBLANK(AssignmentTable[[#This Row],[Probability of Occurrence]]), ISBLANK(AssignmentTable[[#This Row],[Outcome]])), "", 1-(IF(AssignmentTable[[#This Row],[Outcome]]=1, 1, 0)-AssignmentTable[[#This Row],[Probability of Occurrence]])^2) ->  | N11: =IF(ISBLANK(AssignmentTable[[#This Row],[P5]]),"",INDEX(Forecasters[Total Wt Normalized across Subgroup],MATCH(AssignmentTable[[#This Row],[Forecaster ID]],Forecasters[Forecaster ID],0),1)*AssignmentTable[[#This Row],[P5]]) -> 3.035117251e-20 | O11: =IF(ISBLANK(AssignmentTable[[#This Row],[P95]]),"",INDEX(Forecasters[Total Wt Normalized across Subgroup],MATCH(AssignmentTable[[#This Row],[Forecaster ID]],Forecasters[Forecaster ID],0),1)*AssignmentTable[[#This Row],[P95]]) -> 4.249164152e-20 | P11: =IF(ISBLANK(AssignmentTable[[#This Row],[Probability of Occurrence]]),"",INDEX(Forecasters[Total Wt Normalized across Subgroup],MATCH(AssignmentTable[[#This Row],[Forecaster ID]],Forecasters[Forecaster ID],0),1)*AssignmentTable[[#This Row],[Probability of Occurrence]]) -> 
A12: 20001 | B12: 10009 | C12: 42755.37656 | D12: 3 | E12: 50 | G12: =IFERROR(INDEX(Forecasts[Type], MATCH(AssignmentTable[[#This Row],[Forecast ID]], Forecasts[Forecast ID], 0)), "") -> Range | H12: =IF(ISBLANK(AssignmentTable[[#This Row],[Forecast ID]]), "", INDEX(Forecasts[Outcome], MATCH(AssignmentTable[[#This Row],[Forecast ID]], Forecasts[Forecast ID], 0))) -> 0.56 | I12: =IF(OR(COUNTBLANK(AssignmentTable[[#This Row],[P5]:[P95]])>0, ISBLANK(AssignmentTable[[#This Row],[Outcome]])), "", IF(AssignmentTable[[#This Row],[Outcome]]<AssignmentTable[[#This Row],[P5]], 1, IF(AssignmentTable[[#This Row],[Outcome]]<AssignmentTable[[#This Row],[P95]], 2,3))) -> 1 | J12: =IFERROR(INDEX(Forecasts[U], MATCH(AssignmentTable[[#This Row],[Forecast ID]], Forecasts[Forecast ID], 0)), "") -> 201.997 | K12: =IFERROR(INDEX(Forecasts[L], MATCH(AssignmentTable[[#This Row],[Forecast ID]], Forecasts[Forecast ID], 0)), "") -> -1.697 | L12: =IFERROR(LN((AssignmentTable[[#This Row],[U]]-AssignmentTable[[#This Row],[L]])/((AssignmentTable[[#This Row],[P5]]-AssignmentTable[[#This Row],[L]])^0.05*(AssignmentTable[[#This Row],[P95]]-AssignmentTable[[#This Row],[P5]])^0.9*(AssignmentTable[[#This Row],[U]]-AssignmentTable[[#This Row],[P95]])^0.05)),"") -> 1.522946787 | M12: =IF(OR(ISBLANK(AssignmentTable[[#This Row],[Probability of Occurrence]]), ISBLANK(AssignmentTable[[#This Row],[Outcome]])), "", 1-(IF(AssignmentTable[[#This Row],[Outcome]]=1, 1, 0)-AssignmentTable[[#This Row],[Probability of Occurrence]])^2) ->  | N12: =IF(ISBLANK(AssignmentTable[[#This Row],[P5]]),"",INDEX(Forecasters[Total Wt Normalized across Subgroup],MATCH(AssignmentTable[[#This Row],[Forecaster ID]],Forecasters[Forecaster ID],0),1)*AssignmentTable[[#This Row],[P5]]) -> 1.821070351e-21 | O12: =IF(ISBLANK(AssignmentTable[[#This Row],[P95]]),"",INDEX(Forecasters[Total Wt Normalized across Subgroup],MATCH(AssignmentTable[[#This Row],[Forecaster ID]],Forecasters[Forecaster ID],0),1)*AssignmentTable[[#This Row],[P95]]) -> 3.035117251e-20 | P12: =IF(ISBLANK(AssignmentTable[[#This Row],[Probability of Occurrence]]),"",INDEX(Forecasters[Total Wt Normalized across Subgroup],MATCH(AssignmentTable[[#This Row],[Forecaster ID]],Forecasters[Forecaster ID],0),1)*AssignmentTable[[#This Row],[Probability of Occurrence]]) -> 
A13: 20001 | B13: 10010 | C13: 42759.37868 | D13: 1850 | E13: 1900 | G13: =IFERROR(INDEX(Forecasts[Type], MATCH(AssignmentTable[[#This Row],[Forecast ID]], Forecasts[Forecast ID], 0)), "") -> Range | H13: =IF(ISBLANK(AssignmentTable[[#This Row],[Forecast ID]]), "", INDEX(Forecasts[Outcome], MATCH(AssignmentTable[[#This Row],[Forecast ID]], Forecasts[Forecast ID], 0))) -> 1964 | I13: =IF(OR(COUNTBLANK(AssignmentTable[[#This Row],[P5]:[P95]])>0, ISBLANK(AssignmentTable[[#This Row],[Outcome]])), "", IF(AssignmentTable[[#This Row],[Outcome]]<AssignmentTable[[#This Row],[P5]], 1, IF(AssignmentTable[[#This Row],[Outcome]]<AssignmentTable[[#This Row],[P95]], 2,3))) -> 3 | J13: =IFERROR(INDEX(Forecasts[U], MATCH(AssignmentTable[[#This Row],[Forecast ID]], Forecasts[Forecast ID], 0)), "") -> 2016.14 | K13: =IFERROR(INDEX(Forecasts[L], MATCH(AssignmentTable[[#This Row],[Forecast ID]], Forecasts[Forecast ID], 0)), "") -> 1797.86 | L13: =IFERROR(LN((AssignmentTable[[#This Row],[U]]-AssignmentTable[[#This Row],[L]])/((AssignmentTable[[#This Row],[P5]]-AssignmentTable[[#This Row],[L]])^0.05*(AssignmentTable[[#This Row],[P95]]-AssignmentTable[[#This Row],[P5]])^0.9*(AssignmentTable[[#This Row],[U]]-AssignmentTable[[#This Row],[P95]])^0.05)),"") -> 1.429521499 | M13: =IF(OR(ISBLANK(AssignmentTable[[#This Row],[Probability of Occurrence]]), ISBLANK(AssignmentTable[[#This Row],[Outcome]])), "", 1-(IF(AssignmentTable[[#This Row],[Outcome]]=1, 1, 0)-AssignmentTable[[#This Row],[Probability of Occurrence]])^2) ->  | N13: =IF(ISBLANK(AssignmentTable[[#This Row],[P5]]),"",INDEX(Forecasters[Total Wt Normalized across Subgroup],MATCH(AssignmentTable[[#This Row],[Forecaster ID]],Forecasters[Forecaster ID],0),1)*AssignmentTable[[#This Row],[P5]]) -> 1.122993383e-18 | O13: =IF(ISBLANK(AssignmentTable[[#This Row],[P95]]),"",INDEX(Forecasters[Total Wt Normalized across Subgroup],MATCH(AssignmentTable[[#This Row],[Forecaster ID]],Forecasters[Forecaster ID],0),1)*AssignmentTable[[#This Row],[P95]]) -> 1.153344555e-18 | P13: =IF(ISBLANK(AssignmentTable[[#This Row],[Probability of Occurrence]]),"",INDEX(Forecasters[Total Wt Normalized across Subgroup],MATCH(AssignmentTable[[#This Row],[Forecaster ID]],Forecasters[Forecaster ID],0),1)*AssignmentTable[[#This Row],[Probability of Occurrence]]) -> 
A14: 20001 | B14: 10011 | C14: 42760.57089 | F14: 0.5 | G14: =IFERROR(INDEX(Forecasts[Type], MATCH(AssignmentTable[[#This Row],[Forecast ID]], Forecasts[Forecast ID], 0)), "") -> Binary | H14: =IF(ISBLANK(AssignmentTable[[#This Row],[Forecast ID]]), "", INDEX(Forecasts[Outcome], MATCH(AssignmentTable[[#This Row],[Forecast ID]], Forecasts[Forecast ID], 0))) -> 0 | I14: =IF(OR(COUNTBLANK(AssignmentTable[[#This Row],[P5]:[P95]])>0, ISBLANK(AssignmentTable[[#This Row],[Outcome]])), "", IF(AssignmentTable[[#This Row],[Outcome]]<AssignmentTable[[#This Row],[P5]], 1, IF(AssignmentTable[[#This Row],[Outcome]]<AssignmentTable[[#This Row],[P95]], 2,3))) ->  | J14: =IFERROR(INDEX(Forecasts[U], MATCH(AssignmentTable[[#This Row],[Forecast ID]], Forecasts[Forecast ID], 0)), "") ->  | K14: =IFERROR(INDEX(Forecasts[L], MATCH(AssignmentTable[[#This Row],[Forecast ID]], Forecasts[Forecast ID], 0)), "") ->  | L14: =IFERROR(LN((AssignmentTable[[#This Row],[U]]-AssignmentTable[[#This Row],[L]])/((AssignmentTable[[#This Row],[P5]]-AssignmentTable[[#This Row],[L]])^0.05*(AssignmentTable[[#This Row],[P95]]-AssignmentTable[[#This Row],[P5]])^0.9*(AssignmentTable[[#This Row],[U]]-AssignmentTable[[#This Row],[P95]])^0.05)),"") ->  | M14: =IF(OR(ISBLANK(AssignmentTable[[#This Row],[Probability of Occurrence]]), ISBLANK(AssignmentTable[[#This Row],[Outcome]])), "", 1-(IF(AssignmentTable[[#This Row],[Outcome]]=1, 1, 0)-AssignmentTable[[#This Row],[Probability of Occurrence]])^2) -> 0.75 | N14: =IF(ISBLANK(AssignmentTable[[#This Row],[P5]]),"",INDEX(Forecasters[Total Wt Normalized across Subgroup],MATCH(AssignmentTable[[#This Row],[Forecaster ID]],Forecasters[Forecaster ID],0),1)*AssignmentTable[[#This Row],[P5]]) ->  | O14: =IF(ISBLANK(AssignmentTable[[#This Row],[P95]]),"",INDEX(Forecasters[Total Wt Normalized across Subgroup],MATCH(AssignmentTable[[#This Row],[Forecaster ID]],Forecasters[Forecaster ID],0),1)*AssignmentTable[[#This Row],[P95]]) ->  | P14: =IF(ISBLANK(AssignmentTable[[#This Row],[Probability of Occurrence]]),"",INDEX(Forecasters[Total Wt Normalized across Subgroup],MATCH(AssignmentTable[[#This Row],[Forecaster ID]],Forecasters[Forecaster ID],0),1)*AssignmentTable[[#This Row],[Probability of Occurrence]]) -> 3.035117251e-22
A15: 20001 | B15: 10012 | C15: 42764.08747 | F15: 0.8 | G15: =IFERROR(INDEX(Forecasts[Type], MATCH(AssignmentTable[[#This Row],[Forecast ID]], Forecasts[Forecast ID], 0)), "") -> Binary | H15: =IF(ISBLANK(AssignmentTable[[#This Row],[Forecast ID]]), "", INDEX(Forecasts[Outcome], MATCH(AssignmentTable[[#This Row],[Forecast ID]], Forecasts[Forecast ID], 0))) -> 1 | I15: =IF(OR(COUNTBLANK(AssignmentTable[[#This Row],[P5]:[P95]])>0, ISBLANK(AssignmentTable[[#This Row],[Outcome]])), "", IF(AssignmentTable[[#This Row],[Outcome]]<AssignmentTable[[#This Row],[P5]], 1, IF(AssignmentTable[[#This Row],[Outcome]]<AssignmentTable[[#This Row],[P95]], 2,3))) ->  | J15: =IFERROR(INDEX(Forecasts[U], MATCH(AssignmentTable[[#This Row],[Forecast ID]], Forecasts[Forecast ID], 0)), "") ->  | K15: =IFERROR(INDEX(Forecasts[L], MATCH(AssignmentTable[[#This Row],[Forecast ID]], Forecasts[Forecast ID], 0)), "") ->  | L15: =IFERROR(LN((AssignmentTable[[#This Row],[U]]-AssignmentTable[[#This Row],[L]])/((AssignmentTable[[#This Row],[P5]]-AssignmentTable[[#This Row],[L]])^0.05*(AssignmentTable[[#This Row],[P95]]-AssignmentTable[[#This Row],[P5]])^0.9*(AssignmentTable[[#This Row],[U]]-AssignmentTable[[#This Row],[P95]])^0.05)),"") ->  | M15: =IF(OR(ISBLANK(AssignmentTable[[#This Row],[Probability of Occurrence]]), ISBLANK(AssignmentTable[[#This Row],[Outcome]])), "", 1-(IF(AssignmentTable[[#This Row],[Outcome]]=1, 1, 0)-AssignmentTable[[#This Row],[Probability of Occurrence]])^2) -> 0.96 | N15: =IF(ISBLANK(AssignmentTable[[#This Row],[P5]]),"",INDEX(Forecasters[Total Wt Normalized across Subgroup],MATCH(AssignmentTable[[#This Row],[Forecaster ID]],Forecasters[Forecaster ID],0),1)*AssignmentTable[[#This Row],[P5]]) ->  | O15: =IF(ISBLANK(AssignmentTable[[#This Row],[P95]]),"",INDEX(Forecasters[Total Wt Normalized across Subgroup],MATCH(AssignmentTable[[#This Row],[Forecaster ID]],Forecasters[Forecaster ID],0),1)*AssignmentTable[[#This Row],[P95]]) ->  | P15: =IF(ISBLANK(AssignmentTable[[#This Row],[Probability of Occurrence]]),"",INDEX(Forecasters[Total Wt Normalized across Subgroup],MATCH(AssignmentTable[[#This Row],[Forecaster ID]],Forecasters[Forecaster ID],0),1)*AssignmentTable[[#This Row],[Probability of Occurrence]]) -> 4.856187602e-22
A16: 20001 | B16: 10013 | C16: 42769.52552 | F16: 0.4 | G16: =IFERROR(INDEX(Forecasts[Type], MATCH(AssignmentTable[[#This Row],[Forecast ID]], Forecasts[Forecast ID], 0)), "") -> Binary | H16: =IF(ISBLANK(AssignmentTable[[#This Row],[Forecast ID]]), "", INDEX(Forecasts[Outcome], MATCH(AssignmentTable[[#This Row],[Forecast ID]], Forecasts[Forecast ID], 0))) -> 1 | I16: =IF(OR(COUNTBLANK(AssignmentTable[[#This Row],[P5]:[P95]])>0, ISBLANK(AssignmentTable[[#This Row],[Outcome]])), "", IF(AssignmentTable[[#This Row],[Outcome]]<AssignmentTable[[#This Row],[P5]], 1, IF(AssignmentTable[[#This Row],[Outcome]]<AssignmentTable[[#This Row],[P95]], 2,3))) ->  | J16: =IFERROR(INDEX(Forecasts[U], MATCH(AssignmentTable[[#This Row],[Forecast ID]], Forecasts[Forecast ID], 0)), "") ->  | K16: =IFERROR(INDEX(Forecasts[L], MATCH(AssignmentTable[[#This Row],[Forecast ID]], Forecasts[Forecast ID], 0)), "") ->  | L16: =IFERROR(LN((AssignmentTable[[#This Row],[U]]-AssignmentTable[[#This Row],[L]])/((AssignmentTable[[#This Row],[P5]]-AssignmentTable[[#This Row],[L]])^0.05*(AssignmentTable[[#This Row],[P95]]-AssignmentTable[[#This Row],[P5]])^0.9*(AssignmentTable[[#This Row],[U]]-AssignmentTable[[#This Row],[P95]])^0.05)),"") ->  | M16: =IF(OR(ISBLANK(AssignmentTable[[#This Row],[Probability of Occurrence]]), ISBLANK(AssignmentTable[[#This Row],[Outcome]])), "", 1-(IF(AssignmentTable[[#This Row],[Outcome]]=1, 1, 0)-AssignmentTable[[#This Row],[Probability of Occurrence]])^2) -> 0.64 | N16: =IF(ISBLANK(AssignmentTable[[#This Row],[P5]]),"",INDEX(Forecasters[Total Wt Normalized across Subgroup],MATCH(AssignmentTable[[#This Row],[Forecaster ID]],Forecasters[Forecaster ID],0),1)*AssignmentTable[[#This Row],[P5]]) ->  | O16: =IF(ISBLANK(AssignmentTable[[#This Row],[P95]]),"",INDEX(Forecasters[Total Wt Normalized across Subgroup],MATCH(AssignmentTable[[#This Row],[Forecaster ID]],Forecasters[Forecaster ID],0),1)*AssignmentTable[[#This Row],[P95]]) ->  | P16: =IF(ISBLANK(AssignmentTable[[#This Row],[Probability of Occurrence]]),"",INDEX(Forecasters[Total Wt Normalized across Subgroup],MATCH(AssignmentTable[[#This Row],[Forecaster ID]],Forecasters[Forecaster ID],0),1)*AssignmentTable[[#This Row],[Probability of Occurrence]]) -> 2.428093801e-22
A17: 20001 | B17: 10014 | C17: 42770.02973 | F17: 0.8 | G17: =IFERROR(INDEX(Forecasts[Type], MATCH(AssignmentTable[[#This Row],[Forecast ID]], Forecasts[Forecast ID], 0)), "") -> Binary | H17: =IF(ISBLANK(AssignmentTable[[#This Row],[Forecast ID]]), "", INDEX(Forecasts[Outcome], MATCH(AssignmentTable[[#This Row],[Forecast ID]], Forecasts[Forecast ID], 0))) -> 0 | I17: =IF(OR(COUNTBLANK(AssignmentTable[[#This Row],[P5]:[P95]])>0, ISBLANK(AssignmentTable[[#This Row],[Outcome]])), "", IF(AssignmentTable[[#This Row],[Outcome]]<AssignmentTable[[#This Row],[P5]], 1, IF(AssignmentTable[[#This Row],[Outcome]]<AssignmentTable[[#This Row],[P95]], 2,3))) ->  | J17: =IFERROR(INDEX(Forecasts[U], MATCH(AssignmentTable[[#This Row],[Forecast ID]], Forecasts[Forecast ID], 0)), "") ->  | K17: =IFERROR(INDEX(Forecasts[L], MATCH(AssignmentTable[[#This Row],[Forecast ID]], Forecasts[Forecast ID], 0)), "") ->  | L17: =IFERROR(LN((AssignmentTable[[#This Row],[U]]-AssignmentTable[[#This Row],[L]])/((AssignmentTable[[#This Row],[P5]]-AssignmentTable[[#This Row],[L]])^0.05*(AssignmentTable[[#This Row],[P95]]-AssignmentTable[[#This Row],[P5]])^0.9*(AssignmentTable[[#This Row],[U]]-AssignmentTable[[#This Row],[P95]])^0.05)),"") ->  | M17: =IF(OR(ISBLANK(AssignmentTable[[#This Row],[Probability of Occurrence]]), ISBLANK(AssignmentTable[[#This Row],[Outcome]])), "", 1-(IF(AssignmentTable[[#This Row],[Outcome]]=1, 1, 0)-AssignmentTable[[#This Row],[Probability of Occurrence]])^2) -> 0.36 | N17: =IF(ISBLANK(AssignmentTable[[#This Row],[P5]]),"",INDEX(Forecasters[Total Wt Normalized across Subgroup],MATCH(AssignmentTable[[#This Row],[Forecaster ID]],Forecasters[Forecaster ID],0),1)*AssignmentTable[[#This Row],[P5]]) ->  | O17: =IF(ISBLANK(AssignmentTable[[#This Row],[P95]]),"",INDEX(Forecasters[Total Wt Normalized across Subgroup],MATCH(AssignmentTable[[#This Row],[Forecaster ID]],Forecasters[Forecaster ID],0),1)*AssignmentTable[[#This Row],[P95]]) ->  | P17: =IF(ISBLANK(AssignmentTable[[#This Row],[Probability of Occurrence]]),"",INDEX(Forecasters[Total Wt Normalized across Subgroup],MATCH(AssignmentTable[[#This Row],[Forecaster ID]],Forecasters[Forecaster ID],0),1)*AssignmentTable[[#This Row],[Probability of Occurrence]]) -> 4.856187602e-22
A18: 20001 | B18: 10015 | C18: 42771.19026 | F18: 0.5 | G18: =IFERROR(INDEX(Forecasts[Type], MATCH(AssignmentTable[[#This Row],[Forecast ID]], Forecasts[Forecast ID], 0)), "") -> Binary | H18: =IF(ISBLANK(AssignmentTable[[#This Row],[Forecast ID]]), "", INDEX(Forecasts[Outcome], MATCH(AssignmentTable[[#This Row],[Forecast ID]], Forecasts[Forecast ID], 0))) -> 1 | I18: =IF(OR(COUNTBLANK(AssignmentTable[[#This Row],[P5]:[P95]])>0, ISBLANK(AssignmentTable[[#This Row],[Outcome]])), "", IF(AssignmentTable[[#This Row],[Outcome]]<AssignmentTable[[#This Row],[P5]], 1, IF(AssignmentTable[[#This Row],[Outcome]]<AssignmentTable[[#This Row],[P95]], 2,3))) ->  | J18: =IFERROR(INDEX(Forecasts[U], MATCH(AssignmentTable[[#This Row],[Forecast ID]], Forecasts[Forecast ID], 0)), "") ->  | K18: =IFERROR(INDEX(Forecasts[L], MATCH(AssignmentTable[[#This Row],[Forecast ID]], Forecasts[Forecast ID], 0)), "") ->  | L18: =IFERROR(LN((AssignmentTable[[#This Row],[U]]-AssignmentTable[[#This Row],[L]])/((AssignmentTable[[#This Row],[P5]]-AssignmentTable[[#This Row],[L]])^0.05*(AssignmentTable[[#This Row],[P95]]-AssignmentTable[[#This Row],[P5]])^0.9*(AssignmentTable[[#This Row],[U]]-AssignmentTable[[#This Row],[P95]])^0.05)),"") ->  | M18: =IF(OR(ISBLANK(AssignmentTable[[#This Row],[Probability of Occurrence]]), ISBLANK(AssignmentTable[[#This Row],[Outcome]])), "", 1-(IF(AssignmentTable[[#This Row],[Outcome]]=1, 1, 0)-AssignmentTable[[#This Row],[Probability of Occurrence]])^2) -> 0.75 | N18: =IF(ISBLANK(AssignmentTable[[#This Row],[P5]]),"",INDEX(Forecasters[Total Wt Normalized across Subgroup],MATCH(AssignmentTable[[#This Row],[Forecaster ID]],Forecasters[Forecaster ID],0),1)*AssignmentTable[[#This Row],[P5]]) ->  | O18: =IF(ISBLANK(AssignmentTable[[#This Row],[P95]]),"",INDEX(Forecasters[Total Wt Normalized across Subgroup],MATCH(AssignmentTable[[#This Row],[Forecaster ID]],Forecasters[Forecaster ID],0),1)*AssignmentTable[[#This Row],[P95]]) ->  | P18: =IF(ISBLANK(AssignmentTable[[#This Row],[Probability of Occurrence]]),"",INDEX(Forecasters[Total Wt Normalized across Subgroup],MATCH(AssignmentTable[[#This Row],[Forecaster ID]],Forecasters[Forecaster ID],0),1)*AssignmentTable[[#This Row],[Probability of Occurrence]]) -> 3.035117251e-22
A19: 20001 | B19: 10016 | C19: 42771.62733 | F19: 0.2 | G19: =IFERROR(INDEX(Forecasts[Type], MATCH(AssignmentTable[[#This Row],[Forecast ID]], Forecasts[Forecast ID], 0)), "") -> Binary | H19: =IF(ISBLANK(AssignmentTable[[#This Row],[Forecast ID]]), "", INDEX(Forecasts[Outcome], MATCH(AssignmentTable[[#This Row],[Forecast ID]], Forecasts[Forecast ID], 0))) -> 1 | I19: =IF(OR(COUNTBLANK(AssignmentTable[[#This Row],[P5]:[P95]])>0, ISBLANK(AssignmentTable[[#This Row],[Outcome]])), "", IF(AssignmentTable[[#This Row],[Outcome]]<AssignmentTable[[#This Row],[P5]], 1, IF(AssignmentTable[[#This Row],[Outcome]]<AssignmentTable[[#This Row],[P95]], 2,3))) ->  | J19: =IFERROR(INDEX(Forecasts[U], MATCH(AssignmentTable[[#This Row],[Forecast ID]], Forecasts[Forecast ID], 0)), "") ->  | K19: =IFERROR(INDEX(Forecasts[L], MATCH(AssignmentTable[[#This Row],[Forecast ID]], Forecasts[Forecast ID], 0)), "") ->  | L19: =IFERROR(LN((AssignmentTable[[#This Row],[U]]-AssignmentTable[[#This Row],[L]])/((AssignmentTable[[#This Row],[P5]]-AssignmentTable[[#This Row],[L]])^0.05*(AssignmentTable[[#This Row],[P95]]-AssignmentTable[[#This Row],[P5]])^0.9*(AssignmentTable[[#This Row],[U]]-AssignmentTable[[#This Row],[P95]])^0.05)),"") ->  | M19: =IF(OR(ISBLANK(AssignmentTable[[#This Row],[Probability of Occurrence]]), ISBLANK(AssignmentTable[[#This Row],[Outcome]])), "", 1-(IF(AssignmentTable[[#This Row],[Outcome]]=1, 1, 0)-AssignmentTable[[#This Row],[Probability of Occurrence]])^2) -> 0.36 | N19: =IF(ISBLANK(AssignmentTable[[#This Row],[P5]]),"",INDEX(Forecasters[Total Wt Normalized across Subgroup],MATCH(AssignmentTable[[#This Row],[Forecaster ID]],Forecasters[Forecaster ID],0),1)*AssignmentTable[[#This Row],[P5]]) ->  | O19: =IF(ISBLANK(AssignmentTable[[#This Row],[P95]]),"",INDEX(Forecasters[Total Wt Normalized across Subgroup],MATCH(AssignmentTable[[#This Row],[Forecaster ID]],Forecasters[Forecaster ID],0),1)*AssignmentTable[[#This Row],[P95]]) ->  | P19: =IF(ISBLANK(AssignmentTable[[#This Row],[Probability of Occurrence]]),"",INDEX(Forecasters[Total Wt Normalized across Subgroup],MATCH(AssignmentTable[[#This Row],[Forecaster ID]],Forecasters[Forecaster ID],0),1)*AssignmentTable[[#This Row],[Probability of Occurrence]]) -> 1.2140469e-22
A20: 20001 | B20: 10017 | C20: 42773.8561 | F20: 0.6 | G20: =IFERROR(INDEX(Forecasts[Type], MATCH(AssignmentTable[[#This Row],[Forecast ID]], Forecasts[Forecast ID], 0)), "") -> Binary | H20: =IF(ISBLANK(AssignmentTable[[#This Row],[Forecast ID]]), "", INDEX(Forecasts[Outcome], MATCH(AssignmentTable[[#This Row],[Forecast ID]], Forecasts[Forecast ID], 0))) -> 0 | I20: =IF(OR(COUNTBLANK(AssignmentTable[[#This Row],[P5]:[P95]])>0, ISBLANK(AssignmentTable[[#This Row],[Outcome]])), "", IF(AssignmentTable[[#This Row],[Outcome]]<AssignmentTable[[#This Row],[P5]], 1, IF(AssignmentTable[[#This Row],[Outcome]]<AssignmentTable[[#This Row],[P95]], 2,3))) ->  | J20: =IFERROR(INDEX(Forecasts[U], MATCH(AssignmentTable[[#This Row],[Forecast ID]], Forecasts[Forecast ID], 0)), "") ->  | K20: =IFERROR(INDEX(Forecasts[L], MATCH(AssignmentTable[[#This Row],[Forecast ID]], Forecasts[Forecast ID], 0)), "") ->  | L20: =IFERROR(LN((AssignmentTable[[#This Row],[U]]-AssignmentTable[[#This Row],[L]])/((AssignmentTable[[#This Row],[P5]]-AssignmentTable[[#This Row],[L]])^0.05*(AssignmentTable[[#This Row],[P95]]-AssignmentTable[[#This Row],[P5]])^0.9*(AssignmentTable[[#This Row],[U]]-AssignmentTable[[#This Row],[P95]])^0.05)),"") ->  | M20: =IF(OR(ISBLANK(AssignmentTable[[#This Row],[Probability of Occurrence]]), ISBLANK(AssignmentTable[[#This Row],[Outcome]])), "", 1-(IF(AssignmentTable[[#This Row],[Outcome]]=1, 1, 0)-AssignmentTable[[#This Row],[Probability of Occurrence]])^2) -> 0.64 | N20: =IF(ISBLANK(AssignmentTable[[#This Row],[P5]]),"",INDEX(Forecasters[Total Wt Normalized across Subgroup],MATCH(AssignmentTable[[#This Row],[Forecaster ID]],Forecasters[Forecaster ID],0),1)*AssignmentTable[[#This Row],[P5]]) ->  | O20: =IF(ISBLANK(AssignmentTable[[#This Row],[P95]]),"",INDEX(Forecasters[Total Wt Normalized across Subgroup],MATCH(AssignmentTable[[#This Row],[Forecaster ID]],Forecasters[Forecaster ID],0),1)*AssignmentTable[[#This Row],[P95]]) ->  | P20: =IF(ISBLANK(AssignmentTable[[#This Row],[Probability of Occurrence]]),"",INDEX(Forecasters[Total Wt Normalized across Subgroup],MATCH(AssignmentTable[[#This Row],[Forecaster ID]],Forecasters[Forecaster ID],0),1)*AssignmentTable[[#This Row],[Probability of Occurrence]]) -> 3.642140701e-22
A21: 20001 | B21: 10018 | C21: 42774.19171 | F21: 0.5 | G21: =IFERROR(INDEX(Forecasts[Type], MATCH(AssignmentTable[[#This Row],[Forecast ID]], Forecasts[Forecast ID], 0)), "") -> Binary | H21: =IF(ISBLANK(AssignmentTable[[#This Row],[Forecast ID]]), "", INDEX(Forecasts[Outcome], MATCH(AssignmentTable[[#This Row],[Forecast ID]], Forecasts[Forecast ID], 0))) -> 1 | I21: =IF(OR(COUNTBLANK(AssignmentTable[[#This Row],[P5]:[P95]])>0, ISBLANK(AssignmentTable[[#This Row],[Outcome]])), "", IF(AssignmentTable[[#This Row],[Outcome]]<AssignmentTable[[#This Row],[P5]], 1, IF(AssignmentTable[[#This Row],[Outcome]]<AssignmentTable[[#This Row],[P95]], 2,3))) ->  | J21: =IFERROR(INDEX(Forecasts[U], MATCH(AssignmentTable[[#This Row],[Forecast ID]], Forecasts[Forecast ID], 0)), "") ->  | K21: =IFERROR(INDEX(Forecasts[L], MATCH(AssignmentTable[[#This Row],[Forecast ID]], Forecasts[Forecast ID], 0)), "") ->  | L21: =IFERROR(LN((AssignmentTable[[#This Row],[U]]-AssignmentTable[[#This Row],[L]])/((AssignmentTable[[#This Row],[P5]]-AssignmentTable[[#This Row],[L]])^0.05*(AssignmentTable[[#This Row],[P95]]-AssignmentTable[[#This Row],[P5]])^0.9*(AssignmentTable[[#This Row],[U]]-AssignmentTable[[#This Row],[P95]])^0.05)),"") ->  | M21: =IF(OR(ISBLANK(AssignmentTable[[#This Row],[Probability of Occurrence]]), ISBLANK(AssignmentTable[[#This Row],[Outcome]])), "", 1-(IF(AssignmentTable[[#This Row],[Outcome]]=1, 1, 0)-AssignmentTable[[#This Row],[Probability of Occurrence]])^2) -> 0.75 | N21: =IF(ISBLANK(AssignmentTable[[#This Row],[P5]]),"",INDEX(Forecasters[Total Wt Normalized across Subgroup],MATCH(AssignmentTable[[#This Row],[Forecaster ID]],Forecasters[Forecaster ID],0),1)*AssignmentTable[[#This Row],[P5]]) ->  | O21: =IF(ISBLANK(AssignmentTable[[#This Row],[P95]]),"",INDEX(Forecasters[Total Wt Normalized across Subgroup],MATCH(AssignmentTable[[#This Row],[Forecaster ID]],Forecasters[Forecaster ID],0),1)*AssignmentTable[[#This Row],[P95]]) ->  | P21: =IF(ISBLANK(AssignmentTable[[#This Row],[Probability of Occurrence]]),"",INDEX(Forecasters[Total Wt Normalized across Subgroup],MATCH(AssignmentTable[[#This Row],[Forecaster ID]],Forecasters[Forecaster ID],0),1)*AssignmentTable[[#This Row],[Probability of Occurrence]]) -> 3.035117251e-22
